Workbook

Sheet User_INPUTS
C2: OUTPUT SELECTIONS | E2: DESIRED OUTPUT | G2: Calculate the storage needed for 100% reliability
H3: generate one single storage point (m3)
H4: generate a storage curve
G5: Calculate the reliability, given the storage
H6: generate one single reliability data point (worst case only)
H7: generate a reliability matrix (worst case only) for a catchment & storage range
H8: generate a reliability matrix (worst case only) for a demand & storage range
H9: generate a data set for a catchment, demand, & storage range (AVG, SD, MIN, MAX)
G10: Calculate the time required to fill the storage tank range per catchment range
C13: INPUT SELECTIONS | E13: DEMAND | G13: storage tank fed only: | M13: irrigation (direct rain fed or tank fed):
G14: range: | I14: to | K14: (liters) | M14: depth: | O14: (cm)
G15: increment: | I15: (liters)
G16: frequency: | I16: (days) | M16: frequency: | O16: (days)
G17: period: | H17: All months | M17: period: | N17: All months
H18: Specific months (specify below) | N18: Specific months (specify below)
I19: January | K19: July | O19: January | Q19: July
I20: February | K20: August | O20: February | Q20: August
I21: March | K21: September | O21: March | Q21: September
I22: April | K22: October | O22: April | Q22: October
I23: May | K23: Noveber | O23: May | Q23: Noveber
I24: June | K24: December | O24: June | Q24: December
E26: CATCHMENT
G27: range: | I27: to | K27: (m2) | M27: irrigated field size: | Q27: (m2)
G28: increment: | I28: (m2)
E30: STORAGE
G31: range: | I31: to | K31: (m3)
G32: increment: | I32: (m3)
E34: FIRST FLUSH
G35: depth: | I35: (mm)
G36: frequency: | I36: (days)

Sheet OUTPUT_Data
A1: 1916.25 | B1: Storage (m3)

Sheet Historical_Data
A1: INPUT 25 years of data | E1: data range (days): | F1: =COUNTIF(A3:A36525,">0") -> 9131 | H1: TOTAL data: | I1: =SUM(C:C) -> 2825.52648 | K1: demand: | L1: 210 | N1: irrig depth | O1: 4 | Q1: ERROR tank? | R1: =IF(((I1/F2)*0.01*I2)<((365/L2)*L1*0.001),1,0) -> 1
A2: day # | B2: Date | C2: Data (cm) | E2: number of years: | F2: =ROUND(F1/365,0) -> 25 | H2: catchment: | I2: 0 | K2: demand_freq: | L2: 1 | N2: irrig field | O2: 10 | Q2: ERROR field? | R2: =IF(((I1/F2)*0.01*(I2+O2))<(((365/L2)*L1*0.001)+((365/O3)*0.01*O1*O2)),1,0) -> 1
A3: 1 | B3: 1978-01-01 | C3: 0.0762 | N3: irrig freq | O3: 7
A4: 2 | B4: 1978-01-02 | C4: 0
A5: 3 | B5: 1978-01-03 | C5: 0
A6: 4 | B6: 1978-01-04 | C6: 0
A7: 5 | B7: 1978-01-05 | C7: 0
A8: 6 | B8: 1978-01-06 | C8: 0
A9: 7 | B9: 1978-01-07 | C9: 0
A10: 8 | B10: 1978-01-08 | C10: 1.6764
A11: 9 | B11: 1978-01-09 | C11: 2.6416
A12: 10 | B12: 1978-01-10 | C12: 0
A13: 11 | B13: 1978-01-11 | C13: 0
A14: 12 | B14: 1978-01-12 | C14: 0
A15: 13 | B15: 1978-01-13 | C15: 3.1242
A16: 14 | B16: 1978-01-14 | C16: 0.508
A17: 15 | B17: 1978-01-15 | C17: 0
A18: 16 | B18: 1978-01-16 | C18: 0
A19: 17 | B19: 1978-01-17 | C19: 3.3274
A20: 18 | B20: 1978-01-18 | C20: 0.254
A21: 19 | B21: 1978-01-19 | C21: 0.14986
A22: 20 | B22: 1978-01-20 | C22: 1.09474
A23: 21 | B23: 1978-01-21 | C23: 0
A24: 22 | B24: 1978-01-22 | C24: 0
A25: 23 | B25: 1978-01-23 | C25: 0
A26: 24 | B26: 1978-01-24 | C26: 0
A27: 25 | B27: 1978-01-25 | C27: 4.9022
A28: 26 | B28: 1978-01-26 | C28: 2.07772
A29: 27 | B29: 1978-01-27 | C29: 0
A30: 28 | B30: 1978-01-28 | C30: 0
A31: 29 | B31: 1978-01-29 | C31: 0
A32: 30 | B32: 1978-01-30 | C32: 0
A33: 31 | B33: 1978-01-31 | C33: 0
A34: 32 | B34: 1978-02-01 | C34: 0
A35: 33 | B35: 1978-02-02 | C35: 0
A36: 34 | B36: 1978-02-03 | C36: 0
A37: 35 | B37: 1978-02-04 | C37: 0
A38: 36 | B38: 1978-02-05 | C38: 0
A39: 37 | B39: 1978-02-06 | C39: 1.8034
A40: 38 | B40: 1978-02-07 | C40: 0
A41: 39 | B41: 1978-02-08 | C41: 0
A42: 40 | B42: 1978-02-09 | C42: 0
A43: 41 | B43: 1978-02-10 | C43: 0
A44: 42 | B44: 1978-02-11 | C44: 0
A45: 43 | B45: 1978-02-12 | C45: 0
A46: 44 | B46: 1978-02-13 | C46: 0.8636
A47: 45 | B47: 1978-02-14 | C47: 0
A48: 46 | B48: 1978-02-15 | C48: 0
A49: 47 | B49: 1978-02-16 | C49: 0
A50: 48 | B50: 1978-02-17 | C50: 0
A51: 49 | B51: 1978-02-18 | C51: 0
A52: 50 | B52: 1978-02-19 | C52: 0
A53: 51 | B53: 1978-02-20 | C53: 0
A54: 52 | B54: 1978-02-21 | C54: 0
A55: 53 | B55: 1978-02-22 | C55: 0
A56: 54 | B56: 1978-02-23 | C56: 0
A57: 55 | B57: 1978-02-24 | C57: 0
A58: 56 | B58: 1978-02-25 | C58: 0
A59: 57 | B59: 1978-02-26 | C59: 0
A60: 58 | B60: 1978-02-27 | C60: 0
A61: 59 | B61: 1978-02-28 | C61: 0
A62: 60 | B62: 1978-03-01 | C62: 0
A63: 61 | B63: 1978-03-02 | C63: 0
A64: 62 | B64: 1978-03-03 | C64: 1.016
A65: 63 | B65: 1978-03-04 | C65: 0
A66: 64 | B66: 1978-03-05 | C66: 0
A67: 65 | B67: 1978-03-06 | C67: 0
A68: 66 | B68: 1978-03-07 | C68: 0
A69: 67 | B69: 1978-03-08 | C69: 0.381
A70: 68 | B70: 1978-03-09 | C70: 0
A71: 69 | B71: 1978-03-10 | C71: 0
A72: 70 | B72: 1978-03-11 | C72: 0
A73: 71 | B73: 1978-03-12 | C73: 0
A74: 72 | B74: 1978-03-13 | C74: 0
A75: 73 | B75: 1978-03-14 | C75: 1.3462
A76: 74 | B76: 1978-03-15 | C76: 0
A77: 75 | B77: 1978-03-16 | C77: 1.48336
A78: 76 | B78: 1978-03-17 | C78: 0.11684
A79: 77 | B79: 1978-03-18 | C79: 0
A80: 78 | B80: 1978-03-19 | C80: 0
A81: 79 | B81: 1978-03-20 | C81: 0
A82: 80 | B82: 1978-03-21 | C82: 0.508
A83: 81 | B83: 1978-03-22 | C83: 0
A84: 82 | B84: 1978-03-23 | C84: 0
A85: 83 | B85: 1978-03-24 | C85: 0
A86: 84 | B86: 1978-03-25 | C86: 0.22606
A87: 85 | B87: 1978-03-26 | C87: 5.7658
A88: 86 | B88: 1978-03-27 | C88: 1.31572
A89: 87 | B89: 1978-03-28 | C89: 0
A90: 88 | B90: 1978-03-29 | C90: 0
A91: 89 | B91: 1978-03-30 | C91: 0
A92: 90 | B92: 1978-03-31 | C92: 0
A93: 91 | B93: 1978-04-01 | C93: 0
A94: 92 | B94: 1978-04-02 | C94: 0
A95: 93 | B95: 1978-04-03 | C95: 0.26416
A96: 94 | B96: 1978-04-04 | C96: 0.16764
A97: 95 | B97: 1978-04-05 | C97: 0
A98: 96 | B98: 1978-04-06 | C98: 0.18542
A99: 97 | B99: 1978-04-07 | C99: 0.09398
A100: 98 | B100: 1978-04-08 | C100: 0
A101: 99 | B101: 1978-04-09 | C101: 0
A102: 100 | B102: 1978-04-10 | C102: 0
A103: 101 | B103: 1978-04-11 | C103: 0.127
A104: 102 | B104: 1978-04-12 | C104: 0
A105: 103 | B105: 1978-04-13 | C105: 0
A106: 104 | B106: 1978-04-14 | C106: 0
A107: 105 | B107: 1978-04-15 | C107: 0
A108: 106 | B108: 1978-04-16 | C108: 0
A109: 107 | B109: 1978-04-17 | C109: 0
A110: 108 | B110: 1978-04-18 | C110: 0.8382
A111: 109 | B111: 1978-04-19 | C111: 2.27838
A112: 110 | B112: 1978-04-20 | C112: 0.05842
A113: 111 | B113: 1978-04-21 | C113: 0
A114: 112 | B114: 1978-04-22 | C114: 0
A115: 113 | B115: 1978-04-23 | C115: 0
A116: 114 | B116: 1978-04-24 | C116: 0
A117: 115 | B117: 1978-04-25 | C117: 0
A118: 116 | B118: 1978-04-26 | C118: 0
A119: 117 | B119: 1978-04-27 | C119: 0
A120: 118 | B120: 1978-04-28 | C120: 0
A121: 119 | B121: 1978-04-29 | C121: 0
A122: 120 | B122: 1978-04-30 | C122: 0
A123: 121 | B123: 1978-05-01 | C123: 0
A124: 122 | B124: 1978-05-02 | C124: 0
A125: 123 | B125: 1978-05-03 | C125: 0
A126: 124 | B126: 1978-05-04 | C126: 1.85166
A127: 125 | B127: 1978-05-05 | C127: 0.37592
A128: 126 | B128: 1978-05-06 | C128: 0.05842
A129: 127 | B129: 1978-05-07 | C129: 0
A130: 128 | B130: 1978-05-08 | C130: 1.22936
A131: 129 | B131: 1978-05-09 | C131: 3.3782
A132: 130 | B132: 1978-05-10 | C132: 0
A133: 131 | B133: 1978-05-11 | C133: 0
A134: 132 | B134: 1978-05-12 | C134: 0
A135: 133 | B135: 1978-05-13 | C135: 0.16764
A136: 134 | B136: 1978-05-14 | C136: 3.429
A137: 135 | B137: 1978-05-15 | C137: 1.89484
A138: 136 | B138: 1978-05-16 | C138: 0.9652
A139: 137 | B139: 1978-05-17 | C139: 1.1176
A140: 138 | B140: 1978-05-18 | C140: 0
A141: 139 | B141: 1978-05-19 | C141: 0
A142: 140 | B142: 1978-05-20 | C142: 0
A143: 141 | B143: 1978-05-21 | C143: 0
A144: 142 | B144: 1978-05-22 | C144: 0
A145: 143 | B145: 1978-05-23 | C145: 0.30226
A146: 144 | B146: 1978-05-24 | C146: 2.11074
A147: 145 | B147: 1978-05-25 | C147: 0
A148: 146 | B148: 1978-05-26 | C148: 0
A149: 147 | B149: 1978-05-27 | C149: 0
A150: 148 | B150: 1978-05-28 | C150: 0
A151: 149 | B151: 1978-05-29 | C151: 0
A152: 150 | B152: 1978-05-30 | C152: 0
A153: 151 | B153: 1978-05-31 | C153: 0
A154: 152 | B154: 1978-06-01 | C154: 0
A155: 153 | B155: 1978-06-02 | C155: 0
A156: 154 | B156: 1978-06-03 | C156: 0.2794
A157: 155 | B157: 1978-06-04 | C157: 0
A158: 156 | B158: 1978-06-05 | C158: 0.381
A159: 157 | B159: 1978-06-06 | C159: 0
A160: 158 | B160: 1978-06-07 | C160: 0.71374
A161: 159 | B161: 1978-06-08 | C161: 2.30886
A162: 160 | B162: 1978-06-09 | C162: 0
A163: 161 | B163: 1978-06-10 | C163: 0.0254
A164: 162 | B164: 1978-06-11 | C164: 0
A165: 163 | B165: 1978-06-12 | C165: 0
A166: 164 | B166: 1978-06-13 | C166: 0.9652
A167: 165 | B167: 1978-06-14 | C167: 0
A168: 166 | B168: 1978-06-15 | C168: 0
A169: 167 | B169: 1978-06-16 | C169: 0
A170: 168 | B170: 1978-06-17 | C170: 0.4064
A171: 169 | B171: 1978-06-18 | C171: 0
A172: 170 | B172: 1978-06-19 | C172: 0
A173: 171 | B173: 1978-06-20 | C173: 0
A174: 172 | B174: 1978-06-21 | C174: 1.0922
A175: 173 | B175: 1978-06-22 | C175: 0
A176: 174 | B176: 1978-06-23 | C176: 0
A177: 175 | B177: 1978-06-24 | C177: 0
A178: 176 | B178: 1978-06-25 | C178: 0
A179: 177 | B179: 1978-06-26 | C179: 0
A180: 178 | B180: 1978-06-27 | C180: 1.6383
A181: 179 | B181: 1978-06-28 | C181: 0.2667
A182: 180 | B182: 1978-06-29 | C182: 0.3048
A183: 181 | B183: 1978-06-30 | C183: 0
A184: 182 | B184: 1978-07-01 | C184: 0
A185: 183 | B185: 1978-07-02 | C185: 0.14986
A186: 184 | B186: 1978-07-03 | C186: 9.779
A187: 185 | B187: 1978-07-04 | C187: 0
A188: 186 | B188: 1978-07-05 | C188: 0
A189: 187 | B189: 1978-07-06 | C189: 0
A190: 188 | B190: 1978-07-07 | C190: 0
A191: 189 | B191: 1978-07-08 | C191: 0
A192: 190 | B192: 1978-07-09 | C192: 0
A193: 191 | B193: 1978-07-10 | C193: 0
A194: 192 | B194: 1978-07-11 | C194: 0
A195: 193 | B195: 1978-07-12 | C195: 0
A196: 194 | B196: 1978-07-13 | C196: 0
A197: 195 | B197: 1978-07-14 | C197: 0
A198: 196 | B198: 1978-07-15 | C198: 0
A199: 197 | B199: 1978-07-16 | C199: 0.0762
A200: 198 | B200: 1978-07-17 | C200: 0
... 8933 more rows

Sheet Data_Array
C1: 1978 | D1: 1979 | E1: 1980 | F1: 1981 | G1: 1982 | H1: 1983 | I1: 1984 | J1: 1985 | K1: 1986 | L1: 1987 | M1: 1988 | N1: 1989 | O1: 1990 | P1: 1991 | Q1: 1992 | R1: 1993 | S1: 1994 | T1: 1995 | U1: 1996 | V1: 1997 | W1: 1998 | X1: 1999 | Y1: 2000 | Z1: 2001 | AA1: 2002 | AC1: 1978 | AD1: 1979 | AE1: 1980 | AF1: 1981 | AG1: 1982 | AH1: 1983 | AI1: 1984 | AJ1: 1985 | AK1: 1986 | AL1: 1987 | AM1: 1988 | AN1: 1989 | AO1: 1990 | AP1: 1991 | AQ1: 1992 | AR1: 1993 | AS1: 1994 | AT1: 1995 | AU1: 1996 | AV1: 1997 | AW1: 1998 | AX1: 1999 | AY1: 2000 | AZ1: 2001 | BA1: 2002 | BB1: 1978 | BC1: 1979 | BD1: 1980 | BE1: 1981 | BF1: 1982 | BG1: 1983 | BH1: 1984 | BI1: 1985 | BJ1: 1986 | BK1: 1987 | BL1: 1988 | BM1: 1989 | BN1: 1990 | BO1: 1991 | BP1: 1992 | BQ1: 1993 | BR1: 1994 | BS1: 1995 | BT1: 1996 | BU1: 1997 | BV1: 1998 | BW1: 1999 | BX1: 2000 | BY1: 2001 | BZ1: 2002 | CA1: 1978 | CB1: 1979 | CC1: 1980 | CD1: 1981 | CE1: 1982 | CF1: 1983 | CG1: 1984 | CH1: 1985 | CI1: 1986 | CJ1: 1987 | CK1: 1988 | CL1: 1989 | CM1: 1990 | CN1: 1991 | CO1: 1992 | CP1: 1993 | CQ1: 1994 | CR1: 1995 | CS1: 1996 | CT1: 1997 | CU1: 1998 | CV1: 1999 | CW1: 2000 | CX1: 2001 | CY1: 2002 | CZ1: 1978 | DA1: 1979 | DB1: 1980 | DC1: 1981 | DD1: 1982 | DE1: 1983 | DF1: 1984 | DG1: 1985 | DH1: 1986 | DI1: 1987 | DJ1: 1988 | DK1: 1989 | DL1: 1990 | DM1: 1991 | DN1: 1992 | DO1: 1993 | DP1: 1994 | DQ1: 1995 | DR1: 1996 | DS1: 1997 | DT1: 1998 | DU1: 1999 | DV1: 2000 | DW1: 2001 | DX1: 2002 | DY1: 1978 | DZ1: 1978 | EA1: 1979 | EB1: 1980 | EC1: 1981 | ED1: 1982 | EE1: 1983 | EF1: 1984 | EG1: 1985 | EH1: 1986 | EI1: 1987 | EJ1: 1988 | EK1: 1989 | EL1: 1990 | EM1: 1991 | EN1: 1992 | EO1: 1993 | EP1: 1994 | EQ1: 1995 | ER1: 1996 | ES1: 1997 | ET1: 1998 | EU1: 1999 | EV1: 2000 | EW1: 2001 | EX1: 2002 | FK1: 1978 | FL1: 1979 | FM1: 1980 | FN1: 1981 | FO1: 1982 | FP1: 1983 | FQ1: 1984 | FR1: 1985 | FS1: 1986 | FT1: 1987 | FU1: 1988 | FV1: 1989 | FW1: 1990 | FX1: 1991 | FY1: 1992 | FZ1: 1993 | GA1: 1994 | GB1: 1995 | GC1: 1996 | GD1: 1997 | GE1: 1998 | GF1: 1999 | GG1: 2000 | GH1: 2001 | GI1: 2002
A2: day # | B2: Date | C2: Data (cm) | AC2: WET? | AD2: WET? | AE2: WET? | AF2: WET? | AG2: WET? | AH2: WET? | AI2: WET? | AJ2: WET? | AK2: WET? | AL2: WET? | AM2: WET? | AN2: WET? | AO2: WET? | AP2: WET? | AQ2: WET? | AR2: WET? | AS2: WET? | AT2: WET? | AU2: WET? | AV2: WET? | AW2: WET? | AX2: WET? | AY2: WET? | AZ2: WET? | BA2: WET? | BB2: WW? | BC2: WW? | BD2: WW? | BE2: WW? | BF2: WW? | BG2: WW? | BH2: WW? | BI2: WW? | BJ2: WW? | BK2: WW? | BL2: WW? | BM2: WW? | BN2: WW? | BO2: WW? | BP2: WW? | BQ2: WW? | BR2: WW? | BS2: WW? | BT2: WW? | BU2: WW? | BV2: WW? | BW2: WW? | BX2: WW? | BY2: WW? | BZ2: WW? | CA2: WD? | CB2: WD? | CC2: WD? | CD2: WD? | CE2: WD? | CF2: WD? | CG2: WD? | CH2: WD? | CI2: WD? | CJ2: WD? | CK2: WD? | CL2: WD? | CM2: WD? | CN2: WD? | CO2: WD? | CP2: WD? | CQ2: WD? | CR2: WD? | CS2: WD? | CT2: WD? | CU2: WD? | CV2: WD? | CW2: WD? | CX2: WD? | CY2: WD? | CZ2: DD? | DA2: DD? | DB2: DD? | DC2: DD? | DD2: DD? | DE2: DD? | DF2: DD? | DG2: DD? | DH2: DD? | DI2: DD? | DJ2: DD? | DK2: DD? | DL2: DD? | DM2: DD? | DN2: DD? | DO2: DD? | DP2: DD? | DQ2: DD? | DR2: DD? | DS2: DD? | DT2: DD? | DU2: DD? | DV2: DD? | DW2: DD? | DX2: DD? | DY2: DW? | DZ2: DW? | EA2: DW? | EB2: DW? | EC2: DW? | ED2: DW? | EE2: DW? | EF2: DW? | EG2: DW? | EH2: DW? | EI2: DW? | EJ2: DW? | EK2: DW? | EL2: DW? | EM2: DW? | EN2: DW? | EO2: DW? | EP2: DW? | EQ2: DW? | ER2: DW? | ES2: DW? | ET2: DW? | EU2: DW? | EV2: DW? | EW2: DW? | EX2: DW? | EZ2: # of WET: | FA2: # of WW: | FB2: # of WD: | FC2: # of DD: | FD2: # of DW: | FF2: P(W): | FG2: P(WW): | FH2: P(WD): | FI2: P(DD): | FJ2: P(WD): | FK2: Data (cm) | FL2: Data (cm) | FM2: Data (cm) | FN2: Data (cm) | FO2: Data (cm) | FP2: Data (cm) | FQ2: Data (cm) | FR2: Data (cm) | FS2: Data (cm) | FT2: Data (cm) | FU2: Data (cm) | FV2: Data (cm) | FW2: Data (cm) | FX2: Data (cm) | FY2: Data (cm) | FZ2: Data (cm) | GA2: Data (cm) | GB2: Data (cm) | GC2: Data (cm) | GD2: Data (cm) | GE2: Data (cm) | GF2: Data (cm) | GG2: Data (cm) | GH2: Data (cm) | GI2: Data (cm)
A3: -15 | B3: =Historical_Data!B9118 -> 2002-12-16 | C3: =Historical_Data!C9118 -> 0 | D3: =Historical_Data!C352 -> 0 | E3: =Historical_Data!C717 -> 0 | F3: =Historical_Data!C1083 -> 0.254 | G3: =Historical_Data!C1448 -> 0 | H3: =Historical_Data!C1813 -> 2.7178 | I3: =Historical_Data!C2178 -> 0 | J3: =Historical_Data!C2544 -> 0.0254 | K3: =Historical_Data!C2909 -> 0 | L3: =Historical_Data!C3274 -> 0 | M3: =Historical_Data!C3639 -> 0 | N3: =Historical_Data!C4005 -> 0 | O3: =Historical_Data!C4370 -> 0 | P3: =Historical_Data!C4735 -> 0 | Q3: =Historical_Data!C5100 -> 0 | R3: =Historical_Data!C5466 -> 0.05334 | S3: =Historical_Data!C5831 -> 0 | T3: =Historical_Data!C6196 -> 0 | U3: =Historical_Data!C6561 -> 1.8288 | V3: =Historical_Data!C6927 -> 0 | W3: =Historical_Data!C7292 -> 0 | X3: =Historical_Data!C7657 -> 0 | Y3: =Historical_Data!C8022 -> 0.0762 | Z3: =Historical_Data!C8388 -> 0.7366 | AA3: =Historical_Data!C8753 -> 0 | AC3: =IF(C3>0,1,0) -> 0 | AD3: =IF(D3>0,1,0) -> 0 | AE3: 0 | AF3: 1 | AG3: 0 | AH3: 1 | AI3: 0 | AJ3: 1 | AK3: 0 | AL3: 0 | AM3: 0 | AN3: 0 | AO3: 0 | AP3: 0 | AQ3: 0 | AR3: 1 | AS3: 0 | AT3: 0 | AU3: 1 | AV3: 0 | AW3: 0 | AX3: 0 | AY3: 1 | AZ3: 1 | BA3: 0 | FK3: =IF(C3=0,"-",C3) -> - | FL3: =IF(D3=0,"-",D3) -> - | FM3: - | FN3: 0.254 | FO3: - | FP3: 2.7178 | FQ3: - | FR3: 0.0254 | FS3: - | FT3: - | FU3: - | FV3: - | FW3: - | FX3: - | FY3: - | FZ3: 0.05334 | GA3: - | GB3: - | GC3: 1.8288 | GD3: - | GE3: - | GF3: - | GG3: 0.0762 | GH3: 0.7366 | GI3: -
A4: -14 | B4: =Historical_Data!B9119 -> 2002-12-17 | C4: =Historical_Data!C9119 -> 0 | D4: =Historical_Data!C353 -> 0 | E4: =Historical_Data!C718 -> 0 | F4: =Historical_Data!C1084 -> 0 | G4: =Historical_Data!C1449 -> 0.508 | H4: =Historical_Data!C1814 -> 0 | I4: =Historical_Data!C2179 -> 0 | J4: =Historical_Data!C2545 -> 0 | K4: =Historical_Data!C2910 -> 0 | L4: =Historical_Data!C3275 -> 0 | M4: =Historical_Data!C3640 -> 0 | N4: =Historical_Data!C4006 -> 0 | O4: =Historical_Data!C4371 -> 0 | P4: =Historical_Data!C4736 -> 0.05588 | Q4: =Historical_Data!C5101 -> 0 | R4: =Historical_Data!C5467 -> 1.75006 | S4: =Historical_Data!C5832 -> 0 | T4: =Historical_Data!C6197 -> 0.2032 | U4: =Historical_Data!C6562 -> 0 | V4: =Historical_Data!C6928 -> 0.3048 | W4: =Historical_Data!C7293 -> 0 | X4: =Historical_Data!C7658 -> 0.0762 | Y4: =Historical_Data!C8023 -> 0 | Z4: =Historical_Data!C8389 -> 8.4074 | AA4: =Historical_Data!C8754 -> 0 | AC4: =IF(C4>0,1,0) -> 0 | AD4: =IF(D4>0,1,0) -> 0 | AE4: =IF(E4>0,1,0) -> 0 | AF4: =IF(F4>0,1,0) -> 0 | AG4: =IF(G4>0,1,0) -> 1 | AH4: =IF(H4>0,1,0) -> 0 | AI4: =IF(I4>0,1,0) -> 0 | AJ4: =IF(J4>0,1,0) -> 0 | AK4: =IF(K4>0,1,0) -> 0 | AL4: =IF(L4>0,1,0) -> 0 | AM4: =IF(M4>0,1,0) -> 0 | AN4: =IF(N4>0,1,0) -> 0 | AO4: =IF(O4>0,1,0) -> 0 | AP4: =IF(P4>0,1,0) -> 1 | AQ4: =IF(Q4>0,1,0) -> 0 | AR4: =IF(R4>0,1,0) -> 1 | AS4: =IF(S4>0,1,0) -> 0 | AT4: =IF(T4>0,1,0) -> 1 | AU4: =IF(U4>0,1,0) -> 0 | AV4: =IF(V4>0,1,0) -> 1 | AW4: =IF(W4>0,1,0) -> 0 | AX4: =IF(X4>0,1,0) -> 1 | AY4: =IF(Y4>0,1,0) -> 0 | AZ4: =IF(Z4>0,1,0) -> 1 | BA4: =IF(AA4>0,1,0) -> 0 | BB4: =IF(AC3=1,IF(AC4=1,1,0),0) -> 0 | BC4: =IF(AD3=1,IF(AD4=1,1,0),0) -> 0 | BD4: 0 | BE4: 0 | BF4: 0 | BG4: 0 | BH4: 0 | BI4: 0 | BJ4: 0 | BK4: 0 | BL4: 0 | BM4: 0 | BN4: 0 | BO4: 0 | BP4: 0 | BQ4: 1 | BR4: 0 | BS4: 0 | BT4: 0 | BU4: 0 | BV4: 0 | BW4: 0 | BX4: 0 | BY4: 1 | BZ4: 0 | CA4: =IF(AC3=1,IF(AC4=0,1,0),0) -> 0 | CB4: 0 | CC4: 0 | CD4: 1 | CE4: 0 | CF4: 1 | CG4: 0 | CH4: 1 | CI4: 0 | CJ4: 0 | CK4: 0 | CL4: 0 | CM4: 0 | CN4: 0 | CO4: 0 | CP4: 0 | CQ4: 0 | CR4: 0 | CS4: 1 | CT4: 0 | CU4: 0 | CV4: 0 | CW4: 1 | CX4: 0 | CY4: 0 | CZ4: =IF(AC3=0,IF(AC4=0,1,0),0) -> 1 | DA4: =IF(AD3=0,IF(AD4=0,1,0),0) -> 1 | DB4: 1 | DC4: 0 | DD4: 0 | DE4: 0 | DF4: 1 | DG4: 0 | DH4: 1 | DI4: 1 | DJ4: 1 | DK4: 1 | DL4: 1 | DM4: 0 | DN4: 1 | DO4: 0 | DP4: 1 | DQ4: 0 | DR4: 0 | DS4: 0 | DT4: 1 | DU4: 0 | DV4: 0 | DW4: 0 | DX4: =IF(BA3=0,IF(BA4=0,1,0),0) -> 1 | DY4: =IF(AC3=0,IF(AC4=1,1,0),0) -> 0 | DZ4: =IF(AC3=0,IF(AC4=1,1,0),0) -> 0 | EA4: =IF(AD3=0,IF(AD4=1,1,0),0) -> 0 | EB4: 0 | EC4: 0 | ED4: 1 | EE4: 0 | EF4: 0 | EG4: 0 | EH4: 0 | EI4: 0 | EJ4: 0 | EK4: 0 | EL4: 0 | EM4: 1 | EN4: 0 | EO4: 0 | EP4: 0 | EQ4: 1 | ER4: 0 | ES4: 1 | ET4: 0 | EU4: 1 | EV4: 0 | EW4: 0 | EX4: =IF(BA3=0,IF(BA4=1,1,0),0) -> 0 | FK4: =IF(C4=0,"-",C4) -> - | FL4: =IF(D4=0,"-",D4) -> - | FM4: =IF(E4=0,"-",E4) -> - | FN4: =IF(F4=0,"-",F4) -> - | FO4: =IF(G4=0,"-",G4) -> 0.508 | FP4: =IF(H4=0,"-",H4) -> - | FQ4: =IF(I4=0,"-",I4) -> - | FR4: =IF(J4=0,"-",J4) -> - | FS4: =IF(K4=0,"-",K4) -> - | FT4: =IF(L4=0,"-",L4) -> - | FU4: =IF(M4=0,"-",M4) -> - | FV4: =IF(N4=0,"-",N4) -> - | FW4: =IF(O4=0,"-",O4) -> - | FX4: =IF(P4=0,"-",P4) -> 0.05588 | FY4: =IF(Q4=0,"-",Q4) -> - | FZ4: =IF(R4=0,"-",R4) -> 1.75006 | GA4: =IF(S4=0,"-",S4) -> - | GB4: =IF(T4=0,"-",T4) -> 0.2032 | GC4: =IF(U4=0,"-",U4) -> - | GD4: =IF(V4=0,"-",V4) -> 0.3048 | GE4: =IF(W4=0,"-",W4) -> - | GF4: =IF(X4=0,"-",X4) -> 0.0762 | GG4: =IF(Y4=0,"-",Y4) -> - | GH4: =IF(Z4=0,"-",Z4) -> 8.4074 | GI4: =IF(AA4=0,"-",AA4) -> -
A5: -13 | B5: =Historical_Data!B9120 -> 2002-12-18 | C5: =Historical_Data!C9120 -> 0 | D5: =Historical_Data!C354 -> 0 | E5: =Historical_Data!C719 -> 0 | F5: =Historical_Data!C1085 -> 0 | G5: =Historical_Data!C1450 -> 0 | H5: =Historical_Data!C1815 -> 0 | I5: =Historical_Data!C2180 -> 0 | J5: =Historical_Data!C2546 -> 0 | K5: =Historical_Data!C2911 -> 0 | L5: =Historical_Data!C3276 -> 2.9972 | M5: =Historical_Data!C3641 -> 0 | N5: =Historical_Data!C4007 -> 0 | O5: =Historical_Data!C4372 -> 0 | P5: =Historical_Data!C4737 -> 1.03632 | Q5: =Historical_Data!C5102 -> 0 | R5: =Historical_Data!C5468 -> 0 | S5: =Historical_Data!C5833 -> 0 | T5: =Historical_Data!C6198 -> 0 | U5: =Historical_Data!C6563 -> 0.0635 | V5: =Historical_Data!C6929 -> 0.05334 | W5: =Historical_Data!C7294 -> 0 | X5: =Historical_Data!C7659 -> 0 | Y5: =Historical_Data!C8024 -> 0 | Z5: =Historical_Data!C8390 -> 0 | AA5: =Historical_Data!C8755 -> 0 | AC5: 0 | AD5: 0 | AE5: 0 | AF5: 0 | AG5: 0 | AH5: 0 | AI5: 0 | AJ5: 0 | AK5: 0 | AL5: 1 | AM5: 0 | AN5: 0 | AO5: 0 | AP5: 1 | AQ5: 0 | AR5: 0 | AS5: 0 | AT5: 0 | AU5: 1 | AV5: 1 | AW5: 0 | AX5: 0 | AY5: 0 | AZ5: 0 | BA5: 0 | BB5: =IF(AC4=1,IF(AC5=1,1,0),0) -> 0 | BC5: 0 | BD5: 0 | BE5: 0 | BF5: 0 | BG5: 0 | BH5: 0 | BI5: 0 | BJ5: 0 | BK5: 0 | BL5: 0 | BM5: 0 | BN5: 0 | BO5: 1 | BP5: 0 | BQ5: 0 | BR5: 0 | BS5: 0 | BT5: 0 | BU5: 1 | BV5: 0 | BW5: 0 | BX5: 0 | BY5: 0 | BZ5: 0 | CA5: =IF(AC4=1,IF(AC5=0,1,0),0) -> 0 | CB5: =IF(AD4=1,IF(AD5=0,1,0),0) -> 0 | CC5: =IF(AE4=1,IF(AE5=0,1,0),0) -> 0 | CD5: =IF(AF4=1,IF(AF5=0,1,0),0) -> 0 | CE5: =IF(AG4=1,IF(AG5=0,1,0),0) -> 1 | CF5: =IF(AH4=1,IF(AH5=0,1,0),0) -> 0 | CG5: =IF(AI4=1,IF(AI5=0,1,0),0) -> 0 | CH5: =IF(AJ4=1,IF(AJ5=0,1,0),0) -> 0 | CI5: =IF(AK4=1,IF(AK5=0,1,0),0) -> 0 | CJ5: =IF(AL4=1,IF(AL5=0,1,0),0) -> 0 | CK5: =IF(AM4=1,IF(AM5=0,1,0),0) -> 0 | CL5: =IF(AN4=1,IF(AN5=0,1,0),0) -> 0 | CM5: =IF(AO4=1,IF(AO5=0,1,0),0) -> 0 | CN5: =IF(AP4=1,IF(AP5=0,1,0),0) -> 0 | CO5: =IF(AQ4=1,IF(AQ5=0,1,0),0) -> 0 | CP5: =IF(AR4=1,IF(AR5=0,1,0),0) -> 1 | CQ5: =IF(AS4=1,IF(AS5=0,1,0),0) -> 0 | CR5: =IF(AT4=1,IF(AT5=0,1,0),0) -> 1 | CS5: =IF(AU4=1,IF(AU5=0,1,0),0) -> 0 | CT5: =IF(AV4=1,IF(AV5=0,1,0),0) -> 0 | CU5: =IF(AW4=1,IF(AW5=0,1,0),0) -> 0 | CV5: =IF(AX4=1,IF(AX5=0,1,0),0) -> 1 | CW5: =IF(AY4=1,IF(AY5=0,1,0),0) -> 0 | CX5: =IF(AZ4=1,IF(AZ5=0,1,0),0) -> 1 | CY5: =IF(BA4=1,IF(BA5=0,1,0),0) -> 0 | CZ5: =IF(AC4=0,IF(AC5=0,1,0),0) -> 1 | DA5: 1 | DB5: 1 | DC5: 1 | DD5: 0 | DE5: 1 | DF5: 1 | DG5: 1 | DH5: 1 | DI5: 0 | DJ5: 1 | DK5: 1 | DL5: 1 | DM5: 0 | DN5: 1 | DO5: 0 | DP5: 1 | DQ5: 0 | DR5: 0 | DS5: 0 | DT5: 1 | DU5: 0 | DV5: 1 | DW5: 0 | DX5: =IF(BA4=0,IF(BA5=0,1,0),0) -> 1 | DY5: =IF(AC4=0,IF(AC5=1,1,0),0) -> 0 | DZ5: =IF(AC4=0,IF(AC5=1,1,0),0) -> 0 | EA5: 0 | EB5: 0 | EC5: 0 | ED5: 0 | EE5: 0 | EF5: 0 | EG5: 0 | EH5: 0 | EI5: 1 | EJ5: 0 | EK5: 0 | EL5: 0 | EM5: 0 | EN5: 0 | EO5: 0 | EP5: 0 | EQ5: 0 | ER5: 1 | ES5: 0 | ET5: 0 | EU5: 0 | EV5: 0 | EW5: 0 | EX5: 0 | FK5: - | FL5: - | FM5: - | FN5: - | FO5: - | FP5: - | FQ5: - | FR5: - | FS5: - | FT5: 2.9972 | FU5: - | FV5: - | FW5: - | FX5: 1.03632 | FY5: - | FZ5: - | GA5: - | GB5: - | GC5: 0.0635 | GD5: 0.05334 | GE5: - | GF5: - | GG5: - | GH5: - | GI5: -
A6: -12 | B6: =Historical_Data!B9121 -> 2002-12-19 | C6: =Historical_Data!C9121 -> 0 | D6: =Historical_Data!C355 -> 0 | E6: =Historical_Data!C720 -> 0.1016 | F6: =Historical_Data!C1086 -> 0 | G6: =Historical_Data!C1451 -> 0 | H6: =Historical_Data!C1816 -> 0.2286 | I6: =Historical_Data!C2181 -> 0 | J6: =Historical_Data!C2547 -> 0.508 | K6: =Historical_Data!C2912 -> 0 | L6: =Historical_Data!C3277 -> 0 | M6: =Historical_Data!C3642 -> 0 | N6: =Historical_Data!C4008 -> 0 | O6: =Historical_Data!C4373 -> 0 | P6: =Historical_Data!C4738 -> 0 | Q6: =Historical_Data!C5103 -> 0 | R6: =Historical_Data!C5469 -> 0 | S6: =Historical_Data!C5834 -> 0.2794 | T6: =Historical_Data!C6199 -> 0 | U6: =Historical_Data!C6564 -> 0.61468 | V6: =Historical_Data!C6930 -> 0.83566 | W6: =Historical_Data!C7295 -> 0 | X6: =Historical_Data!C7660 -> 0 | Y6: =Historical_Data!C8025 -> 0 | Z6: =Historical_Data!C8391 -> 0.0508 | AA6: =Historical_Data!C8756 -> 0 | AC6: 0 | AD6: 0 | AE6: 1 | AF6: 0 | AG6: 0 | AH6: 1 | AI6: 0 | AJ6: 1 | AK6: 0 | AL6: 0 | AM6: 0 | AN6: 0 | AO6: 0 | AP6: 0 | AQ6: 0 | AR6: 0 | AS6: 1 | AT6: 0 | AU6: 1 | AV6: 1 | AW6: 0 | AX6: 0 | AY6: 0 | AZ6: 1 | BA6: 0 | BB6: 0 | BC6: 0 | BD6: 0 | BE6: 0 | BF6: 0 | BG6: 0 | BH6: 0 | BI6: 0 | BJ6: 0 | BK6: 0 | BL6: 0 | BM6: 0 | BN6: 0 | BO6: 0 | BP6: 0 | BQ6: 0 | BR6: 0 | BS6: 0 | BT6: 1 | BU6: 1 | BV6: 0 | BW6: 0 | BX6: 0 | BY6: 0 | BZ6: 0 | CA6: 0 | CB6: 0 | CC6: 0 | CD6: 0 | CE6: 0 | CF6: 0 | CG6: 0 | CH6: 0 | CI6: 0 | CJ6: 1 | CK6: 0 | CL6: 0 | CM6: 0 | CN6: 1 | CO6: 0 | CP6: 0 | CQ6: 0 | CR6: 0 | CS6: 0 | CT6: 0 | CU6: 0 | CV6: 0 | CW6: 0 | CX6: 0 | CY6: 0 | CZ6: 1 | DA6: 1 | DB6: 0 | DC6: 1 | DD6: 1 | DE6: 0 | DF6: 1 | DG6: 0 | DH6: 1 | DI6: 0 | DJ6: 1 | DK6: 1 | DL6: 1 | DM6: 0 | DN6: 1 | DO6: 1 | DP6: 0 | DQ6: 1 | DR6: 0 | DS6: 0 | DT6: 1 | DU6: 1 | DV6: 1 | DW6: 0 | DX6: 1 | DY6: 0 | DZ6: 0 | EA6: 0 | EB6: 1 | EC6: 0 | ED6: 0 | EE6: 1 | EF6: 0 | EG6: 1 | EH6: 0 | EI6: 0 | EJ6: 0 | EK6: 0 | EL6: 0 | EM6: 0 | EN6: 0 | EO6: 0 | EP6: 1 | EQ6: 0 | ER6: 0 | ES6: 0 | ET6: 0 | EU6: 0 | EV6: 0 | EW6: 1 | EX6: 0 | FK6: - | FL6: - | FM6: 0.1016 | FN6: - | FO6: - | FP6: 0.2286 | FQ6: - | FR6: 0.508 | FS6: - | FT6: - | FU6: - | FV6: - | FW6: - | FX6: - | FY6: - | FZ6: - | GA6: 0.2794 | GB6: - | GC6: 0.61468 | GD6: 0.83566 | GE6: - | GF6: - | GG6: - | GH6: 0.0508 | GI6: -
A7: -11 | B7: =Historical_Data!B9122 -> 2002-12-20 | C7: =Historical_Data!C9122 -> 2.032 | D7: =Historical_Data!C356 -> 0.7366 | E7: =Historical_Data!C721 -> 0 | F7: =Historical_Data!C1087 -> 0 | G7: =Historical_Data!C1452 -> 0 | H7: =Historical_Data!C1817 -> 0 | I7: =Historical_Data!C2182 -> 0 | J7: =Historical_Data!C2548 -> 0 | K7: =Historical_Data!C2913 -> 0.2032 | L7: =Historical_Data!C3278 -> 0 | M7: =Historical_Data!C3643 -> 0.7112 | N7: =Historical_Data!C4009 -> 0 | O7: =Historical_Data!C4374 -> 0 | P7: =Historical_Data!C4739 -> 0 | Q7: =Historical_Data!C5104 -> 0 | R7: =Historical_Data!C5470 -> 0.635 | S7: =Historical_Data!C5835 -> 0.27178 | T7: =Historical_Data!C6200 -> 0 | U7: =Historical_Data!C6565 -> 0.03302 | V7: =Historical_Data!C6931 -> 0 | W7: =Historical_Data!C7296 -> 0 | X7: =Historical_Data!C7661 -> 0 | Y7: =Historical_Data!C8026 -> 0.6858 | Z7: =Historical_Data!C8392 -> 0.0508 | AA7: =Historical_Data!C8757 -> 0 | AC7: 1 | AD7: 1 | AE7: 0 | AF7: 0 | AG7: 0 | AH7: 0 | AI7: 0 | AJ7: 0 | AK7: 1 | AL7: 0 | AM7: 1 | AN7: 0 | AO7: 0 | AP7: 0 | AQ7: 0 | AR7: 1 | AS7: 1 | AT7: 0 | AU7: 1 | AV7: 0 | AW7: 0 | AX7: 0 | AY7: 1 | AZ7: 1 | BA7: 0 | BB7: 0 | BC7: 0 | BD7: 0 | BE7: 0 | BF7: 0 | BG7: 0 | BH7: 0 | BI7: 0 | BJ7: 0 | BK7: 0 | BL7: 0 | BM7: 0 | BN7: 0 | BO7: 0 | BP7: 0 | BQ7: 0 | BR7: 1 | BS7: 0 | BT7: 1 | BU7: 0 | BV7: 0 | BW7: 0 | BX7: 0 | BY7: 1 | BZ7: 0 | CA7: 0 | CB7: 0 | CC7: 1 | CD7: 0 | CE7: 0 | CF7: 1 | CG7: 0 | CH7: 1 | CI7: 0 | CJ7: 0 | CK7: 0 | CL7: 0 | CM7: 0 | CN7: 0 | CO7: 0 | CP7: 0 | CQ7: 0 | CR7: 0 | CS7: 0 | CT7: 1 | CU7: 0 | CV7: 0 | CW7: 0 | CX7: 0 | CY7: 0 | CZ7: 0 | DA7: 0 | DB7: 0 | DC7: 1 | DD7: 1 | DE7: 0 | DF7: 1 | DG7: 0 | DH7: 0 | DI7: 1 | DJ7: 0 | DK7: 1 | DL7: 1 | DM7: 1 | DN7: 1 | DO7: 0 | DP7: 0 | DQ7: 1 | DR7: 0 | DS7: 0 | DT7: 1 | DU7: 1 | DV7: 0 | DW7: 0 | DX7: 1 | DY7: 1 | DZ7: 1 | EA7: 1 | EB7: 0 | EC7: 0 | ED7: 0 | EE7: 0 | EF7: 0 | EG7: 0 | EH7: 1 | EI7: 0 | EJ7: 1 | EK7: 0 | EL7: 0 | EM7: 0 | EN7: 0 | EO7: 1 | EP7: 0 | EQ7: 0 | ER7: 0 | ES7: 0 | ET7: 0 | EU7: 0 | EV7: 1 | EW7: 0 | EX7: 0 | FK7: 2.032 | FL7: 0.7366 | FM7: - | FN7: - | FO7: - | FP7: - | FQ7: - | FR7: - | FS7: 0.2032 | FT7: - | FU7: 0.7112 | FV7: - | FW7: - | FX7: - | FY7: - | FZ7: 0.635 | GA7: 0.27178 | GB7: - | GC7: 0.03302 | GD7: - | GE7: - | GF7: - | GG7: 0.6858 | GH7: 0.0508 | GI7: -
A8: -10 | B8: =Historical_Data!B9123 -> 2002-12-21 | C8: =Historical_Data!C9123 -> 0 | D8: =Historical_Data!C357 -> 0.7366 | E8: =Historical_Data!C722 -> 0 | F8: =Historical_Data!C1088 -> 0 | G8: =Historical_Data!C1453 -> 0 | H8: =Historical_Data!C1818 -> 0 | I8: =Historical_Data!C2183 -> 0 | J8: =Historical_Data!C2549 -> 0.79756 | K8: =Historical_Data!C2914 -> 0 | L8: =Historical_Data!C3279 -> 0 | M8: =Historical_Data!C3644 -> 0 | N8: =Historical_Data!C4010 -> 0.635 | O8: =Historical_Data!C4375 -> 0 | P8: =Historical_Data!C4740 -> 1.0414 | Q8: =Historical_Data!C5105 -> 0 | R8: =Historical_Data!C5471 -> 0 | S8: =Historical_Data!C5836 -> 2.21742 | T8: =Historical_Data!C6201 -> 0 | U8: =Historical_Data!C6566 -> 0 | V8: =Historical_Data!C6932 -> 0.0508 | W8: =Historical_Data!C7297 -> 0 | X8: =Historical_Data!C7662 -> 0 | Y8: =Historical_Data!C8027 -> 0.0254 | Z8: =Historical_Data!C8393 -> 0 | AA8: =Historical_Data!C8758 -> 0 | AC8: 0 | AD8: 1 | AE8: 0 | AF8: 0 | AG8: 0 | AH8: 0 | AI8: 0 | AJ8: 1 | AK8: 0 | AL8: 0 | AM8: 0 | AN8: 1 | AO8: 0 | AP8: 1 | AQ8: 0 | AR8: 0 | AS8: 1 | AT8: 0 | AU8: 0 | AV8: 1 | AW8: 0 | AX8: 0 | AY8: 1 | AZ8: 0 | BA8: 0 | BB8: 0 | BC8: 1 | BD8: 0 | BE8: 0 | BF8: 0 | BG8: 0 | BH8: 0 | BI8: 0 | BJ8: 0 | BK8: 0 | BL8: 0 | BM8: 0 | BN8: 0 | BO8: 0 | BP8: 0 | BQ8: 0 | BR8: 1 | BS8: 0 | BT8: 0 | BU8: 0 | BV8: 0 | BW8: 0 | BX8: 1 | BY8: 0 | BZ8: 0 | CA8: 1 | CB8: 0 | CC8: 0 | CD8: 0 | CE8: 0 | CF8: 0 | CG8: 0 | CH8: 0 | CI8: 1 | CJ8: 0 | CK8: 1 | CL8: 0 | CM8: 0 | CN8: 0 | CO8: 0 | CP8: 1 | CQ8: 0 | CR8: 0 | CS8: 1 | CT8: 0 | CU8: 0 | CV8: 0 | CW8: 0 | CX8: 1 | CY8: 0 | CZ8: 0 | DA8: 0 | DB8: 1 | DC8: 1 | DD8: 1 | DE8: 1 | DF8: 1 | DG8: 0 | DH8: 0 | DI8: 1 | DJ8: 0 | DK8: 0 | DL8: 1 | DM8: 0 | DN8: 1 | DO8: 0 | DP8: 0 | DQ8: 1 | DR8: 0 | DS8: 0 | DT8: 1 | DU8: 1 | DV8: 0 | DW8: 0 | DX8: 1 | DY8: 0 | DZ8: 0 | EA8: 0 | EB8: 0 | EC8: 0 | ED8: 0 | EE8: 0 | EF8: 0 | EG8: 1 | EH8: 0 | EI8: 0 | EJ8: 0 | EK8: 1 | EL8: 0 | EM8: 1 | EN8: 0 | EO8: 0 | EP8: 0 | EQ8: 0 | ER8: 0 | ES8: 1 | ET8: 0 | EU8: 0 | EV8: 0 | EW8: 0 | EX8: 0 | FK8: - | FL8: 0.7366 | FM8: - | FN8: - | FO8: - | FP8: - | FQ8: - | FR8: 0.79756 | FS8: - | FT8: - | FU8: - | FV8: 0.635 | FW8: - | FX8: 1.0414 | FY8: - | FZ8: - | GA8: 2.21742 | GB8: - | GC8: - | GD8: 0.0508 | GE8: - | GF8: - | GG8: 0.0254 | GH8: - | GI8: -
A9: -9 | B9: =Historical_Data!B9124 -> 2002-12-22 | C9: =Historical_Data!C9124 -> 0 | D9: =Historical_Data!C358 -> 0 | E9: =Historical_Data!C723 -> 0 | F9: =Historical_Data!C1089 -> 0 | G9: =Historical_Data!C1454 -> 0 | H9: =Historical_Data!C1819 -> 0 | I9: =Historical_Data!C2184 -> 3.556 | J9: =Historical_Data!C2550 -> 0.24384 | K9: =Historical_Data!C2915 -> 0 | L9: =Historical_Data!C3280 -> 0 | M9: =Historical_Data!C3645 -> 0 | N9: =Historical_Data!C4011 -> 0 | O9: =Historical_Data!C4376 -> 0 | P9: =Historical_Data!C4741 -> 0 | Q9: =Historical_Data!C5106 -> 0 | R9: =Historical_Data!C5472 -> 0 | S9: =Historical_Data!C5837 -> 0 | T9: =Historical_Data!C6202 -> 0 | U9: =Historical_Data!C6567 -> 0 | V9: =Historical_Data!C6933 -> 0 | W9: =Historical_Data!C7298 -> 0.5842 | X9: =Historical_Data!C7663 -> 0.2032 | Y9: =Historical_Data!C8028 -> 0 | Z9: =Historical_Data!C8394 -> 0 | AA9: =Historical_Data!C8759 -> 0 | AC9: 0 | AD9: 0 | AE9: 0 | AF9: 0 | AG9: 0 | AH9: 0 | AI9: 1 | AJ9: 1 | AK9: 0 | AL9: 0 | AM9: 0 | AN9: 0 | AO9: 0 | AP9: 0 | AQ9: 0 | AR9: 0 | AS9: 0 | AT9: 0 | AU9: 0 | AV9: 0 | AW9: 1 | AX9: 1 | AY9: 0 | AZ9: 0 | BA9: 0 | BB9: 0 | BC9: 0 | BD9: 0 | BE9: 0 | BF9: 0 | BG9: 0 | BH9: 0 | BI9: 1 | BJ9: 0 | BK9: 0 | BL9: 0 | BM9: 0 | BN9: 0 | BO9: 0 | BP9: 0 | BQ9: 0 | BR9: 0 | BS9: 0 | BT9: 0 | BU9: 0 | BV9: 0 | BW9: 0 | BX9: 0 | BY9: 0 | BZ9: 0 | CA9: 0 | CB9: 1 | CC9: 0 | CD9: 0 | CE9: 0 | CF9: 0 | CG9: 0 | CH9: 0 | CI9: 0 | CJ9: 0 | CK9: 0 | CL9: 1 | CM9: 0 | CN9: 1 | CO9: 0 | CP9: 0 | CQ9: 1 | CR9: 0 | CS9: 0 | CT9: 1 | CU9: 0 | CV9: 0 | CW9: 1 | CX9: 0 | CY9: 0 | CZ9: 1 | DA9: 0 | DB9: 1 | DC9: 1 | DD9: 1 | DE9: 1 | DF9: 0 | DG9: 0 | DH9: 1 | DI9: 1 | DJ9: 1 | DK9: 0 | DL9: 1 | DM9: 0 | DN9: 1 | DO9: 1 | DP9: 0 | DQ9: 1 | DR9: 1 | DS9: 0 | DT9: 0 | DU9: 0 | DV9: 0 | DW9: 1 | DX9: 1 | DY9: 0 | DZ9: 0 | EA9: 0 | EB9: 0 | EC9: 0 | ED9: 0 | EE9: 0 | EF9: 1 | EG9: 0 | EH9: 0 | EI9: 0 | EJ9: 0 | EK9: 0 | EL9: 0 | EM9: 0 | EN9: 0 | EO9: 0 | EP9: 0 | EQ9: 0 | ER9: 0 | ES9: 0 | ET9: 1 | EU9: 1 | EV9: 0 | EW9: 0 | EX9: 0 | FK9: - | FL9: - | FM9: - | FN9: - | FO9: - | FP9: - | FQ9: 3.556 | FR9: 0.24384 | FS9: - | FT9: - | FU9: - | FV9: - | FW9: - | FX9: - | FY9: - | FZ9: - | GA9: - | GB9: - | GC9: - | GD9: - | GE9: 0.5842 | GF9: 0.2032 | GG9: - | GH9: - | GI9: -
A10: -8 | B10: =Historical_Data!B9125 -> 2002-12-23 | C10: =Historical_Data!C9125 -> 0 | D10: =Historical_Data!C359 -> 0 | E10: =Historical_Data!C724 -> 0 | F10: =Historical_Data!C1090 -> 0.5588 | G10: =Historical_Data!C1455 -> 0 | H10: =Historical_Data!C1820 -> 0.1524 | I10: =Historical_Data!C2185 -> 0.0508 | J10: =Historical_Data!C2551 -> 0 | K10: =Historical_Data!C2916 -> 0 | L10: =Historical_Data!C3281 -> 0 | M10: =Historical_Data!C3646 -> 0 | N10: =Historical_Data!C4012 -> 0.762 | O10: =Historical_Data!C4377 -> 0 | P10: =Historical_Data!C4742 -> 2.01168 | Q10: =Historical_Data!C5107 -> 0.1778 | R10: =Historical_Data!C5473 -> 0.3556 | S10: =Historical_Data!C5838 -> 0 | T10: =Historical_Data!C6203 -> 0 | U10: =Historical_Data!C6568 -> 0 | V10: =Historical_Data!C6934 -> 0 | W10: =Historical_Data!C7299 -> 0.5842 | X10: =Historical_Data!C7664 -> 0.23622 | Y10: =Historical_Data!C8029 -> 0 | Z10: =Historical_Data!C8395 -> 0 | AA10: =Historical_Data!C8760 -> 0 | AC10: 0 | AD10: 0 | AE10: 0 | AF10: 1 | AG10: 0 | AH10: 1 | AI10: 1 | AJ10: 0 | AK10: 0 | AL10: 0 | AM10: 0 | AN10: 1 | AO10: 0 | AP10: 1 | AQ10: 1 | AR10: 1 | AS10: 0 | AT10: 0 | AU10: 0 | AV10: 0 | AW10: 1 | AX10: 1 | AY10: 0 | AZ10: 0 | BA10: 0 | BB10: 0 | BC10: 0 | BD10: 0 | BE10: 0 | BF10: 0 | BG10: 0 | BH10: 1 | BI10: 0 | BJ10: 0 | BK10: 0 | BL10: 0 | BM10: 0 | BN10: 0 | BO10: 0 | BP10: 0 | BQ10: 0 | BR10: 0 | BS10: 0 | BT10: 0 | BU10: 0 | BV10: 1 | BW10: 1 | BX10: 0 | BY10: 0 | BZ10: 0 | CA10: 0 | CB10: 0 | CC10: 0 | CD10: 0 | CE10: 0 | CF10: 0 | CG10: 0 | CH10: 1 | CI10: 0 | CJ10: 0 | CK10: 0 | CL10: 0 | CM10: 0 | CN10: 0 | CO10: 0 | CP10: 0 | CQ10: 0 | CR10: 0 | CS10: 0 | CT10: 0 | CU10: 0 | CV10: 0 | CW10: 0 | CX10: 0 | CY10: 0 | CZ10: 1 | DA10: 1 | DB10: 1 | DC10: 0 | DD10: 1 | DE10: 0 | DF10: 0 | DG10: 0 | DH10: 1 | DI10: 1 | DJ10: 1 | DK10: 0 | DL10: 1 | DM10: 0 | DN10: 0 | DO10: 0 | DP10: 1 | DQ10: 1 | DR10: 1 | DS10: 1 | DT10: 0 | DU10: 0 | DV10: 1 | DW10: 1 | DX10: 1 | DY10: 0 | DZ10: 0 | EA10: 0 | EB10: 0 | EC10: 1 | ED10: 0 | EE10: 1 | EF10: 0 | EG10: 0 | EH10: 0 | EI10: 0 | EJ10: 0 | EK10: 1 | EL10: 0 | EM10: 1 | EN10: 1 | EO10: 1 | EP10: 0 | EQ10: 0 | ER10: 0 | ES10: 0 | ET10: 0 | EU10: 0 | EV10: 0 | EW10: 0 | EX10: 0 | FK10: - | FL10: - | FM10: - | FN10: 0.5588 | FO10: - | FP10: 0.1524 | FQ10: 0.0508 | FR10: - | FS10: - | FT10: - | FU10: - | FV10: 0.762 | FW10: - | FX10: 2.01168 | FY10: 0.1778 | FZ10: 0.3556 | GA10: - | GB10: - | GC10: - | GD10: - | GE10: 0.5842 | GF10: 0.23622 | GG10: - | GH10: - | GI10: -
A11: -7 | B11: =Historical_Data!B9126 -> 2002-12-24 | C11: =Historical_Data!C9126 -> 0.75438 | D11: =Historical_Data!C360 -> 2.9718 | E11: =Historical_Data!C725 -> 0.1016 | F11: =Historical_Data!C1091 -> 0.7112 | G11: =Historical_Data!C1456 -> 0 | H11: =Historical_Data!C1821 -> 0.0254 | I11: =Historical_Data!C2186 -> 0 | J11: =Historical_Data!C2552 -> 0.1778 | K11: =Historical_Data!C2917 -> 0 | L11: =Historical_Data!C3282 -> 4.445 | M11: =Historical_Data!C3647 -> 0 | N11: =Historical_Data!C4013 -> 0.8382 | O11: =Historical_Data!C4378 -> 0 | P11: =Historical_Data!C4743 -> 0.50292 | Q11: =Historical_Data!C5108 -> 0 | R11: =Historical_Data!C5474 -> 0 | S11: =Historical_Data!C5839 -> 0 | T11: =Historical_Data!C6204 -> 0.2794 | U11: =Historical_Data!C6569 -> 0 | V11: =Historical_Data!C6935 -> 1.3208 | W11: =Historical_Data!C7300 -> 0.46482 | X11: =Historical_Data!C7665 -> 0.09398 | Y11: =Historical_Data!C8030 -> 0 | Z11: =Historical_Data!C8396 -> 0 | AA11: =Historical_Data!C8761 -> 0 | AC11: 1 | AD11: 1 | AE11: 1 | AF11: 1 | AG11: 0 | AH11: 1 | AI11: 0 | AJ11: 1 | AK11: 0 | AL11: 1 | AM11: 0 | AN11: 1 | AO11: 0 | AP11: 1 | AQ11: 0 | AR11: 0 | AS11: 0 | AT11: 1 | AU11: 0 | AV11: 1 | AW11: 1 | AX11: 1 | AY11: 0 | AZ11: 0 | BA11: 0 | BB11: 0 | BC11: 0 | BD11: 0 | BE11: 1 | BF11: 0 | BG11: 1 | BH11: 0 | BI11: 0 | BJ11: 0 | BK11: 0 | BL11: 0 | BM11: 1 | BN11: 0 | BO11: 1 | BP11: 0 | BQ11: 0 | BR11: 0 | BS11: 0 | BT11: 0 | BU11: 0 | BV11: 1 | BW11: 1 | BX11: 0 | BY11: 0 | BZ11: 0 | CA11: 0 | CB11: 0 | CC11: 0 | CD11: 0 | CE11: 0 | CF11: 0 | CG11: 1 | CH11: 0 | CI11: 0 | CJ11: 0 | CK11: 0 | CL11: 0 | CM11: 0 | CN11: 0 | CO11: 1 | CP11: 1 | CQ11: 0 | CR11: 0 | CS11: 0 | CT11: 0 | CU11: 0 | CV11: 0 | CW11: 0 | CX11: 0 | CY11: 0 | CZ11: 0 | DA11: 0 | DB11: 0 | DC11: 0 | DD11: 1 | DE11: 0 | DF11: 0 | DG11: 0 | DH11: 1 | DI11: 0 | DJ11: 1 | DK11: 0 | DL11: 1 | DM11: 0 | DN11: 0 | DO11: 0 | DP11: 1 | DQ11: 0 | DR11: 1 | DS11: 0 | DT11: 0 | DU11: 0 | DV11: 1 | DW11: 1 | DX11: 1 | DY11: 1 | DZ11: 1 | EA11: 1 | EB11: 1 | EC11: 0 | ED11: 0 | EE11: 0 | EF11: 0 | EG11: 1 | EH11: 0 | EI11: 1 | EJ11: 0 | EK11: 0 | EL11: 0 | EM11: 0 | EN11: 0 | EO11: 0 | EP11: 0 | EQ11: 1 | ER11: 0 | ES11: 1 | ET11: 0 | EU11: 0 | EV11: 0 | EW11: 0 | EX11: 0 | FK11: 0.75438 | FL11: 2.9718 | FM11: 0.1016 | FN11: 0.7112 | FO11: - | FP11: 0.0254 | FQ11: - | FR11: 0.1778 | FS11: - | FT11: 4.445 | FU11: - | FV11: 0.8382 | FW11: - | FX11: 0.50292 | FY11: - | FZ11: - | GA11: - | GB11: 0.2794 | GC11: - | GD11: 1.3208 | GE11: 0.46482 | GF11: 0.09398 | GG11: - | GH11: - | GI11: -
A12: -6 | B12: =Historical_Data!B9127 -> 2002-12-25 | C12: =Historical_Data!C9127 -> 1.60782 | D12: =Historical_Data!C361 -> 0.7112 | E12: =Historical_Data!C726 -> 1.4732 | F12: =Historical_Data!C1092 -> 0 | G12: =Historical_Data!C1457 -> 0 | H12: =Historical_Data!C1822 -> 0.0254 | I12: =Historical_Data!C2187 -> 0 | J12: =Historical_Data!C2553 -> 0.0508 | K12: =Historical_Data!C2918 -> 0 | L12: =Historical_Data!C3283 -> 0.254 | M12: =Historical_Data!C3648 -> 0.38862 | N12: =Historical_Data!C4014 -> 0 | O12: =Historical_Data!C4379 -> 0 | P12: =Historical_Data!C4744 -> 0 | Q12: =Historical_Data!C5109 -> 0 | R12: =Historical_Data!C5475 -> 0 | S12: =Historical_Data!C5840 -> 0 | T12: =Historical_Data!C6205 -> 0 | U12: =Historical_Data!C6570 -> 0 | V12: =Historical_Data!C6936 -> 0 | W12: =Historical_Data!C7301 -> 1.38938 | X12: =Historical_Data!C7666 -> 0 | Y12: =Historical_Data!C8031 -> 0 | Z12: =Historical_Data!C8397 -> 0 | AA12: =Historical_Data!C8762 -> 0 | AC12: 1 | AD12: 1 | AE12: 1 | AF12: 0 | AG12: 0 | AH12: 1 | AI12: 0 | AJ12: 1 | AK12: 0 | AL12: 1 | AM12: 1 | AN12: 0 | AO12: 0 | AP12: 0 | AQ12: 0 | AR12: 0 | AS12: 0 | AT12: 0 | AU12: 0 | AV12: 0 | AW12: 1 | AX12: 0 | AY12: 0 | AZ12: 0 | BA12: 0 | BB12: 1 | BC12: 1 | BD12: 1 | BE12: 0 | BF12: 0 | BG12: 1 | BH12: 0 | BI12: 1 | BJ12: 0 | BK12: 1 | BL12: 0 | BM12: 0 | BN12: 0 | BO12: 0 | BP12: 0 | BQ12: 0 | BR12: 0 | BS12: 0 | BT12: 0 | BU12: 0 | BV12: 1 | BW12: 0 | BX12: 0 | BY12: 0 | BZ12: 0 | CA12: 0 | CB12: 0 | CC12: 0 | CD12: 1 | CE12: 0 | CF12: 0 | CG12: 0 | CH12: 0 | CI12: 0 | CJ12: 0 | CK12: 0 | CL12: 1 | CM12: 0 | CN12: 1 | CO12: 0 | CP12: 0 | CQ12: 0 | CR12: 1 | CS12: 0 | CT12: 1 | CU12: 0 | CV12: 1 | CW12: 0 | CX12: 0 | CY12: 0 | CZ12: 0 | DA12: 0 | DB12: 0 | DC12: 0 | DD12: 1 | DE12: 0 | DF12: 1 | DG12: 0 | DH12: 1 | DI12: 0 | DJ12: 0 | DK12: 0 | DL12: 1 | DM12: 0 | DN12: 1 | DO12: 1 | DP12: 1 | DQ12: 0 | DR12: 1 | DS12: 0 | DT12: 0 | DU12: 0 | DV12: 1 | DW12: 1 | DX12: 1 | DY12: 0 | DZ12: 0 | EA12: 0 | EB12: 0 | EC12: 0 | ED12: 0 | EE12: 0 | EF12: 0 | EG12: 0 | EH12: 0 | EI12: 0 | EJ12: 1 | EK12: 0 | EL12: 0 | EM12: 0 | EN12: 0 | EO12: 0 | EP12: 0 | EQ12: 0 | ER12: 0 | ES12: 0 | ET12: 0 | EU12: 0 | EV12: 0 | EW12: 0 | EX12: 0 | FK12: 1.60782 | FL12: 0.7112 | FM12: 1.4732 | FN12: - | FO12: - | FP12: 0.0254 | FQ12: - | FR12: 0.0508 | FS12: - | FT12: 0.254 | FU12: 0.38862 | FV12: - | FW12: - | FX12: - | FY12: - | FZ12: - | GA12: - | GB12: - | GC12: - | GD12: - | GE12: 1.38938 | GF12: - | GG12: - | GH12: - | GI12: -
A13: -5 | B13: =Historical_Data!B9128 -> 2002-12-26 | C13: =Historical_Data!C9128 -> 0 | D13: =Historical_Data!C362 -> 0 | E13: =Historical_Data!C727 -> 0 | F13: =Historical_Data!C1093 -> 0 | G13: =Historical_Data!C1458 -> 0 | H13: =Historical_Data!C1823 -> 0.1778 | I13: =Historical_Data!C2188 -> 0 | J13: =Historical_Data!C2554 -> 0 | K13: =Historical_Data!C2919 -> 0 | L13: =Historical_Data!C3284 -> 0 | M13: =Historical_Data!C3649 -> 0.47498 | N13: =Historical_Data!C4015 -> 0 | O13: =Historical_Data!C4380 -> 0 | P13: =Historical_Data!C4745 -> 0 | Q13: =Historical_Data!C5110 -> 0 | R13: =Historical_Data!C5476 -> 0 | S13: =Historical_Data!C5841 -> 0 | T13: =Historical_Data!C6206 -> 0 | U13: =Historical_Data!C6571 -> 0 | V13: =Historical_Data!C6937 -> 0 | W13: =Historical_Data!C7302 -> 0 | X13: =Historical_Data!C7667 -> 0 | Y13: =Historical_Data!C8032 -> 0 | Z13: =Historical_Data!C8398 -> 0 | AA13: =Historical_Data!C8763 -> 0 | AC13: 0 | AD13: 0 | AE13: 0 | AF13: 0 | AG13: 0 | AH13: 1 | AI13: 0 | AJ13: 0 | AK13: 0 | AL13: 0 | AM13: 1 | AN13: 0 | AO13: 0 | AP13: 0 | AQ13: 0 | AR13: 0 | AS13: 0 | AT13: 0 | AU13: 0 | AV13: 0 | AW13: 0 | AX13: 0 | AY13: 0 | AZ13: 0 | BA13: 0 | BB13: 0 | BC13: 0 | BD13: 0 | BE13: 0 | BF13: 0 | BG13: 1 | BH13: 0 | BI13: 0 | BJ13: 0 | BK13: 0 | BL13: 1 | BM13: 0 | BN13: 0 | BO13: 0 | BP13: 0 | BQ13: 0 | BR13: 0 | BS13: 0 | BT13: 0 | BU13: 0 | BV13: 0 | BW13: 0 | BX13: 0 | BY13: 0 | BZ13: 0 | CA13: 1 | CB13: 1 | CC13: 1 | CD13: 0 | CE13: 0 | CF13: 0 | CG13: 0 | CH13: 1 | CI13: 0 | CJ13: 1 | CK13: 0 | CL13: 0 | CM13: 0 | CN13: 0 | CO13: 0 | CP13: 0 | CQ13: 0 | CR13: 0 | CS13: 0 | CT13: 0 | CU13: 1 | CV13: 0 | CW13: 0 | CX13: 0 | CY13: 0 | CZ13: 0 | DA13: 0 | DB13: 0 | DC13: 1 | DD13: 1 | DE13: 0 | DF13: 1 | DG13: 0 | DH13: 1 | DI13: 0 | DJ13: 0 | DK13: 1 | DL13: 1 | DM13: 1 | DN13: 1 | DO13: 1 | DP13: 1 | DQ13: 1 | DR13: 1 | DS13: 1 | DT13: 0 | DU13: 1 | DV13: 1 | DW13: 1 | DX13: 1 | DY13: 0 | DZ13: 0 | EA13: 0 | EB13: 0 | EC13: 0 | ED13: 0 | EE13: 0 | EF13: 0 | EG13: 0 | EH13: 0 | EI13: 0 | EJ13: 0 | EK13: 0 | EL13: 0 | EM13: 0 | EN13: 0 | EO13: 0 | EP13: 0 | EQ13: 0 | ER13: 0 | ES13: 0 | ET13: 0 | EU13: 0 | EV13: 0 | EW13: 0 | EX13: 0 | FK13: - | FL13: - | FM13: - | FN13: - | FO13: - | FP13: 0.1778 | FQ13: - | FR13: - | FS13: - | FT13: - | FU13: 0.47498 | FV13: - | FW13: - | FX13: - | FY13: - | FZ13: - | GA13: - | GB13: - | GC13: - | GD13: - | GE13: - | GF13: - | GG13: - | GH13: - | GI13: -
A14: -4 | B14: =Historical_Data!B9129 -> 2002-12-27 | C14: =Historical_Data!C9129 -> 0 | D14: =Historical_Data!C363 -> 0 | E14: =Historical_Data!C728 -> 0 | F14: =Historical_Data!C1094 -> 0 | G14: =Historical_Data!C1459 -> 0.127 | H14: =Historical_Data!C1824 -> 0.1778 | I14: =Historical_Data!C2189 -> 0 | J14: =Historical_Data!C2555 -> 0 | K14: =Historical_Data!C2920 -> 0 | L14: =Historical_Data!C3285 -> 0 | M14: =Historical_Data!C3650 -> 0 | N14: =Historical_Data!C4016 -> 0 | O14: =Historical_Data!C4381 -> 0 | P14: =Historical_Data!C4746 -> 0.8636 | Q14: =Historical_Data!C5111 -> 0 | R14: =Historical_Data!C5477 -> 0 | S14: =Historical_Data!C5842 -> 0 | T14: =Historical_Data!C6207 -> 0 | U14: =Historical_Data!C6572 -> 0 | V14: =Historical_Data!C6938 -> 0.0254 | W14: =Historical_Data!C7303 -> 0.9144 | X14: =Historical_Data!C7668 -> 0 | Y14: =Historical_Data!C8033 -> 0 | Z14: =Historical_Data!C8399 -> 0 | AA14: =Historical_Data!C8764 -> 0 | AC14: 0 | AD14: 0 | AE14: 0 | AF14: 0 | AG14: 1 | AH14: 1 | AI14: 0 | AJ14: 0 | AK14: 0 | AL14: 0 | AM14: 0 | AN14: 0 | AO14: 0 | AP14: 1 | AQ14: 0 | AR14: 0 | AS14: 0 | AT14: 0 | AU14: 0 | AV14: 1 | AW14: 1 | AX14: 0 | AY14: 0 | AZ14: 0 | BA14: 0 | BB14: 0 | BC14: 0 | BD14: 0 | BE14: 0 | BF14: 0 | BG14: 1 | BH14: 0 | BI14: 0 | BJ14: 0 | BK14: 0 | BL14: 0 | BM14: 0 | BN14: 0 | BO14: 0 | BP14: 0 | BQ14: 0 | BR14: =IF(AS13=1,IF(AS14=1,1,0),0) -> 0 | BS14: =IF(AT13=1,IF(AT14=1,1,0),0) -> 0 | BT14: =IF(AU13=1,IF(AU14=1,1,0),0) -> 0 | BU14: =IF(AV13=1,IF(AV14=1,1,0),0) -> 0 | BV14: =IF(AW13=1,IF(AW14=1,1,0),0) -> 0 | BW14: =IF(AX13=1,IF(AX14=1,1,0),0) -> 0 | BX14: =IF(AY13=1,IF(AY14=1,1,0),0) -> 0 | BY14: =IF(AZ13=1,IF(AZ14=1,1,0),0) -> 0 | BZ14: =IF(BA13=1,IF(BA14=1,1,0),0) -> 0 | CA14: 0 | CB14: 0 | CC14: 0 | CD14: 0 | CE14: 0 | CF14: 0 | CG14: 0 | CH14: 0 | CI14: 0 | CJ14: 0 | CK14: 1 | CL14: 0 | CM14: 0 | CN14: 0 | CO14: 0 | CP14: 0 | CQ14: 0 | CR14: 0 | CS14: 0 | CT14: 0 | CU14: 0 | CV14: 0 | CW14: 0 | CX14: 0 | CY14: 0 | CZ14: 1 | DA14: 1 | DB14: 1 | DC14: 1 | DD14: 0 | DE14: 0 | DF14: 1 | DG14: 1 | DH14: 1 | DI14: 1 | DJ14: 0 | DK14: 1 | DL14: 1 | DM14: 0 | DN14: 1 | DO14: 1 | DP14: 1 | DQ14: 1 | DR14: 1 | DS14: 0 | DT14: 0 | DU14: 1 | DV14: 1 | DW14: 1 | DX14: 1 | DY14: 0 | DZ14: 0 | EA14: 0 | EB14: 0 | EC14: 0 | ED14: 1 | EE14: 0 | EF14: 0 | EG14: 0 | EH14: 0 | EI14: 0 | EJ14: 0 | EK14: 0 | EL14: 0 | EM14: 1 | EN14: 0 | EO14: 0 | EP14: 0 | EQ14: 0 | ER14: 0 | ES14: 1 | ET14: 1 | EU14: 0 | EV14: 0 | EW14: 0 | EX14: 0 | FK14: - | FL14: - | FM14: - | FN14: - | FO14: 0.127 | FP14: 0.1778 | FQ14: - | FR14: - | FS14: - | FT14: - | FU14: - | FV14: - | FW14: - | FX14: 0.8636 | FY14: - | FZ14: - | GA14: - | GB14: - | GC14: - | GD14: 0.0254 | GE14: 0.9144 | GF14: - | GG14: - | GH14: - | GI14: -
A15: -3 | B15: =Historical_Data!B9130 -> 2002-12-28 | C15: =Historical_Data!C9130 -> 0 | D15: =Historical_Data!C364 -> 0 | E15: =Historical_Data!C729 -> 0 | F15: =Historical_Data!C1095 -> 0 | G15: =Historical_Data!C1460 -> 0 | H15: =Historical_Data!C1825 -> 0.0508 | I15: =Historical_Data!C2190 -> 2.3368 | J15: =Historical_Data!C2556 -> 0 | K15: =Historical_Data!C2921 -> 0 | L15: =Historical_Data!C3286 -> 0 | M15: =Historical_Data!C3651 -> 0 | N15: =Historical_Data!C4017 -> 0.381 | O15: =Historical_Data!C4382 -> 0 | P15: =Historical_Data!C4747 -> 0.8636 | Q15: =Historical_Data!C5112 -> 0 | R15: =Historical_Data!C5478 -> 0.508 | S15: =Historical_Data!C5843 -> 0.254 | T15: =Historical_Data!C6208 -> 0 | U15: =Historical_Data!C6573 -> 0 | V15: =Historical_Data!C6939 -> 0 | W15: =Historical_Data!C7304 -> 0 | X15: =Historical_Data!C7669 -> 0.05334 | Y15: =Historical_Data!C8034 -> 0 | Z15: =Historical_Data!C8400 -> 0 | AA15: =Historical_Data!C8765 -> 0 | AC15: 0 | AD15: 0 | AE15: 0 | AF15: 0 | AG15: 0 | AH15: 1 | AI15: 1 | AJ15: 0 | AK15: 0 | AL15: 0 | AM15: 0 | AN15: 1 | AO15: 0 | AP15: 1 | AQ15: 0 | AR15: 1 | AS15: 1 | AT15: 0 | AU15: 0 | AV15: 0 | AW15: 0 | AX15: 1 | AY15: 0 | AZ15: 0 | BA15: 0 | BB15: 0 | BC15: =IF(AD14=1,IF(AD15=1,1,0),0) -> 0 | BD15: =IF(AE14=1,IF(AE15=1,1,0),0) -> 0 | BE15: =IF(AF14=1,IF(AF15=1,1,0),0) -> 0 | BF15: =IF(AG14=1,IF(AG15=1,1,0),0) -> 0 | BG15: =IF(AH14=1,IF(AH15=1,1,0),0) -> 1 | BH15: =IF(AI14=1,IF(AI15=1,1,0),0) -> 0 | BI15: =IF(AJ14=1,IF(AJ15=1,1,0),0) -> 0 | BJ15: =IF(AK14=1,IF(AK15=1,1,0),0) -> 0 | BK15: =IF(AL14=1,IF(AL15=1,1,0),0) -> 0 | BL15: =IF(AM14=1,IF(AM15=1,1,0),0) -> 0 | BM15: =IF(AN14=1,IF(AN15=1,1,0),0) -> 0 | BN15: =IF(AO14=1,IF(AO15=1,1,0),0) -> 0 | BO15: =IF(AP14=1,IF(AP15=1,1,0),0) -> 1 | BP15: =IF(AQ14=1,IF(AQ15=1,1,0),0) -> 0 | BQ15: =IF(AR14=1,IF(AR15=1,1,0),0) -> 0 | BR15: 0 | BS15: 0 | BT15: 0 | BU15: 0 | BV15: 0 | BW15: 0 | BX15: 0 | BY15: 0 | BZ15: 0 | CA15: 0 | CB15: =IF(AD14=1,IF(AD15=0,1,0),0) -> 0 | CC15: =IF(AE14=1,IF(AE15=0,1,0),0) -> 0 | CD15: =IF(AF14=1,IF(AF15=0,1,0),0) -> 0 | CE15: =IF(AG14=1,IF(AG15=0,1,0),0) -> 1 | CF15: =IF(AH14=1,IF(AH15=0,1,0),0) -> 0 | CG15: =IF(AI14=1,IF(AI15=0,1,0),0) -> 0 | CH15: =IF(AJ14=1,IF(AJ15=0,1,0),0) -> 0 | CI15: =IF(AK14=1,IF(AK15=0,1,0),0) -> 0 | CJ15: =IF(AL14=1,IF(AL15=0,1,0),0) -> 0 | CK15: =IF(AM14=1,IF(AM15=0,1,0),0) -> 0 | CL15: =IF(AN14=1,IF(AN15=0,1,0),0) -> 0 | CM15: =IF(AO14=1,IF(AO15=0,1,0),0) -> 0 | CN15: =IF(AP14=1,IF(AP15=0,1,0),0) -> 0 | CO15: =IF(AQ14=1,IF(AQ15=0,1,0),0) -> 0 | CP15: =IF(AR14=1,IF(AR15=0,1,0),0) -> 0 | CQ15: =IF(AS14=1,IF(AS15=0,1,0),0) -> 0 | CR15: =IF(AT14=1,IF(AT15=0,1,0),0) -> 0 | CS15: =IF(AU14=1,IF(AU15=0,1,0),0) -> 0 | CT15: =IF(AV14=1,IF(AV15=0,1,0),0) -> 1 | CU15: =IF(AW14=1,IF(AW15=0,1,0),0) -> 1 | CV15: =IF(AX14=1,IF(AX15=0,1,0),0) -> 0 | CW15: =IF(AY14=1,IF(AY15=0,1,0),0) -> 0 | CX15: =IF(AZ14=1,IF(AZ15=0,1,0),0) -> 0 | CY15: 0 | CZ15: 1 | DA15: 1 | DB15: 1 | DC15: =IF(AF14=0,IF(AF15=0,1,0),0) -> 1 | DD15: =IF(AG14=0,IF(AG15=0,1,0),0) -> 0 | DE15: =IF(AH14=0,IF(AH15=0,1,0),0) -> 0 | DF15: =IF(AI14=0,IF(AI15=0,1,0),0) -> 0 | DG15: =IF(AJ14=0,IF(AJ15=0,1,0),0) -> 1 | DH15: =IF(AK14=0,IF(AK15=0,1,0),0) -> 1 | DI15: =IF(AL14=0,IF(AL15=0,1,0),0) -> 1 | DJ15: =IF(AM14=0,IF(AM15=0,1,0),0) -> 1 | DK15: =IF(AN14=0,IF(AN15=0,1,0),0) -> 0 | DL15: =IF(AO14=0,IF(AO15=0,1,0),0) -> 1 | DM15: =IF(AP14=0,IF(AP15=0,1,0),0) -> 0 | DN15: =IF(AQ14=0,IF(AQ15=0,1,0),0) -> 1 | DO15: =IF(AR14=0,IF(AR15=0,1,0),0) -> 0 | DP15: =IF(AS14=0,IF(AS15=0,1,0),0) -> 0 | DQ15: =IF(AT14=0,IF(AT15=0,1,0),0) -> 1 | DR15: =IF(AU14=0,IF(AU15=0,1,0),0) -> 1 | DS15: =IF(AV14=0,IF(AV15=0,1,0),0) -> 0 | DT15: =IF(AW14=0,IF(AW15=0,1,0),0) -> 0 | DU15: =IF(AX14=0,IF(AX15=0,1,0),0) -> 0 | DV15: =IF(AY14=0,IF(AY15=0,1,0),0) -> 1 | DW15: =IF(AZ14=0,IF(AZ15=0,1,0),0) -> 1 | DX15: 1 | DY15: 0 | DZ15: 0 | EA15: 0 | EB15: 0 | EC15: =IF(AF14=0,IF(AF15=1,1,0),0) -> 0 | ED15: =IF(AG14=0,IF(AG15=1,1,0),0) -> 0 | EE15: =IF(AH14=0,IF(AH15=1,1,0),0) -> 0 | EF15: =IF(AI14=0,IF(AI15=1,1,0),0) -> 1 | EG15: =IF(AJ14=0,IF(AJ15=1,1,0),0) -> 0 | EH15: =IF(AK14=0,IF(AK15=1,1,0),0) -> 0 | EI15: =IF(AL14=0,IF(AL15=1,1,0),0) -> 0 | EJ15: =IF(AM14=0,IF(AM15=1,1,0),0) -> 0 | EK15: =IF(AN14=0,IF(AN15=1,1,0),0) -> 1 | EL15: =IF(AO14=0,IF(AO15=1,1,0),0) -> 0 | EM15: =IF(AP14=0,IF(AP15=1,1,0),0) -> 0 | EN15: =IF(AQ14=0,IF(AQ15=1,1,0),0) -> 0 | EO15: =IF(AR14=0,IF(AR15=1,1,0),0) -> 1 | EP15: =IF(AS14=0,IF(AS15=1,1,0),0) -> 1 | EQ15: =IF(AT14=0,IF(AT15=1,1,0),0) -> 0 | ER15: =IF(AU14=0,IF(AU15=1,1,0),0) -> 0 | ES15: =IF(AV14=0,IF(AV15=1,1,0),0) -> 0 | ET15: =IF(AW14=0,IF(AW15=1,1,0),0) -> 0 | EU15: =IF(AX14=0,IF(AX15=1,1,0),0) -> 1 | EV15: =IF(AY14=0,IF(AY15=1,1,0),0) -> 0 | EW15: =IF(AZ14=0,IF(AZ15=1,1,0),0) -> 0 | EX15: 0 | FK15: - | FL15: - | FM15: - | FN15: - | FO15: - | FP15: 0.0508 | FQ15: 2.3368 | FR15: - | FS15: - | FT15: - | FU15: - | FV15: 0.381 | FW15: - | FX15: 0.8636 | FY15: - | FZ15: 0.508 | GA15: 0.254 | GB15: - | GC15: - | GD15: - | GE15: - | GF15: 0.05334 | GG15: - | GH15: - | GI15: -
A16: -2 | B16: =Historical_Data!B9131 -> 2002-12-29 | C16: =Historical_Data!C9131 -> 0 | D16: =Historical_Data!C365 -> 0 | E16: =Historical_Data!C730 -> 0 | F16: =Historical_Data!C1096 -> 0 | G16: =Historical_Data!C1461 -> 0 | H16: =Historical_Data!C1826 -> 0.0508 | I16: =Historical_Data!C2191 -> 0 | J16: =Historical_Data!C2557 -> 0 | K16: =Historical_Data!C2922 -> 0 | L16: =Historical_Data!C3287 -> 0 | M16: =Historical_Data!C3652 -> 0 | N16: =Historical_Data!C4018 -> 0 | O16: =Historical_Data!C4383 -> 0 | P16: =Historical_Data!C4748 -> 0.381 | Q16: =Historical_Data!C5113 -> 1.5748 | R16: =Historical_Data!C5479 -> 0.20828 | S16: =Historical_Data!C5844 -> 0.0254 | T16: =Historical_Data!C6209 -> 0 | U16: =Historical_Data!C6574 -> 0 | V16: =Historical_Data!C6940 -> 0.2032 | W16: =Historical_Data!C7305 -> 0.9652 | X16: =Historical_Data!C7670 -> 0.37846 | Y16: =Historical_Data!C8035 -> 0 | Z16: =Historical_Data!C8401 -> 0 | AA16: =Historical_Data!C8766 -> 0 | AC16: 0 | AD16: 0 | AE16: 0 | AF16: 0 | AG16: 0 | AH16: 1 | AI16: 0 | AJ16: 0 | AK16: 0 | AL16: 0 | AM16: 0 | AN16: 0 | AO16: 0 | AP16: 1 | AQ16: 1 | AR16: 1 | AS16: 1 | AT16: 0 | AU16: 0 | AV16: 1 | AW16: 1 | AX16: 1 | AY16: 0 | AZ16: 0 | BA16: 0 | BB16: 0 | BC16: 0 | BD16: 0 | BE16: 0 | BF16: 0 | BG16: 1 | BH16: 0 | BI16: 0 | BJ16: 0 | BK16: 0 | BL16: 0 | BM16: 0 | BN16: 0 | BO16: 1 | BP16: 0 | BQ16: 1 | BR16: 1 | BS16: 0 | BT16: 0 | BU16: 0 | BV16: 0 | BW16: 1 | BX16: 0 | BY16: 0 | BZ16: 0 | CA16: 0 | CB16: =IF(AD15=1,IF(AD16=0,1,0),0) -> 0 | CC16: =IF(AE15=1,IF(AE16=0,1,0),0) -> 0 | CD16: 0 | CE16: 0 | CF16: 0 | CG16: 1 | CH16: 0 | CI16: 0 | CJ16: 0 | CK16: 0 | CL16: 1 | CM16: 0 | CN16: 0 | CO16: 0 | CP16: 0 | CQ16: 0 | CR16: 0 | CS16: 0 | CT16: 0 | CU16: 0 | CV16: 0 | CW16: 0 | CX16: 0 | CY16: 0 | CZ16: 1 | DA16: =IF(AD15=0,IF(AD16=0,1,0),0) -> 1 | DB16: =IF(AE15=0,IF(AE16=0,1,0),0) -> 1 | DC16: 1 | DD16: 1 | DE16: 0 | DF16: 0 | DG16: 1 | DH16: 1 | DI16: 1 | DJ16: 1 | DK16: 0 | DL16: 1 | DM16: 0 | DN16: 0 | DO16: 0 | DP16: 0 | DQ16: 1 | DR16: 1 | DS16: 0 | DT16: 0 | DU16: 0 | DV16: 1 | DW16: 1 | DX16: 1 | DY16: 0 | DZ16: 0 | EA16: =IF(AD15=0,IF(AD16=1,1,0),0) -> 0 | EB16: =IF(AE15=0,IF(AE16=1,1,0),0) -> 0 | EC16: 0 | ED16: 0 | EE16: 0 | EF16: 0 | EG16: 0 | EH16: 0 | EI16: 0 | EJ16: 0 | EK16: 0 | EL16: 0 | EM16: 0 | EN16: 1 | EO16: 0 | EP16: 0 | EQ16: 0 | ER16: 0 | ES16: 1 | ET16: 1 | EU16: 0 | EV16: 0 | EW16: 0 | EX16: 0 | FK16: - | FL16: - | FM16: - | FN16: - | FO16: - | FP16: 0.0508 | FQ16: - | FR16: - | FS16: - | FT16: - | FU16: - | FV16: - | FW16: - | FX16: 0.381 | FY16: 1.5748 | FZ16: 0.20828 | GA16: 0.0254 | GB16: - | GC16: - | GD16: 0.2032 | GE16: 0.9652 | GF16: 0.37846 | GG16: - | GH16: - | GI16: -
A17: -1 | B17: =Historical_Data!B9132 -> 2002-12-30 | C17: =Historical_Data!C9132 -> 0 | D17: =Historical_Data!C366 -> 0 | E17: =Historical_Data!C731 -> 0 | F17: =Historical_Data!C1097 -> 0 | G17: =Historical_Data!C1462 -> 0 | H17: =Historical_Data!C1827 -> 0 | I17: =Historical_Data!C2192 -> 0 | J17: =Historical_Data!C2558 -> 0.127 | K17: =Historical_Data!C2923 -> 0 | L17: =Historical_Data!C3288 -> 0.1778 | M17: =Historical_Data!C3653 -> 0 | N17: =Historical_Data!C4019 -> 0 | O17: =Historical_Data!C4384 -> 0 | P17: =Historical_Data!C4749 -> 0.254 | Q17: =Historical_Data!C5114 -> 0 | R17: =Historical_Data!C5480 -> 0.60452 | S17: =Historical_Data!C5845 -> 0 | T17: =Historical_Data!C6210 -> 0 | U17: =Historical_Data!C6575 -> 0 | V17: =Historical_Data!C6941 -> 0.0254 | W17: =Historical_Data!C7306 -> 0.127 | X17: =Historical_Data!C7671 -> 0 | Y17: =Historical_Data!C8036 -> 0 | Z17: =Historical_Data!C8402 -> 0 | AA17: =Historical_Data!C8767 -> 0 | AC17: 0 | AD17: 0 | AE17: 0 | AF17: 0 | AG17: 0 | AH17: 0 | AI17: 0 | AJ17: 1 | AK17: 0 | AL17: 1 | AM17: 0 | AN17: 0 | AO17: 0 | AP17: 1 | AQ17: 0 | AR17: 1 | AS17: 0 | AT17: 0 | AU17: 0 | AV17: 1 | AW17: 1 | AX17: 0 | AY17: 0 | AZ17: 0 | BA17: 0 | BB17: 0 | BC17: 0 | BD17: 0 | BE17: 0 | BF17: 0 | BG17: 0 | BH17: 0 | BI17: 0 | BJ17: 0 | BK17: 0 | BL17: 0 | BM17: 0 | BN17: 0 | BO17: 1 | BP17: 0 | BQ17: 1 | BR17: 0 | BS17: 0 | BT17: 0 | BU17: 1 | BV17: 1 | BW17: 0 | BX17: 0 | BY17: 0 | BZ17: 0 | CA17: 0 | CB17: 0 | CC17: 0 | CD17: 0 | CE17: 0 | CF17: 1 | CG17: 0 | CH17: 0 | CI17: 0 | CJ17: 0 | CK17: 0 | CL17: 0 | CM17: 0 | CN17: 0 | CO17: 1 | CP17: 0 | CQ17: 1 | CR17: 0 | CS17: 0 | CT17: 0 | CU17: 0 | CV17: 1 | CW17: 0 | CX17: 0 | CY17: 0 | CZ17: 1 | DA17: 1 | DB17: 1 | DC17: 1 | DD17: 1 | DE17: 0 | DF17: 1 | DG17: 0 | DH17: 1 | DI17: 0 | DJ17: 1 | DK17: 1 | DL17: 1 | DM17: 0 | DN17: 0 | DO17: 0 | DP17: 0 | DQ17: 1 | DR17: 1 | DS17: 0 | DT17: 0 | DU17: 0 | DV17: 1 | DW17: 1 | DX17: 1 | DY17: 0 | DZ17: 0 | EA17: 0 | EB17: 0 | EC17: 0 | ED17: 0 | EE17: 0 | EF17: 0 | EG17: 1 | EH17: 0 | EI17: 1 | EJ17: 0 | EK17: 0 | EL17: 0 | EM17: 0 | EN17: 0 | EO17: 0 | EP17: 0 | EQ17: 0 | ER17: 0 | ES17: 0 | ET17: 0 | EU17: 0 | EV17: 0 | EW17: 0 | EX17: 0 | FK17: - | FL17: - | FM17: - | FN17: - | FO17: - | FP17: - | FQ17: - | FR17: 0.127 | FS17: - | FT17: 0.1778 | FU17: - | FV17: - | FW17: - | FX17: 0.254 | FY17: - | FZ17: 0.60452 | GA17: - | GB17: - | GC17: - | GD17: 0.0254 | GE17: 0.127 | GF17: - | GG17: - | GH17: - | GI17: -
A18: 0 | B18: =Historical_Data!B9133 -> 2002-12-31 | C18: =Historical_Data!C9133 -> 0 | D18: =Historical_Data!C367 -> 0.84074 | E18: =Historical_Data!C732 -> 0 | F18: =Historical_Data!C1098 -> 0 | G18: =Historical_Data!C1463 -> 0.59182 | H18: =Historical_Data!C1828 -> 0 | I18: =Historical_Data!C2193 -> 0 | J18: =Historical_Data!C2559 -> 0 | K18: =Historical_Data!C2924 -> 0 | L18: =Historical_Data!C3289 -> 0 | M18: =Historical_Data!C3654 -> 0 | N18: =Historical_Data!C4020 -> 0 | O18: =Historical_Data!C4385 -> 1.651 | P18: =Historical_Data!C4750 -> 0.254 | Q18: =Historical_Data!C5115 -> 0 | R18: =Historical_Data!C5481 -> 0 | S18: =Historical_Data!C5846 -> 0 | T18: =Historical_Data!C6211 -> 0.57658 | U18: =Historical_Data!C6576 -> 0.0254 | V18: =Historical_Data!C6942 -> 0 | W18: =Historical_Data!C7307 -> 0.0508 | X18: =Historical_Data!C7672 -> 0 | Y18: =Historical_Data!C8037 -> 0 | Z18: =Historical_Data!C8403 -> 0 | AA18: =Historical_Data!C8768 -> 0 | AC18: 0 | AD18: 1 | AE18: 0 | AF18: 0 | AG18: 1 | AH18: 0 | AI18: 0 | AJ18: 0 | AK18: 0 | AL18: 0 | AM18: 0 | AN18: 0 | AO18: 1 | AP18: 1 | AQ18: 0 | AR18: 0 | AS18: 0 | AT18: 1 | AU18: 1 | AV18: 0 | AW18: 1 | AX18: 0 | AY18: 0 | AZ18: 0 | BA18: 0 | BB18: 0 | BC18: 0 | BD18: 0 | BE18: 0 | BF18: 0 | BG18: 0 | BH18: 0 | BI18: 0 | BJ18: 0 | BK18: 0 | BL18: 0 | BM18: 0 | BN18: 0 | BO18: 1 | BP18: 0 | BQ18: 0 | BR18: 0 | BS18: 0 | BT18: 0 | BU18: 0 | BV18: 1 | BW18: 0 | BX18: 0 | BY18: 0 | BZ18: 0 | CA18: 0 | CB18: 0 | CC18: 0 | CD18: 0 | CE18: 0 | CF18: 0 | CG18: 0 | CH18: 1 | CI18: 0 | CJ18: 1 | CK18: 0 | CL18: 0 | CM18: 0 | CN18: 0 | CO18: 0 | CP18: 1 | CQ18: 0 | CR18: 0 | CS18: 0 | CT18: 1 | CU18: 0 | CV18: 0 | CW18: 0 | CX18: 0 | CY18: 0 | CZ18: 1 | DA18: 0 | DB18: 1 | DC18: 1 | DD18: 0 | DE18: 1 | DF18: 1 | DG18: 0 | DH18: 1 | DI18: 0 | DJ18: 1 | DK18: 1 | DL18: 0 | DM18: 0 | DN18: 1 | DO18: 0 | DP18: 1 | DQ18: 0 | DR18: 0 | DS18: 0 | DT18: 0 | DU18: 1 | DV18: 1 | DW18: 1 | DX18: 1 | DY18: 0 | DZ18: 0 | EA18: 1 | EB18: 0 | EC18: 0 | ED18: 1 | EE18: 0 | EF18: 0 | EG18: 0 | EH18: 0 | EI18: 0 | EJ18: 0 | EK18: 0 | EL18: 1 | EM18: 0 | EN18: 0 | EO18: 0 | EP18: 0 | EQ18: 1 | ER18: 1 | ES18: 0 | ET18: 0 | EU18: 0 | EV18: 0 | EW18: 0 | EX18: 0 | FK18: - | FL18: 0.84074 | FM18: - | FN18: - | FO18: 0.59182 | FP18: - | FQ18: - | FR18: - | FS18: - | FT18: - | FU18: - | FV18: - | FW18: 1.651 | FX18: 0.254 | FY18: - | FZ18: - | GA18: - | GB18: 0.57658 | GC18: 0.0254 | GD18: - | GE18: 0.0508 | GF18: - | GG18: - | GH18: - | GI18: -
A19: 1 | B19: =Historical_Data!B3 -> 1978-01-01 | C19: =Historical_Data!C3 -> 0.0762 | D19: =Historical_Data!C368 -> 0.70866 | E19: =Historical_Data!C733 -> 0 | F19: =Historical_Data!C1099 -> 0.2159 | G19: =Historical_Data!C1464 -> 1.10998 | H19: =Historical_Data!C1829 -> 0 | I19: =Historical_Data!C2194 -> 0 | J19: =Historical_Data!C2560 -> 0.1524 | K19: =Historical_Data!C2925 -> 0 | L19: =Historical_Data!C3290 -> 1.92024 | M19: =Historical_Data!C3655 -> 0 | N19: =Historical_Data!C4021 -> 0.4064 | O19: =Historical_Data!C4386 -> 0.381 | P19: =Historical_Data!C4751 -> 0 | Q19: =Historical_Data!C5116 -> 0 | R19: =Historical_Data!C5482 -> 0 | S19: =Historical_Data!C5847 -> 0.3302 | T19: =Historical_Data!C6212 -> 0.23622 | U19: =Historical_Data!C6577 -> 0.0254 | V19: =Historical_Data!C6943 -> 0.0254 | W19: =Historical_Data!C7308 -> 0 | X19: =Historical_Data!C7673 -> 0 | Y19: =Historical_Data!C8038 -> 0 | Z19: =Historical_Data!C8404 -> 0 | AA19: =Historical_Data!C8769 -> 0 | AC19: 1 | AD19: 1 | AE19: 0 | AF19: 1 | AG19: 1 | AH19: 0 | AI19: 0 | AJ19: 1 | AK19: 0 | AL19: 1 | AM19: 0 | AN19: 1 | AO19: 1 | AP19: 0 | AQ19: 0 | AR19: 0 | AS19: 1 | AT19: 1 | AU19: 1 | AV19: 1 | AW19: 0 | AX19: 0 | AY19: 0 | AZ19: 0 | BA19: 0 | BB19: 0 | BC19: 1 | BD19: 0 | BE19: 0 | BF19: 1 | BG19: 0 | BH19: 0 | BI19: 0 | BJ19: 0 | BK19: 0 | BL19: 0 | BM19: 0 | BN19: 1 | BO19: 0 | BP19: 0 | BQ19: 0 | BR19: 0 | BS19: 1 | BT19: 1 | BU19: 0 | BV19: 0 | BW19: 0 | BX19: 0 | BY19: 0 | BZ19: 0 | CA19: 0 | CB19: 0 | CC19: 0 | CD19: 0 | CE19: 0 | CF19: 0 | CG19: 0 | CH19: 0 | CI19: 0 | CJ19: 0 | CK19: 0 | CL19: 0 | CM19: 0 | CN19: 1 | CO19: 0 | CP19: 0 | CQ19: 0 | CR19: 0 | CS19: 0 | CT19: 0 | CU19: 1 | CV19: 0 | CW19: 0 | CX19: 0 | CY19: 0 | CZ19: 0 | DA19: 0 | DB19: 1 | DC19: 0 | DD19: 0 | DE19: 1 | DF19: 1 | DG19: 0 | DH19: 1 | DI19: 0 | DJ19: 1 | DK19: 0 | DL19: 0 | DM19: 0 | DN19: 1 | DO19: 1 | DP19: 0 | DQ19: 0 | DR19: 0 | DS19: 0 | DT19: 0 | DU19: 1 | DV19: 1 | DW19: 1 | DX19: 1 | DY19: 1 | DZ19: 1 | EA19: 0 | EB19: 0 | EC19: 1 | ED19: 0 | EE19: 0 | EF19: 0 | EG19: 1 | EH19: 0 | EI19: 1 | EJ19: 0 | EK19: 1 | EL19: 0 | EM19: 0 | EN19: 0 | EO19: 0 | EP19: 1 | EQ19: 0 | ER19: 0 | ES19: 1 | ET19: 0 | EU19: 0 | EV19: 0 | EW19: 0 | EX19: 0 | EZ19: =SUM(AC4:BA32) -> 224 | FA19: =SUM(BB4:BZ33) -> 102 | FB19: =SUM(CA4:CY33) -> 129 | FC19: =SUM(CZ4:DX33) -> 388 | FD19: =SUM(DY4:EX32) -> 131 | FF19: =EZ19/(30*25) -> 0.2986666667 | FG19: =FA19/(FA19+FB19) -> 0.4415584416 | FH19: =1-FG19 -> 0.5584415584 | FI19: =FC19/(FC19+FD19) -> 0.7475915222 | FJ19: =1-FI19 -> 0.2524084778 | FK19: 0.0762 | FL19: 0.70866 | FM19: - | FN19: 0.2159 | FO19: 1.10998 | FP19: - | FQ19: - | FR19: 0.1524 | FS19: - | FT19: 1.92024 | FU19: - | FV19: 0.4064 | FW19: 0.381 | FX19: - | FY19: - | FZ19: - | GA19: 0.3302 | GB19: 0.23622 | GC19: 0.0254 | GD19: 0.0254 | GE19: - | GF19: - | GG19: - | GH19: - | GI19: -
A20: 2 | B20: =Historical_Data!B4 -> 1978-01-02 | C20: =Historical_Data!C4 -> 0 | D20: =Historical_Data!C369 -> 3.7084 | E20: =Historical_Data!C734 -> 0 | F20: =Historical_Data!C1100 -> 0.0889 | G20: =Historical_Data!C1465 -> 0 | H20: =Historical_Data!C1830 -> 0 | I20: =Historical_Data!C2195 -> 0 | J20: =Historical_Data!C2561 -> 0.6858 | K20: =Historical_Data!C2926 -> 0 | L20: =Historical_Data!C3291 -> 0.92456 | M20: =Historical_Data!C3656 -> 0 | N20: =Historical_Data!C4022 -> 0 | O20: =Historical_Data!C4387 -> 0 | P20: =Historical_Data!C4752 -> 0 | Q20: =Historical_Data!C5117 -> 0 | R20: =Historical_Data!C5483 -> 0 | S20: =Historical_Data!C5848 -> 0 | T20: =Historical_Data!C6213 -> 0.1778 | U20: =Historical_Data!C6578 -> 2.09296 | V20: =Historical_Data!C6944 -> 0.0762 | W20: =Historical_Data!C7309 -> 0 | X20: =Historical_Data!C7674 -> 0.3556 | Y20: =Historical_Data!C8039 -> 0 | Z20: =Historical_Data!C8405 -> 0 | AA20: =Historical_Data!C8770 -> 0 | AC20: 0 | AD20: 1 | AE20: 0 | AF20: 1 | AG20: 0 | AH20: 0 | AI20: 0 | AJ20: 1 | AK20: 0 | AL20: 1 | AM20: 0 | AN20: 0 | AO20: 0 | AP20: 0 | AQ20: 0 | AR20: 0 | AS20: 0 | AT20: 1 | AU20: 1 | AV20: 1 | AW20: 0 | AX20: 1 | AY20: 0 | AZ20: 0 | BA20: 0 | BB20: 0 | BC20: 1 | BD20: 0 | BE20: 1 | BF20: 0 | BG20: 0 | BH20: 0 | BI20: 1 | BJ20: 0 | BK20: 1 | BL20: 0 | BM20: 0 | BN20: 0 | BO20: 0 | BP20: 0 | BQ20: 0 | BR20: 0 | BS20: 1 | BT20: 1 | BU20: 1 | BV20: 0 | BW20: 0 | BX20: 0 | BY20: 0 | BZ20: 0 | CA20: 1 | CB20: 0 | CC20: 0 | CD20: 0 | CE20: 1 | CF20: 0 | CG20: 0 | CH20: 0 | CI20: 0 | CJ20: 0 | CK20: 0 | CL20: 1 | CM20: 1 | CN20: 0 | CO20: 0 | CP20: 0 | CQ20: 1 | CR20: 0 | CS20: 0 | CT20: 0 | CU20: 0 | CV20: 0 | CW20: 0 | CX20: 0 | CY20: 0 | CZ20: 0 | DA20: 0 | DB20: 1 | DC20: 0 | DD20: 0 | DE20: 1 | DF20: 1 | DG20: 0 | DH20: 1 | DI20: 0 | DJ20: 1 | DK20: 0 | DL20: 0 | DM20: 1 | DN20: 1 | DO20: 1 | DP20: 0 | DQ20: 0 | DR20: 0 | DS20: 0 | DT20: 1 | DU20: 0 | DV20: 1 | DW20: 1 | DX20: 1 | DY20: 0 | DZ20: 0 | EA20: 0 | EB20: 0 | EC20: 0 | ED20: 0 | EE20: 0 | EF20: 0 | EG20: 0 | EH20: 0 | EI20: 0 | EJ20: 0 | EK20: 0 | EL20: 0 | EM20: 0 | EN20: 0 | EO20: 0 | EP20: 0 | EQ20: 0 | ER20: 0 | ES20: 0 | ET20: 0 | EU20: 1 | EV20: 0 | EW20: 0 | EX20: 0 | EZ20: =SUM(AC5:BA33) -> 226 | FA20: =SUM(BB5:BZ34) -> 101 | FB20: =SUM(CA5:CY34) -> 132 | FC20: =SUM(CZ5:DX34) -> 388 | FD20: 131 | FF20: =EZ20/(30*25) -> 0.3013333333 | FG20: =FA20/(FA20+FB20) -> 0.4334763948 | FH20: =1-FG20 -> 0.5665236052 | FI20: =FC20/(FC20+FD20) -> 0.7475915222 | FJ20: =1-FI20 -> 0.2524084778 | FK20: - | FL20: 3.7084 | FM20: - | FN20: 0.0889 | FO20: - | FP20: - | FQ20: - | FR20: 0.6858 | FS20: - | FT20: 0.92456 | FU20: - | FV20: - | FW20: - | FX20: - | FY20: - | FZ20: - | GA20: - | GB20: 0.1778 | GC20: 2.09296 | GD20: 0.0762 | GE20: - | GF20: 0.3556 | GG20: - | GH20: - | GI20: -
A21: 3 | B21: =Historical_Data!B5 -> 1978-01-03 | C21: =Historical_Data!C5 -> 0 | D21: =Historical_Data!C370 -> 0 | E21: =Historical_Data!C735 -> 0 | F21: =Historical_Data!C1101 -> 0 | G21: =Historical_Data!C1466 -> 0.254 | H21: =Historical_Data!C1831 -> 0 | I21: =Historical_Data!C2196 -> 0 | J21: =Historical_Data!C2562 -> 1.6002 | K21: =Historical_Data!C2927 -> 1.2954 | L21: =Historical_Data!C3292 -> 0 | M21: =Historical_Data!C3657 -> 0.29718 | N21: =Historical_Data!C4023 -> 0 | O21: =Historical_Data!C4388 -> 0 | P21: =Historical_Data!C4753 -> 0 | Q21: =Historical_Data!C5118 -> 0 | R21: =Historical_Data!C5484 -> 0.254 | S21: =Historical_Data!C5849 -> 0.08636 | T21: =Historical_Data!C6214 -> 0 | U21: =Historical_Data!C6579 -> 0.21844 | V21: =Historical_Data!C6945 -> 0 | W21: =Historical_Data!C7310 -> 0 | X21: =Historical_Data!C7675 -> 4.0132 | Y21: =Historical_Data!C8040 -> 0.254 | Z21: =Historical_Data!C8406 -> 0 | AA21: =Historical_Data!C8771 -> 0 | AC21: 0 | AD21: 0 | AE21: 0 | AF21: 0 | AG21: 1 | AH21: 0 | AI21: 0 | AJ21: 1 | AK21: 1 | AL21: 0 | AM21: 1 | AN21: 0 | AO21: 0 | AP21: 0 | AQ21: 0 | AR21: 1 | AS21: 1 | AT21: 0 | AU21: 1 | AV21: 0 | AW21: 0 | AX21: 1 | AY21: 1 | AZ21: 0 | BA21: 0 | BB21: 0 | BC21: 0 | BD21: 0 | BE21: 0 | BF21: 0 | BG21: 0 | BH21: 0 | BI21: 1 | BJ21: 0 | BK21: 0 | BL21: 0 | BM21: 0 | BN21: 0 | BO21: 0 | BP21: 0 | BQ21: 0 | BR21: 0 | BS21: 0 | BT21: 1 | BU21: 0 | BV21: 0 | BW21: 1 | BX21: 0 | BY21: 0 | BZ21: 0 | CA21: 0 | CB21: 1 | CC21: 0 | CD21: 1 | CE21: 0 | CF21: 0 | CG21: 0 | CH21: 0 | CI21: 0 | CJ21: 1 | CK21: 0 | CL21: 0 | CM21: 0 | CN21: 0 | CO21: 0 | CP21: 0 | CQ21: 0 | CR21: 1 | CS21: 0 | CT21: 1 | CU21: 0 | CV21: 0 | CW21: 0 | CX21: 0 | CY21: 0 | CZ21: 1 | DA21: 0 | DB21: 1 | DC21: 0 | DD21: 0 | DE21: 1 | DF21: 1 | DG21: 0 | DH21: 0 | DI21: 0 | DJ21: 0 | DK21: 1 | DL21: 1 | DM21: 1 | DN21: 1 | DO21: 0 | DP21: 0 | DQ21: 0 | DR21: 0 | DS21: 0 | DT21: 1 | DU21: 0 | DV21: 0 | DW21: 1 | DX21: 1 | DY21: 0 | DZ21: 0 | EA21: 0 | EB21: 0 | EC21: 0 | ED21: 1 | EE21: 0 | EF21: 0 | EG21: 0 | EH21: 1 | EI21: 0 | EJ21: 1 | EK21: 0 | EL21: 0 | EM21: 0 | EN21: 0 | EO21: 1 | EP21: 1 | EQ21: 0 | ER21: 0 | ES21: 0 | ET21: 0 | EU21: 0 | EV21: 1 | EW21: 0 | EX21: 0 | EZ21: =SUM(AC6:BA34) -> 226 | FA21: 100 | FB21: 130 | FC21: 387 | FD21: 132 | FF21: 0.3013333333 | FG21: 0.4347826087 | FH21: 0.5652173913 | FI21: 0.7456647399 | FJ21: 0.2543352601 | FK21: - | FL21: - | FM21: - | FN21: - | FO21: 0.254 | FP21: - | FQ21: - | FR21: 1.6002 | FS21: 1.2954 | FT21: - | FU21: 0.29718 | FV21: - | FW21: - | FX21: - | FY21: - | FZ21: 0.254 | GA21: 0.08636 | GB21: - | GC21: 0.21844 | GD21: - | GE21: - | GF21: 4.0132 | GG21: 0.254 | GH21: - | GI21: -
A22: 4 | B22: =Historical_Data!B6 -> 1978-01-04 | C22: =Historical_Data!C6 -> 0 | D22: =Historical_Data!C371 -> 0 | E22: =Historical_Data!C736 -> 0.19304 | F22: =Historical_Data!C1102 -> 0 | G22: =Historical_Data!C1467 -> 4.826 | H22: =Historical_Data!C1832 -> 0 | I22: =Historical_Data!C2197 -> 0.127 | J22: =Historical_Data!C2563 -> 0.48006 | K22: =Historical_Data!C2928 -> 0 | L22: =Historical_Data!C3293 -> 0 | M22: =Historical_Data!C3658 -> 0.16002 | N22: =Historical_Data!C4024 -> 0 | O22: =Historical_Data!C4389 -> 0.127 | P22: =Historical_Data!C4754 -> 0 | Q22: =Historical_Data!C5119 -> 0.2794 | R22: =Historical_Data!C5485 -> 0 | S22: =Historical_Data!C5850 -> 1.13284 | T22: =Historical_Data!C6215 -> 0 | U22: =Historical_Data!C6580 -> 0 | V22: =Historical_Data!C6946 -> 0 | W22: =Historical_Data!C7311 -> 0 | X22: =Historical_Data!C7676 -> 0 | Y22: =Historical_Data!C8041 -> 2.5146 | Z22: =Historical_Data!C8407 -> 0 | AA22: =Historical_Data!C8772 -> 0 | AC22: 0 | AD22: 0 | AE22: 1 | AF22: 0 | AG22: 1 | AH22: 0 | AI22: 1 | AJ22: 1 | AK22: 0 | AL22: 0 | AM22: 1 | AN22: 0 | AO22: 1 | AP22: 0 | AQ22: 1 | AR22: 0 | AS22: 1 | AT22: 0 | AU22: 0 | AV22: 0 | AW22: 0 | AX22: 0 | AY22: 1 | AZ22: 0 | BA22: 0 | BB22: 0 | BC22: 0 | BD22: 0 | BE22: 0 | BF22: 1 | BG22: 0 | BH22: 0 | BI22: 1 | BJ22: 0 | BK22: 0 | BL22: 1 | BM22: 0 | BN22: 0 | BO22: 0 | BP22: 0 | BQ22: 0 | BR22: 1 | BS22: 0 | BT22: 0 | BU22: 0 | BV22: 0 | BW22: 0 | BX22: 1 | BY22: 0 | BZ22: 0 | CA22: 0 | CB22: 0 | CC22: 0 | CD22: 0 | CE22: 0 | CF22: 0 | CG22: 0 | CH22: 0 | CI22: 1 | CJ22: 0 | CK22: 0 | CL22: 0 | CM22: 0 | CN22: 0 | CO22: 0 | CP22: 1 | CQ22: 0 | CR22: 0 | CS22: 1 | CT22: 0 | CU22: 0 | CV22: 1 | CW22: 0 | CX22: 0 | CY22: 0 | CZ22: 1 | DA22: 1 | DB22: 0 | DC22: 1 | DD22: 0 | DE22: 1 | DF22: 0 | DG22: 0 | DH22: 0 | DI22: 1 | DJ22: 0 | DK22: 1 | DL22: 0 | DM22: 1 | DN22: 0 | DO22: 0 | DP22: 0 | DQ22: 1 | DR22: 0 | DS22: 1 | DT22: 1 | DU22: 0 | DV22: 0 | DW22: 1 | DX22: 1 | DY22: 0 | DZ22: 0 | EA22: 0 | EB22: 1 | EC22: 0 | ED22: 0 | EE22: 0 | EF22: 1 | EG22: 0 | EH22: 0 | EI22: 0 | EJ22: 0 | EK22: 0 | EL22: 1 | EM22: 0 | EN22: 1 | EO22: 0 | EP22: 0 | EQ22: 0 | ER22: 0 | ES22: 0 | ET22: 0 | EU22: 0 | EV22: 0 | EW22: 0 | EX22: 0 | EZ22: 226 | FA22: 100 | FB22: 133 | FC22: 384 | FD22: 134 | FF22: 0.3013333333 | FG22: 0.4291845494 | FH22: 0.5708154506 | FI22: 0.7413127413 | FJ22: 0.2586872587 | FK22: - | FL22: - | FM22: 0.19304 | FN22: - | FO22: 4.826 | FP22: - | FQ22: 0.127 | FR22: 0.48006 | FS22: - | FT22: - | FU22: 0.16002 | FV22: - | FW22: 0.127 | FX22: - | FY22: 0.2794 | FZ22: - | GA22: 1.13284 | GB22: - | GC22: - | GD22: - | GE22: - | GF22: - | GG22: 2.5146 | GH22: - | GI22: -
A23: 5 | B23: =Historical_Data!B7 -> 1978-01-05 | C23: =Historical_Data!C7 -> 0 | D23: =Historical_Data!C372 -> 0.20828 | E23: =Historical_Data!C737 -> 0.34036 | F23: =Historical_Data!C1103 -> 0 | G23: =Historical_Data!C1468 -> 0 | H23: =Historical_Data!C1833 -> 0.3556 | I23: =Historical_Data!C2198 -> 0 | J23: =Historical_Data!C2564 -> 0.53594 | K23: =Historical_Data!C2929 -> 0.5588 | L23: =Historical_Data!C3294 -> 0 | M23: =Historical_Data!C3659 -> 0 | N23: =Historical_Data!C4025 -> 0 | O23: =Historical_Data!C4390 -> 0 | P23: =Historical_Data!C4755 -> 0.12954 | Q23: =Historical_Data!C5120 -> 0 | R23: =Historical_Data!C5486 -> 3.302 | S23: =Historical_Data!C5851 -> 0 | T23: =Historical_Data!C6216 -> 0 | U23: =Historical_Data!C6581 -> 0 | V23: =Historical_Data!C6947 -> 0.0254 | W23: =Historical_Data!C7312 -> 0 | X23: =Historical_Data!C7677 -> 0 | Y23: =Historical_Data!C8042 -> 0 | Z23: =Historical_Data!C8408 -> 0.4064 | AA23: =Historical_Data!C8773 -> 0 | AC23: 0 | AD23: 1 | AE23: 1 | AF23: 0 | AG23: 0 | AH23: 1 | AI23: 0 | AJ23: 1 | AK23: 1 | AL23: 0 | AM23: 0 | AN23: 0 | AO23: 0 | AP23: 1 | AQ23: 0 | AR23: 1 | AS23: 0 | AT23: 0 | AU23: 0 | AV23: 1 | AW23: 0 | AX23: 0 | AY23: 0 | AZ23: 1 | BA23: 0 | BB23: 0 | BC23: 0 | BD23: 1 | BE23: 0 | BF23: 0 | BG23: 0 | BH23: 0 | BI23: 1 | BJ23: 0 | BK23: 0 | BL23: 0 | BM23: 0 | BN23: 0 | BO23: 0 | BP23: 0 | BQ23: 0 | BR23: 0 | BS23: 0 | BT23: 0 | BU23: 0 | BV23: 0 | BW23: 0 | BX23: 0 | BY23: 0 | BZ23: 0 | CA23: 0 | CB23: 0 | CC23: 0 | CD23: 0 | CE23: 1 | CF23: 0 | CG23: 1 | CH23: 0 | CI23: 0 | CJ23: 0 | CK23: 1 | CL23: 0 | CM23: 1 | CN23: 0 | CO23: 1 | CP23: 0 | CQ23: 1 | CR23: 0 | CS23: 0 | CT23: 0 | CU23: 0 | CV23: 0 | CW23: 1 | CX23: 0 | CY23: 0 | CZ23: 1 | DA23: 0 | DB23: 0 | DC23: 1 | DD23: 0 | DE23: 0 | DF23: 0 | DG23: 0 | DH23: 0 | DI23: 1 | DJ23: 0 | DK23: 1 | DL23: 0 | DM23: 0 | DN23: 0 | DO23: 0 | DP23: 0 | DQ23: 1 | DR23: 1 | DS23: 0 | DT23: 1 | DU23: 1 | DV23: 0 | DW23: 0 | DX23: 1 | DY23: 0 | DZ23: 0 | EA23: 1 | EB23: 0 | EC23: 0 | ED23: 0 | EE23: 1 | EF23: 0 | EG23: 0 | EH23: 1 | EI23: 0 | EJ23: 0 | EK23: 0 | EL23: 0 | EM23: 1 | EN23: 0 | EO23: 1 | EP23: 0 | EQ23: 0 | ER23: 0 | ES23: 1 | ET23: 0 | EU23: 0 | EV23: 0 | EW23: 1 | EX23: 0 | EZ23: 224 | FA23: 102 | FB23: 131 | FC23: 385 | FD23: 132 | FF23: 0.2986666667 | FG23: 0.4377682403 | FH23: 0.5622317597 | FI23: 0.7446808511 | FJ23: 0.2553191489 | FK23: - | FL23: 0.20828 | FM23: 0.34036 | FN23: - | FO23: - | FP23: 0.3556 | FQ23: - | FR23: 0.53594 | FS23: 0.5588 | FT23: - | FU23: - | FV23: - | FW23: - | FX23: 0.12954 | FY23: - | FZ23: 3.302 | GA23: - | GB23: - | GC23: - | GD23: 0.0254 | GE23: - | GF23: - | GG23: - | GH23: 0.4064 | GI23: -
A24: 6 | B24: =Historical_Data!B8 -> 1978-01-06 | C24: =Historical_Data!C8 -> 0 | D24: =Historical_Data!C373 -> 0.14732 | E24: =Historical_Data!C738 -> 0 | F24: =Historical_Data!C1104 -> 0.254 | G24: =Historical_Data!C1469 -> 0 | H24: =Historical_Data!C1834 -> 0 | I24: =Historical_Data!C2199 -> 0 | J24: =Historical_Data!C2565 -> 0 | K24: =Historical_Data!C2930 -> 0 | L24: =Historical_Data!C3295 -> 0 | M24: =Historical_Data!C3660 -> 0 | N24: =Historical_Data!C4026 -> 0 | O24: =Historical_Data!C4391 -> 0 | P24: =Historical_Data!C4756 -> 0.127 | Q24: =Historical_Data!C5121 -> 0 | R24: =Historical_Data!C5487 -> 0 | S24: =Historical_Data!C5852 -> 0 | T24: =Historical_Data!C6217 -> 2.8194 | U24: =Historical_Data!C6582 -> 0 | V24: =Historical_Data!C6948 -> 0 | W24: =Historical_Data!C7313 -> 0.0762 | X24: =Historical_Data!C7678 -> 0 | Y24: =Historical_Data!C8043 -> 0 | Z24: =Historical_Data!C8409 -> 0 | AA24: =Historical_Data!C8774 -> 1.778 | AC24: 0 | AD24: 1 | AE24: 0 | AF24: 1 | AG24: 0 | AH24: 0 | AI24: 0 | AJ24: 0 | AK24: 0 | AL24: 0 | AM24: 0 | AN24: 0 | AO24: 0 | AP24: 1 | AQ24: 0 | AR24: 0 | AS24: 0 | AT24: 1 | AU24: 0 | AV24: 0 | AW24: 1 | AX24: 0 | AY24: 0 | AZ24: 0 | BA24: 1 | BB24: 0 | BC24: 1 | BD24: 0 | BE24: 0 | BF24: 0 | BG24: 0 | BH24: 0 | BI24: 0 | BJ24: 0 | BK24: 0 | BL24: 0 | BM24: 0 | BN24: 0 | BO24: 1 | BP24: 0 | BQ24: 0 | BR24: 0 | BS24: 0 | BT24: 0 | BU24: 0 | BV24: 0 | BW24: 0 | BX24: 0 | BY24: 0 | BZ24: 0 | CA24: 0 | CB24: 0 | CC24: 1 | CD24: 0 | CE24: 0 | CF24: 1 | CG24: 0 | CH24: 1 | CI24: 1 | CJ24: 0 | CK24: 0 | CL24: 0 | CM24: 0 | CN24: 0 | CO24: 0 | CP24: 1 | CQ24: 0 | CR24: 0 | CS24: 0 | CT24: 1 | CU24: 0 | CV24: 0 | CW24: 0 | CX24: 1 | CY24: 0 | CZ24: 1 | DA24: 0 | DB24: 0 | DC24: 0 | DD24: 1 | DE24: 0 | DF24: 1 | DG24: 0 | DH24: 0 | DI24: 1 | DJ24: 1 | DK24: 1 | DL24: 1 | DM24: 0 | DN24: 1 | DO24: 0 | DP24: 1 | DQ24: 0 | DR24: 1 | DS24: 0 | DT24: 0 | DU24: 1 | DV24: 1 | DW24: 0 | DX24: 0 | DY24: 0 | DZ24: 0 | EA24: 0 | EB24: 0 | EC24: 1 | ED24: 0 | EE24: 0 | EF24: 0 | EG24: 0 | EH24: 0 | EI24: 0 | EJ24: 0 | EK24: 0 | EL24: 0 | EM24: 0 | EN24: 0 | EO24: 0 | EP24: 0 | EQ24: 1 | ER24: 0 | ES24: 0 | ET24: 1 | EU24: 0 | EV24: 0 | EW24: 0 | EX24: 1 | EZ24: 227 | FA24: 105 | FB24: 129 | FC24: 382 | FD24: 133 | FF24: 0.3026666667 | FG24: 0.4487179487 | FH24: 0.5512820513 | FI24: 0.7417475728 | FJ24: 0.2582524272 | FK24: - | FL24: 0.14732 | FM24: - | FN24: 0.254 | FO24: - | FP24: - | FQ24: - | FR24: - | FS24: - | FT24: - | FU24: - | FV24: - | FW24: - | FX24: 0.127 | FY24: - | FZ24: - | GA24: - | GB24: 2.8194 | GC24: - | GD24: - | GE24: 0.0762 | GF24: - | GG24: - | GH24: - | GI24: 1.778
A25: 7 | B25: =Historical_Data!B9 -> 1978-01-07 | C25: =Historical_Data!C9 -> 0 | D25: =Historical_Data!C374 -> 3.5052 | E25: =Historical_Data!C739 -> 0 | F25: =Historical_Data!C1105 -> 0.508 | G25: =Historical_Data!C1470 -> 0 | H25: =Historical_Data!C1835 -> 0 | I25: =Historical_Data!C2200 -> 0.0508 | J25: =Historical_Data!C2566 -> 0 | K25: =Historical_Data!C2931 -> 0 | L25: =Historical_Data!C3296 -> 0 | M25: =Historical_Data!C3661 -> 0 | N25: =Historical_Data!C4027 -> 0.2286 | O25: =Historical_Data!C4392 -> 0 | P25: =Historical_Data!C4757 -> 1.47066 | Q25: =Historical_Data!C5122 -> 0 | R25: =Historical_Data!C5488 -> 0 | S25: =Historical_Data!C5853 -> 1.30556 | T25: =Historical_Data!C6218 -> 0.6858 | U25: =Historical_Data!C6583 -> 3.5814 | V25: =Historical_Data!C6949 -> 0 | W25: =Historical_Data!C7314 -> 0.91694 | X25: =Historical_Data!C7679 -> 0 | Y25: =Historical_Data!C8044 -> 0 | Z25: =Historical_Data!C8410 -> 0 | AA25: =Historical_Data!C8775 -> 0.1778 | AC25: 0 | AD25: 1 | AE25: 0 | AF25: 1 | AG25: 0 | AH25: 0 | AI25: 1 | AJ25: 0 | AK25: 0 | AL25: 0 | AM25: 0 | AN25: 1 | AO25: 0 | AP25: 1 | AQ25: 0 | AR25: 0 | AS25: 1 | AT25: 1 | AU25: 1 | AV25: 0 | AW25: 1 | AX25: 0 | AY25: 0 | AZ25: 0 | BA25: 1 | BB25: 0 | BC25: 1 | BD25: 0 | BE25: 1 | BF25: 0 | BG25: 0 | BH25: 0 | BI25: 0 | BJ25: 0 | BK25: 0 | BL25: 0 | BM25: 0 | BN25: 0 | BO25: 1 | BP25: 0 | BQ25: 0 | BR25: 0 | BS25: 1 | BT25: 0 | BU25: 0 | BV25: 1 | BW25: 0 | BX25: 0 | BY25: 0 | BZ25: 1 | CA25: 0 | CB25: 0 | CC25: 0 | CD25: 0 | CE25: 0 | CF25: 0 | CG25: 0 | CH25: 0 | CI25: 0 | CJ25: 0 | CK25: 0 | CL25: 0 | CM25: 0 | CN25: 0 | CO25: 0 | CP25: 0 | CQ25: 0 | CR25: 0 | CS25: 0 | CT25: 0 | CU25: 0 | CV25: 0 | CW25: 0 | CX25: 0 | CY25: 0 | CZ25: 1 | DA25: 0 | DB25: 1 | DC25: 0 | DD25: 1 | DE25: 1 | DF25: 0 | DG25: 1 | DH25: 1 | DI25: 1 | DJ25: 1 | DK25: 0 | DL25: 1 | DM25: 0 | DN25: 1 | DO25: 1 | DP25: 0 | DQ25: 0 | DR25: 0 | DS25: 1 | DT25: 0 | DU25: 1 | DV25: 1 | DW25: 1 | DX25: 0 | DY25: 0 | DZ25: 0 | EA25: 0 | EB25: 0 | EC25: 0 | ED25: 0 | EE25: 0 | EF25: 1 | EG25: 0 | EH25: 0 | EI25: 0 | EJ25: 0 | EK25: 1 | EL25: 0 | EM25: 0 | EN25: 0 | EO25: 0 | EP25: 1 | EQ25: 0 | ER25: 1 | ES25: 0 | ET25: 0 | EU25: 0 | EV25: 0 | EW25: 0 | EX25: 0 | EZ25: 235 | FA25: 109 | FB25: 130 | FC25: 378 | FD25: 136 | FF25: 0.3133333333 | FG25: 0.4560669456 | FH25: 0.5439330544 | FI25: 0.7354085603 | FJ25: 0.2645914397 | FK25: - | FL25: 3.5052 | FM25: - | FN25: 0.508 | FO25: - | FP25: - | FQ25: 0.0508 | FR25: - | FS25: - | FT25: - | FU25: - | FV25: 0.2286 | FW25: - | FX25: 1.47066 | FY25: - | FZ25: - | GA25: 1.30556 | GB25: 0.6858 | GC25: 3.5814 | GD25: - | GE25: 0.91694 | GF25: - | GG25: - | GH25: - | GI25: 0.1778
A26: 8 | B26: =Historical_Data!B10 -> 1978-01-08 | C26: =Historical_Data!C10 -> 1.6764 | D26: =Historical_Data!C375 -> 1.3208 | E26: =Historical_Data!C740 -> 0 | F26: =Historical_Data!C1106 -> 0 | G26: =Historical_Data!C1471 -> 0 | H26: =Historical_Data!C1836 -> 0 | I26: =Historical_Data!C2201 -> 0 | J26: =Historical_Data!C2567 -> 0 | K26: =Historical_Data!C2932 -> 0 | L26: =Historical_Data!C3297 -> 0 | M26: =Historical_Data!C3662 -> 0 | N26: =Historical_Data!C4028 -> 0.2286 | O26: =Historical_Data!C4393 -> 1.9558 | P26: =Historical_Data!C4758 -> 0.04826 | Q26: =Historical_Data!C5123 -> 0 | R26: =Historical_Data!C5489 -> 0.4064 | S26: =Historical_Data!C5854 -> 0.59944 | T26: =Historical_Data!C6219 -> 0 | U26: =Historical_Data!C6584 -> 0.01016 | V26: =Historical_Data!C6950 -> 0 | W26: =Historical_Data!C7315 -> 0.37846 | X26: =Historical_Data!C7680 -> 0.89662 | Y26: =Historical_Data!C8045 -> 0 | Z26: =Historical_Data!C8411 -> 0.508 | AA26: =Historical_Data!C8776 -> 0 | AC26: 1 | AD26: 1 | AE26: 0 | AF26: 0 | AG26: 0 | AH26: 0 | AI26: 0 | AJ26: 0 | AK26: 0 | AL26: 0 | AM26: 0 | AN26: 1 | AO26: 1 | AP26: 1 | AQ26: 0 | AR26: 1 | AS26: 1 | AT26: 0 | AU26: 1 | AV26: 0 | AW26: 1 | AX26: 1 | AY26: 0 | AZ26: 1 | BA26: 0 | BB26: 0 | BC26: 1 | BD26: 0 | BE26: 0 | BF26: 0 | BG26: 0 | BH26: 0 | BI26: 0 | BJ26: 0 | BK26: 0 | BL26: 0 | BM26: 1 | BN26: 0 | BO26: 1 | BP26: 0 | BQ26: 0 | BR26: 1 | BS26: 0 | BT26: 1 | BU26: 0 | BV26: 1 | BW26: 0 | BX26: 0 | BY26: 0 | BZ26: 0 | CA26: 0 | CB26: 0 | CC26: 0 | CD26: 1 | CE26: 0 | CF26: 0 | CG26: 1 | CH26: 0 | CI26: 0 | CJ26: 0 | CK26: 0 | CL26: 0 | CM26: 0 | CN26: 0 | CO26: 0 | CP26: 0 | CQ26: 0 | CR26: 1 | CS26: 0 | CT26: 0 | CU26: 0 | CV26: 0 | CW26: 0 | CX26: 0 | CY26: 1 | CZ26: 0 | DA26: 0 | DB26: 1 | DC26: 0 | DD26: 1 | DE26: 1 | DF26: 0 | DG26: 1 | DH26: 1 | DI26: 1 | DJ26: 1 | DK26: 0 | DL26: 0 | DM26: 0 | DN26: 1 | DO26: 0 | DP26: 0 | DQ26: 0 | DR26: 0 | DS26: 1 | DT26: 0 | DU26: 0 | DV26: 1 | DW26: 0 | DX26: 0 | DY26: 1 | DZ26: 1 | EA26: 0 | EB26: 0 | EC26: 0 | ED26: 0 | EE26: 0 | EF26: 0 | EG26: 0 | EH26: 0 | EI26: 0 | EJ26: 0 | EK26: 0 | EL26: 1 | EM26: 0 | EN26: 0 | EO26: 1 | EP26: 0 | EQ26: 0 | ER26: 0 | ES26: 0 | ET26: 0 | EU26: 1 | EV26: 0 | EW26: 1 | EX26: 0 | EZ26: 233 | FA26: 108 | FB26: 134 | FC26: 377 | FD26: 132 | FF26: 0.3106666667 | FG26: 0.4462809917 | FH26: 0.5537190083 | FI26: 0.7406679764 | FJ26: 0.2593320236 | FK26: 1.6764 | FL26: 1.3208 | FM26: - | FN26: - | FO26: - | FP26: - | FQ26: - | FR26: - | FS26: - | FT26: - | FU26: - | FV26: 0.2286 | FW26: 1.9558 | FX26: 0.04826 | FY26: - | FZ26: 0.4064 | GA26: 0.59944 | GB26: - | GC26: 0.01016 | GD26: - | GE26: 0.37846 | GF26: 0.89662 | GG26: - | GH26: 0.508 | GI26: -
A27: 9 | B27: =Historical_Data!B11 -> 1978-01-09 | C27: =Historical_Data!C11 -> 2.6416 | D27: =Historical_Data!C376 -> 0 | E27: =Historical_Data!C741 -> 0.2032 | F27: =Historical_Data!C1107 -> 0 | G27: =Historical_Data!C1472 -> 0 | H27: =Historical_Data!C1837 -> 0.02286 | I27: =Historical_Data!C2202 -> 0 | J27: =Historical_Data!C2568 -> 0 | K27: =Historical_Data!C2933 -> 0 | L27: =Historical_Data!C3298 -> 0 | M27: =Historical_Data!C3663 -> 0 | N27: =Historical_Data!C4029 -> 0 | O27: =Historical_Data!C4394 -> 0 | P27: =Historical_Data!C4759 -> 2.03454 | Q27: =Historical_Data!C5124 -> 0.2286 | R27: =Historical_Data!C5490 -> 0.3048 | S27: =Historical_Data!C5855 -> 0 | T27: =Historical_Data!C6220 -> 0 | U27: =Historical_Data!C6585 -> 0 | V27: =Historical_Data!C6951 -> 0.6858 | W27: =Historical_Data!C7316 -> 0 | X27: =Historical_Data!C7681 -> 1.05918 | Y27: =Historical_Data!C8046 -> 0 | Z27: =Historical_Data!C8412 -> 0 | AA27: =Historical_Data!C8777 -> 0.2794 | AC27: 1 | AD27: 0 | AE27: 1 | AF27: 0 | AG27: 0 | AH27: 1 | AI27: 0 | AJ27: 0 | AK27: 0 | AL27: 0 | AM27: 0 | AN27: 0 | AO27: 0 | AP27: 1 | AQ27: 1 | AR27: 1 | AS27: 0 | AT27: 0 | AU27: 0 | AV27: 1 | AW27: 0 | AX27: 1 | AY27: 0 | AZ27: 0 | BA27: 1 | BB27: 1 | BC27: 0 | BD27: 0 | BE27: 0 | BF27: 0 | BG27: 0 | BH27: 0 | BI27: 0 | BJ27: 0 | BK27: 0 | BL27: 0 | BM27: 0 | BN27: 0 | BO27: 1 | BP27: 0 | BQ27: 1 | BR27: 0 | BS27: 0 | BT27: 0 | BU27: 0 | BV27: 0 | BW27: 1 | BX27: 0 | BY27: 0 | BZ27: 0 | CA27: 0 | CB27: 1 | CC27: 0 | CD27: 0 | CE27: 0 | CF27: 0 | CG27: 0 | CH27: 0 | CI27: 0 | CJ27: 0 | CK27: 0 | CL27: 1 | CM27: 1 | CN27: 0 | CO27: 0 | CP27: 0 | CQ27: 1 | CR27: 0 | CS27: 1 | CT27: 0 | CU27: 1 | CV27: 0 | CW27: 0 | CX27: 1 | CY27: 0 | CZ27: 0 | DA27: 0 | DB27: 0 | DC27: 1 | DD27: 1 | DE27: 0 | DF27: 1 | DG27: 1 | DH27: 1 | DI27: 1 | DJ27: 1 | DK27: 0 | DL27: 0 | DM27: 0 | DN27: 0 | DO27: 0 | DP27: 0 | DQ27: 1 | DR27: 0 | DS27: 0 | DT27: 0 | DU27: 0 | DV27: 1 | DW27: 0 | DX27: 0 | DY27: 0 | DZ27: 0 | EA27: 0 | EB27: 1 | EC27: 0 | ED27: 0 | EE27: 1 | EF27: 0 | EG27: 0 | EH27: 0 | EI27: 0 | EJ27: 0 | EK27: 0 | EL27: 0 | EM27: 0 | EN27: 1 | EO27: 0 | EP27: 0 | EQ27: 0 | ER27: 0 | ES27: 1 | ET27: 0 | EU27: 0 | EV27: 0 | EW27: 0 | EX27: 1 | EZ27: 226 | FA27: 105 | FB27: 134 | FC27: 383 | FD27: 128 | FF27: 0.3013333333 | FG27: 0.4393305439 | FH27: 0.5606694561 | FI27: 0.7495107632 | FJ27: 0.2504892368 | FK27: 2.6416 | FL27: - | FM27: 0.2032 | FN27: - | FO27: - | FP27: 0.02286 | FQ27: - | FR27: - | FS27: - | FT27: - | FU27: - | FV27: - | FW27: - | FX27: 2.03454 | FY27: 0.2286 | FZ27: 0.3048 | GA27: - | GB27: - | GC27: - | GD27: 0.6858 | GE27: - | GF27: 1.05918 | GG27: - | GH27: - | GI27: 0.2794
A28: 10 | B28: =Historical_Data!B12 -> 1978-01-10 | C28: =Historical_Data!C12 -> 0 | D28: =Historical_Data!C377 -> 0 | E28: =Historical_Data!C742 -> 0 | F28: =Historical_Data!C1108 -> 0 | G28: =Historical_Data!C1473 -> 0 | H28: =Historical_Data!C1838 -> 1.09474 | I28: =Historical_Data!C2203 -> 1.4478 | J28: =Historical_Data!C2569 -> 0 | K28: =Historical_Data!C2934 -> 0 | L28: =Historical_Data!C3299 -> 0.508 | M28: =Historical_Data!C3664 -> 0 | N28: =Historical_Data!C4030 -> 0 | O28: =Historical_Data!C4395 -> 0 | P28: =Historical_Data!C4760 -> 0 | Q28: =Historical_Data!C5125 -> 0 | R28: =Historical_Data!C5491 -> 0 | S28: =Historical_Data!C5856 -> 0 | T28: =Historical_Data!C6221 -> 0 | U28: =Historical_Data!C6586 -> 0 | V28: =Historical_Data!C6952 -> 0.05334 | W28: =Historical_Data!C7317 -> 0 | X28: =Historical_Data!C7682 -> 0 | Y28: =Historical_Data!C8047 -> 1.1176 | Z28: =Historical_Data!C8413 -> 0 | AA28: =Historical_Data!C8778 -> 0 | AC28: 0 | AD28: 0 | AE28: 0 | AF28: 0 | AG28: 0 | AH28: 1 | AI28: 1 | AJ28: 0 | AK28: 0 | AL28: 1 | AM28: 0 | AN28: 0 | AO28: 0 | AP28: 0 | AQ28: 0 | AR28: 0 | AS28: 0 | AT28: 0 | AU28: 0 | AV28: 1 | AW28: 0 | AX28: 0 | AY28: 1 | AZ28: 0 | BA28: 0 | BB28: 0 | BC28: 0 | BD28: 0 | BE28: 0 | BF28: 0 | BG28: 1 | BH28: 0 | BI28: 0 | BJ28: 0 | BK28: 0 | BL28: 0 | BM28: 0 | BN28: 0 | BO28: 0 | BP28: 0 | BQ28: 0 | BR28: 0 | BS28: 0 | BT28: 0 | BU28: 1 | BV28: 0 | BW28: 0 | BX28: 0 | BY28: 0 | BZ28: 0 | CA28: 1 | CB28: 0 | CC28: 1 | CD28: 0 | CE28: 0 | CF28: 0 | CG28: 0 | CH28: 0 | CI28: 0 | CJ28: 0 | CK28: 0 | CL28: 0 | CM28: 0 | CN28: 1 | CO28: 1 | CP28: 1 | CQ28: 0 | CR28: 0 | CS28: 0 | CT28: 0 | CU28: 0 | CV28: 1 | CW28: 0 | CX28: 0 | CY28: 1 | CZ28: 0 | DA28: 1 | DB28: 0 | DC28: 1 | DD28: 1 | DE28: 0 | DF28: 0 | DG28: 1 | DH28: 1 | DI28: 0 | DJ28: 1 | DK28: 1 | DL28: 1 | DM28: 0 | DN28: 0 | DO28: 0 | DP28: 1 | DQ28: 1 | DR28: 1 | DS28: 0 | DT28: 1 | DU28: 0 | DV28: 0 | DW28: 1 | DX28: 0 | DY28: 0 | DZ28: 0 | EA28: 0 | EB28: 0 | EC28: 0 | ED28: 0 | EE28: 0 | EF28: 1 | EG28: 0 | EH28: 0 | EI28: 1 | EJ28: 0 | EK28: 0 | EL28: 0 | EM28: 0 | EN28: 0 | EO28: 0 | EP28: 0 | EQ28: 0 | ER28: 0 | ES28: 0 | ET28: 0 | EU28: 0 | EV28: 1 | EW28: 0 | EX28: 0 | EZ28: 225 | FA28: 102 | FB28: 131 | FC28: 384 | FD28: 131 | FF28: 0.3 | FG28: 0.4377682403 | FH28: 0.5622317597 | FI28: 0.745631068 | FJ28: 0.254368932 | FK28: - | FL28: - | FM28: - | FN28: - | FO28: - | FP28: 1.09474 | FQ28: 1.4478 | FR28: - | FS28: - | FT28: 0.508 | FU28: - | FV28: - | FW28: - | FX28: - | FY28: - | FZ28: - | GA28: - | GB28: - | GC28: - | GD28: 0.05334 | GE28: - | GF28: - | GG28: 1.1176 | GH28: - | GI28: -
A29: 11 | B29: =Historical_Data!B13 -> 1978-01-11 | C29: =Historical_Data!C13 -> 0 | D29: =Historical_Data!C378 -> 0 | E29: =Historical_Data!C743 -> 2.32918 | F29: =Historical_Data!C1109 -> 0 | G29: =Historical_Data!C1474 -> 0 | H29: =Historical_Data!C1839 -> 0 | I29: =Historical_Data!C2204 -> 0 | J29: =Historical_Data!C2570 -> 0.254 | K29: =Historical_Data!C2935 -> 0 | L29: =Historical_Data!C3300 -> 0 | M29: =Historical_Data!C3665 -> 0 | N29: =Historical_Data!C4031 -> 0 | O29: =Historical_Data!C4396 -> 0 | P29: =Historical_Data!C4761 -> 2.794 | Q29: =Historical_Data!C5126 -> 0 | R29: =Historical_Data!C5492 -> 0.51562 | S29: =Historical_Data!C5857 -> 0 | T29: =Historical_Data!C6222 -> 0.1524 | U29: =Historical_Data!C6587 -> 1.17856 | V29: =Historical_Data!C6953 -> 0.32766 | W29: =Historical_Data!C7318 -> 0 | X29: =Historical_Data!C7683 -> 0 | Y29: =Historical_Data!C8048 -> 0 | Z29: =Historical_Data!C8414 -> 0 | AA29: =Historical_Data!C8779 -> 1.0414 | AC29: 0 | AD29: 0 | AE29: 1 | AF29: 0 | AG29: 0 | AH29: 0 | AI29: 0 | AJ29: 1 | AK29: 0 | AL29: 0 | AM29: 0 | AN29: 0 | AO29: 0 | AP29: 1 | AQ29: 0 | AR29: 1 | AS29: 0 | AT29: 1 | AU29: 1 | AV29: 1 | AW29: 0 | AX29: 0 | AY29: 0 | AZ29: 0 | BA29: 1 | BB29: 0 | BC29: 0 | BD29: 0 | BE29: 0 | BF29: 0 | BG29: 0 | BH29: 0 | BI29: 0 | BJ29: 0 | BK29: 0 | BL29: 0 | BM29: 0 | BN29: 0 | BO29: 0 | BP29: 0 | BQ29: 0 | BR29: 0 | BS29: 0 | BT29: 0 | BU29: 1 | BV29: 0 | BW29: 0 | BX29: 0 | BY29: 0 | BZ29: 0 | CA29: 0 | CB29: 0 | CC29: 0 | CD29: 0 | CE29: 0 | CF29: 1 | CG29: 1 | CH29: 0 | CI29: 0 | CJ29: 1 | CK29: 0 | CL29: 0 | CM29: 0 | CN29: 0 | CO29: 0 | CP29: 0 | CQ29: 0 | CR29: 0 | CS29: 0 | CT29: 0 | CU29: 0 | CV29: 0 | CW29: 1 | CX29: 0 | CY29: 0 | CZ29: 1 | DA29: 1 | DB29: 0 | DC29: 1 | DD29: 1 | DE29: 0 | DF29: 0 | DG29: 0 | DH29: 1 | DI29: 0 | DJ29: 1 | DK29: 1 | DL29: 1 | DM29: 0 | DN29: 1 | DO29: 0 | DP29: 1 | DQ29: 0 | DR29: 0 | DS29: 0 | DT29: 1 | DU29: 1 | DV29: 0 | DW29: 1 | DX29: 0 | DY29: 0 | DZ29: 0 | EA29: 0 | EB29: 1 | EC29: 0 | ED29: 0 | EE29: 0 | EF29: 0 | EG29: 1 | EH29: 0 | EI29: 0 | EJ29: 0 | EK29: 0 | EL29: 0 | EM29: 1 | EN29: 0 | EO29: 1 | EP29: 0 | EQ29: 1 | ER29: 1 | ES29: 0 | ET29: 0 | EU29: 0 | EV29: 0 | EW29: 0 | EX29: 1 | EZ29: 233 | FA29: 105 | FB29: 130 | FC29: 376 | FD29: 137 | FF29: 0.3106666667 | FG29: 0.4468085106 | FH29: 0.5531914894 | FI29: 0.7329434698 | FJ29: 0.2670565302 | FK29: - | FL29: - | FM29: 2.32918 | FN29: - | FO29: - | FP29: - | FQ29: - | FR29: 0.254 | FS29: - | FT29: - | FU29: - | FV29: - | FW29: - | FX29: 2.794 | FY29: - | FZ29: 0.51562 | GA29: - | GB29: 0.1524 | GC29: 1.17856 | GD29: 0.32766 | GE29: - | GF29: - | GG29: - | GH29: - | GI29: 1.0414
A30: 12 | B30: =Historical_Data!B14 -> 1978-01-12 | C30: =Historical_Data!C14 -> 0 | D30: =Historical_Data!C379 -> 0.2286 | E30: =Historical_Data!C744 -> 0.31242 | F30: =Historical_Data!C1110 -> 0 | G30: =Historical_Data!C1475 -> 0 | H30: =Historical_Data!C1840 -> 0 | I30: =Historical_Data!C2205 -> 0 | J30: =Historical_Data!C2571 -> 0 | K30: =Historical_Data!C2936 -> 0 | L30: =Historical_Data!C3301 -> 0 | M30: =Historical_Data!C3666 -> 0 | N30: =Historical_Data!C4032 -> 1.8288 | O30: =Historical_Data!C4397 -> 0 | P30: =Historical_Data!C4762 -> 0.25654 | Q30: =Historical_Data!C5127 -> 0 | R30: =Historical_Data!C5493 -> 0.50292 | S30: =Historical_Data!C5858 -> 1.0922 | T30: =Historical_Data!C6223 -> 0 | U30: =Historical_Data!C6588 -> 1.0414 | V30: =Historical_Data!C6954 -> 0.127 | W30: =Historical_Data!C7319 -> 0 | X30: =Historical_Data!C7684 -> 0 | Y30: =Historical_Data!C8049 -> 0 | Z30: =Historical_Data!C8415 -> 0 | AA30: =Historical_Data!C8780 -> 0 | AC30: 0 | AD30: 1 | AE30: 1 | AF30: 0 | AG30: 0 | AH30: 0 | AI30: 0 | AJ30: 0 | AK30: 0 | AL30: 0 | AM30: 0 | AN30: 1 | AO30: 0 | AP30: 1 | AQ30: 0 | AR30: 1 | AS30: 1 | AT30: 0 | AU30: 1 | AV30: 1 | AW30: 0 | AX30: 0 | AY30: 0 | AZ30: 0 | BA30: 0 | BB30: 0 | BC30: 0 | BD30: 1 | BE30: 0 | BF30: 0 | BG30: 0 | BH30: 0 | BI30: 0 | BJ30: 0 | BK30: 0 | BL30: 0 | BM30: 0 | BN30: 0 | BO30: 1 | BP30: 0 | BQ30: 1 | BR30: 0 | BS30: 0 | BT30: 1 | BU30: 1 | BV30: 0 | BW30: 0 | BX30: 0 | BY30: 0 | BZ30: 0 | CA30: 0 | CB30: 0 | CC30: 0 | CD30: 0 | CE30: 0 | CF30: 0 | CG30: 0 | CH30: 1 | CI30: 0 | CJ30: 0 | CK30: 0 | CL30: 0 | CM30: 0 | CN30: 0 | CO30: 0 | CP30: 0 | CQ30: 0 | CR30: 1 | CS30: 0 | CT30: 0 | CU30: 0 | CV30: 0 | CW30: 0 | CX30: 0 | CY30: 1 | CZ30: 1 | DA30: 0 | DB30: 0 | DC30: 1 | DD30: 1 | DE30: 1 | DF30: 1 | DG30: 0 | DH30: 1 | DI30: 1 | DJ30: 1 | DK30: 0 | DL30: 1 | DM30: 0 | DN30: 1 | DO30: 0 | DP30: 0 | DQ30: 0 | DR30: 0 | DS30: 0 | DT30: 1 | DU30: 1 | DV30: 1 | DW30: 1 | DX30: 0 | DY30: 0 | DZ30: 0 | EA30: 1 | EB30: 0 | EC30: 0 | ED30: 0 | EE30: 0 | EF30: 0 | EG30: 0 | EH30: 0 | EI30: 0 | EJ30: 0 | EK30: 1 | EL30: 0 | EM30: 0 | EN30: 0 | EO30: 0 | EP30: 1 | EQ30: 0 | ER30: 0 | ES30: 0 | ET30: 0 | EU30: 0 | EV30: 0 | EW30: 0 | EX30: 0 | EZ30: 239 | FA30: 108 | FB30: 136 | FC30: 369 | FD30: 140 | FF30: 0.3186666667 | FG30: 0.4426229508 | FH30: 0.5573770492 | FI30: 0.7249508841 | FJ30: 0.2750491159 | FK30: - | FL30: 0.2286 | FM30: 0.31242 | FN30: - | FO30: - | FP30: - | FQ30: - | FR30: - | FS30: - | FT30: - | FU30: - | FV30: 1.8288 | FW30: - | FX30: 0.25654 | FY30: - | FZ30: 0.50292 | GA30: 1.0922 | GB30: - | GC30: 1.0414 | GD30: 0.127 | GE30: - | GF30: - | GG30: - | GH30: - | GI30: -
A31: 13 | B31: =Historical_Data!B15 -> 1978-01-13 | C31: =Historical_Data!C15 -> 3.1242 | D31: =Historical_Data!C380 -> 0.7366 | E31: =Historical_Data!C745 -> 0 | F31: =Historical_Data!C1111 -> 0 | G31: =Historical_Data!C1476 -> 1.397 | H31: =Historical_Data!C1841 -> 0 | I31: =Historical_Data!C2206 -> 0 | J31: =Historical_Data!C2572 -> 0 | K31: =Historical_Data!C2937 -> 0 | L31: =Historical_Data!C3302 -> 0 | M31: =Historical_Data!C3667 -> 0.0762 | N31: =Historical_Data!C4033 -> 0 | O31: =Historical_Data!C4398 -> 0 | P31: =Historical_Data!C4763 -> 0 | Q31: =Historical_Data!C5128 -> 0.11684 | R31: =Historical_Data!C5494 -> 0.45466 | S31: =Historical_Data!C5859 -> 0 | T31: =Historical_Data!C6224 -> 0 | U31: =Historical_Data!C6589 -> 0 | V31: =Historical_Data!C6955 -> 0 | W31: =Historical_Data!C7320 -> 0.0508 | X31: =Historical_Data!C7685 -> 0 | Y31: =Historical_Data!C8050 -> 0.127 | Z31: =Historical_Data!C8416 -> 0 | AA31: =Historical_Data!C8781 -> 0 | AC31: 1 | AD31: 1 | AE31: 0 | AF31: 0 | AG31: 1 | AH31: 0 | AI31: 0 | AJ31: 0 | AK31: 0 | AL31: 0 | AM31: 1 | AN31: 0 | AO31: 0 | AP31: 0 | AQ31: 1 | AR31: 1 | AS31: 0 | AT31: 0 | AU31: 0 | AV31: 0 | AW31: 1 | AX31: 0 | AY31: 1 | AZ31: 0 | BA31: 0 | BB31: 0 | BC31: 1 | BD31: 0 | BE31: 0 | BF31: 0 | BG31: 0 | BH31: 0 | BI31: 0 | BJ31: 0 | BK31: 0 | BL31: 0 | BM31: 0 | BN31: 0 | BO31: 0 | BP31: 0 | BQ31: 1 | BR31: 0 | BS31: 0 | BT31: 0 | BU31: 0 | BV31: 0 | BW31: 0 | BX31: 0 | BY31: 0 | BZ31: 0 | CA31: 0 | CB31: 0 | CC31: 1 | CD31: 0 | CE31: 0 | CF31: 0 | CG31: 0 | CH31: 0 | CI31: 0 | CJ31: 0 | CK31: 0 | CL31: 1 | CM31: 0 | CN31: 1 | CO31: 0 | CP31: 0 | CQ31: 1 | CR31: 0 | CS31: 1 | CT31: 1 | CU31: 0 | CV31: 0 | CW31: 0 | CX31: 0 | CY31: 0 | CZ31: 0 | DA31: 0 | DB31: 0 | DC31: 1 | DD31: 0 | DE31: 1 | DF31: 1 | DG31: 1 | DH31: 1 | DI31: 1 | DJ31: 0 | DK31: 0 | DL31: 1 | DM31: 0 | DN31: 0 | DO31: 0 | DP31: 0 | DQ31: 1 | DR31: 0 | DS31: 0 | DT31: 0 | DU31: 1 | DV31: 0 | DW31: 1 | DX31: 1 | DY31: 1 | DZ31: 1 | EA31: 0 | EB31: 0 | EC31: 0 | ED31: 1 | EE31: 0 | EF31: 0 | EG31: 0 | EH31: 0 | EI31: 0 | EJ31: 1 | EK31: 0 | EL31: 0 | EM31: 0 | EN31: 1 | EO31: 0 | EP31: 0 | EQ31: 0 | ER31: 0 | ES31: 0 | ET31: 1 | EU31: 0 | EV31: 1 | EW31: 0 | EX31: 0 | EZ31: 238 | FA31: 108 | FB31: 137 | FC31: 369 | FD31: 137 | FF31: 0.3173333333 | FG31: 0.4408163265 | FH31: 0.5591836735 | FI31: 0.7292490119 | FJ31: 0.2707509881 | FK31: 3.1242 | FL31: 0.7366 | FM31: - | FN31: - | FO31: 1.397 | FP31: - | FQ31: - | FR31: - | FS31: - | FT31: - | FU31: 0.0762 | FV31: - | FW31: - | FX31: - | FY31: 0.11684 | FZ31: 0.45466 | GA31: - | GB31: - | GC31: - | GD31: - | GE31: 0.0508 | GF31: - | GG31: 0.127 | GH31: - | GI31: -
A32: 14 | B32: =Historical_Data!B16 -> 1978-01-14 | C32: =Historical_Data!C16 -> 0.508 | D32: =Historical_Data!C381 -> 0 | E32: =Historical_Data!C746 -> 0.0254 | F32: =Historical_Data!C1112 -> 0 | G32: =Historical_Data!C1477 -> 0.2794 | H32: =Historical_Data!C1842 -> 0 | I32: =Historical_Data!C2207 -> 0 | J32: =Historical_Data!C2573 -> 0 | K32: =Historical_Data!C2938 -> 0 | L32: =Historical_Data!C3303 -> 0 | M32: =Historical_Data!C3668 -> 0 | N32: =Historical_Data!C4034 -> 0.14732 | O32: =Historical_Data!C4399 -> 0 | P32: =Historical_Data!C4764 -> 0 | Q32: =Historical_Data!C5129 -> 0.82296 | R32: =Historical_Data!C5495 -> 0 | S32: =Historical_Data!C5860 -> 0.127 | T32: =Historical_Data!C6225 -> 0.0762 | U32: =Historical_Data!C6590 -> 0 | V32: =Historical_Data!C6956 -> 0 | W32: =Historical_Data!C7321 -> 0 | X32: =Historical_Data!C7686 -> 1.0668 | Y32: =Historical_Data!C8051 -> 0 | Z32: =Historical_Data!C8417 -> 0.03302 | AA32: =Historical_Data!C8782 -> 0 | AC32: 1 | AD32: 0 | AE32: 1 | AF32: 0 | AG32: 1 | AH32: 0 | AI32: 0 | AJ32: 0 | AK32: 0 | AL32: 0 | AM32: 0 | AN32: 1 | AO32: 0 | AP32: 0 | AQ32: 1 | AR32: 0 | AS32: 1 | AT32: 1 | AU32: 0 | AV32: 0 | AW32: 0 | AX32: 1 | AY32: 0 | AZ32: 1 | BA32: 0 | BB32: 1 | BC32: 0 | BD32: 0 | BE32: 0 | BF32: 1 | BG32: 0 | BH32: 0 | BI32: 0 | BJ32: 0 | BK32: 0 | BL32: 0 | BM32: 0 | BN32: 0 | BO32: 0 | BP32: 1 | BQ32: 0 | BR32: 0 | BS32: 0 | BT32: 0 | BU32: 0 | BV32: 0 | BW32: 0 | BX32: 0 | BY32: 0 | BZ32: 0 | CA32: 0 | CB32: 1 | CC32: 0 | CD32: 0 | CE32: 0 | CF32: 0 | CG32: 0 | CH32: 0 | CI32: 0 | CJ32: 0 | CK32: 1 | CL32: 0 | CM32: 0 | CN32: 0 | CO32: 0 | CP32: 1 | CQ32: 0 | CR32: 0 | CS32: 0 | CT32: 0 | CU32: 1 | CV32: 0 | CW32: 1 | CX32: 0 | CY32: 0 | CZ32: 0 | DA32: 0 | DB32: 0 | DC32: 1 | DD32: 0 | DE32: 1 | DF32: 1 | DG32: 1 | DH32: 1 | DI32: 1 | DJ32: 0 | DK32: 0 | DL32: 1 | DM32: 1 | DN32: 0 | DO32: 0 | DP32: 0 | DQ32: 0 | DR32: 1 | DS32: 1 | DT32: 0 | DU32: 0 | DV32: 0 | DW32: 0 | DX32: 1 | DY32: 0 | DZ32: 0 | EA32: 0 | EB32: 1 | EC32: 0 | ED32: 0 | EE32: 0 | EF32: 0 | EG32: 0 | EH32: 0 | EI32: 0 | EJ32: 0 | EK32: 1 | EL32: 0 | EM32: 0 | EN32: 0 | EO32: 0 | EP32: 1 | EQ32: 1 | ER32: 0 | ES32: 0 | ET32: 0 | EU32: 1 | EV32: 0 | EW32: 1 | EX32: 0 | EZ32: 236 | FA32: 106 | FB32: 138 | FC32: 372 | FD32: 138 | FF32: 0.3146666667 | FG32: 0.4344262295 | FH32: 0.5655737705 | FI32: 0.7294117647 | FJ32: 0.2705882353 | FK32: 0.508 | FL32: - | FM32: 0.0254 | FN32: - | FO32: 0.2794 | FP32: - | FQ32: - | FR32: - | FS32: - | FT32: - | FU32: - | FV32: 0.14732 | FW32: - | FX32: - | FY32: 0.82296 | FZ32: - | GA32: 0.127 | GB32: 0.0762 | GC32: - | GD32: - | GE32: - | GF32: 1.0668 | GG32: - | GH32: 0.03302 | GI32: -
A33: 15 | B33: =Historical_Data!B17 -> 1978-01-15 | C33: =Historical_Data!C17 -> 0 | D33: =Historical_Data!C382 -> 0 | E33: =Historical_Data!C747 -> 0 | F33: =Historical_Data!C1113 -> 0.2286 | G33: =Historical_Data!C1478 -> 0 | H33: =Historical_Data!C1843 -> 0.889 | I33: =Historical_Data!C2208 -> 0 | J33: =Historical_Data!C2574 -> 0 | K33: =Historical_Data!C2939 -> 0 | L33: =Historical_Data!C3304 -> 0.1524 | M33: =Historical_Data!C3669 -> 0 | N33: =Historical_Data!C4035 -> 1.80848 | O33: =Historical_Data!C4400 -> 0.5588 | P33: =Historical_Data!C4765 -> 0 | Q33: =Historical_Data!C5130 -> 0 | R33: =Historical_Data!C5496 -> 0 | S33: =Historical_Data!C5861 -> 0 | T33: =Historical_Data!C6226 -> 0.9652 | U33: =Historical_Data!C6591 -> 0 | V33: =Historical_Data!C6957 -> 0 | W33: =Historical_Data!C7322 -> 2.3114 | X33: =Historical_Data!C7687 -> 1.9558 | Y33: =Historical_Data!C8052 -> 0 | Z33: =Historical_Data!C8418 -> 0.39878 | AA33: =Historical_Data!C8783 -> 0 | AC33: 0 | AD33: 0 | AE33: 0 | AF33: 1 | AG33: 0 | AH33: 1 | AI33: 0 | AJ33: 0 | AK33: 0 | AL33: 1 | AM33: 0 | AN33: 1 | AO33: 1 | AP33: 0 | AQ33: 0 | AR33: 0 | AS33: 0 | AT33: 1 | AU33: 0 | AV33: 0 | AW33: 1 | AX33: 1 | AY33: 0 | AZ33: 1 | BA33: 0 | BB33: 0 | BC33: 0 | BD33: 0 | BE33: 0 | BF33: 0 | BG33: 0 | BH33: 0 | BI33: 0 | BJ33: 0 | BK33: 0 | BL33: 0 | BM33: 1 | BN33: 0 | BO33: 0 | BP33: 0 | BQ33: 0 | BR33: 0 | BS33: 1 | BT33: 0 | BU33: 0 | BV33: 0 | BW33: 1 | BX33: 0 | BY33: 1 | BZ33: 0 | CA33: 1 | CB33: 0 | CC33: 1 | CD33: 0 | CE33: 1 | CF33: 0 | CG33: 0 | CH33: 0 | CI33: 0 | CJ33: 0 | CK33: 0 | CL33: 0 | CM33: 0 | CN33: 0 | CO33: 1 | CP33: 0 | CQ33: 1 | CR33: 0 | CS33: 0 | CT33: 0 | CU33: 0 | CV33: 0 | CW33: 0 | CX33: 0 | CY33: 0 | CZ33: 0 | DA33: 1 | DB33: 0 | DC33: 0 | DD33: 0 | DE33: 0 | DF33: 1 | DG33: 1 | DH33: 1 | DI33: 0 | DJ33: 1 | DK33: 0 | DL33: 0 | DM33: 1 | DN33: 0 | DO33: 1 | DP33: 0 | DQ33: 0 | DR33: 1 | DS33: 1 | DT33: 0 | DU33: 0 | DV33: 1 | DW33: 0 | DX33: 1 | DY33: 0 | DZ33: 0 | EA33: 0 | EB33: 0 | EC33: 1 | ED33: 0 | EE33: 1 | EF33: 0 | EG33: 0 | EH33: 0 | EI33: 1 | EJ33: 0 | EK33: 0 | EL33: 1 | EM33: 0 | EN33: 0 | EO33: 0 | EP33: 0 | EQ33: 0 | ER33: 0 | ES33: 0 | ET33: 1 | EU33: 0 | EV33: 0 | EW33: 0 | EX33: 0 | EZ33: 234 | FA33: 102 | FB33: 138 | FC33: 374 | FD33: 137 | FF33: 0.312 | FG33: 0.425 | FH33: 0.575 | FI33: 0.7318982387 | FJ33: 0.2681017613 | FK33: - | FL33: - | FM33: - | FN33: 0.2286 | FO33: - | FP33: 0.889 | FQ33: - | FR33: - | FS33: - | FT33: 0.1524 | FU33: - | FV33: 1.80848 | FW33: 0.5588 | FX33: - | FY33: - | FZ33: - | GA33: - | GB33: 0.9652 | GC33: - | GD33: - | GE33: 2.3114 | GF33: 1.9558 | GG33: - | GH33: 0.39878 | GI33: -
A34: 16 | B34: =Historical_Data!B18 -> 1978-01-16 | C34: =Historical_Data!C18 -> 0 | D34: =Historical_Data!C383 -> 0 | E34: =Historical_Data!C748 -> 0 | F34: =Historical_Data!C1114 -> 0.09652 | G34: =Historical_Data!C1479 -> 0.127 | H34: =Historical_Data!C1844 -> 0 | I34: =Historical_Data!C2209 -> 0 | J34: =Historical_Data!C2575 -> 0 | K34: =Historical_Data!C2940 -> 0 | L34: =Historical_Data!C3305 -> 0 | M34: =Historical_Data!C3670 -> 0 | N34: =Historical_Data!C4036 -> 0 | O34: =Historical_Data!C4401 -> 0 | P34: =Historical_Data!C4766 -> 2.0066 | Q34: =Historical_Data!C5131 -> 0 | R34: =Historical_Data!C5497 -> 0 | S34: =Historical_Data!C5862 -> 0 | T34: =Historical_Data!C6227 -> 0 | U34: =Historical_Data!C6592 -> 0 | V34: =Historical_Data!C6958 -> 1.8034 | W34: =Historical_Data!C7323 -> 0 | X34: =Historical_Data!C7688 -> 0 | Y34: =Historical_Data!C8053 -> 0 | Z34: =Historical_Data!C8419 -> 0 | AA34: =Historical_Data!C8784 -> 0 | AC34: 0 | AD34: 0 | AE34: 0 | AF34: 1 | AG34: 1 | AH34: 0 | AI34: 0 | AJ34: 0 | AK34: 0 | AL34: 0 | AM34: 0 | AN34: 0 | AO34: 0 | AP34: 1 | AQ34: 0 | AR34: 0 | AS34: 0 | AT34: 0 | AU34: 0 | AV34: 1 | AW34: 0 | AX34: 0 | AY34: 0 | AZ34: 0 | BA34: 0 | BB34: 0 | BC34: 0 | BD34: 0 | BE34: 1 | BF34: 0 | BG34: 0 | BH34: 0 | BI34: 0 | BJ34: 0 | BK34: 0 | BL34: 0 | BM34: 0 | BN34: 0 | BO34: 0 | BP34: 0 | BQ34: 0 | BR34: 0 | BS34: 0 | BT34: 0 | BU34: 0 | BV34: 0 | BW34: 0 | BX34: 0 | BY34: 0 | BZ34: 0 | CA34: 0 | CB34: 0 | CC34: 0 | CD34: 0 | CE34: 0 | CF34: 1 | CG34: 0 | CH34: 0 | CI34: 0 | CJ34: 1 | CK34: 0 | CL34: 1 | CM34: 1 | CN34: 0 | CO34: 0 | CP34: 0 | CQ34: 0 | CR34: 1 | CS34: 0 | CT34: 0 | CU34: 1 | CV34: 1 | CW34: 0 | CX34: 1 | CY34: 0 | CZ34: 1 | DA34: 1 | DB34: 1 | DC34: 0 | DD34: 0 | DE34: 0 | DF34: 1 | DG34: 1 | DH34: 1 | DI34: 0 | DJ34: 1 | DK34: 0 | DL34: 0 | DM34: 0 | DN34: 1 | DO34: 1 | DP34: 1 | DQ34: 0 | DR34: 1 | DS34: 0 | DT34: 0 | DU34: 0 | DV34: 1 | DW34: 0 | DX34: 1 | DY34: 0 | DZ34: 0 | EA34: 0 | EB34: 0 | EC34: 0 | ED34: 1 | EE34: 0 | EF34: 0 | EG34: 0 | EH34: 0 | EI34: 0 | EJ34: 0 | EK34: 0 | EL34: 0 | EM34: 1 | EN34: 0 | EO34: 0 | EP34: 0 | EQ34: 0 | ER34: 0 | ES34: 1 | ET34: 0 | EU34: 0 | EV34: 0 | EW34: 0 | EX34: 0 | EZ34: 231 | FA34: 102 | FB34: 136 | FC34: 376 | FD34: 136 | FF34: 0.308 | FG34: 0.4285714286 | FH34: 0.5714285714 | FI34: 0.734375 | FJ34: 0.265625 | FK34: - | FL34: - | FM34: - | FN34: 0.09652 | FO34: 0.127 | FP34: - | FQ34: - | FR34: - | FS34: - | FT34: - | FU34: - | FV34: - | FW34: - | FX34: 2.0066 | FY34: - | FZ34: - | GA34: - | GB34: - | GC34: - | GD34: 1.8034 | GE34: - | GF34: - | GG34: - | GH34: - | GI34: -
A35: 17 | B35: =Historical_Data!B19 -> 1978-01-17 | C35: =Historical_Data!C19 -> 3.3274 | D35: =Historical_Data!C384 -> 0.1016 | E35: =Historical_Data!C749 -> 0 | F35: =Historical_Data!C1115 -> 0.03048 | G35: =Historical_Data!C1480 -> 0 | H35: =Historical_Data!C1845 -> 0 | I35: =Historical_Data!C2210 -> 0 | J35: =Historical_Data!C2576 -> 0.7874 | K35: =Historical_Data!C2941 -> 0 | L35: =Historical_Data!C3306 -> 0 | M35: =Historical_Data!C3671 -> 0.04572 | N35: =Historical_Data!C4037 -> 0 | O35: =Historical_Data!C4402 -> 0 | P35: =Historical_Data!C4767 -> 0 | Q35: =Historical_Data!C5132 -> 0 | R35: =Historical_Data!C5498 -> 0 | S35: =Historical_Data!C5863 -> 0.0762 | T35: =Historical_Data!C6228 -> 0 | U35: =Historical_Data!C6593 -> 0 | V35: =Historical_Data!C6959 -> 0 | W35: =Historical_Data!C7324 -> 0 | X35: =Historical_Data!C7689 -> 0 | Y35: =Historical_Data!C8054 -> 0 | Z35: =Historical_Data!C8420 -> 0.1016 | AA35: =Historical_Data!C8785 -> 0 | AC35: 1 | AD35: 1 | AE35: 0 | AF35: 1 | AG35: 0 | AH35: 0 | AI35: 0 | AJ35: 1 | AK35: 0 | AL35: 0 | AM35: 1 | AN35: 0 | AO35: 0 | AP35: 0 | AQ35: 0 | AR35: 0 | AS35: 1 | AT35: 0 | AU35: 0 | AV35: 0 | AW35: 0 | AX35: 0 | AY35: 0 | AZ35: 1 | BA35: 0 | BB35: 0 | BC35: 0 | BD35: 0 | BE35: 1 | BF35: 0 | BG35: 0 | BH35: 0 | BI35: 0 | BJ35: 0 | BK35: 0 | BL35: 0 | BM35: 0 | BN35: 0 | BO35: 0 | BP35: 0 | BQ35: 0 | BR35: 0 | BS35: 0 | BT35: 0 | BU35: 0 | BV35: 0 | BW35: 0 | BX35: 0 | BY35: 0 | BZ35: 0 | CA35: 0 | CB35: 0 | CC35: 0 | CD35: 0 | CE35: 1 | CF35: 0 | CG35: 0 | CH35: 0 | CI35: 0 | CJ35: 0 | CK35: 0 | CL35: 0 | CM35: 0 | CN35: 1 | CO35: 0 | CP35: 0 | CQ35: 0 | CR35: 0 | CS35: 0 | CT35: 1 | CU35: 0 | CV35: 0 | CW35: 0 | CX35: 0 | CY35: 0 | CZ35: 0 | DA35: 0 | DB35: 1 | DC35: 0 | DD35: 0 | DE35: 1 | DF35: 1 | DG35: 0 | DH35: 1 | DI35: 1 | DJ35: 0 | DK35: 1 | DL35: 1 | DM35: 0 | DN35: 1 | DO35: 1 | DP35: 0 | DQ35: 1 | DR35: 1 | DS35: 0 | DT35: 1 | DU35: 1 | DV35: 1 | DW35: 0 | DX35: 1 | DY35: 1 | DZ35: 1 | EA35: 1 | EB35: 0 | EC35: 0 | ED35: 0 | EE35: 0 | EF35: 0 | EG35: 1 | EH35: 0 | EI35: 0 | EJ35: 1 | EK35: 0 | EL35: 0 | EM35: 0 | EN35: 0 | EO35: 0 | EP35: 1 | EQ35: 0 | ER35: 0 | ES35: 0 | ET35: 0 | EU35: 0 | EV35: 0 | EW35: 1 | EX35: 0 | EZ35: 226 | FA35: 99 | FB35: 139 | FC35: 379 | FD35: 133 | FF35: 0.3013333333 | FG35: 0.4159663866 | FH35: 0.5840336134 | FI35: 0.740234375 | FJ35: 0.259765625 | FK35: 3.3274 | FL35: 0.1016 | FM35: - | FN35: 0.03048 | FO35: - | FP35: - | FQ35: - | FR35: 0.7874 | FS35: - | FT35: - | FU35: 0.04572 | FV35: - | FW35: - | FX35: - | FY35: - | FZ35: - | GA35: 0.0762 | GB35: - | GC35: - | GD35: - | GE35: - | GF35: - | GG35: - | GH35: 0.1016 | GI35: -
A36: 18 | B36: =Historical_Data!B20 -> 1978-01-18 | C36: =Historical_Data!C20 -> 0.254 | D36: =Historical_Data!C385 -> 0 | E36: =Historical_Data!C750 -> 1.8034 | F36: =Historical_Data!C1116 -> 0 | G36: =Historical_Data!C1481 -> 0 | H36: =Historical_Data!C1846 -> 0 | I36: =Historical_Data!C2211 -> 0.26924 | J36: =Historical_Data!C2577 -> 0 | K36: =Historical_Data!C2942 -> 0 | L36: =Historical_Data!C3307 -> 1.8796 | M36: =Historical_Data!C3672 -> 0.86868 | N36: =Historical_Data!C4038 -> 0 | O36: =Historical_Data!C4403 -> 0 | P36: =Historical_Data!C4768 -> 0 | Q36: =Historical_Data!C5133 -> 0 | R36: =Historical_Data!C5499 -> 0 | S36: =Historical_Data!C5864 -> 0 | T36: =Historical_Data!C6229 -> 0 | U36: =Historical_Data!C6594 -> 0.25654 | V36: =Historical_Data!C6960 -> 0 | W36: =Historical_Data!C7325 -> 0 | X36: =Historical_Data!C7690 -> 3.1242 | Y36: =Historical_Data!C8055 -> 0 | Z36: =Historical_Data!C8421 -> 0 | AA36: =Historical_Data!C8786 -> 0 | AC36: 1 | AD36: 0 | AE36: 1 | AF36: 0 | AG36: 0 | AH36: 0 | AI36: 1 | AJ36: 0 | AK36: 0 | AL36: 1 | AM36: 1 | AN36: 0 | AO36: 0 | AP36: 0 | AQ36: 0 | AR36: 0 | AS36: 0 | AT36: 0 | AU36: 1 | AV36: 0 | AW36: 0 | AX36: 1 | AY36: 0 | AZ36: 0 | BA36: 0 | BB36: 1 | BC36: 0 | BD36: 0 | BE36: 0 | BF36: 0 | BG36: 0 | BH36: 0 | BI36: 0 | BJ36: 0 | BK36: 0 | BL36: 1 | BM36: 0 | BN36: 0 | BO36: 0 | BP36: 0 | BQ36: 0 | BR36: 0 | BS36: 0 | BT36: 0 | BU36: 0 | BV36: 0 | BW36: 0 | BX36: 0 | BY36: 0 | BZ36: 0 | CA36: 0 | CB36: 1 | CC36: 0 | CD36: 1 | CE36: 0 | CF36: 0 | CG36: 0 | CH36: 1 | CI36: 0 | CJ36: 0 | CK36: 0 | CL36: 0 | CM36: 0 | CN36: 0 | CO36: 0 | CP36: 0 | CQ36: 1 | CR36: 0 | CS36: 0 | CT36: 0 | CU36: 0 | CV36: 0 | CW36: 0 | CX36: 1 | CY36: 0 | CZ36: 0 | DA36: 0 | DB36: 0 | DC36: 0 | DD36: 1 | DE36: 1 | DF36: 0 | DG36: 0 | DH36: 1 | DI36: 0 | DJ36: 0 | DK36: 1 | DL36: 1 | DM36: 1 | DN36: 1 | DO36: 1 | DP36: 0 | DQ36: 1 | DR36: 0 | DS36: 1 | DT36: 1 | DU36: 0 | DV36: 1 | DW36: 0 | DX36: 1 | DY36: 0 | DZ36: 0 | EA36: 0 | EB36: 1 | EC36: 0 | ED36: 0 | EE36: 0 | EF36: 1 | EG36: 0 | EH36: 0 | EI36: 1 | EJ36: 0 | EK36: 0 | EL36: 0 | EM36: 0 | EN36: 0 | EO36: 0 | EP36: 0 | EQ36: 0 | ER36: 1 | ES36: 0 | ET36: 0 | EU36: 1 | EV36: 0 | EW36: 0 | EX36: 0 | EZ36: 224 | FA36: 94 | FB36: 138 | FC36: 384 | FD36: 136 | FF36: 0.2986666667 | FG36: 0.4051724138 | FH36: 0.5948275862 | FI36: 0.7384615385 | FJ36: 0.2615384615 | FK36: 0.254 | FL36: - | FM36: 1.8034 | FN36: - | FO36: - | FP36: - | FQ36: 0.26924 | FR36: - | FS36: - | FT36: 1.8796 | FU36: 0.86868 | FV36: - | FW36: - | FX36: - | FY36: - | FZ36: - | GA36: - | GB36: - | GC36: 0.25654 | GD36: - | GE36: - | GF36: 3.1242 | GG36: - | GH36: - | GI36: -
A37: 19 | B37: =Historical_Data!B21 -> 1978-01-19 | C37: =Historical_Data!C21 -> 0.14986 | D37: =Historical_Data!C386 -> 0 | E37: =Historical_Data!C751 -> 0.1016 | F37: =Historical_Data!C1117 -> 0 | G37: =Historical_Data!C1482 -> 0.0254 | H37: =Historical_Data!C1847 -> 0 | I37: =Historical_Data!C2212 -> 0.01016 | J37: =Historical_Data!C2578 -> 0 | K37: =Historical_Data!C2943 -> 3.302 | L37: =Historical_Data!C3308 -> 2.50444 | M37: =Historical_Data!C3673 -> 0 | N37: =Historical_Data!C4039 -> 0 | O37: =Historical_Data!C4404 -> 0 | P37: =Historical_Data!C4769 -> 0 | Q37: =Historical_Data!C5134 -> 0 | R37: =Historical_Data!C5500 -> 0 | S37: =Historical_Data!C5865 -> 0 | T37: =Historical_Data!C6230 -> 0.2667 | U37: =Historical_Data!C6595 -> 3.3528 | V37: =Historical_Data!C6961 -> 0 | W37: =Historical_Data!C7326 -> 0 | X37: =Historical_Data!C7691 -> 0 | Y37: =Historical_Data!C8056 -> 0 | Z37: =Historical_Data!C8422 -> 2.8194 | AA37: =Historical_Data!C8787 -> 0.5588 | AC37: 1 | AD37: 0 | AE37: 1 | AF37: 0 | AG37: 1 | AH37: 0 | AI37: 1 | AJ37: 0 | AK37: 1 | AL37: 1 | AM37: 0 | AN37: 0 | AO37: 0 | AP37: 0 | AQ37: 0 | AR37: 0 | AS37: 0 | AT37: 1 | AU37: 1 | AV37: 0 | AW37: 0 | AX37: 0 | AY37: 0 | AZ37: 1 | BA37: 1 | BB37: 1 | BC37: 0 | BD37: 1 | BE37: 0 | BF37: 0 | BG37: 0 | BH37: 1 | BI37: 0 | BJ37: 0 | BK37: 1 | BL37: 0 | BM37: 0 | BN37: 0 | BO37: 0 | BP37: 0 | BQ37: 0 | BR37: 0 | BS37: 0 | BT37: 1 | BU37: 0 | BV37: 0 | BW37: 0 | BX37: 0 | BY37: 0 | BZ37: 0 | CA37: 0 | CB37: 0 | CC37: 0 | CD37: 0 | CE37: 0 | CF37: 0 | CG37: 0 | CH37: 0 | CI37: 0 | CJ37: 0 | CK37: 1 | CL37: 0 | CM37: 0 | CN37: 0 | CO37: 0 | CP37: 0 | CQ37: 0 | CR37: 0 | CS37: 0 | CT37: 0 | CU37: 0 | CV37: 1 | CW37: 0 | CX37: 0 | CY37: 0 | CZ37: 0 | DA37: 1 | DB37: 0 | DC37: 1 | DD37: 0 | DE37: 1 | DF37: 0 | DG37: 1 | DH37: 0 | DI37: 0 | DJ37: 0 | DK37: 1 | DL37: 1 | DM37: 1 | DN37: 1 | DO37: 1 | DP37: 1 | DQ37: 0 | DR37: 0 | DS37: 1 | DT37: 1 | DU37: 0 | DV37: 1 | DW37: 0 | DX37: 0 | DY37: 0 | DZ37: 0 | EA37: 0 | EB37: 0 | EC37: 0 | ED37: 1 | EE37: 0 | EF37: 0 | EG37: 0 | EH37: 1 | EI37: 0 | EJ37: 0 | EK37: 0 | EL37: 0 | EM37: 0 | EN37: 0 | EO37: 0 | EP37: 0 | EQ37: 1 | ER37: 0 | ES37: 0 | ET37: 0 | EU37: 0 | EV37: 0 | EW37: 1 | EX37: 1 | EZ37: 219 | FA37: 93 | FB37: 135 | FC37: 388 | FD37: 132 | FF37: 0.292 | FG37: 0.4078947368 | FH37: 0.5921052632 | FI37: 0.7461538462 | FJ37: 0.2538461538 | FK37: 0.14986 | FL37: - | FM37: 0.1016 | FN37: - | FO37: 0.0254 | FP37: - | FQ37: 0.01016 | FR37: - | FS37: 3.302 | FT37: 2.50444 | FU37: - | FV37: - | FW37: - | FX37: - | FY37: - | FZ37: - | GA37: - | GB37: 0.2667 | GC37: 3.3528 | GD37: - | GE37: - | GF37: - | GG37: - | GH37: 2.8194 | GI37: 0.5588
A38: 20 | B38: =Historical_Data!B22 -> 1978-01-20 | C38: =Historical_Data!C22 -> 1.09474 | D38: =Historical_Data!C387 -> 2.794 | E38: =Historical_Data!C752 -> 0 | F38: =Historical_Data!C1118 -> 0 | G38: =Historical_Data!C1483 -> 0.0762 | H38: =Historical_Data!C1848 -> 0 | I38: =Historical_Data!C2213 -> 0 | J38: =Historical_Data!C2579 -> 0.127 | K38: =Historical_Data!C2944 -> 0.04826 | L38: =Historical_Data!C3309 -> 0.08636 | M38: =Historical_Data!C3674 -> 2.1082 | N38: =Historical_Data!C4040 -> 0 | O38: =Historical_Data!C4405 -> 0.762 | P38: =Historical_Data!C4770 -> 0 | Q38: =Historical_Data!C5135 -> 0 | R38: =Historical_Data!C5501 -> 0 | S38: =Historical_Data!C5866 -> 0 | T38: =Historical_Data!C6231 -> 5.3594 | U38: =Historical_Data!C6596 -> 0 | V38: =Historical_Data!C6962 -> 0 | W38: =Historical_Data!C7327 -> 0 | X38: =Historical_Data!C7692 -> 0.1016 | Y38: =Historical_Data!C8057 -> 0.508 | Z38: =Historical_Data!C8423 -> 0.80264 | AA38: =Historical_Data!C8788 -> 0 | AC38: 1 | AD38: 1 | AE38: 0 | AF38: 0 | AG38: 1 | AH38: 0 | AI38: 0 | AJ38: 1 | AK38: 1 | AL38: 1 | AM38: 1 | AN38: 0 | AO38: 1 | AP38: 0 | AQ38: 0 | AR38: 0 | AS38: 0 | AT38: 1 | AU38: 0 | AV38: 0 | AW38: 0 | AX38: 1 | AY38: 1 | AZ38: 1 | BA38: 0 | BB38: 1 | BC38: 0 | BD38: 0 | BE38: 0 | BF38: 1 | BG38: 0 | BH38: 0 | BI38: 0 | BJ38: 1 | BK38: 1 | BL38: 0 | BM38: 0 | BN38: 0 | BO38: 0 | BP38: 0 | BQ38: 0 | BR38: 0 | BS38: 1 | BT38: 0 | BU38: 0 | BV38: 0 | BW38: 0 | BX38: 0 | BY38: 1 | BZ38: 0 | CA38: 0 | CB38: 0 | CC38: 1 | CD38: 0 | CE38: 0 | CF38: 0 | CG38: 1 | CH38: 0 | CI38: 0 | CJ38: 0 | CK38: 0 | CL38: 0 | CM38: 0 | CN38: 0 | CO38: 0 | CP38: 0 | CQ38: 0 | CR38: 0 | CS38: 1 | CT38: 0 | CU38: 0 | CV38: 0 | CW38: 0 | CX38: 0 | CY38: 1 | CZ38: 0 | DA38: 0 | DB38: 0 | DC38: 1 | DD38: 0 | DE38: 1 | DF38: 0 | DG38: 0 | DH38: 0 | DI38: 0 | DJ38: 0 | DK38: 1 | DL38: 0 | DM38: 1 | DN38: 1 | DO38: 1 | DP38: 1 | DQ38: 0 | DR38: 0 | DS38: 1 | DT38: 1 | DU38: 0 | DV38: 0 | DW38: 0 | DX38: 0 | DY38: 0 | DZ38: 0 | EA38: 1 | EB38: 0 | EC38: 0 | ED38: 0 | EE38: 0 | EF38: 0 | EG38: 1 | EH38: 0 | EI38: 0 | EJ38: 1 | EK38: 0 | EL38: 1 | EM38: 0 | EN38: 0 | EO38: 0 | EP38: 0 | EQ38: 0 | ER38: 0 | ES38: 0 | ET38: 0 | EU38: 1 | EV38: 1 | EW38: 0 | EX38: 0 | EZ38: 218 | FA38: 91 | FB38: 136 | FC38: 389 | FD38: 134 | FF38: 0.2906666667 | FG38: 0.4008810573 | FH38: 0.5991189427 | FI38: 0.7437858509 | FJ38: 0.2562141491 | FK38: 1.09474 | FL38: 2.794 | FM38: - | FN38: - | FO38: 0.0762 | FP38: - | FQ38: - | FR38: 0.127 | FS38: 0.04826 | FT38: 0.08636 | FU38: 2.1082 | FV38: - | FW38: 0.762 | FX38: - | FY38: - | FZ38: - | GA38: - | GB38: 5.3594 | GC38: - | GD38: - | GE38: - | GF38: 0.1016 | GG38: 0.508 | GH38: 0.80264 | GI38: -
A39: 21 | B39: =Historical_Data!B23 -> 1978-01-21 | C39: =Historical_Data!C23 -> 0 | D39: =Historical_Data!C388 -> 3.5052 | E39: =Historical_Data!C753 -> 0 | F39: =Historical_Data!C1119 -> 0 | G39: =Historical_Data!C1484 -> 0.1524 | H39: =Historical_Data!C1849 -> 0 | I39: =Historical_Data!C2214 -> 0 | J39: =Historical_Data!C2580 -> 0 | K39: =Historical_Data!C2945 -> 0 | L39: =Historical_Data!C3310 -> 0 | M39: =Historical_Data!C3675 -> 0 | N39: =Historical_Data!C4041 -> 0 | O39: =Historical_Data!C4406 -> 0.127 | P39: =Historical_Data!C4771 -> 0.5334 | Q39: =Historical_Data!C5136 -> 0 | R39: =Historical_Data!C5502 -> 0.1524 | S39: =Historical_Data!C5867 -> 0 | T39: =Historical_Data!C6232 -> 0 | U39: =Historical_Data!C6597 -> 0 | V39: =Historical_Data!C6963 -> 0 | W39: =Historical_Data!C7328 -> 0 | X39: =Historical_Data!C7693 -> 0.1524 | Y39: =Historical_Data!C8058 -> 0 | Z39: =Historical_Data!C8424 -> 0.03556 | AA39: =Historical_Data!C8789 -> 0 | AC39: 0 | AD39: 1 | AE39: 0 | AF39: 0 | AG39: 1 | AH39: 0 | AI39: 0 | AJ39: 0 | AK39: 0 | AL39: 0 | AM39: 0 | AN39: 0 | AO39: 1 | AP39: 1 | AQ39: 0 | AR39: 1 | AS39: 0 | AT39: 0 | AU39: 0 | AV39: 0 | AW39: 0 | AX39: 1 | AY39: 0 | AZ39: 1 | BA39: 0 | BB39: 0 | BC39: 1 | BD39: 0 | BE39: 0 | BF39: 1 | BG39: 0 | BH39: 0 | BI39: 0 | BJ39: 0 | BK39: 0 | BL39: 0 | BM39: 0 | BN39: 1 | BO39: 0 | BP39: 0 | BQ39: 0 | BR39: 0 | BS39: 0 | BT39: 0 | BU39: 0 | BV39: 0 | BW39: 1 | BX39: 0 | BY39: 1 | BZ39: 0 | CA39: 1 | CB39: 0 | CC39: 0 | CD39: 0 | CE39: 0 | CF39: 0 | CG39: 0 | CH39: 1 | CI39: 1 | CJ39: 1 | CK39: 1 | CL39: 0 | CM39: 0 | CN39: 0 | CO39: 0 | CP39: 0 | CQ39: 0 | CR39: 1 | CS39: 0 | CT39: 0 | CU39: 0 | CV39: 0 | CW39: 1 | CX39: 0 | CY39: 0 | CZ39: 0 | DA39: 0 | DB39: 1 | DC39: 1 | DD39: 0 | DE39: 1 | DF39: 1 | DG39: 0 | DH39: 0 | DI39: 0 | DJ39: 0 | DK39: 1 | DL39: 0 | DM39: 0 | DN39: 1 | DO39: 0 | DP39: 1 | DQ39: 0 | DR39: 1 | DS39: 1 | DT39: 1 | DU39: 0 | DV39: 0 | DW39: 0 | DX39: 1 | DY39: 0 | DZ39: 0 | EA39: 0 | EB39: 0 | EC39: 0 | ED39: 0 | EE39: 0 | EF39: 0 | EG39: 0 | EH39: 0 | EI39: 0 | EJ39: 0 | EK39: 0 | EL39: 0 | EM39: 1 | EN39: 0 | EO39: 1 | EP39: 0 | EQ39: 0 | ER39: 0 | ES39: 0 | ET39: 0 | EU39: 0 | EV39: 0 | EW39: 0 | EX39: 0 | EZ39: 216 | FA39: 92 | FB39: 133 | FC39: 393 | FD39: 131 | FF39: 0.288 | FG39: 0.4088888889 | FH39: 0.5911111111 | FI39: 0.75 | FJ39: 0.25 | FK39: - | FL39: 3.5052 | FM39: - | FN39: - | FO39: 0.1524 | FP39: - | FQ39: - | FR39: - | FS39: - | FT39: - | FU39: - | FV39: - | FW39: 0.127 | FX39: 0.5334 | FY39: - | FZ39: 0.1524 | GA39: - | GB39: - | GC39: - | GD39: - | GE39: - | GF39: 0.1524 | GG39: - | GH39: 0.03556 | GI39: -
A40: 22 | B40: =Historical_Data!B24 -> 1978-01-22 | C40: =Historical_Data!C24 -> 0 | D40: =Historical_Data!C389 -> 0 | E40: =Historical_Data!C754 -> 0.68834 | F40: =Historical_Data!C1120 -> 0 | G40: =Historical_Data!C1485 -> 0 | H40: =Historical_Data!C1850 -> 0.3429 | I40: =Historical_Data!C2215 -> 0 | J40: =Historical_Data!C2581 -> 0 | K40: =Historical_Data!C2946 -> 0 | L40: =Historical_Data!C3311 -> 2.4384 | M40: =Historical_Data!C3676 -> 0 | N40: =Historical_Data!C4042 -> 0 | O40: =Historical_Data!C4407 -> 0 | P40: =Historical_Data!C4772 -> 0 | Q40: =Historical_Data!C5137 -> 0 | R40: =Historical_Data!C5503 -> 0.8382 | S40: =Historical_Data!C5868 -> 0 | T40: =Historical_Data!C6233 -> 0 | U40: =Historical_Data!C6598 -> 0 | V40: =Historical_Data!C6964 -> 0.6604 | W40: =Historical_Data!C7329 -> 0 | X40: =Historical_Data!C7694 -> 0.0254 | Y40: =Historical_Data!C8059 -> 0 | Z40: =Historical_Data!C8425 -> 0 | AA40: =Historical_Data!C8790 -> 0 | AC40: 0 | AD40: 0 | AE40: 1 | AF40: 0 | AG40: 0 | AH40: 1 | AI40: 0 | AJ40: 0 | AK40: 0 | AL40: 1 | AM40: 0 | AN40: 0 | AO40: 0 | AP40: 0 | AQ40: 0 | AR40: 1 | AS40: 0 | AT40: 0 | AU40: 0 | AV40: 1 | AW40: 0 | AX40: 1 | AY40: 0 | AZ40: 0 | BA40: 0 | BB40: 0 | BC40: 0 | BD40: 0 | BE40: 0 | BF40: 0 | BG40: 0 | BH40: 0 | BI40: 0 | BJ40: 0 | BK40: 0 | BL40: 0 | BM40: 0 | BN40: 0 | BO40: 0 | BP40: 0 | BQ40: 1 | BR40: 0 | BS40: 0 | BT40: 0 | BU40: 0 | BV40: 0 | BW40: 1 | BX40: 0 | BY40: 0 | BZ40: 0 | CA40: 0 | CB40: 1 | CC40: 0 | CD40: 0 | CE40: 1 | CF40: 0 | CG40: 0 | CH40: 0 | CI40: 0 | CJ40: 0 | CK40: 0 | CL40: 0 | CM40: 1 | CN40: 1 | CO40: 0 | CP40: 0 | CQ40: 0 | CR40: 0 | CS40: 0 | CT40: 0 | CU40: 0 | CV40: 0 | CW40: 0 | CX40: 1 | CY40: 0 | CZ40: 1 | DA40: 0 | DB40: 0 | DC40: 1 | DD40: 0 | DE40: 0 | DF40: 1 | DG40: 1 | DH40: 1 | DI40: 0 | DJ40: 1 | DK40: 1 | DL40: 0 | DM40: 0 | DN40: 1 | DO40: 0 | DP40: 1 | DQ40: 1 | DR40: 1 | DS40: 0 | DT40: 1 | DU40: 0 | DV40: 1 | DW40: 0 | DX40: 1 | DY40: 0 | DZ40: 0 | EA40: 0 | EB40: 1 | EC40: 0 | ED40: 0 | EE40: 1 | EF40: 0 | EG40: 0 | EH40: 0 | EI40: 1 | EJ40: 0 | EK40: 0 | EL40: 0 | EM40: 0 | EN40: 0 | EO40: 0 | EP40: 0 | EQ40: 0 | ER40: 0 | ES40: 1 | ET40: 0 | EU40: 0 | EV40: 0 | EW40: 0 | EX40: 0 | EZ40: 218 | FA40: 93 | FB40: 131 | FC40: 396 | FD40: 132 | FF40: 0.2906666667 | FG40: 0.4151785714 | FH40: 0.5848214286 | FI40: 0.75 | FJ40: 0.25 | FK40: - | FL40: - | FM40: 0.68834 | FN40: - | FO40: - | FP40: 0.3429 | FQ40: - | FR40: - | FS40: - | FT40: 2.4384 | FU40: - | FV40: - | FW40: - | FX40: - | FY40: - | FZ40: 0.8382 | GA40: - | GB40: - | GC40: - | GD40: 0.6604 | GE40: - | GF40: 0.0254 | GG40: - | GH40: - | GI40: -
A41: 23 | B41: =Historical_Data!B25 -> 1978-01-23 | C41: =Historical_Data!C25 -> 0 | D41: =Historical_Data!C390 -> 0 | E41: =Historical_Data!C755 -> 0.14986 | F41: =Historical_Data!C1121 -> 0 | G41: =Historical_Data!C1486 -> 2.286 | H41: =Historical_Data!C1851 -> 2.4257 | I41: =Historical_Data!C2216 -> 0 | J41: =Historical_Data!C2582 -> 0 | K41: =Historical_Data!C2947 -> 0 | L41: =Historical_Data!C3312 -> 0 | M41: =Historical_Data!C3677 -> 0 | N41: =Historical_Data!C4043 -> 0 | O41: =Historical_Data!C4408 -> 0 | P41: =Historical_Data!C4773 -> 0 | Q41: =Historical_Data!C5138 -> 1.10236 | R41: =Historical_Data!C5504 -> 0 | S41: =Historical_Data!C5869 -> 0 | T41: =Historical_Data!C6234 -> 0 | U41: =Historical_Data!C6599 -> 0 | V41: =Historical_Data!C6965 -> 0 | W41: =Historical_Data!C7330 -> 6.3754 | X41: =Historical_Data!C7695 -> 0.14986 | Y41: =Historical_Data!C8060 -> 0 | Z41: =Historical_Data!C8426 -> 0 | AA41: =Historical_Data!C8791 -> 0.127 | AC41: 0 | AD41: 0 | AE41: 1 | AF41: 0 | AG41: 1 | AH41: 1 | AI41: 0 | AJ41: 0 | AK41: 0 | AL41: 0 | AM41: 0 | AN41: 0 | AO41: 0 | AP41: 0 | AQ41: 1 | AR41: 0 | AS41: 0 | AT41: 0 | AU41: 0 | AV41: 0 | AW41: 1 | AX41: 1 | AY41: 0 | AZ41: 0 | BA41: 1 | BB41: 0 | BC41: 0 | BD41: 1 | BE41: 0 | BF41: 0 | BG41: 1 | BH41: 0 | BI41: 0 | BJ41: 0 | BK41: 0 | BL41: 0 | BM41: 0 | BN41: 0 | BO41: 0 | BP41: 0 | BQ41: 0 | BR41: 0 | BS41: 0 | BT41: 0 | BU41: 0 | BV41: 0 | BW41: 1 | BX41: 0 | BY41: 0 | BZ41: 0 | CA41: 0 | CB41: 0 | CC41: 0 | CD41: 0 | CE41: 0 | CF41: 0 | CG41: 0 | CH41: 0 | CI41: 0 | CJ41: 1 | CK41: 0 | CL41: 0 | CM41: 0 | CN41: 0 | CO41: 0 | CP41: 1 | CQ41: 0 | CR41: 0 | CS41: 0 | CT41: 1 | CU41: 0 | CV41: 0 | CW41: 0 | CX41: 0 | CY41: 0 | CZ41: 1 | DA41: 1 | DB41: 0 | DC41: 1 | DD41: 0 | DE41: 0 | DF41: 1 | DG41: 1 | DH41: 1 | DI41: 0 | DJ41: 1 | DK41: 1 | DL41: 1 | DM41: 1 | DN41: 0 | DO41: 0 | DP41: 1 | DQ41: 1 | DR41: 1 | DS41: 0 | DT41: 0 | DU41: 0 | DV41: 1 | DW41: 1 | DX41: 0 | DY41: 0 | DZ41: 0 | EA41: 0 | EB41: 0 | EC41: 0 | ED41: 1 | EE41: 0 | EF41: 0 | EG41: 0 | EH41: 0 | EI41: 0 | EJ41: 0 | EK41: 0 | EL41: 0 | EM41: 0 | EN41: 1 | EO41: 0 | EP41: 0 | EQ41: 0 | ER41: 0 | ES41: 0 | ET41: 1 | EU41: 0 | EV41: 0 | EW41: 0 | EX41: 1 | EZ41: 213 | FA41: 89 | FB41: 134 | FC41: 396 | FD41: 130 | FF41: 0.284 | FG41: 0.399103139 | FH41: 0.600896861 | FI41: 0.752851711 | FJ41: 0.247148289 | FK41: - | FL41: - | FM41: 0.14986 | FN41: - | FO41: 2.286 | FP41: 2.4257 | FQ41: - | FR41: - | FS41: - | FT41: - | FU41: - | FV41: - | FW41: - | FX41: - | FY41: 1.10236 | FZ41: - | GA41: - | GB41: - | GC41: - | GD41: - | GE41: 6.3754 | GF41: 0.14986 | GG41: - | GH41: - | GI41: 0.127
A42: 24 | B42: =Historical_Data!B26 -> 1978-01-24 | C42: =Historical_Data!C26 -> 0 | D42: =Historical_Data!C391 -> 4.699 | E42: =Historical_Data!C756 -> 0 | F42: =Historical_Data!C1122 -> 0 | G42: =Historical_Data!C1487 -> 0 | H42: =Historical_Data!C1852 -> 0 | I42: =Historical_Data!C2217 -> 0.254 | J42: =Historical_Data!C2583 -> 0 | K42: =Historical_Data!C2948 -> 0 | L42: =Historical_Data!C3313 -> 0 | M42: =Historical_Data!C3678 -> 0 | N42: =Historical_Data!C4044 -> 0 | O42: =Historical_Data!C4409 -> 0.49276 | P42: =Historical_Data!C4774 -> 0 | Q42: =Historical_Data!C5139 -> 0.39624 | R42: =Historical_Data!C5505 -> 0.4572 | S42: =Historical_Data!C5870 -> 0 | T42: =Historical_Data!C6235 -> 0 | U42: =Historical_Data!C6600 -> 0.77724 | V42: =Historical_Data!C6966 -> 1.54686 | W42: =Historical_Data!C7331 -> 0.32512 | X42: =Historical_Data!C7696 -> 2.51714 | Y42: =Historical_Data!C8061 -> 0 | Z42: =Historical_Data!C8427 -> 0 | AA42: =Historical_Data!C8792 -> 0.8763 | AC42: 0 | AD42: 1 | AE42: 0 | AF42: 0 | AG42: 0 | AH42: 0 | AI42: 1 | AJ42: 0 | AK42: 0 | AL42: 0 | AM42: 0 | AN42: 0 | AO42: 1 | AP42: 0 | AQ42: 1 | AR42: 1 | AS42: 0 | AT42: 0 | AU42: 1 | AV42: 1 | AW42: 1 | AX42: 1 | AY42: 0 | AZ42: 0 | BA42: 1 | BB42: 0 | BC42: 0 | BD42: 0 | BE42: 0 | BF42: 0 | BG42: 0 | BH42: 0 | BI42: 0 | BJ42: 0 | BK42: 0 | BL42: 0 | BM42: 0 | BN42: 0 | BO42: 0 | BP42: 1 | BQ42: 0 | BR42: 0 | BS42: 0 | BT42: 0 | BU42: 0 | BV42: 1 | BW42: 1 | BX42: 0 | BY42: 0 | BZ42: 1 | CA42: 0 | CB42: 0 | CC42: 1 | CD42: 0 | CE42: 1 | CF42: 1 | CG42: 0 | CH42: 0 | CI42: 0 | CJ42: 0 | CK42: 0 | CL42: 0 | CM42: 0 | CN42: 0 | CO42: 0 | CP42: 0 | CQ42: 0 | CR42: 0 | CS42: 0 | CT42: 0 | CU42: 0 | CV42: 0 | CW42: 0 | CX42: 0 | CY42: 0 | CZ42: 1 | DA42: 0 | DB42: 0 | DC42: 1 | DD42: 0 | DE42: 0 | DF42: 0 | DG42: 1 | DH42: 1 | DI42: 1 | DJ42: 1 | DK42: 1 | DL42: 0 | DM42: 1 | DN42: 0 | DO42: 0 | DP42: 1 | DQ42: 1 | DR42: 0 | DS42: 0 | DT42: 0 | DU42: 0 | DV42: 1 | DW42: 1 | DX42: 0 | DY42: 0 | DZ42: 0 | EA42: 1 | EB42: 0 | EC42: 0 | ED42: 0 | EE42: 0 | EF42: 1 | EG42: 0 | EH42: 0 | EI42: 0 | EJ42: 0 | EK42: 0 | EL42: 1 | EM42: 0 | EN42: 0 | EO42: 1 | EP42: 0 | EQ42: 0 | ER42: 1 | ES42: 1 | ET42: 0 | EU42: 0 | EV42: 0 | EW42: 0 | EX42: 0 | EZ42: 209 | FA42: 85 | FB42: 135 | FC42: 400 | FD42: 130 | FF42: 0.2786666667 | FG42: 0.3863636364 | FH42: 0.6136363636 | FI42: 0.7547169811 | FJ42: 0.2452830189 | FK42: - | FL42: 4.699 | FM42: - | FN42: - | FO42: - | FP42: - | FQ42: 0.254 | FR42: - | FS42: - | FT42: - | FU42: - | FV42: - | FW42: 0.49276 | FX42: - | FY42: 0.39624 | FZ42: 0.4572 | GA42: - | GB42: - | GC42: 0.77724 | GD42: 1.54686 | GE42: 0.32512 | GF42: 2.51714 | GG42: - | GH42: - | GI42: 0.8763
A43: 25 | B43: =Historical_Data!B27 -> 1978-01-25 | C43: =Historical_Data!C27 -> 4.9022 | D43: =Historical_Data!C392 -> 0 | E43: =Historical_Data!C757 -> 0 | F43: =Historical_Data!C1123 -> 0 | G43: =Historical_Data!C1488 -> 0 | H43: =Historical_Data!C1853 -> 0 | I43: =Historical_Data!C2218 -> 0 | J43: =Historical_Data!C2584 -> 0.3556 | K43: =Historical_Data!C2949 -> 2.47904 | L43: =Historical_Data!C3314 -> 0.16256 | M43: =Historical_Data!C3679 -> 0.254 | N43: =Historical_Data!C4045 -> 0 | O43: =Historical_Data!C4410 -> 2.9464 | P43: =Historical_Data!C4775 -> 0 | Q43: =Historical_Data!C5140 -> 0 | R43: =Historical_Data!C5506 -> 0 | S43: =Historical_Data!C5871 -> 0 | T43: =Historical_Data!C6236 -> 0 | U43: =Historical_Data!C6601 -> 0.03556 | V43: =Historical_Data!C6967 -> 0.25654 | W43: =Historical_Data!C7332 -> 0 | X43: =Historical_Data!C7697 -> 0.1016 | Y43: =Historical_Data!C8062 -> 1.2954 | Z43: =Historical_Data!C8428 -> 0 | AA43: =Historical_Data!C8793 -> 0.1143 | AC43: 1 | AD43: 0 | AE43: 0 | AF43: 0 | AG43: 0 | AH43: 0 | AI43: 0 | AJ43: 1 | AK43: 1 | AL43: 1 | AM43: 1 | AN43: 0 | AO43: 1 | AP43: 0 | AQ43: 0 | AR43: 0 | AS43: 0 | AT43: 0 | AU43: 1 | AV43: 1 | AW43: 0 | AX43: 1 | AY43: 1 | AZ43: 0 | BA43: 1 | BB43: 0 | BC43: 0 | BD43: 0 | BE43: 0 | BF43: 0 | BG43: 0 | BH43: 0 | BI43: 0 | BJ43: 0 | BK43: 0 | BL43: 0 | BM43: 0 | BN43: 1 | BO43: 0 | BP43: 0 | BQ43: 0 | BR43: 0 | BS43: 0 | BT43: 1 | BU43: 1 | BV43: 0 | BW43: 1 | BX43: 0 | BY43: 0 | BZ43: 1 | CA43: 0 | CB43: 1 | CC43: 0 | CD43: 0 | CE43: 0 | CF43: 0 | CG43: 1 | CH43: 0 | CI43: 0 | CJ43: 0 | CK43: 0 | CL43: 0 | CM43: 0 | CN43: 0 | CO43: 1 | CP43: 1 | CQ43: 0 | CR43: 0 | CS43: 0 | CT43: 0 | CU43: 1 | CV43: 0 | CW43: 0 | CX43: 0 | CY43: 0 | CZ43: 0 | DA43: 0 | DB43: 1 | DC43: 1 | DD43: 1 | DE43: 1 | DF43: 0 | DG43: 0 | DH43: 0 | DI43: 0 | DJ43: 0 | DK43: 1 | DL43: 0 | DM43: 1 | DN43: 0 | DO43: 0 | DP43: 1 | DQ43: 1 | DR43: 0 | DS43: 0 | DT43: 0 | DU43: 0 | DV43: 0 | DW43: 1 | DX43: 0 | DY43: 1 | DZ43: 1 | EA43: 0 | EB43: 0 | EC43: 0 | ED43: 0 | EE43: 0 | EF43: 0 | EG43: 1 | EH43: 1 | EI43: 1 | EJ43: 1 | EK43: 0 | EL43: 0 | EM43: 0 | EN43: 0 | EO43: 0 | EP43: 0 | EQ43: 0 | ER43: 0 | ES43: 0 | ET43: 0 | EU43: 0 | EV43: 1 | EW43: 0 | EX43: 0 | EZ43: 206 | FA43: 83 | FB43: 132 | FC43: 406 | FD43: 129 | FF43: 0.2746666667 | FG43: 0.3860465116 | FH43: 0.6139534884 | FI43: 0.7588785047 | FJ43: 0.2411214953 | FK43: 4.9022 | FL43: - | FM43: - | FN43: - | FO43: - | FP43: - | FQ43: - | FR43: 0.3556 | FS43: 2.47904 | FT43: 0.16256 | FU43: 0.254 | FV43: - | FW43: 2.9464 | FX43: - | FY43: - | FZ43: - | GA43: - | GB43: - | GC43: 0.03556 | GD43: 0.25654 | GE43: - | GF43: 0.1016 | GG43: 1.2954 | GH43: - | GI43: 0.1143
A44: 26 | B44: =Historical_Data!B28 -> 1978-01-26 | C44: =Historical_Data!C28 -> 2.07772 | D44: =Historical_Data!C393 -> 0 | E44: =Historical_Data!C758 -> 0 | F44: =Historical_Data!C1124 -> 0 | G44: =Historical_Data!C1489 -> 0 | H44: =Historical_Data!C1854 -> 0 | I44: =Historical_Data!C2219 -> 0 | J44: =Historical_Data!C2585 -> 0 | K44: =Historical_Data!C2950 -> 2.6416 | L44: =Historical_Data!C3315 -> 0.70104 | M44: =Historical_Data!C3680 -> 0 | N44: =Historical_Data!C4046 -> 0.21082 | O44: =Historical_Data!C4411 -> 1.39192 | P44: =Historical_Data!C4776 -> 0 | Q44: =Historical_Data!C5141 -> 0.0508 | R44: =Historical_Data!C5507 -> 0 | S44: =Historical_Data!C5872 -> 0 | T44: =Historical_Data!C6237 -> 0 | U44: =Historical_Data!C6602 -> 0 | V44: =Historical_Data!C6968 -> 0 | W44: =Historical_Data!C7333 -> 0 | X44: =Historical_Data!C7698 -> 0 | Y44: =Historical_Data!C8063 -> 0 | Z44: =Historical_Data!C8429 -> 0 | AA44: =Historical_Data!C8794 -> 0 | AC44: 1 | AD44: 0 | AE44: 0 | AF44: 0 | AG44: 0 | AH44: 0 | AI44: 0 | AJ44: 0 | AK44: 1 | AL44: 1 | AM44: 0 | AN44: 1 | AO44: 1 | AP44: 0 | AQ44: 1 | AR44: 0 | AS44: 0 | AT44: 0 | AU44: 0 | AV44: 0 | AW44: 0 | AX44: 0 | AY44: 0 | AZ44: 0 | BA44: 0 | BB44: 1 | BC44: 0 | BD44: 0 | BE44: 0 | BF44: 0 | BG44: 0 | BH44: 0 | BI44: 0 | BJ44: 1 | BK44: 1 | BL44: 0 | BM44: 0 | BN44: 1 | BO44: 0 | BP44: 0 | BQ44: 0 | BR44: 0 | BS44: 0 | BT44: 0 | BU44: 0 | BV44: 0 | BW44: 0 | BX44: 0 | BY44: 0 | BZ44: 0 | CA44: 0 | CB44: 0 | CC44: 0 | CD44: 0 | CE44: 0 | CF44: 0 | CG44: 0 | CH44: 1 | CI44: 0 | CJ44: 0 | CK44: 1 | CL44: 0 | CM44: 0 | CN44: 0 | CO44: 0 | CP44: 0 | CQ44: 0 | CR44: 0 | CS44: 1 | CT44: 1 | CU44: 0 | CV44: 1 | CW44: 1 | CX44: 0 | CY44: 1 | CZ44: 0 | DA44: 1 | DB44: 1 | DC44: 1 | DD44: 1 | DE44: 1 | DF44: 1 | DG44: 0 | DH44: 0 | DI44: 0 | DJ44: 0 | DK44: 0 | DL44: 0 | DM44: 1 | DN44: 0 | DO44: 1 | DP44: 1 | DQ44: 1 | DR44: 0 | DS44: 0 | DT44: 1 | DU44: 0 | DV44: 0 | DW44: 1 | DX44: 0 | DY44: 0 | DZ44: 0 | EA44: 0 | EB44: 0 | EC44: 0 | ED44: 0 | EE44: 0 | EF44: 0 | EG44: 0 | EH44: 0 | EI44: 0 | EJ44: 0 | EK44: 1 | EL44: 0 | EM44: 0 | EN44: 1 | EO44: 0 | EP44: 0 | EQ44: 0 | ER44: 0 | ES44: 0 | ET44: 0 | EU44: 0 | EV44: 0 | EW44: 0 | EX44: 0 | EZ44: 207 | FA44: 82 | FB44: 130 | FC44: 410 | FD44: 130 | FF44: 0.276 | FG44: 0.3867924528 | FH44: 0.6132075472 | FI44: 0.7592592593 | FJ44: 0.2407407407 | FK44: 2.07772 | FL44: - | FM44: - | FN44: - | FO44: - | FP44: - | FQ44: - | FR44: - | FS44: 2.6416 | FT44: 0.70104 | FU44: - | FV44: 0.21082 | FW44: 1.39192 | FX44: - | FY44: 0.0508 | FZ44: - | GA44: - | GB44: - | GC44: - | GD44: - | GE44: - | GF44: - | GG44: - | GH44: - | GI44: -
A45: 27 | B45: =Historical_Data!B29 -> 1978-01-27 | C45: =Historical_Data!C29 -> 0 | D45: =Historical_Data!C394 -> 0 | E45: =Historical_Data!C759 -> 0 | F45: =Historical_Data!C1125 -> 0 | G45: =Historical_Data!C1490 -> 0 | H45: =Historical_Data!C1855 -> 0 | I45: =Historical_Data!C2220 -> 0 | J45: =Historical_Data!C2586 -> 0 | K45: =Historical_Data!C2951 -> 0.3048 | L45: =Historical_Data!C3316 -> 0 | M45: =Historical_Data!C3681 -> 0 | N45: =Historical_Data!C4047 -> 0.06858 | O45: =Historical_Data!C4412 -> 0 | P45: =Historical_Data!C4777 -> 0 | Q45: =Historical_Data!C5142 -> 0 | R45: =Historical_Data!C5508 -> 0 | S45: =Historical_Data!C5873 -> 1.04394 | T45: =Historical_Data!C6238 -> 0 | U45: =Historical_Data!C6603 -> 1.6764 | V45: =Historical_Data!C6969 -> 0.33528 | W45: =Historical_Data!C7334 -> 0.27178 | X45: =Historical_Data!C7699 -> 0 | Y45: =Historical_Data!C8064 -> 0 | Z45: =Historical_Data!C8430 -> 0 | AA45: =Historical_Data!C8795 -> 0 | AC45: 0 | AD45: 0 | AE45: 0 | AF45: 0 | AG45: 0 | AH45: 0 | AI45: 0 | AJ45: 0 | AK45: 1 | AL45: 0 | AM45: 0 | AN45: 1 | AO45: 0 | AP45: 0 | AQ45: 0 | AR45: 0 | AS45: 1 | AT45: 0 | AU45: 1 | AV45: 1 | AW45: 1 | AX45: 0 | AY45: 0 | AZ45: 0 | BA45: 0 | BB45: 0 | BC45: 0 | BD45: 0 | BE45: 0 | BF45: 0 | BG45: 0 | BH45: 0 | BI45: 0 | BJ45: 1 | BK45: 0 | BL45: 0 | BM45: 1 | BN45: 0 | BO45: 0 | BP45: 0 | BQ45: 0 | BR45: 0 | BS45: 0 | BT45: 0 | BU45: 0 | BV45: 0 | BW45: 0 | BX45: 0 | BY45: 0 | BZ45: 0 | CA45: 1 | CB45: 0 | CC45: 0 | CD45: 0 | CE45: 0 | CF45: 0 | CG45: 0 | CH45: 0 | CI45: 0 | CJ45: 1 | CK45: 0 | CL45: 0 | CM45: 1 | CN45: 0 | CO45: 1 | CP45: 0 | CQ45: 0 | CR45: 0 | CS45: 0 | CT45: 0 | CU45: 0 | CV45: 0 | CW45: 0 | CX45: 0 | CY45: 0 | CZ45: 0 | DA45: 1 | DB45: 1 | DC45: 1 | DD45: 1 | DE45: 1 | DF45: 1 | DG45: 1 | DH45: 0 | DI45: 0 | DJ45: 1 | DK45: 0 | DL45: 0 | DM45: 1 | DN45: 0 | DO45: 1 | DP45: 0 | DQ45: 1 | DR45: 0 | DS45: 0 | DT45: 0 | DU45: 1 | DV45: 1 | DW45: 1 | DX45: 1 | DY45: 0 | DZ45: 0 | EA45: 0 | EB45: 0 | EC45: 0 | ED45: 0 | EE45: 0 | EF45: 0 | EG45: 0 | EH45: 0 | EI45: 0 | EJ45: 0 | EK45: 0 | EL45: 0 | EM45: 0 | EN45: 0 | EO45: 0 | EP45: 1 | EQ45: 0 | ER45: 1 | ES45: 1 | ET45: 1 | EU45: 0 | EV45: 0 | EW45: 0 | EX45: 0 | EZ45: 202 | FA45: 83 | FB45: 127 | FC45: 417 | FD45: 125 | FF45: 0.2693333333 | FG45: 0.3952380952 | FH45: 0.6047619048 | FI45: 0.7693726937 | FJ45: 0.2306273063 | FK45: - | FL45: - | FM45: - | FN45: - | FO45: - | FP45: - | FQ45: - | FR45: - | FS45: 0.3048 | FT45: - | FU45: - | FV45: 0.06858 | FW45: - | FX45: - | FY45: - | FZ45: - | GA45: 1.04394 | GB45: - | GC45: 1.6764 | GD45: 0.33528 | GE45: 0.27178 | GF45: - | GG45: - | GH45: - | GI45: -
A46: 28 | B46: =Historical_Data!B30 -> 1978-01-28 | C46: =Historical_Data!C30 -> 0 | D46: =Historical_Data!C395 -> 0.5588 | E46: =Historical_Data!C760 -> 0 | F46: =Historical_Data!C1126 -> 0 | G46: =Historical_Data!C1491 -> 0 | H46: =Historical_Data!C1856 -> 0 | I46: =Historical_Data!C2221 -> 0 | J46: =Historical_Data!C2587 -> 0 | K46: =Historical_Data!C2952 -> 0 | L46: =Historical_Data!C3317 -> 0 | M46: =Historical_Data!C3682 -> 0 | N46: =Historical_Data!C4048 -> 0 | O46: =Historical_Data!C4413 -> 0 | P46: =Historical_Data!C4778 -> 0 | Q46: =Historical_Data!C5143 -> 0 | R46: =Historical_Data!C5509 -> 0 | S46: =Historical_Data!C5874 -> 1.97866 | T46: =Historical_Data!C6239 -> 0 | U46: =Historical_Data!C6604 -> 0 | V46: =Historical_Data!C6970 -> 1.13792 | W46: =Historical_Data!C7335 -> 2.16662 | X46: =Historical_Data!C7700 -> 0 | Y46: =Historical_Data!C8065 -> 0 | Z46: =Historical_Data!C8431 -> 0 | AA46: =Historical_Data!C8796 -> 0 | AC46: 0 | AD46: 1 | AE46: 0 | AF46: 0 | AG46: 0 | AH46: 0 | AI46: 0 | AJ46: 0 | AK46: 0 | AL46: 0 | AM46: 0 | AN46: 0 | AO46: 0 | AP46: 0 | AQ46: 0 | AR46: 0 | AS46: 1 | AT46: 0 | AU46: 0 | AV46: 1 | AW46: 1 | AX46: 0 | AY46: 0 | AZ46: 0 | BA46: 0 | BB46: 0 | BC46: 0 | BD46: 0 | BE46: 0 | BF46: 0 | BG46: 0 | BH46: 0 | BI46: 0 | BJ46: 0 | BK46: 0 | BL46: 0 | BM46: 0 | BN46: 0 | BO46: 0 | BP46: 0 | BQ46: 0 | BR46: 1 | BS46: 0 | BT46: 0 | BU46: 1 | BV46: 1 | BW46: 0 | BX46: 0 | BY46: 0 | BZ46: 0 | CA46: 0 | CB46: 0 | CC46: 0 | CD46: 0 | CE46: 0 | CF46: 0 | CG46: 0 | CH46: 0 | CI46: 1 | CJ46: 0 | CK46: 0 | CL46: 1 | CM46: 0 | CN46: 0 | CO46: 0 | CP46: 0 | CQ46: 0 | CR46: 0 | CS46: 1 | CT46: 0 | CU46: 0 | CV46: 0 | CW46: 0 | CX46: 0 | CY46: 0 | CZ46: 1 | DA46: 0 | DB46: 1 | DC46: 1 | DD46: 1 | DE46: 1 | DF46: 1 | DG46: 1 | DH46: 0 | DI46: 1 | DJ46: 1 | DK46: 0 | DL46: 1 | DM46: 1 | DN46: 1 | DO46: 1 | DP46: 0 | DQ46: 1 | DR46: 0 | DS46: 0 | DT46: 0 | DU46: 1 | DV46: 1 | DW46: 1 | DX46: 1 | DY46: 0 | DZ46: 0 | EA46: 1 | EB46: 0 | EC46: 0 | ED46: 0 | EE46: 0 | EF46: 0 | EG46: 0 | EH46: 0 | EI46: 0 | EJ46: 0 | EK46: 0 | EL46: 0 | EM46: 0 | EN46: 0 | EO46: 0 | EP46: 0 | EQ46: 0 | ER46: 0 | ES46: 0 | ET46: 0 | EU46: 0 | EV46: 0 | EW46: 0 | EX46: 0 | EZ46: 198 | FA46: 80 | FB46: 126 | FC46: 419 | FD46: 124 | FF46: 0.264 | FG46: 0.3883495146 | FH46: 0.6116504854 | FI46: 0.7716390424 | FJ46: 0.2283609576 | FK46: - | FL46: 0.5588 | FM46: - | FN46: - | FO46: - | FP46: - | FQ46: - | FR46: - | FS46: - | FT46: - | FU46: - | FV46: - | FW46: - | FX46: - | FY46: - | FZ46: - | GA46: 1.97866 | GB46: - | GC46: - | GD46: 1.13792 | GE46: 2.16662 | GF46: - | GG46: - | GH46: - | GI46: -
A47: 29 | B47: =Historical_Data!B31 -> 1978-01-29 | C47: =Historical_Data!C31 -> 0 | D47: =Historical_Data!C396 -> 0 | E47: =Historical_Data!C761 -> 0 | F47: =Historical_Data!C1127 -> 0 | G47: =Historical_Data!C1492 -> 0 | H47: =Historical_Data!C1857 -> 0 | I47: =Historical_Data!C2222 -> 0.0254 | J47: =Historical_Data!C2588 -> 0 | K47: =Historical_Data!C2953 -> 0.1524 | L47: =Historical_Data!C3318 -> 0.32512 | M47: =Historical_Data!C3683 -> 0 | N47: =Historical_Data!C4049 -> 0 | O47: =Historical_Data!C4414 -> 2.3368 | P47: =Historical_Data!C4779 -> 0 | Q47: =Historical_Data!C5144 -> 0 | R47: =Historical_Data!C5510 -> 0 | S47: =Historical_Data!C5875 -> 0 | T47: =Historical_Data!C6240 -> 0 | U47: =Historical_Data!C6605 -> 0 | V47: =Historical_Data!C6971 -> 0 | W47: =Historical_Data!C7336 -> 0 | X47: =Historical_Data!C7701 -> 0 | Y47: =Historical_Data!C8066 -> 0 | Z47: =Historical_Data!C8432 -> 0 | AA47: =Historical_Data!C8797 -> 0 | AC47: 0 | AD47: 0 | AE47: 0 | AF47: 0 | AG47: 0 | AH47: 0 | AI47: 1 | AJ47: 0 | AK47: 1 | AL47: 1 | AM47: 0 | AN47: 0 | AO47: 1 | AP47: 0 | AQ47: 0 | AR47: 0 | AS47: 0 | AT47: 0 | AU47: 0 | AV47: 0 | AW47: 0 | AX47: 0 | AY47: 0 | AZ47: 0 | BA47: 0 | BB47: 0 | BC47: 0 | BD47: 0 | BE47: 0 | BF47: 0 | BG47: 0 | BH47: 0 | BI47: 0 | BJ47: 0 | BK47: 0 | BL47: 0 | BM47: 0 | BN47: 0 | BO47: 0 | BP47: 0 | BQ47: 0 | BR47: 0 | BS47: 0 | BT47: 0 | BU47: 0 | BV47: 0 | BW47: 0 | BX47: 0 | BY47: 0 | BZ47: 0 | CA47: 0 | CB47: 1 | CC47: 0 | CD47: 0 | CE47: 0 | CF47: 0 | CG47: 0 | CH47: 0 | CI47: 0 | CJ47: 0 | CK47: 0 | CL47: 0 | CM47: 0 | CN47: 0 | CO47: 0 | CP47: 0 | CQ47: 1 | CR47: 0 | CS47: 0 | CT47: 1 | CU47: 1 | CV47: 0 | CW47: 0 | CX47: 0 | CY47: 0 | CZ47: 1 | DA47: 0 | DB47: 1 | DC47: 1 | DD47: 1 | DE47: 1 | DF47: 0 | DG47: 1 | DH47: 0 | DI47: 0 | DJ47: 1 | DK47: 1 | DL47: 0 | DM47: 1 | DN47: 1 | DO47: 1 | DP47: 0 | DQ47: 1 | DR47: 1 | DS47: 0 | DT47: 0 | DU47: 1 | DV47: 1 | DW47: 1 | DX47: 1 | DY47: 0 | DZ47: 0 | EA47: 0 | EB47: 0 | EC47: 0 | ED47: 0 | EE47: 0 | EF47: 1 | EG47: 0 | EH47: 1 | EI47: 1 | EJ47: 0 | EK47: 0 | EL47: 1 | EM47: 0 | EN47: 0 | EO47: 0 | EP47: 0 | EQ47: 0 | ER47: 0 | ES47: 0 | ET47: 0 | EU47: 0 | EV47: 0 | EW47: 0 | EX47: 0 | EZ47: 197 | FA47: 81 | FB47: 124 | FC47: 421 | FD47: 122 | FF47: 0.2626666667 | FG47: 0.3951219512 | FH47: 0.6048780488 | FI47: 0.7753222836 | FJ47: 0.2246777164 | FK47: - | FL47: - | FM47: - | FN47: - | FO47: - | FP47: - | FQ47: 0.0254 | FR47: - | FS47: 0.1524 | FT47: 0.32512 | FU47: - | FV47: - | FW47: 2.3368 | FX47: - | FY47: - | FZ47: - | GA47: - | GB47: - | GC47: - | GD47: - | GE47: - | GF47: - | GG47: - | GH47: - | GI47: -
A48: 30 | B48: =Historical_Data!B32 -> 1978-01-30 | C48: =Historical_Data!C32 -> 0 | D48: =Historical_Data!C397 -> 0 | E48: =Historical_Data!C762 -> 0 | F48: =Historical_Data!C1128 -> 0 | G48: =Historical_Data!C1493 -> 0 | H48: =Historical_Data!C1858 -> 0.3302 | I48: =Historical_Data!C2223 -> 0.2794 | J48: =Historical_Data!C2589 -> 0 | K48: =Historical_Data!C2954 -> 0 | L48: =Historical_Data!C3319 -> 0.48768 | M48: =Historical_Data!C3684 -> 0 | N48: =Historical_Data!C4050 -> 0.7874 | O48: =Historical_Data!C4415 -> 0 | P48: =Historical_Data!C4780 -> 0 | Q48: =Historical_Data!C5145 -> 0 | R48: =Historical_Data!C5511 -> 0 | S48: =Historical_Data!C5876 -> 0 | T48: =Historical_Data!C6241 -> 0 | U48: =Historical_Data!C6606 -> 0 | V48: =Historical_Data!C6972 -> 0 | W48: =Historical_Data!C7337 -> 0 | X48: =Historical_Data!C7702 -> 0 | Y48: =Historical_Data!C8067 -> 0.254 | Z48: =Historical_Data!C8433 -> 1.6764 | AA48: =Historical_Data!C8798 -> 0.54102 | AC48: 0 | AD48: 0 | AE48: 0 | AF48: 0 | AG48: 0 | AH48: 1 | AI48: 1 | AJ48: 0 | AK48: 0 | AL48: 1 | AM48: 0 | AN48: 1 | AO48: 0 | AP48: 0 | AQ48: 0 | AR48: 0 | AS48: 0 | AT48: 0 | AU48: 0 | AV48: 0 | AW48: 0 | AX48: 0 | AY48: 1 | AZ48: 1 | BA48: 1 | BB48: 0 | BC48: 0 | BD48: 0 | BE48: 0 | BF48: 0 | BG48: 0 | BH48: 1 | BI48: 0 | BJ48: 0 | BK48: 1 | BL48: 0 | BM48: 0 | BN48: 0 | BO48: 0 | BP48: 0 | BQ48: 0 | BR48: 0 | BS48: 0 | BT48: 0 | BU48: 0 | BV48: 0 | BW48: 0 | BX48: 0 | BY48: 0 | BZ48: 0 | CA48: 0 | CB48: 0 | CC48: 0 | CD48: 0 | CE48: 0 | CF48: 0 | CG48: 0 | CH48: 0 | CI48: 1 | CJ48: 0 | CK48: 0 | CL48: 0 | CM48: 1 | CN48: 0 | CO48: 0 | CP48: 0 | CQ48: 0 | CR48: 0 | CS48: 0 | CT48: 0 | CU48: 0 | CV48: 0 | CW48: 0 | CX48: 0 | CY48: 0 | CZ48: 1 | DA48: 1 | DB48: 1 | DC48: 1 | DD48: 1 | DE48: 0 | DF48: 0 | DG48: 1 | DH48: 0 | DI48: 0 | DJ48: 1 | DK48: 0 | DL48: 0 | DM48: 1 | DN48: 1 | DO48: 1 | DP48: 1 | DQ48: 1 | DR48: 1 | DS48: 1 | DT48: 1 | DU48: 1 | DV48: 0 | DW48: 0 | DX48: 0 | DY48: 0 | DZ48: 0 | EA48: 0 | EB48: 0 | EC48: 0 | ED48: 0 | EE48: 1 | EF48: 0 | EG48: 0 | EH48: 0 | EI48: 0 | EJ48: 0 | EK48: 1 | EL48: 0 | EM48: 0 | EN48: 0 | EO48: 0 | EP48: 0 | EQ48: 0 | ER48: 0 | ES48: 0 | ET48: 0 | EU48: 0 | EV48: 1 | EW48: 1 | EX48: 1 | EZ48: 196 | FA48: 81 | FB48: 124 | FC48: 420 | FD48: 121 | FF48: 0.2613333333 | FG48: 0.3951219512 | FH48: 0.6048780488 | FI48: 0.7763401109 | FJ48: 0.2236598891 | FK48: - | FL48: - | FM48: - | FN48: - | FO48: - | FP48: 0.3302 | FQ48: 0.2794 | FR48: - | FS48: - | FT48: 0.48768 | FU48: - | FV48: 0.7874 | FW48: - | FX48: - | FY48: - | FZ48: - | GA48: - | GB48: - | GC48: - | GD48: - | GE48: - | GF48: - | GG48: 0.254 | GH48: 1.6764 | GI48: 0.54102
A49: 31 | B49: =Historical_Data!B33 -> 1978-01-31 | C49: =Historical_Data!C33 -> 0 | D49: =Historical_Data!C398 -> 0.0508 | E49: =Historical_Data!C763 -> 0.0254 | F49: =Historical_Data!C1129 -> 0 | G49: =Historical_Data!C1494 -> 0.0508 | H49: =Historical_Data!C1859 -> 0 | I49: =Historical_Data!C2224 -> 0.2794 | J49: =Historical_Data!C2590 -> 0.5334 | K49: =Historical_Data!C2955 -> 0 | L49: =Historical_Data!C3320 -> 0 | M49: =Historical_Data!C3685 -> 0 | N49: =Historical_Data!C4051 -> 0 | O49: =Historical_Data!C4416 -> 0 | P49: =Historical_Data!C4781 -> 0 | Q49: =Historical_Data!C5146 -> 0 | R49: =Historical_Data!C5512 -> 0 | S49: =Historical_Data!C5877 -> 0 | T49: =Historical_Data!C6242 -> 0 | U49: =Historical_Data!C6607 -> 0 | V49: =Historical_Data!C6973 -> 0 | W49: =Historical_Data!C7338 -> 0 | X49: =Historical_Data!C7703 -> 0 | Y49: =Historical_Data!C8068 -> 0 | Z49: =Historical_Data!C8434 -> 0 | AA49: =Historical_Data!C8799 -> 0.34036 | AC49: 0 | AD49: 1 | AE49: 1 | AF49: 0 | AG49: 1 | AH49: 0 | AI49: 1 | AJ49: 1 | AK49: 0 | AL49: 0 | AM49: 0 | AN49: 0 | AO49: 0 | AP49: 0 | AQ49: 0 | AR49: 0 | AS49: 0 | AT49: 0 | AU49: 0 | AV49: 0 | AW49: 0 | AX49: 0 | AY49: 0 | AZ49: 0 | BA49: 1 | BB49: 0 | BC49: 0 | BD49: 0 | BE49: 0 | BF49: 0 | BG49: 0 | BH49: 1 | BI49: 0 | BJ49: 0 | BK49: 0 | BL49: 0 | BM49: 0 | BN49: 0 | BO49: 0 | BP49: 0 | BQ49: 0 | BR49: 0 | BS49: 0 | BT49: 0 | BU49: 0 | BV49: 0 | BW49: 0 | BX49: 0 | BY49: 0 | BZ49: 1 | CA49: 0 | CB49: 0 | CC49: 0 | CD49: 0 | CE49: 0 | CF49: 1 | CG49: 0 | CH49: 0 | CI49: 0 | CJ49: 1 | CK49: 0 | CL49: 1 | CM49: 0 | CN49: 0 | CO49: 0 | CP49: 0 | CQ49: 0 | CR49: 0 | CS49: 0 | CT49: 0 | CU49: 0 | CV49: 0 | CW49: 1 | CX49: 1 | CY49: 0 | CZ49: 1 | DA49: 0 | DB49: 0 | DC49: 1 | DD49: 0 | DE49: 0 | DF49: 0 | DG49: 0 | DH49: 1 | DI49: 0 | DJ49: 1 | DK49: 0 | DL49: 1 | DM49: 1 | DN49: 1 | DO49: 1 | DP49: 1 | DQ49: 1 | DR49: 1 | DS49: 1 | DT49: 1 | DU49: 1 | DV49: 0 | DW49: 0 | DX49: 0 | DY49: 0 | DZ49: 0 | EA49: 1 | EB49: 1 | EC49: 0 | ED49: 1 | EE49: 0 | EF49: 0 | EG49: 1 | EH49: 0 | EI49: 0 | EJ49: 0 | EK49: 0 | EL49: 0 | EM49: 0 | EN49: 0 | EO49: 0 | EP49: 0 | EQ49: 0 | ER49: 0 | ES49: 0 | ET49: 0 | EU49: 0 | EV49: 0 | EW49: 0 | EX49: 0 | EZ49: 197 | FA49: 81 | FB49: 125 | FC49: 419 | FD49: 124 | FF49: 0.2626666667 | FG49: 0.3932038835 | FH49: 0.6067961165 | FI49: 0.7716390424 | FJ49: 0.2283609576 | FK49: - | FL49: 0.0508 | FM49: 0.0254 | FN49: - | FO49: 0.0508 | FP49: - | FQ49: 0.2794 | FR49: 0.5334 | FS49: - | FT49: - | FU49: - | FV49: - | FW49: - | FX49: - | FY49: - | FZ49: - | GA49: - | GB49: - | GC49: - | GD49: - | GE49: - | GF49: - | GG49: - | GH49: - | GI49: 0.34036
A50: 32 | B50: =Historical_Data!B34 -> 1978-02-01 | C50: =Historical_Data!C34 -> 0 | D50: =Historical_Data!C399 -> 0 | E50: =Historical_Data!C764 -> 0 | F50: =Historical_Data!C1130 -> 0 | G50: =Historical_Data!C1495 -> 0 | H50: =Historical_Data!C1860 -> 0 | I50: =Historical_Data!C2225 -> 0 | J50: =Historical_Data!C2591 -> 0.96012 | K50: =Historical_Data!C2956 -> 0.254 | L50: =Historical_Data!C3321 -> 0 | M50: =Historical_Data!C3686 -> 0 | N50: =Historical_Data!C4052 -> 0 | O50: =Historical_Data!C4417 -> 0 | P50: =Historical_Data!C4782 -> 0 | Q50: =Historical_Data!C5147 -> 0 | R50: =Historical_Data!C5513 -> 0 | S50: =Historical_Data!C5878 -> 0 | T50: =Historical_Data!C6243 -> 0 | U50: =Historical_Data!C6608 -> 0 | V50: =Historical_Data!C6974 -> 0 | W50: =Historical_Data!C7339 -> 0 | X50: =Historical_Data!C7704 -> 0.24384 | Y50: =Historical_Data!C8069 -> 0 | Z50: =Historical_Data!C8435 -> 0 | AA50: =Historical_Data!C8800 -> 0.21082 | AC50: 0 | AD50: 0 | AE50: 0 | AF50: 0 | AG50: 0 | AH50: 0 | AI50: 0 | AJ50: 1 | AK50: 1 | AL50: 0 | AM50: 0 | AN50: 0 | AO50: 0 | AP50: 0 | AQ50: 0 | AR50: 0 | AS50: 0 | AT50: 0 | AU50: 0 | AV50: 0 | AW50: 0 | AX50: 1 | AY50: 0 | AZ50: 0 | BA50: 1 | BB50: 0 | BC50: 0 | BD50: 0 | BE50: 0 | BF50: 0 | BG50: 0 | BH50: 0 | BI50: 1 | BJ50: 0 | BK50: 0 | BL50: 0 | BM50: 0 | BN50: 0 | BO50: 0 | BP50: 0 | BQ50: 0 | BR50: 0 | BS50: 0 | BT50: 0 | BU50: 0 | BV50: 0 | BW50: 0 | BX50: 0 | BY50: 0 | BZ50: 1 | CA50: 0 | CB50: 1 | CC50: 1 | CD50: 0 | CE50: 1 | CF50: 0 | CG50: 1 | CH50: 0 | CI50: 0 | CJ50: 0 | CK50: 0 | CL50: 0 | CM50: 0 | CN50: 0 | CO50: 0 | CP50: 0 | CQ50: 0 | CR50: 0 | CS50: 0 | CT50: 0 | CU50: 0 | CV50: 0 | CW50: 0 | CX50: 0 | CY50: 0 | CZ50: 1 | DA50: 0 | DB50: 0 | DC50: 1 | DD50: 0 | DE50: 1 | DF50: 0 | DG50: 0 | DH50: 0 | DI50: 1 | DJ50: 1 | DK50: 1 | DL50: 1 | DM50: 1 | DN50: 1 | DO50: 1 | DP50: 1 | DQ50: 1 | DR50: 1 | DS50: 1 | DT50: 1 | DU50: 0 | DV50: 1 | DW50: 1 | DX50: 0 | DY50: 0 | DZ50: 0 | EA50: 0 | EB50: 0 | EC50: 0 | ED50: 0 | EE50: 0 | EF50: 0 | EG50: 0 | EH50: 1 | EI50: 0 | EJ50: 0 | EK50: 0 | EL50: 0 | EM50: 0 | EN50: 0 | EO50: 0 | EP50: 0 | EQ50: 0 | ER50: 0 | ES50: 0 | ET50: 0 | EU50: 1 | EV50: 0 | EW50: 0 | EX50: 0 | EZ50: 202 | FA50: 83 | FB50: 123 | FC50: 416 | FD50: 126 | FF50: 0.2693333333 | FG50: 0.4029126214 | FH50: 0.5970873786 | FI50: 0.7675276753 | FJ50: 0.2324723247 | FK50: - | FL50: - | FM50: - | FN50: - | FO50: - | FP50: - | FQ50: - | FR50: 0.96012 | FS50: 0.254 | FT50: - | FU50: - | FV50: - | FW50: - | FX50: - | FY50: - | FZ50: - | GA50: - | GB50: - | GC50: - | GD50: - | GE50: - | GF50: 0.24384 | GG50: - | GH50: - | GI50: 0.21082
A51: 33 | B51: =Historical_Data!B35 -> 1978-02-02 | C51: =Historical_Data!C35 -> 0 | D51: =Historical_Data!C400 -> 0 | E51: =Historical_Data!C765 -> 0 | F51: =Historical_Data!C1131 -> 1.6256 | G51: =Historical_Data!C1496 -> 1.32334 | H51: =Historical_Data!C1861 -> 1.1557 | I51: =Historical_Data!C2226 -> 0 | J51: =Historical_Data!C2592 -> 1.24968 | K51: =Historical_Data!C2957 -> 0 | L51: =Historical_Data!C3322 -> 0 | M51: =Historical_Data!C3687 -> 1.0414 | N51: =Historical_Data!C4053 -> 0 | O51: =Historical_Data!C4418 -> 0 | P51: =Historical_Data!C4783 -> 0 | Q51: =Historical_Data!C5148 -> 0 | R51: =Historical_Data!C5514 -> 0 | S51: =Historical_Data!C5879 -> 0 | T51: =Historical_Data!C6244 -> 0 | U51: =Historical_Data!C6609 -> 0.72644 | V51: =Historical_Data!C6975 -> 0 | W51: =Historical_Data!C7340 -> 0 | X51: =Historical_Data!C7705 -> 1.96596 | Y51: =Historical_Data!C8070 -> 0 | Z51: =Historical_Data!C8436 -> 0.1524 | AA51: =Historical_Data!C8801 -> 0 | AC51: 0 | AD51: 0 | AE51: 0 | AF51: 1 | AG51: 1 | AH51: 1 | AI51: 0 | AJ51: 1 | AK51: 0 | AL51: 0 | AM51: 1 | AN51: 0 | AO51: 0 | AP51: 0 | AQ51: 0 | AR51: 0 | AS51: 0 | AT51: 0 | AU51: 1 | AV51: 0 | AW51: 0 | AX51: 1 | AY51: 0 | AZ51: 1 | BA51: 0 | BB51: 0 | BC51: 0 | BD51: 0 | BE51: 0 | BF51: 0 | BG51: 0 | BH51: 0 | BI51: 1 | BJ51: 0 | BK51: 0 | BL51: 0 | BM51: 0 | BN51: 0 | BO51: 0 | BP51: 0 | BQ51: 0 | BR51: 0 | BS51: 0 | BT51: 0 | BU51: 0 | BV51: 0 | BW51: 1 | BX51: 0 | BY51: 0 | BZ51: 0 | CA51: 0 | CB51: 0 | CC51: 0 | CD51: 0 | CE51: 0 | CF51: 0 | CG51: 0 | CH51: 0 | CI51: 1 | CJ51: 0 | CK51: 0 | CL51: 0 | CM51: 0 | CN51: 0 | CO51: 0 | CP51: 0 | CQ51: 0 | CR51: 0 | CS51: 0 | CT51: 0 | CU51: 0 | CV51: 0 | CW51: 0 | CX51: 0 | CY51: 1 | CZ51: 1 | DA51: 1 | DB51: 1 | DC51: 0 | DD51: 0 | DE51: 0 | DF51: 1 | DG51: 0 | DH51: 0 | DI51: 1 | DJ51: 0 | DK51: 1 | DL51: 1 | DM51: 1 | DN51: 1 | DO51: 1 | DP51: 1 | DQ51: 1 | DR51: 0 | DS51: 1 | DT51: 1 | DU51: 0 | DV51: 1 | DW51: 0 | DX51: 0 | DY51: 0 | DZ51: 0 | EA51: 0 | EB51: 0 | EC51: 1 | ED51: 1 | EE51: 1 | EF51: 0 | EG51: 0 | EH51: 0 | EI51: 0 | EJ51: 1 | EK51: 0 | EL51: 0 | EM51: 0 | EN51: 0 | EO51: 0 | EP51: 0 | EQ51: 0 | ER51: 1 | ES51: 0 | ET51: 0 | EU51: 0 | EV51: 0 | EW51: 1 | EX51: 0 | EZ51: 204 | FA51: 87 | FB51: 124 | FC51: 414 | FD51: 125 | FF51: 0.272 | FG51: 0.4123222749 | FH51: 0.5876777251 | FI51: 0.7680890538 | FJ51: 0.2319109462 | FK51: - | FL51: - | FM51: - | FN51: 1.6256 | FO51: 1.32334 | FP51: 1.1557 | FQ51: - | FR51: 1.24968 | FS51: - | FT51: - | FU51: 1.0414 | FV51: - | FW51: - | FX51: - | FY51: - | FZ51: - | GA51: - | GB51: - | GC51: 0.72644 | GD51: - | GE51: - | GF51: 1.96596 | GG51: - | GH51: 0.1524 | GI51: -
A52: 34 | B52: =Historical_Data!B36 -> 1978-02-03 | C52: =Historical_Data!C36 -> 0 | D52: =Historical_Data!C401 -> 0 | E52: =Historical_Data!C766 -> 0 | F52: =Historical_Data!C1132 -> 0 | G52: =Historical_Data!C1497 -> 2.38506 | H52: =Historical_Data!C1862 -> 0.8001 | I52: =Historical_Data!C2227 -> 1.01346 | J52: =Historical_Data!C2593 -> 0 | K52: =Historical_Data!C2958 -> 1.27 | L52: =Historical_Data!C3323 -> 0 | M52: =Historical_Data!C3688 -> 0 | N52: =Historical_Data!C4054 -> 1.5494 | O52: =Historical_Data!C4419 -> 0.9652 | P52: =Historical_Data!C4784 -> 0 | Q52: =Historical_Data!C5149 -> 0 | R52: =Historical_Data!C5515 -> 0 | S52: =Historical_Data!C5880 -> 0 | T52: =Historical_Data!C6245 -> 0 | U52: =Historical_Data!C6610 -> 1.02616 | V52: =Historical_Data!C6976 -> 0 | W52: =Historical_Data!C7341 -> 0 | X52: =Historical_Data!C7706 -> 0 | Y52: =Historical_Data!C8071 -> 0 | Z52: =Historical_Data!C8437 -> 0 | AA52: =Historical_Data!C8802 -> 0 | AC52: 0 | AD52: 0 | AE52: 0 | AF52: 0 | AG52: 1 | AH52: 1 | AI52: 1 | AJ52: 0 | AK52: 1 | AL52: 0 | AM52: 0 | AN52: 1 | AO52: 1 | AP52: 0 | AQ52: 0 | AR52: 0 | AS52: 0 | AT52: 0 | AU52: 1 | AV52: 0 | AW52: 0 | AX52: 0 | AY52: 0 | AZ52: 0 | BA52: 0 | BB52: 0 | BC52: 0 | BD52: 0 | BE52: 0 | BF52: 1 | BG52: 1 | BH52: 0 | BI52: 0 | BJ52: 0 | BK52: 0 | BL52: 0 | BM52: 0 | BN52: 0 | BO52: 0 | BP52: 0 | BQ52: 0 | BR52: 0 | BS52: 0 | BT52: 1 | BU52: 0 | BV52: 0 | BW52: 0 | BX52: 0 | BY52: 0 | BZ52: 0 | CA52: 0 | CB52: 0 | CC52: 0 | CD52: 1 | CE52: 0 | CF52: 0 | CG52: 0 | CH52: 1 | CI52: 0 | CJ52: 0 | CK52: 1 | CL52: 0 | CM52: 0 | CN52: 0 | CO52: 0 | CP52: 0 | CQ52: 0 | CR52: 0 | CS52: 0 | CT52: 0 | CU52: 0 | CV52: 1 | CW52: 0 | CX52: 1 | CY52: 0 | CZ52: 1 | DA52: 1 | DB52: 1 | DC52: 0 | DD52: 0 | DE52: 0 | DF52: 0 | DG52: 0 | DH52: 0 | DI52: 1 | DJ52: 0 | DK52: 0 | DL52: 0 | DM52: 1 | DN52: 1 | DO52: 1 | DP52: 1 | DQ52: 1 | DR52: 0 | DS52: 1 | DT52: 1 | DU52: 0 | DV52: 1 | DW52: 0 | DX52: 1 | DY52: 0 | DZ52: 0 | EA52: 0 | EB52: 0 | EC52: 0 | ED52: 0 | EE52: 0 | EF52: 1 | EG52: 0 | EH52: 1 | EI52: 0 | EJ52: 0 | EK52: 1 | EL52: 1 | EM52: 0 | EN52: 0 | EO52: 0 | EP52: 0 | EQ52: 0 | ER52: 0 | ES52: 0 | ET52: 0 | EU52: 0 | EV52: 0 | EW52: 0 | EX52: 0 | EZ52: 205 | FA52: 86 | FB52: 126 | FC52: 413 | FD52: 123 | FF52: 0.2733333333 | FG52: 0.4056603774 | FH52: 0.5943396226 | FI52: 0.7705223881 | FJ52: 0.2294776119 | FK52: - | FL52: - | FM52: - | FN52: - | FO52: 2.38506 | FP52: 0.8001 | FQ52: 1.01346 | FR52: - | FS52: 1.27 | FT52: - | FU52: - | FV52: 1.5494 | FW52: 0.9652 | FX52: - | FY52: - | FZ52: - | GA52: - | GB52: - | GC52: 1.02616 | GD52: - | GE52: - | GF52: - | GG52: - | GH52: - | GI52: -
A53: 35 | B53: =Historical_Data!B37 -> 1978-02-04 | C53: =Historical_Data!C37 -> 0 | D53: =Historical_Data!C402 -> 0 | E53: =Historical_Data!C767 -> 0 | F53: =Historical_Data!C1133 -> 0 | G53: =Historical_Data!C1498 -> 0 | H53: =Historical_Data!C1863 -> 0 | I53: =Historical_Data!C2228 -> 0.02794 | J53: =Historical_Data!C2594 -> 0 | K53: =Historical_Data!C2959 -> 0.762 | L53: =Historical_Data!C3324 -> 0 | M53: =Historical_Data!C3689 -> 1.0414 | N53: =Historical_Data!C4055 -> 0 | O53: =Historical_Data!C4420 -> 0.2032 | P53: =Historical_Data!C4785 -> 0 | Q53: =Historical_Data!C5150 -> 0 | R53: =Historical_Data!C5516 -> 0 | S53: =Historical_Data!C5881 -> 0 | T53: =Historical_Data!C6246 -> 1.8542 | U53: =Historical_Data!C6611 -> 0 | V53: =Historical_Data!C6977 -> 2.667 | W53: =Historical_Data!C7342 -> 0.62484 | X53: =Historical_Data!C7707 -> 0.1016 | Y53: =Historical_Data!C8072 -> 0 | Z53: =Historical_Data!C8438 -> 0 | AA53: =Historical_Data!C8803 -> 0 | AC53: 0 | AD53: 0 | AE53: 0 | AF53: 0 | AG53: 0 | AH53: 0 | AI53: 1 | AJ53: 0 | AK53: 1 | AL53: 0 | AM53: 1 | AN53: 0 | AO53: 1 | AP53: 0 | AQ53: 0 | AR53: 0 | AS53: 0 | AT53: 1 | AU53: 0 | AV53: 1 | AW53: 1 | AX53: 1 | AY53: 0 | AZ53: 0 | BA53: 0 | BB53: 0 | BC53: 0 | BD53: 0 | BE53: 0 | BF53: 0 | BG53: 0 | BH53: 1 | BI53: 0 | BJ53: 1 | BK53: 0 | BL53: 0 | BM53: 0 | BN53: 1 | BO53: 0 | BP53: 0 | BQ53: 0 | BR53: 0 | BS53: 0 | BT53: 0 | BU53: 0 | BV53: 0 | BW53: 0 | BX53: 0 | BY53: 0 | BZ53: 0 | CA53: 0 | CB53: 0 | CC53: 0 | CD53: 0 | CE53: 1 | CF53: 1 | CG53: 0 | CH53: 0 | CI53: 0 | CJ53: 0 | CK53: 0 | CL53: 1 | CM53: 0 | CN53: 0 | CO53: 0 | CP53: 0 | CQ53: 0 | CR53: 0 | CS53: 1 | CT53: 0 | CU53: 0 | CV53: 0 | CW53: 0 | CX53: 0 | CY53: 0 | CZ53: 1 | DA53: 1 | DB53: 1 | DC53: 1 | DD53: 0 | DE53: 0 | DF53: 0 | DG53: 1 | DH53: 0 | DI53: 1 | DJ53: 0 | DK53: 0 | DL53: 0 | DM53: 1 | DN53: 1 | DO53: 1 | DP53: 1 | DQ53: 0 | DR53: 0 | DS53: 0 | DT53: 0 | DU53: 0 | DV53: 1 | DW53: 1 | DX53: 1 | DY53: 0 | DZ53: 0 | EA53: 0 | EB53: 0 | EC53: 0 | ED53: 0 | EE53: 0 | EF53: 0 | EG53: 0 | EH53: 0 | EI53: 0 | EJ53: 1 | EK53: 0 | EL53: 0 | EM53: 0 | EN53: 0 | EO53: 0 | EP53: 0 | EQ53: 1 | ER53: 0 | ES53: 1 | ET53: 1 | EU53: 1 | EV53: 0 | EW53: 0 | EX53: 0 | EZ53: 201 | FA53: 86 | FB53: 125 | FC53: 417 | FD53: 123 | FF53: 0.268 | FG53: 0.4075829384 | FH53: 0.5924170616 | FI53: 0.7722222222 | FJ53: 0.2277777778 | FK53: - | FL53: - | FM53: - | FN53: - | FO53: - | FP53: - | FQ53: 0.02794 | FR53: - | FS53: 0.762 | FT53: - | FU53: 1.0414 | FV53: - | FW53: 0.2032 | FX53: - | FY53: - | FZ53: - | GA53: - | GB53: 1.8542 | GC53: - | GD53: 2.667 | GE53: 0.62484 | GF53: 0.1016 | GG53: - | GH53: - | GI53: -
A54: 36 | B54: =Historical_Data!B38 -> 1978-02-05 | C54: =Historical_Data!C38 -> 0 | D54: =Historical_Data!C403 -> 0 | E54: =Historical_Data!C768 -> 0 | F54: =Historical_Data!C1134 -> 0 | G54: =Historical_Data!C1499 -> 0 | H54: =Historical_Data!C1864 -> 0 | I54: =Historical_Data!C2229 -> 0.4318 | J54: =Historical_Data!C2595 -> 0.82042 | K54: =Historical_Data!C2960 -> 1.27 | L54: =Historical_Data!C3325 -> 0 | M54: =Historical_Data!C3690 -> 0 | N54: =Historical_Data!C4056 -> 0 | O54: =Historical_Data!C4421 -> 0 | P54: =Historical_Data!C4786 -> 0 | Q54: =Historical_Data!C5151 -> 0 | R54: =Historical_Data!C5517 -> 0 | S54: =Historical_Data!C5882 -> 0 | T54: =Historical_Data!C6247 -> 0 | U54: =Historical_Data!C6612 -> 0 | V54: =Historical_Data!C6978 -> 0 | W54: =Historical_Data!C7343 -> 0.61976 | X54: =Historical_Data!C7708 -> 0 | Y54: =Historical_Data!C8073 -> 0 | Z54: =Historical_Data!C8439 -> 0.35306 | AA54: =Historical_Data!C8804 -> 0 | AC54: 0 | AD54: 0 | AE54: 0 | AF54: 0 | AG54: 0 | AH54: 0 | AI54: 1 | AJ54: 1 | AK54: 1 | AL54: 0 | AM54: 0 | AN54: 0 | AO54: 0 | AP54: 0 | AQ54: 0 | AR54: 0 | AS54: 0 | AT54: 0 | AU54: 0 | AV54: 0 | AW54: 1 | AX54: 0 | AY54: 0 | AZ54: 1 | BA54: 0 | BB54: 0 | BC54: 0 | BD54: 0 | BE54: 0 | BF54: 0 | BG54: 0 | BH54: 1 | BI54: 0 | BJ54: 1 | BK54: 0 | BL54: 0 | BM54: 0 | BN54: 0 | BO54: 0 | BP54: 0 | BQ54: 0 | BR54: 0 | BS54: 0 | BT54: 0 | BU54: 0 | BV54: 1 | BW54: 0 | BX54: 0 | BY54: 0 | BZ54: 0 | CA54: 0 | CB54: 0 | CC54: 0 | CD54: 0 | CE54: 0 | CF54: 0 | CG54: 0 | CH54: 0 | CI54: 0 | CJ54: 0 | CK54: 1 | CL54: 0 | CM54: 1 | CN54: 0 | CO54: 0 | CP54: 0 | CQ54: 0 | CR54: 1 | CS54: 0 | CT54: 1 | CU54: 0 | CV54: 1 | CW54: 0 | CX54: 0 | CY54: 0 | CZ54: 1 | DA54: 1 | DB54: 1 | DC54: 1 | DD54: 1 | DE54: 1 | DF54: 0 | DG54: 0 | DH54: 0 | DI54: 1 | DJ54: 0 | DK54: 1 | DL54: 0 | DM54: 1 | DN54: 1 | DO54: 1 | DP54: 1 | DQ54: 0 | DR54: 1 | DS54: 0 | DT54: 0 | DU54: 0 | DV54: 1 | DW54: 0 | DX54: 1 | DY54: 0 | DZ54: 0 | EA54: 0 | EB54: 0 | EC54: 0 | ED54: 0 | EE54: 0 | EF54: 0 | EG54: 1 | EH54: 0 | EI54: 0 | EJ54: 0 | EK54: 0 | EL54: 0 | EM54: 0 | EN54: 0 | EO54: 0 | EP54: 0 | EQ54: 0 | ER54: 0 | ES54: 0 | ET54: 0 | EU54: 0 | EV54: 0 | EW54: 1 | EX54: 0 | EZ54: 196 | FA54: 83 | FB54: 125 | FC54: 422 | FD54: 119 | FF54: 0.2613333333 | FG54: 0.3990384615 | FH54: 0.6009615385 | FI54: 0.7800369686 | FJ54: 0.2199630314 | FK54: - | FL54: - | FM54: - | FN54: - | FO54: - | FP54: - | FQ54: 0.4318 | FR54: 0.82042 | FS54: 1.27 | FT54: - | FU54: - | FV54: - | FW54: - | FX54: - | FY54: - | FZ54: - | GA54: - | GB54: - | GC54: - | GD54: - | GE54: 0.61976 | GF54: - | GG54: - | GH54: 0.35306 | GI54: -
A55: 37 | B55: =Historical_Data!B39 -> 1978-02-06 | C55: =Historical_Data!C39 -> 1.8034 | D55: =Historical_Data!C404 -> 0 | E55: =Historical_Data!C769 -> 0 | F55: =Historical_Data!C1135 -> 0 | G55: =Historical_Data!C1500 -> 0 | H55: =Historical_Data!C1865 -> 1.8288 | I55: =Historical_Data!C2230 -> 0 | J55: =Historical_Data!C2596 -> 0.27178 | K55: =Historical_Data!C2961 -> 0 | L55: =Historical_Data!C3326 -> 0 | M55: =Historical_Data!C3691 -> 0 | N55: =Historical_Data!C4057 -> 0 | O55: =Historical_Data!C4422 -> 0 | P55: =Historical_Data!C4787 -> 0.37846 | Q55: =Historical_Data!C5152 -> 0 | R55: =Historical_Data!C5518 -> 0.1778 | S55: =Historical_Data!C5883 -> 0 | T55: =Historical_Data!C6248 -> 0 | U55: =Historical_Data!C6613 -> 0 | V55: =Historical_Data!C6979 -> 0 | W55: =Historical_Data!C7344 -> 0 | X55: =Historical_Data!C7709 -> 0.0762 | Y55: =Historical_Data!C8074 -> 0 | Z55: =Historical_Data!C8440 -> 2.8194 | AA55: =Historical_Data!C8805 -> 0 | AC55: 1 | AD55: 0 | AE55: 0 | AF55: 0 | AG55: 0 | AH55: 1 | AI55: 0 | AJ55: 1 | AK55: 0 | AL55: 0 | AM55: 0 | AN55: 0 | AO55: 0 | AP55: 1 | AQ55: 0 | AR55: 1 | AS55: 0 | AT55: 0 | AU55: 0 | AV55: 0 | AW55: 0 | AX55: 1 | AY55: 0 | AZ55: 1 | BA55: 0 | BB55: 0 | BC55: 0 | BD55: 0 | BE55: 0 | BF55: 0 | BG55: 0 | BH55: 0 | BI55: 1 | BJ55: 0 | BK55: 0 | BL55: 0 | BM55: 0 | BN55: 0 | BO55: 0 | BP55: 0 | BQ55: 0 | BR55: 0 | BS55: 0 | BT55: 0 | BU55: 0 | BV55: 0 | BW55: 0 | BX55: 0 | BY55: 1 | BZ55: 0 | CA55: 0 | CB55: 0 | CC55: 0 | CD55: 0 | CE55: 0 | CF55: 0 | CG55: 1 | CH55: 0 | CI55: 1 | CJ55: 0 | CK55: 0 | CL55: 0 | CM55: 0 | CN55: 0 | CO55: 0 | CP55: 0 | CQ55: 0 | CR55: 0 | CS55: 0 | CT55: 0 | CU55: 1 | CV55: 0 | CW55: 0 | CX55: 0 | CY55: 0 | CZ55: 0 | DA55: 1 | DB55: 1 | DC55: 1 | DD55: 1 | DE55: 0 | DF55: 0 | DG55: 0 | DH55: 0 | DI55: 1 | DJ55: 1 | DK55: 1 | DL55: 1 | DM55: 0 | DN55: 1 | DO55: 0 | DP55: 1 | DQ55: 1 | DR55: 1 | DS55: 1 | DT55: 0 | DU55: 0 | DV55: 1 | DW55: 0 | DX55: 1 | DY55: 1 | DZ55: 1 | EA55: 0 | EB55: 0 | EC55: 0 | ED55: 0 | EE55: 1 | EF55: 0 | EG55: 0 | EH55: 0 | EI55: 0 | EJ55: 0 | EK55: 0 | EL55: 0 | EM55: 1 | EN55: 0 | EO55: 1 | EP55: 0 | EQ55: 0 | ER55: 0 | ES55: 0 | ET55: 0 | EU55: 1 | EV55: 0 | EW55: 0 | EX55: 0 | EZ55: 196 | FA55: 80 | FB55: 123 | FC55: 426 | FD55: 121 | FF55: 0.2613333333 | FG55: 0.39408867 | FH55: 0.60591133 | FI55: 0.7787934186 | FJ55: 0.2212065814 | FK55: 1.8034 | FL55: - | FM55: - | FN55: - | FO55: - | FP55: 1.8288 | FQ55: - | FR55: 0.27178 | FS55: - | FT55: - | FU55: - | FV55: - | FW55: - | FX55: 0.37846 | FY55: - | FZ55: 0.1778 | GA55: - | GB55: - | GC55: - | GD55: - | GE55: - | GF55: 0.0762 | GG55: - | GH55: 2.8194 | GI55: -
A56: 38 | B56: =Historical_Data!B40 -> 1978-02-07 | C56: =Historical_Data!C40 -> 0 | D56: =Historical_Data!C405 -> 0.6858 | E56: =Historical_Data!C770 -> 0 | F56: =Historical_Data!C1136 -> 0 | G56: =Historical_Data!C1501 -> 0 | H56: =Historical_Data!C1866 -> 0 | I56: =Historical_Data!C2231 -> 0 | J56: =Historical_Data!C2597 -> 0 | K56: =Historical_Data!C2962 -> 0 | L56: =Historical_Data!C3327 -> 0 | M56: =Historical_Data!C3692 -> 0 | N56: =Historical_Data!C4058 -> 0 | O56: =Historical_Data!C4423 -> 0 | P56: =Historical_Data!C4788 -> 0.58674 | Q56: =Historical_Data!C5153 -> 0 | R56: =Historical_Data!C5519 -> 0 | S56: =Historical_Data!C5884 -> 0 | T56: =Historical_Data!C6249 -> 0 | U56: =Historical_Data!C6614 -> 0.0762 | V56: =Historical_Data!C6980 -> 0.05334 | W56: =Historical_Data!C7345 -> 0 | X56: =Historical_Data!C7710 -> 0.6604 | Y56: =Historical_Data!C8075 -> 0 | Z56: =Historical_Data!C8441 -> 0 | AA56: =Historical_Data!C8806 -> 0.1016 | AC56: 0 | AD56: 1 | AE56: 0 | AF56: 0 | AG56: 0 | AH56: 0 | AI56: 0 | AJ56: 0 | AK56: 0 | AL56: 0 | AM56: 0 | AN56: 0 | AO56: 0 | AP56: 1 | AQ56: 0 | AR56: 0 | AS56: 0 | AT56: 0 | AU56: 1 | AV56: 1 | AW56: 0 | AX56: 1 | AY56: 0 | AZ56: 0 | BA56: 1 | BB56: 0 | BC56: 0 | BD56: 0 | BE56: 0 | BF56: 0 | BG56: 0 | BH56: 0 | BI56: 0 | BJ56: 0 | BK56: 0 | BL56: 0 | BM56: 0 | BN56: 0 | BO56: 1 | BP56: 0 | BQ56: 0 | BR56: 0 | BS56: 0 | BT56: 0 | BU56: 0 | BV56: 0 | BW56: 1 | BX56: 0 | BY56: 0 | BZ56: 0 | CA56: 1 | CB56: 0 | CC56: 0 | CD56: 0 | CE56: 0 | CF56: 1 | CG56: 0 | CH56: 1 | CI56: 0 | CJ56: 0 | CK56: 0 | CL56: 0 | CM56: 0 | CN56: 0 | CO56: 0 | CP56: 1 | CQ56: 0 | CR56: 0 | CS56: 0 | CT56: 0 | CU56: 0 | CV56: 0 | CW56: 0 | CX56: 1 | CY56: 0 | CZ56: 0 | DA56: 0 | DB56: 1 | DC56: 1 | DD56: 1 | DE56: 0 | DF56: 1 | DG56: 0 | DH56: 1 | DI56: 1 | DJ56: 1 | DK56: 1 | DL56: 1 | DM56: 0 | DN56: 1 | DO56: 0 | DP56: 1 | DQ56: 1 | DR56: 0 | DS56: 0 | DT56: 1 | DU56: 0 | DV56: 1 | DW56: 0 | DX56: 0 | DY56: 0 | DZ56: 0 | EA56: 1 | EB56: 0 | EC56: 0 | ED56: 0 | EE56: 0 | EF56: 0 | EG56: 0 | EH56: 0 | EI56: 0 | EJ56: 0 | EK56: 0 | EL56: 0 | EM56: 0 | EN56: 0 | EO56: 0 | EP56: 0 | EQ56: 0 | ER56: 1 | ES56: 1 | ET56: 0 | EU56: 0 | EV56: 0 | EW56: 0 | EX56: 1 | EZ56: 195 | FA56: 81 | FB56: 120 | FC56: 426 | FD56: 120 | FF56: 0.26 | FG56: 0.4029850746 | FH56: 0.5970149254 | FI56: 0.7802197802 | FJ56: 0.2197802198 | FK56: - | FL56: 0.6858 | FM56: - | FN56: - | FO56: - | FP56: - | FQ56: - | FR56: - | FS56: - | FT56: - | FU56: - | FV56: - | FW56: - | FX56: 0.58674 | FY56: - | FZ56: - | GA56: - | GB56: - | GC56: 0.0762 | GD56: 0.05334 | GE56: - | GF56: 0.6604 | GG56: - | GH56: - | GI56: 0.1016
A57: 39 | B57: =Historical_Data!B41 -> 1978-02-08 | C57: =Historical_Data!C41 -> 0 | D57: =Historical_Data!C406 -> 0 | E57: =Historical_Data!C771 -> 0 | F57: =Historical_Data!C1137 -> 0.9398 | G57: =Historical_Data!C1502 -> 0 | H57: =Historical_Data!C1867 -> 0 | I57: =Historical_Data!C2232 -> 0 | J57: =Historical_Data!C2598 -> 0 | K57: =Historical_Data!C2963 -> 0 | L57: =Historical_Data!C3328 -> 0 | M57: =Historical_Data!C3693 -> 0 | N57: =Historical_Data!C4059 -> 0 | O57: =Historical_Data!C4424 -> 0 | P57: =Historical_Data!C4789 -> 0 | Q57: =Historical_Data!C5154 -> 0.1524 | R57: =Historical_Data!C5520 -> 0 | S57: =Historical_Data!C5885 -> 0.508 | T57: =Historical_Data!C6250 -> 0 | U57: =Historical_Data!C6615 -> 0.6858 | V57: =Historical_Data!C6981 -> 0 | W57: =Historical_Data!C7346 -> 0 | X57: =Historical_Data!C7711 -> 0.5334 | Y57: =Historical_Data!C8076 -> 0 | Z57: =Historical_Data!C8442 -> 0.2794 | AA57: =Historical_Data!C8807 -> 0 | AC57: 0 | AD57: 0 | AE57: 0 | AF57: 1 | AG57: 0 | AH57: 0 | AI57: 0 | AJ57: 0 | AK57: 0 | AL57: 0 | AM57: 0 | AN57: 0 | AO57: 0 | AP57: 0 | AQ57: 1 | AR57: 0 | AS57: 1 | AT57: 0 | AU57: 1 | AV57: 0 | AW57: 0 | AX57: 1 | AY57: 0 | AZ57: 1 | BA57: 0 | BB57: 0 | BC57: 0 | BD57: 0 | BE57: 0 | BF57: 0 | BG57: 0 | BH57: 0 | BI57: 0 | BJ57: 0 | BK57: 0 | BL57: 0 | BM57: 0 | BN57: 0 | BO57: 0 | BP57: 0 | BQ57: 0 | BR57: 0 | BS57: 0 | BT57: 1 | BU57: 0 | BV57: 0 | BW57: 1 | BX57: 0 | BY57: 0 | BZ57: 0 | CA57: 0 | CB57: 1 | CC57: 0 | CD57: 0 | CE57: 0 | CF57: 0 | CG57: 0 | CH57: 0 | CI57: 0 | CJ57: 0 | CK57: 0 | CL57: 0 | CM57: 0 | CN57: 1 | CO57: 0 | CP57: 0 | CQ57: 0 | CR57: 0 | CS57: 0 | CT57: 1 | CU57: 0 | CV57: 0 | CW57: 0 | CX57: 0 | CY57: 1 | CZ57: 1 | DA57: 0 | DB57: 1 | DC57: 0 | DD57: 1 | DE57: 1 | DF57: 1 | DG57: 1 | DH57: 1 | DI57: 1 | DJ57: 1 | DK57: 1 | DL57: 1 | DM57: 0 | DN57: 0 | DO57: 1 | DP57: 0 | DQ57: 1 | DR57: 0 | DS57: 0 | DT57: 1 | DU57: 0 | DV57: 1 | DW57: 0 | DX57: 0 | DY57: 0 | DZ57: 0 | EA57: 0 | EB57: 0 | EC57: 1 | ED57: 0 | EE57: 0 | EF57: 0 | EG57: 0 | EH57: 0 | EI57: 0 | EJ57: 0 | EK57: 0 | EL57: 0 | EM57: 0 | EN57: 1 | EO57: 0 | EP57: 1 | EQ57: 0 | ER57: 0 | ES57: 0 | ET57: 0 | EU57: 0 | EV57: 0 | EW57: 1 | EX57: 0 | EZ57: 197 | FA57: 81 | FB57: 123 | FC57: 423 | FD57: 122 | FF57: 0.2626666667 | FG57: 0.3970588235 | FH57: 0.6029411765 | FI57: 0.776146789 | FJ57: 0.223853211 | FK57: - | FL57: - | FM57: - | FN57: 0.9398 | FO57: - | FP57: - | FQ57: - | FR57: - | FS57: - | FT57: - | FU57: - | FV57: - | FW57: - | FX57: - | FY57: 0.1524 | FZ57: - | GA57: 0.508 | GB57: - | GC57: 0.6858 | GD57: - | GE57: - | GF57: 0.5334 | GG57: - | GH57: 0.2794 | GI57: -
A58: 40 | B58: =Historical_Data!B42 -> 1978-02-09 | C58: =Historical_Data!C42 -> 0 | D58: =Historical_Data!C407 -> 0 | E58: =Historical_Data!C772 -> 0 | F58: =Historical_Data!C1138 -> 0 | G58: =Historical_Data!C1503 -> 1.2954 | H58: =Historical_Data!C1868 -> 0 | I58: =Historical_Data!C2233 -> 0 | J58: =Historical_Data!C2599 -> 0 | K58: =Historical_Data!C2964 -> 0 | L58: =Historical_Data!C3329 -> 0 | M58: =Historical_Data!C3694 -> 0 | N58: =Historical_Data!C4060 -> 0 | O58: =Historical_Data!C4425 -> 0.54102 | P58: =Historical_Data!C4790 -> 0 | Q58: =Historical_Data!C5155 -> 0 | R58: =Historical_Data!C5521 -> 0 | S58: =Historical_Data!C5886 -> 0.1524 | T58: =Historical_Data!C6251 -> 0 | U58: =Historical_Data!C6616 -> 0 | V58: =Historical_Data!C6982 -> 0 | W58: =Historical_Data!C7347 -> 0 | X58: =Historical_Data!C7712 -> 0 | Y58: =Historical_Data!C8077 -> 0 | Z58: =Historical_Data!C8443 -> 0 | AA58: =Historical_Data!C8808 -> 0 | AC58: 0 | AD58: 0 | AE58: 0 | AF58: 0 | AG58: 1 | AH58: 0 | AI58: 0 | AJ58: 0 | AK58: 0 | AL58: 0 | AM58: 0 | AN58: 0 | AO58: 1 | AP58: 0 | AQ58: 0 | AR58: 0 | AS58: 1 | AT58: 0 | AU58: 0 | AV58: 0 | AW58: 0 | AX58: 0 | AY58: 0 | AZ58: 0 | BA58: 0 | BB58: 0 | BC58: 0 | BD58: 0 | BE58: 0 | BF58: 0 | BG58: 0 | BH58: 0 | BI58: 0 | BJ58: 0 | BK58: 0 | BL58: 0 | BM58: 0 | BN58: 0 | BO58: 0 | BP58: 0 | BQ58: 0 | BR58: 1 | BS58: 0 | BT58: 0 | BU58: 0 | BV58: 0 | BW58: 0 | BX58: 0 | BY58: 0 | BZ58: 0 | CA58: 0 | CB58: 0 | CC58: 0 | CD58: 1 | CE58: 0 | CF58: 0 | CG58: 0 | CH58: 0 | CI58: 0 | CJ58: 0 | CK58: 0 | CL58: 0 | CM58: 0 | CN58: 0 | CO58: 1 | CP58: 0 | CQ58: 0 | CR58: 0 | CS58: 1 | CT58: 0 | CU58: 0 | CV58: 1 | CW58: 0 | CX58: 1 | CY58: 0 | CZ58: 1 | DA58: 1 | DB58: 1 | DC58: 0 | DD58: 0 | DE58: 1 | DF58: 1 | DG58: 1 | DH58: 1 | DI58: 1 | DJ58: 1 | DK58: 1 | DL58: 0 | DM58: 1 | DN58: 0 | DO58: 1 | DP58: 0 | DQ58: 1 | DR58: 0 | DS58: 1 | DT58: 1 | DU58: 0 | DV58: 1 | DW58: 0 | DX58: 1 | DY58: 0 | DZ58: 0 | EA58: 0 | EB58: 0 | EC58: 0 | ED58: 1 | EE58: 0 | EF58: 0 | EG58: 0 | EH58: 0 | EI58: 0 | EJ58: 0 | EK58: 0 | EL58: 1 | EM58: 0 | EN58: 0 | EO58: 0 | EP58: 0 | EQ58: 0 | ER58: 0 | ES58: 0 | ET58: 0 | EU58: 0 | EV58: 0 | EW58: 0 | EX58: 0 | EZ58: 194 | FA58: 80 | FB58: 124 | FC58: 423 | FD58: 120 | FF58: 0.2586666667 | FG58: 0.3921568627 | FH58: 0.6078431373 | FI58: 0.7790055249 | FJ58: 0.2209944751 | FK58: - | FL58: - | FM58: - | FN58: - | FO58: 1.2954 | FP58: - | FQ58: - | FR58: - | FS58: - | FT58: - | FU58: - | FV58: - | FW58: 0.54102 | FX58: - | FY58: - | FZ58: - | GA58: 0.1524 | GB58: - | GC58: - | GD58: - | GE58: - | GF58: - | GG58: - | GH58: - | GI58: -
A59: 41 | B59: =Historical_Data!B43 -> 1978-02-10 | C59: =Historical_Data!C43 -> 0 | D59: =Historical_Data!C408 -> 0 | E59: =Historical_Data!C773 -> 0 | F59: =Historical_Data!C1139 -> 0.508 | G59: =Historical_Data!C1504 -> 0 | H59: =Historical_Data!C1869 -> 0 | I59: =Historical_Data!C2234 -> 0 | J59: =Historical_Data!C2600 -> 0 | K59: =Historical_Data!C2965 -> 0.762 | L59: =Historical_Data!C3330 -> 0 | M59: =Historical_Data!C3695 -> 0 | N59: =Historical_Data!C4061 -> 0 | O59: =Historical_Data!C4426 -> 1.08458 | P59: =Historical_Data!C4791 -> 0 | Q59: =Historical_Data!C5156 -> 0 | R59: =Historical_Data!C5522 -> 0 | S59: =Historical_Data!C5887 -> 0.01016 | T59: =Historical_Data!C6252 -> 0 | U59: =Historical_Data!C6617 -> 0 | V59: =Historical_Data!C6983 -> 0 | W59: =Historical_Data!C7348 -> 0 | X59: =Historical_Data!C7713 -> 0 | Y59: =Historical_Data!C8078 -> 0 | Z59: =Historical_Data!C8444 -> 0 | AA59: =Historical_Data!C8809 -> 0 | AC59: 0 | AD59: 0 | AE59: 0 | AF59: 1 | AG59: 0 | AH59: 0 | AI59: 0 | AJ59: 0 | AK59: 1 | AL59: 0 | AM59: 0 | AN59: 0 | AO59: 1 | AP59: 0 | AQ59: 0 | AR59: 0 | AS59: 1 | AT59: 0 | AU59: 0 | AV59: 0 | AW59: 0 | AX59: 0 | AY59: 0 | AZ59: 0 | BA59: 0 | BB59: 0 | BC59: 0 | BD59: 0 | BE59: 0 | BF59: 0 | BG59: 0 | BH59: 0 | BI59: 0 | BJ59: 0 | BK59: 0 | BL59: 0 | BM59: 0 | BN59: 1 | BO59: 0 | BP59: 0 | BQ59: 0 | BR59: 1 | BS59: 0 | BT59: 0 | BU59: 0 | BV59: 0 | BW59: 0 | BX59: 0 | BY59: 0 | BZ59: 0 | CA59: 0 | CB59: 0 | CC59: 0 | CD59: 0 | CE59: 1 | CF59: 0 | CG59: 0 | CH59: 0 | CI59: 0 | CJ59: 0 | CK59: 0 | CL59: 0 | CM59: 0 | CN59: 0 | CO59: 0 | CP59: 0 | CQ59: 0 | CR59: 0 | CS59: 0 | CT59: 0 | CU59: 0 | CV59: 0 | CW59: 0 | CX59: 0 | CY59: 0 | CZ59: 1 | DA59: 1 | DB59: 1 | DC59: 0 | DD59: 0 | DE59: 1 | DF59: 1 | DG59: 1 | DH59: 0 | DI59: 1 | DJ59: 1 | DK59: 1 | DL59: 0 | DM59: 1 | DN59: 1 | DO59: 1 | DP59: 0 | DQ59: 1 | DR59: 1 | DS59: 1 | DT59: 1 | DU59: 1 | DV59: 1 | DW59: 1 | DX59: 1 | DY59: 0 | DZ59: 0 | EA59: 0 | EB59: 0 | EC59: 1 | ED59: 0 | EE59: 0 | EF59: 0 | EG59: 0 | EH59: 1 | EI59: 0 | EJ59: 0 | EK59: 0 | EL59: 0 | EM59: 0 | EN59: 0 | EO59: 0 | EP59: 0 | EQ59: 0 | ER59: 0 | ES59: 0 | ET59: 0 | EU59: 0 | EV59: 0 | EW59: 0 | EX59: 0 | EZ59: 192 | FA59: 81 | FB59: 122 | FC59: 427 | FD59: 119 | FF59: 0.256 | FG59: 0.3990147783 | FH59: 0.6009852217 | FI59: 0.7820512821 | FJ59: 0.2179487179 | FK59: - | FL59: - | FM59: - | FN59: 0.508 | FO59: - | FP59: - | FQ59: - | FR59: - | FS59: 0.762 | FT59: - | FU59: - | FV59: - | FW59: 1.08458 | FX59: - | FY59: - | FZ59: - | GA59: 0.01016 | GB59: - | GC59: - | GD59: - | GE59: - | GF59: - | GG59: - | GH59: - | GI59: -
A60: 42 | B60: =Historical_Data!B44 -> 1978-02-11 | C60: =Historical_Data!C44 -> 0 | D60: =Historical_Data!C409 -> 0 | E60: =Historical_Data!C774 -> 0 | F60: =Historical_Data!C1140 -> 1.8796 | G60: =Historical_Data!C1505 -> 0 | H60: =Historical_Data!C1870 -> 1.5748 | I60: =Historical_Data!C2235 -> 0.127 | J60: =Historical_Data!C2601 -> 0 | K60: =Historical_Data!C2966 -> 0 | L60: =Historical_Data!C3331 -> 0 | M60: =Historical_Data!C3696 -> 1.58496 | N60: =Historical_Data!C4062 -> 0 | O60: =Historical_Data!C4427 -> 0 | P60: =Historical_Data!C4792 -> 0 | Q60: =Historical_Data!C5157 -> 0 | R60: =Historical_Data!C5523 -> 0 | S60: =Historical_Data!C5888 -> 0.75184 | T60: =Historical_Data!C6253 -> 0 | U60: =Historical_Data!C6618 -> 0 | V60: =Historical_Data!C6984 -> 0 | W60: =Historical_Data!C7349 -> 0.9906 | X60: =Historical_Data!C7714 -> 0 | Y60: =Historical_Data!C8079 -> 0.2794 | Z60: =Historical_Data!C8445 -> 0 | AA60: =Historical_Data!C8810 -> 0 | AC60: 0 | AD60: 0 | AE60: 0 | AF60: 1 | AG60: 0 | AH60: 1 | AI60: 1 | AJ60: 0 | AK60: 0 | AL60: 0 | AM60: 1 | AN60: 0 | AO60: 0 | AP60: 0 | AQ60: 0 | AR60: 0 | AS60: 1 | AT60: 0 | AU60: 0 | AV60: 0 | AW60: 1 | AX60: 0 | AY60: 1 | AZ60: 0 | BA60: 0 | BB60: 0 | BC60: 0 | BD60: 0 | BE60: 1 | BF60: 0 | BG60: 0 | BH60: 0 | BI60: 0 | BJ60: 0 | BK60: 0 | BL60: 0 | BM60: 0 | BN60: 0 | BO60: 0 | BP60: 0 | BQ60: 0 | BR60: 1 | BS60: 0 | BT60: 0 | BU60: 0 | BV60: 0 | BW60: 0 | BX60: 0 | BY60: 0 | BZ60: 0 | CA60: 0 | CB60: 0 | CC60: 0 | CD60: 0 | CE60: 0 | CF60: 0 | CG60: 0 | CH60: 0 | CI60: 1 | CJ60: 0 | CK60: 0 | CL60: 0 | CM60: 1 | CN60: 0 | CO60: 0 | CP60: 0 | CQ60: 0 | CR60: 0 | CS60: 0 | CT60: 0 | CU60: 0 | CV60: 0 | CW60: 0 | CX60: 0 | CY60: 0 | CZ60: 1 | DA60: 1 | DB60: 1 | DC60: 0 | DD60: 1 | DE60: 0 | DF60: 0 | DG60: 1 | DH60: 0 | DI60: 1 | DJ60: 0 | DK60: 1 | DL60: 0 | DM60: 1 | DN60: 1 | DO60: 1 | DP60: 0 | DQ60: 1 | DR60: 1 | DS60: 1 | DT60: 0 | DU60: 1 | DV60: 0 | DW60: 1 | DX60: 1 | DY60: 0 | DZ60: 0 | EA60: 0 | EB60: 0 | EC60: 0 | ED60: 0 | EE60: 1 | EF60: 1 | EG60: 0 | EH60: 0 | EI60: 0 | EJ60: 1 | EK60: 0 | EL60: 0 | EM60: 0 | EN60: 0 | EO60: 0 | EP60: 0 | EQ60: 0 | ER60: 0 | ES60: 0 | ET60: 1 | EU60: 0 | EV60: 1 | EW60: 0 | EX60: 0 | EZ60: 195 | FA60: 79 | FB60: 122 | FC60: 429 | FD60: 120 | FF60: 0.26 | FG60: 0.3930348259 | FH60: 0.6069651741 | FI60: 0.781420765 | FJ60: 0.218579235 | FK60: - | FL60: - | FM60: - | FN60: 1.8796 | FO60: - | FP60: 1.5748 | FQ60: 0.127 | FR60: - | FS60: - | FT60: - | FU60: 1.58496 | FV60: - | FW60: - | FX60: - | FY60: - | FZ60: - | GA60: 0.75184 | GB60: - | GC60: - | GD60: - | GE60: 0.9906 | GF60: - | GG60: 0.2794 | GH60: - | GI60: -
A61: 43 | B61: =Historical_Data!B45 -> 1978-02-12 | C61: =Historical_Data!C45 -> 0 | D61: =Historical_Data!C410 -> 0.2794 | E61: =Historical_Data!C775 -> 0 | F61: =Historical_Data!C1141 -> 0 | G61: =Historical_Data!C1506 -> 0 | H61: =Historical_Data!C1871 -> 0 | I61: =Historical_Data!C2236 -> 0 | J61: =Historical_Data!C2602 -> 2.667 | K61: =Historical_Data!C2967 -> 0 | L61: =Historical_Data!C3332 -> 0.1524 | M61: =Historical_Data!C3697 -> 2.8194 | N61: =Historical_Data!C4063 -> 0 | O61: =Historical_Data!C4428 -> 0 | P61: =Historical_Data!C4793 -> 0 | Q61: =Historical_Data!C5158 -> 0 | R61: =Historical_Data!C5524 -> 1.53924 | S61: =Historical_Data!C5889 -> 0.0762 | T61: =Historical_Data!C6254 -> 0 | U61: =Historical_Data!C6619 -> 0 | V61: =Historical_Data!C6985 -> 0 | W61: =Historical_Data!C7350 -> 0.2286 | X61: =Historical_Data!C7715 -> 1.397 | Y61: =Historical_Data!C8080 -> 0 | Z61: =Historical_Data!C8446 -> 0 | AA61: =Historical_Data!C8811 -> 0 | AC61: 0 | AD61: 1 | AE61: 0 | AF61: 0 | AG61: 0 | AH61: 0 | AI61: 0 | AJ61: 1 | AK61: 0 | AL61: 1 | AM61: 1 | AN61: 0 | AO61: 0 | AP61: 0 | AQ61: 0 | AR61: 1 | AS61: 1 | AT61: 0 | AU61: 0 | AV61: 0 | AW61: 1 | AX61: 1 | AY61: 0 | AZ61: 0 | BA61: 0 | BB61: 0 | BC61: 0 | BD61: 0 | BE61: 0 | BF61: 0 | BG61: 0 | BH61: 0 | BI61: 0 | BJ61: 0 | BK61: 0 | BL61: 1 | BM61: 0 | BN61: 0 | BO61: 0 | BP61: 0 | BQ61: 0 | BR61: 1 | BS61: 0 | BT61: 0 | BU61: 0 | BV61: 1 | BW61: 0 | BX61: 0 | BY61: 0 | BZ61: 0 | CA61: 0 | CB61: 0 | CC61: 0 | CD61: 1 | CE61: 0 | CF61: 1 | CG61: 1 | CH61: 0 | CI61: 0 | CJ61: 0 | CK61: 0 | CL61: 0 | CM61: 0 | CN61: 0 | CO61: 0 | CP61: 0 | CQ61: 0 | CR61: 0 | CS61: 0 | CT61: 0 | CU61: 0 | CV61: 0 | CW61: 1 | CX61: 0 | CY61: 0 | CZ61: 1 | DA61: 0 | DB61: 1 | DC61: 0 | DD61: 1 | DE61: 0 | DF61: 0 | DG61: 0 | DH61: 1 | DI61: 0 | DJ61: 0 | DK61: 1 | DL61: 1 | DM61: 1 | DN61: 1 | DO61: 0 | DP61: 0 | DQ61: 1 | DR61: 1 | DS61: 1 | DT61: 0 | DU61: 0 | DV61: 0 | DW61: 1 | DX61: 1 | DY61: 0 | DZ61: 0 | EA61: 1 | EB61: 0 | EC61: 0 | ED61: 0 | EE61: 0 | EF61: 0 | EG61: 1 | EH61: 0 | EI61: 1 | EJ61: 0 | EK61: 0 | EL61: 0 | EM61: 0 | EN61: 0 | EO61: 1 | EP61: 0 | EQ61: 0 | ER61: 0 | ES61: 0 | ET61: 0 | EU61: 1 | EV61: 0 | EW61: 0 | EX61: 0 | EZ61: 193 | FA61: 79 | FB61: 120 | FC61: 430 | FD61: 118 | FF61: 0.2573333333 | FG61: 0.3969849246 | FH61: 0.6030150754 | FI61: 0.7846715328 | FJ61: 0.2153284672 | FK61: - | FL61: 0.2794 | FM61: - | FN61: - | FO61: - | FP61: - | FQ61: - | FR61: 2.667 | FS61: - | FT61: 0.1524 | FU61: 2.8194 | FV61: - | FW61: - | FX61: - | FY61: - | FZ61: 1.53924 | GA61: 0.0762 | GB61: - | GC61: - | GD61: - | GE61: 0.2286 | GF61: 1.397 | GG61: - | GH61: - | GI61: -
A62: 44 | B62: =Historical_Data!B46 -> 1978-02-13 | C62: =Historical_Data!C46 -> 0.8636 | D62: =Historical_Data!C411 -> 0.4826 | E62: =Historical_Data!C776 -> 0 | F62: =Historical_Data!C1142 -> 0 | G62: =Historical_Data!C1507 -> 0 | H62: =Historical_Data!C1872 -> 1.2954 | I62: =Historical_Data!C2237 -> 0 | J62: =Historical_Data!C2603 -> 0 | K62: =Historical_Data!C2968 -> 0 | L62: =Historical_Data!C3333 -> 0 | M62: =Historical_Data!C3698 -> 0 | N62: =Historical_Data!C4064 -> 0.254 | O62: =Historical_Data!C4429 -> 0 | P62: =Historical_Data!C4794 -> 0.51816 | Q62: =Historical_Data!C5159 -> 0.2794 | R62: =Historical_Data!C5525 -> 2.27076 | S62: =Historical_Data!C5890 -> 0.0762 | T62: =Historical_Data!C6255 -> 0 | U62: =Historical_Data!C6620 -> 0 | V62: =Historical_Data!C6986 -> 0.8382 | W62: =Historical_Data!C7351 -> 0 | X62: =Historical_Data!C7716 -> 0 | Y62: =Historical_Data!C8081 -> 0.30734 | Z62: =Historical_Data!C8447 -> 0 | AA62: =Historical_Data!C8812 -> 0 | AC62: 1 | AD62: 1 | AE62: 0 | AF62: 0 | AG62: 0 | AH62: 1 | AI62: 0 | AJ62: 0 | AK62: 0 | AL62: 0 | AM62: 0 | AN62: 1 | AO62: 0 | AP62: 1 | AQ62: 1 | AR62: 1 | AS62: 1 | AT62: 0 | AU62: 0 | AV62: 1 | AW62: 0 | AX62: 0 | AY62: 1 | AZ62: 0 | BA62: 0 | BB62: 0 | BC62: 1 | BD62: 0 | BE62: 0 | BF62: 0 | BG62: 0 | BH62: 0 | BI62: 0 | BJ62: 0 | BK62: 0 | BL62: 0 | BM62: 0 | BN62: 0 | BO62: 0 | BP62: 0 | BQ62: 1 | BR62: 1 | BS62: 0 | BT62: 0 | BU62: 0 | BV62: 0 | BW62: 0 | BX62: 0 | BY62: 0 | BZ62: 0 | CA62: 0 | CB62: 0 | CC62: 0 | CD62: 0 | CE62: 0 | CF62: 0 | CG62: 0 | CH62: 1 | CI62: 0 | CJ62: 1 | CK62: 1 | CL62: 0 | CM62: 0 | CN62: 0 | CO62: 0 | CP62: 0 | CQ62: 0 | CR62: 0 | CS62: 0 | CT62: 0 | CU62: 1 | CV62: 1 | CW62: 0 | CX62: 0 | CY62: 0 | CZ62: 0 | DA62: 0 | DB62: 1 | DC62: 1 | DD62: 1 | DE62: 0 | DF62: 1 | DG62: 0 | DH62: 1 | DI62: 0 | DJ62: 0 | DK62: 0 | DL62: 1 | DM62: 0 | DN62: 0 | DO62: 0 | DP62: 0 | DQ62: 1 | DR62: 1 | DS62: 0 | DT62: 0 | DU62: 0 | DV62: 0 | DW62: 1 | DX62: 1 | DY62: 1 | DZ62: 1 | EA62: 0 | EB62: 0 | EC62: 0 | ED62: 0 | EE62: 1 | EF62: 0 | EG62: 0 | EH62: 0 | EI62: 0 | EJ62: 0 | EK62: 1 | EL62: 0 | EM62: 1 | EN62: 1 | EO62: 0 | EP62: 0 | EQ62: 0 | ER62: 0 | ES62: 1 | ET62: 0 | EU62: 0 | EV62: 1 | EW62: 0 | EX62: 0 | EZ62: 196 | FA62: 78 | FB62: 122 | FC62: 425 | FD62: 122 | FF62: 0.2613333333 | FG62: 0.39 | FH62: 0.61 | FI62: 0.7769652651 | FJ62: 0.2230347349 | FK62: 0.8636 | FL62: 0.4826 | FM62: - | FN62: - | FO62: - | FP62: 1.2954 | FQ62: - | FR62: - | FS62: - | FT62: - | FU62: - | FV62: 0.254 | FW62: - | FX62: 0.51816 | FY62: 0.2794 | FZ62: 2.27076 | GA62: 0.0762 | GB62: - | GC62: - | GD62: 0.8382 | GE62: - | GF62: - | GG62: 0.30734 | GH62: - | GI62: -
A63: 45 | B63: =Historical_Data!B47 -> 1978-02-14 | C63: =Historical_Data!C47 -> 0 | D63: =Historical_Data!C412 -> 0 | E63: =Historical_Data!C777 -> 0 | F63: =Historical_Data!C1143 -> 0 | G63: =Historical_Data!C1508 -> 0 | H63: =Historical_Data!C1873 -> 0 | I63: =Historical_Data!C2238 -> 2.7432 | J63: =Historical_Data!C2604 -> 0 | K63: =Historical_Data!C2969 -> 0.508 | L63: =Historical_Data!C3334 -> 0 | M63: =Historical_Data!C3699 -> 0 | N63: =Historical_Data!C4065 -> 0.508 | O63: =Historical_Data!C4430 -> 0 | P63: =Historical_Data!C4795 -> 0.77724 | Q63: =Historical_Data!C5160 -> 0 | R63: =Historical_Data!C5526 -> 0 | S63: =Historical_Data!C5891 -> 0 | T63: =Historical_Data!C6256 -> 0 | U63: =Historical_Data!C6621 -> 0.127 | V63: =Historical_Data!C6987 -> 0.57658 | W63: =Historical_Data!C7352 -> 0 | X63: =Historical_Data!C7717 -> 0.1524 | Y63: =Historical_Data!C8082 -> 1.19126 | Z63: =Historical_Data!C8448 -> 0.02032 | AA63: =Historical_Data!C8813 -> 0 | AC63: 0 | AD63: 0 | AE63: 0 | AF63: 0 | AG63: 0 | AH63: 0 | AI63: 1 | AJ63: 0 | AK63: 1 | AL63: 0 | AM63: 0 | AN63: 1 | AO63: 0 | AP63: 1 | AQ63: 0 | AR63: 0 | AS63: 0 | AT63: 0 | AU63: 1 | AV63: 1 | AW63: 0 | AX63: 1 | AY63: 1 | AZ63: 1 | BA63: 0 | BB63: 0 | BC63: 0 | BD63: 0 | BE63: 0 | BF63: 0 | BG63: 0 | BH63: 0 | BI63: 0 | BJ63: 0 | BK63: 0 | BL63: 0 | BM63: 1 | BN63: 0 | BO63: 1 | BP63: 0 | BQ63: 0 | BR63: 0 | BS63: 0 | BT63: 0 | BU63: 1 | BV63: 0 | BW63: 0 | BX63: 1 | BY63: 0 | BZ63: 0 | CA63: 1 | CB63: 1 | CC63: 0 | CD63: 0 | CE63: 0 | CF63: 1 | CG63: 0 | CH63: 0 | CI63: 0 | CJ63: 0 | CK63: 0 | CL63: 0 | CM63: 0 | CN63: 0 | CO63: 1 | CP63: 1 | CQ63: 1 | CR63: 0 | CS63: 0 | CT63: 0 | CU63: 0 | CV63: 0 | CW63: 0 | CX63: 0 | CY63: 0 | CZ63: 0 | DA63: 0 | DB63: 1 | DC63: 1 | DD63: 1 | DE63: 0 | DF63: 0 | DG63: 1 | DH63: 0 | DI63: 1 | DJ63: 1 | DK63: 0 | DL63: 1 | DM63: 0 | DN63: 0 | DO63: 0 | DP63: 0 | DQ63: 1 | DR63: 0 | DS63: 0 | DT63: 1 | DU63: 0 | DV63: 0 | DW63: 0 | DX63: 1 | DY63: 0 | DZ63: 0 | EA63: 0 | EB63: 0 | EC63: 0 | ED63: 0 | EE63: 0 | EF63: 1 | EG63: 0 | EH63: 1 | EI63: 0 | EJ63: 0 | EK63: 0 | EL63: 0 | EM63: 0 | EN63: 0 | EO63: 0 | EP63: 0 | EQ63: 0 | ER63: 1 | ES63: 0 | ET63: 0 | EU63: 1 | EV63: 0 | EW63: 1 | EX63: 0 | EZ63: 199 | FA63: 83 | FB63: 120 | FC63: 420 | FD63: 123 | FF63: 0.2653333333 | FG63: 0.4088669951 | FH63: 0.5911330049 | FI63: 0.773480663 | FJ63: 0.226519337 | FK63: - | FL63: - | FM63: - | FN63: - | FO63: - | FP63: - | FQ63: 2.7432 | FR63: - | FS63: 0.508 | FT63: - | FU63: - | FV63: 0.508 | FW63: - | FX63: 0.77724 | FY63: - | FZ63: - | GA63: - | GB63: - | GC63: 0.127 | GD63: 0.57658 | GE63: - | GF63: 0.1524 | GG63: 1.19126 | GH63: 0.02032 | GI63: -
A64: 46 | B64: =Historical_Data!B48 -> 1978-02-15 | C64: =Historical_Data!C48 -> 0 | D64: =Historical_Data!C413 -> 0.27432 | E64: =Historical_Data!C778 -> 0.0254 | F64: =Historical_Data!C1144 -> 0 | G64: =Historical_Data!C1509 -> 0 | H64: =Historical_Data!C1874 -> 0 | I64: =Historical_Data!C2239 -> 3.5306 | J64: =Historical_Data!C2605 -> 0 | K64: =Historical_Data!C2970 -> 0 | L64: =Historical_Data!C3335 -> 0 | M64: =Historical_Data!C3700 -> 0.14478 | N64: =Historical_Data!C4066 -> 1.4986 | O64: =Historical_Data!C4431 -> 0 | P64: =Historical_Data!C4796 -> 0 | Q64: =Historical_Data!C5161 -> 2.1844 | R64: =Historical_Data!C5527 -> 0 | S64: =Historical_Data!C5892 -> 0 | T64: =Historical_Data!C6257 -> 1.33604 | U64: =Historical_Data!C6622 -> 0 | V64: =Historical_Data!C6988 -> 0 | W64: =Historical_Data!C7353 -> 0 | X64: =Historical_Data!C7718 -> 0 | Y64: =Historical_Data!C8083 -> 0 | Z64: =Historical_Data!C8449 -> 0.33528 | AA64: =Historical_Data!C8814 -> 0.4318 | AC64: 0 | AD64: 1 | AE64: 1 | AF64: 0 | AG64: 0 | AH64: 0 | AI64: 1 | AJ64: 0 | AK64: 0 | AL64: 0 | AM64: 1 | AN64: 1 | AO64: 0 | AP64: 0 | AQ64: 1 | AR64: 0 | AS64: 0 | AT64: 1 | AU64: 0 | AV64: 0 | AW64: 0 | AX64: 0 | AY64: 0 | AZ64: 1 | BA64: 1 | BB64: 0 | BC64: 0 | BD64: 0 | BE64: 0 | BF64: 0 | BG64: 0 | BH64: 1 | BI64: 0 | BJ64: 0 | BK64: 0 | BL64: 0 | BM64: 1 | BN64: 0 | BO64: 0 | BP64: 0 | BQ64: 0 | BR64: 0 | BS64: 0 | BT64: 0 | BU64: 0 | BV64: 0 | BW64: 0 | BX64: 0 | BY64: 1 | BZ64: 0 | CA64: 0 | CB64: 0 | CC64: 0 | CD64: 0 | CE64: 0 | CF64: 0 | CG64: 0 | CH64: 0 | CI64: 1 | CJ64: 0 | CK64: 0 | CL64: 0 | CM64: 0 | CN64: 1 | CO64: 0 | CP64: 0 | CQ64: 0 | CR64: 0 | CS64: 1 | CT64: 1 | CU64: 0 | CV64: 1 | CW64: 1 | CX64: 0 | CY64: 0 | CZ64: 1 | DA64: 0 | DB64: 0 | DC64: 1 | DD64: 1 | DE64: 1 | DF64: 0 | DG64: 1 | DH64: 0 | DI64: 1 | DJ64: 0 | DK64: 0 | DL64: 1 | DM64: 0 | DN64: 0 | DO64: 1 | DP64: 1 | DQ64: 0 | DR64: 0 | DS64: 0 | DT64: 1 | DU64: 0 | DV64: 0 | DW64: 0 | DX64: 0 | DY64: 0 | DZ64: 0 | EA64: 1 | EB64: 1 | EC64: 0 | ED64: 0 | EE64: 0 | EF64: 0 | EG64: 0 | EH64: 0 | EI64: 0 | EJ64: 1 | EK64: 0 | EL64: 0 | EM64: 0 | EN64: 1 | EO64: 0 | EP64: 0 | EQ64: 1 | ER64: 0 | ES64: 0 | ET64: 0 | EU64: 0 | EV64: 0 | EW64: 0 | EX64: 1 | EZ64: 203 | FA64: 85 | FB64: 125 | FC64: 416 | FD64: 124 | FF64: 0.2706666667 | FG64: 0.4047619048 | FH64: 0.5952380952 | FI64: 0.7703703704 | FJ64: 0.2296296296 | FK64: - | FL64: 0.27432 | FM64: 0.0254 | FN64: - | FO64: - | FP64: - | FQ64: 3.5306 | FR64: - | FS64: - | FT64: - | FU64: 0.14478 | FV64: 1.4986 | FW64: - | FX64: - | FY64: 2.1844 | FZ64: - | GA64: - | GB64: 1.33604 | GC64: - | GD64: - | GE64: - | GF64: - | GG64: - | GH64: 0.33528 | GI64: 0.4318
A65: 47 | B65: =Historical_Data!B49 -> 1978-02-16 | C65: =Historical_Data!C49 -> 0 | D65: =Historical_Data!C414 -> 0.36068 | E65: =Historical_Data!C779 -> 0.889 | F65: =Historical_Data!C1145 -> 0 | G65: =Historical_Data!C1510 -> 0 | H65: =Historical_Data!C1875 -> 0 | I65: =Historical_Data!C2240 -> 0 | J65: =Historical_Data!C2606 -> 0 | K65: =Historical_Data!C2971 -> 0 | L65: =Historical_Data!C3336 -> 0 | M65: =Historical_Data!C3701 -> 1.07442 | N65: =Historical_Data!C4067 -> 0 | O65: =Historical_Data!C4432 -> 0.127 | P65: =Historical_Data!C4797 -> 0 | Q65: =Historical_Data!C5162 -> 0 | R65: =Historical_Data!C5528 -> 2.1844 | S65: =Historical_Data!C5893 -> 0 | T65: =Historical_Data!C6258 -> 0.06096 | U65: =Historical_Data!C6623 -> 0.7874 | V65: =Historical_Data!C6989 -> 0 | W65: =Historical_Data!C7354 -> 0 | X65: =Historical_Data!C7719 -> 0 | Y65: =Historical_Data!C8084 -> 0 | Z65: =Historical_Data!C8450 -> 0.82804 | AA65: =Historical_Data!C8815 -> 0 | AC65: 0 | AD65: 1 | AE65: 1 | AF65: 0 | AG65: 0 | AH65: 0 | AI65: 0 | AJ65: 0 | AK65: 0 | AL65: 0 | AM65: 1 | AN65: 0 | AO65: 1 | AP65: 0 | AQ65: 0 | AR65: 1 | AS65: 0 | AT65: 1 | AU65: 1 | AV65: 0 | AW65: 0 | AX65: 0 | AY65: 0 | AZ65: 1 | BA65: 0 | BB65: 0 | BC65: 1 | BD65: 1 | BE65: 0 | BF65: 0 | BG65: 0 | BH65: 0 | BI65: 0 | BJ65: 0 | BK65: 0 | BL65: 1 | BM65: 0 | BN65: 0 | BO65: 0 | BP65: 0 | BQ65: 0 | BR65: 0 | BS65: 1 | BT65: 0 | BU65: 0 | BV65: 0 | BW65: 0 | BX65: 0 | BY65: 1 | BZ65: 0 | CA65: 0 | CB65: 0 | CC65: 0 | CD65: 0 | CE65: 0 | CF65: 0 | CG65: 1 | CH65: 0 | CI65: 0 | CJ65: 0 | CK65: 0 | CL65: 1 | CM65: 0 | CN65: 0 | CO65: 1 | CP65: 0 | CQ65: 0 | CR65: 0 | CS65: 0 | CT65: 0 | CU65: 0 | CV65: 0 | CW65: 0 | CX65: 0 | CY65: 1 | CZ65: 1 | DA65: 0 | DB65: 0 | DC65: 1 | DD65: 1 | DE65: 1 | DF65: 0 | DG65: 1 | DH65: 1 | DI65: 1 | DJ65: 0 | DK65: 0 | DL65: 0 | DM65: 1 | DN65: 0 | DO65: 0 | DP65: 1 | DQ65: 0 | DR65: 0 | DS65: 1 | DT65: 1 | DU65: 1 | DV65: 1 | DW65: 0 | DX65: 0 | DY65: 0 | DZ65: 0 | EA65: 0 | EB65: 0 | EC65: 0 | ED65: 0 | EE65: 0 | EF65: 0 | EG65: 0 | EH65: 0 | EI65: 0 | EJ65: 0 | EK65: 0 | EL65: 1 | EM65: 0 | EN65: 0 | EO65: 1 | EP65: 0 | EQ65: 0 | ER65: 1 | ES65: 0 | ET65: 0 | EU65: 0 | EV65: 0 | EW65: 0 | EX65: 0 | EZ65: 203 | FA65: 83 | FB65: 126 | FC65: 415 | FD65: 122 | FF65: 0.2706666667 | FG65: 0.3971291866 | FH65: 0.6028708134 | FI65: 0.7728119181 | FJ65: 0.2271880819 | FK65: - | FL65: 0.36068 | FM65: 0.889 | FN65: - | FO65: - | FP65: - | FQ65: - | FR65: - | FS65: - | FT65: - | FU65: 1.07442 | FV65: - | FW65: 0.127 | FX65: - | FY65: - | FZ65: 2.1844 | GA65: - | GB65: 0.06096 | GC65: 0.7874 | GD65: - | GE65: - | GF65: - | GG65: - | GH65: 0.82804 | GI65: -
A66: 48 | B66: =Historical_Data!B50 -> 1978-02-17 | C66: =Historical_Data!C50 -> 0 | D66: =Historical_Data!C415 -> 0 | E66: =Historical_Data!C780 -> 0 | F66: =Historical_Data!C1146 -> 0 | G66: =Historical_Data!C1511 -> 0.127 | H66: =Historical_Data!C1876 -> 0 | I66: =Historical_Data!C2241 -> 0 | J66: =Historical_Data!C2607 -> 0 | K66: =Historical_Data!C2972 -> 1.778 | L66: =Historical_Data!C3337 -> 0 | M66: =Historical_Data!C3702 -> 0 | N66: =Historical_Data!C4068 -> 0 | O66: =Historical_Data!C4433 -> 0 | P66: =Historical_Data!C4798 -> 0.0762 | Q66: =Historical_Data!C5163 -> 0 | R66: =Historical_Data!C5529 -> 0 | S66: =Historical_Data!C5894 -> 0 | T66: =Historical_Data!C6259 -> 0 | U66: =Historical_Data!C6624 -> 0 | V66: =Historical_Data!C6990 -> 0 | W66: =Historical_Data!C7355 -> 2.2352 | X66: =Historical_Data!C7720 -> 0.1524 | Y66: =Historical_Data!C8085 -> 0 | Z66: =Historical_Data!C8451 -> 0.67056 | AA66: =Historical_Data!C8816 -> 0 | AC66: 0 | AD66: 0 | AE66: 0 | AF66: 0 | AG66: 1 | AH66: 0 | AI66: 0 | AJ66: 0 | AK66: 1 | AL66: 0 | AM66: 0 | AN66: 0 | AO66: 0 | AP66: 1 | AQ66: 0 | AR66: 0 | AS66: 0 | AT66: 0 | AU66: 0 | AV66: 0 | AW66: 1 | AX66: 1 | AY66: 0 | AZ66: 1 | BA66: 0 | BB66: 0 | BC66: 0 | BD66: 0 | BE66: 0 | BF66: 0 | BG66: 0 | BH66: 0 | BI66: 0 | BJ66: 0 | BK66: 0 | BL66: 0 | BM66: 0 | BN66: 0 | BO66: 0 | BP66: 0 | BQ66: 0 | BR66: 0 | BS66: 0 | BT66: 0 | BU66: 0 | BV66: 0 | BW66: 0 | BX66: 0 | BY66: 1 | BZ66: 0 | CA66: 0 | CB66: 1 | CC66: 1 | CD66: 0 | CE66: 0 | CF66: 0 | CG66: 0 | CH66: 0 | CI66: 0 | CJ66: 0 | CK66: 1 | CL66: 0 | CM66: 1 | CN66: 0 | CO66: 0 | CP66: 1 | CQ66: 0 | CR66: 1 | CS66: 1 | CT66: 0 | CU66: 0 | CV66: 0 | CW66: 0 | CX66: 0 | CY66: 0 | CZ66: 1 | DA66: 0 | DB66: 0 | DC66: 1 | DD66: 0 | DE66: 1 | DF66: 1 | DG66: 1 | DH66: 0 | DI66: 1 | DJ66: 0 | DK66: 1 | DL66: 0 | DM66: 0 | DN66: 1 | DO66: 0 | DP66: 1 | DQ66: 0 | DR66: 0 | DS66: 1 | DT66: 0 | DU66: 0 | DV66: 1 | DW66: 0 | DX66: 1 | DY66: 0 | DZ66: 0 | EA66: 0 | EB66: 0 | EC66: 0 | ED66: 1 | EE66: 0 | EF66: 0 | EG66: 0 | EH66: 1 | EI66: 0 | EJ66: 0 | EK66: 0 | EL66: 0 | EM66: 1 | EN66: 0 | EO66: 0 | EP66: 0 | EQ66: 0 | ER66: 0 | ES66: 0 | ET66: 1 | EU66: 1 | EV66: 0 | EW66: 0 | EX66: 0 | EZ66: 205 | FA66: 86 | FB66: 123 | FC66: 411 | FD66: 126 | FF66: 0.2733333333 | FG66: 0.4114832536 | FH66: 0.5885167464 | FI66: 0.7653631285 | FJ66: 0.2346368715 | FK66: - | FL66: - | FM66: - | FN66: - | FO66: 0.127 | FP66: - | FQ66: - | FR66: - | FS66: 1.778 | FT66: - | FU66: - | FV66: - | FW66: - | FX66: 0.0762 | FY66: - | FZ66: - | GA66: - | GB66: - | GC66: - | GD66: - | GE66: 2.2352 | GF66: 0.1524 | GG66: - | GH66: 0.67056 | GI66: -
A67: 49 | B67: =Historical_Data!B51 -> 1978-02-18 | C67: =Historical_Data!C51 -> 0 | D67: =Historical_Data!C416 -> 0 | E67: =Historical_Data!C781 -> 0 | F67: =Historical_Data!C1147 -> 0 | G67: =Historical_Data!C1512 -> 0.1016 | H67: =Historical_Data!C1877 -> 0 | I67: =Historical_Data!C2242 -> 0 | J67: =Historical_Data!C2608 -> 0 | K67: =Historical_Data!C2973 -> 0 | L67: =Historical_Data!C3338 -> 0 | M67: =Historical_Data!C3703 -> 0 | N67: =Historical_Data!C4069 -> 0 | O67: =Historical_Data!C4434 -> 0 | P67: =Historical_Data!C4799 -> 0.07874 | Q67: =Historical_Data!C5164 -> 0.8128 | R67: =Historical_Data!C5530 -> 0 | S67: =Historical_Data!C5895 -> 0 | T67: =Historical_Data!C6260 -> 0 | U67: =Historical_Data!C6625 -> 0 | V67: =Historical_Data!C6991 -> 0 | W67: =Historical_Data!C7356 -> 0.1016 | X67: =Historical_Data!C7721 -> 2.1336 | Y67: =Historical_Data!C8086 -> 1.97866 | Z67: =Historical_Data!C8452 -> 0.1778 | AA67: =Historical_Data!C8817 -> 0 | AC67: 0 | AD67: 0 | AE67: 0 | AF67: 0 | AG67: 1 | AH67: 0 | AI67: 0 | AJ67: 0 | AK67: 0 | AL67: 0 | AM67: 0 | AN67: 0 | AO67: 0 | AP67: 1 | AQ67: 1 | AR67: 0 | AS67: 0 | AT67: 0 | AU67: 0 | AV67: 0 | AW67: 1 | AX67: 1 | AY67: 1 | AZ67: 1 | BA67: 0 | BB67: 0 | BC67: 0 | BD67: 0 | BE67: 0 | BF67: 1 | BG67: 0 | BH67: 0 | BI67: 0 | BJ67: 0 | BK67: 0 | BL67: 0 | BM67: 0 | BN67: 0 | BO67: 1 | BP67: 0 | BQ67: 0 | BR67: 0 | BS67: 0 | BT67: 0 | BU67: 0 | BV67: 1 | BW67: 1 | BX67: 0 | BY67: 1 | BZ67: 0 | CA67: 0 | CB67: 0 | CC67: 0 | CD67: 0 | CE67: 0 | CF67: 0 | CG67: 0 | CH67: 0 | CI67: 1 | CJ67: 0 | CK67: 0 | CL67: 0 | CM67: 0 | CN67: 0 | CO67: 0 | CP67: 0 | CQ67: 0 | CR67: 0 | CS67: 0 | CT67: 0 | CU67: 0 | CV67: 0 | CW67: 0 | CX67: 0 | CY67: 0 | CZ67: 1 | DA67: 1 | DB67: 1 | DC67: 1 | DD67: 0 | DE67: 1 | DF67: 1 | DG67: 1 | DH67: 0 | DI67: 1 | DJ67: 1 | DK67: 1 | DL67: 1 | DM67: 0 | DN67: 0 | DO67: 1 | DP67: 1 | DQ67: 1 | DR67: 1 | DS67: 1 | DT67: 0 | DU67: 0 | DV67: 0 | DW67: 0 | DX67: 1 | DY67: 0 | DZ67: 0 | EA67: 0 | EB67: 0 | EC67: 0 | ED67: 0 | EE67: 0 | EF67: 0 | EG67: 0 | EH67: 0 | EI67: 0 | EJ67: 0 | EK67: 0 | EL67: 0 | EM67: 0 | EN67: 1 | EO67: 0 | EP67: 0 | EQ67: 0 | ER67: 0 | ES67: 0 | ET67: 0 | EU67: 0 | EV67: 1 | EW67: 0 | EX67: 0 | EZ67: 208 | FA67: 88 | FB67: 128 | FC67: 405 | FD67: 127 | FF67: 0.2773333333 | FG67: 0.4074074074 | FH67: 0.5925925926 | FI67: 0.7612781955 | FJ67: 0.2387218045 | FK67: - | FL67: - | FM67: - | FN67: - | FO67: 0.1016 | FP67: - | FQ67: - | FR67: - | FS67: - | FT67: - | FU67: - | FV67: - | FW67: - | FX67: 0.07874 | FY67: 0.8128 | FZ67: - | GA67: - | GB67: - | GC67: - | GD67: - | GE67: 0.1016 | GF67: 2.1336 | GG67: 1.97866 | GH67: 0.1778 | GI67: -
A68: 50 | B68: =Historical_Data!B52 -> 1978-02-19 | C68: =Historical_Data!C52 -> 0 | D68: =Historical_Data!C417 -> 1.3462 | E68: =Historical_Data!C782 -> 0 | F68: =Historical_Data!C1148 -> 0.254 | G68: =Historical_Data!C1513 -> 1.2192 | H68: =Historical_Data!C1878 -> 0 | I68: =Historical_Data!C2243 -> 0 | J68: =Historical_Data!C2609 -> 0 | K68: =Historical_Data!C2974 -> 0.508 | L68: =Historical_Data!C3339 -> 0 | M68: =Historical_Data!C3704 -> 2.7432 | N68: =Historical_Data!C4070 -> 0 | O68: =Historical_Data!C4435 -> 0 | P68: =Historical_Data!C4800 -> 0.65786 | Q68: =Historical_Data!C5165 -> 0 | R68: =Historical_Data!C5531 -> 0 | S68: =Historical_Data!C5896 -> 0 | T68: =Historical_Data!C6261 -> 0 | U68: =Historical_Data!C6626 -> 0 | V68: =Historical_Data!C6992 -> 0 | W68: =Historical_Data!C7357 -> 0 | X68: =Historical_Data!C7722 -> 0 | Y68: =Historical_Data!C8087 -> 0.96774 | Z68: =Historical_Data!C8453 -> 0 | AA68: =Historical_Data!C8818 -> 0 | AC68: =IF(C68>0,1,0) -> 0 | AD68: =IF(D68>0,1,0) -> 1 | AE68: =IF(E68>0,1,0) -> 0 | AF68: =IF(F68>0,1,0) -> 1 | AG68: =IF(G68>0,1,0) -> 1 | AH68: =IF(H68>0,1,0) -> 0 | AI68: =IF(I68>0,1,0) -> 0 | AJ68: =IF(J68>0,1,0) -> 0 | AK68: =IF(K68>0,1,0) -> 1 | AL68: =IF(L68>0,1,0) -> 0 | AM68: =IF(M68>0,1,0) -> 1 | AN68: =IF(N68>0,1,0) -> 0 | AO68: =IF(O68>0,1,0) -> 0 | AP68: =IF(P68>0,1,0) -> 1 | AQ68: =IF(Q68>0,1,0) -> 0 | AR68: =IF(R68>0,1,0) -> 0 | AS68: =IF(S68>0,1,0) -> 0 | AT68: =IF(T68>0,1,0) -> 0 | AU68: =IF(U68>0,1,0) -> 0 | AV68: =IF(V68>0,1,0) -> 0 | AW68: =IF(W68>0,1,0) -> 0 | AX68: =IF(X68>0,1,0) -> 0 | AY68: =IF(Y68>0,1,0) -> 1 | AZ68: =IF(Z68>0,1,0) -> 0 | BA68: =IF(AA68>0,1,0) -> 0 | BB68: 0 | BC68: 0 | BD68: 0 | BE68: 0 | BF68: 1 | BG68: 0 | BH68: 0 | BI68: 0 | BJ68: 0 | BK68: 0 | BL68: 0 | BM68: 0 | BN68: 0 | BO68: 1 | BP68: 0 | BQ68: 0 | BR68: 0 | BS68: 0 | BT68: 0 | BU68: 0 | BV68: 0 | BW68: 0 | BX68: 1 | BY68: 0 | BZ68: 0 | CA68: 0 | CB68: 0 | CC68: 0 | CD68: 0 | CE68: 0 | CF68: 0 | CG68: 0 | CH68: 0 | CI68: 0 | CJ68: 0 | CK68: 0 | CL68: 0 | CM68: 0 | CN68: 0 | CO68: 1 | CP68: 0 | CQ68: 0 | CR68: 0 | CS68: 0 | CT68: 0 | CU68: 1 | CV68: 1 | CW68: 0 | CX68: 1 | CY68: 0 | CZ68: 1 | DA68: 0 | DB68: 1 | DC68: 0 | DD68: 0 | DE68: 1 | DF68: 1 | DG68: 1 | DH68: 0 | DI68: 1 | DJ68: 0 | DK68: 1 | DL68: 1 | DM68: 0 | DN68: 0 | DO68: 1 | DP68: 1 | DQ68: 1 | DR68: 1 | DS68: 1 | DT68: 0 | DU68: 0 | DV68: 0 | DW68: 0 | DX68: 1 | DY68: 0 | DZ68: 0 | EA68: 1 | EB68: 0 | EC68: 1 | ED68: 0 | EE68: 0 | EF68: 0 | EG68: 0 | EH68: 1 | EI68: 0 | EJ68: 1 | EK68: 0 | EL68: 0 | EM68: 0 | EN68: 0 | EO68: 0 | EP68: 0 | EQ68: 0 | ER68: 0 | ES68: 0 | ET68: 0 | EU68: 0 | EV68: 0 | EW68: 0 | EX68: 0 | EZ68: 210 | FA68: 91 | FB68: 126 | FC68: 405 | FD68: 128 | FF68: 0.28 | FG68: 0.4193548387 | FH68: 0.5806451613 | FI68: 0.7598499062 | FJ68: 0.2401500938 | FK68: =IF(C68=0,"-",C68) -> - | FL68: =IF(D68=0,"-",D68) -> 1.3462 | FM68: =IF(E68=0,"-",E68) -> - | FN68: =IF(F68=0,"-",F68) -> 0.254 | FO68: =IF(G68=0,"-",G68) -> 1.2192 | FP68: =IF(H68=0,"-",H68) -> - | FQ68: =IF(I68=0,"-",I68) -> - | FR68: =IF(J68=0,"-",J68) -> - | FS68: =IF(K68=0,"-",K68) -> 0.508 | FT68: =IF(L68=0,"-",L68) -> - | FU68: =IF(M68=0,"-",M68) -> 2.7432 | FV68: =IF(N68=0,"-",N68) -> - | FW68: =IF(O68=0,"-",O68) -> - | FX68: =IF(P68=0,"-",P68) -> 0.65786 | FY68: =IF(Q68=0,"-",Q68) -> - | FZ68: =IF(R68=0,"-",R68) -> - | GA68: =IF(S68=0,"-",S68) -> - | GB68: =IF(T68=0,"-",T68) -> - | GC68: =IF(U68=0,"-",U68) -> - | GD68: =IF(V68=0,"-",V68) -> - | GE68: =IF(W68=0,"-",W68) -> - | GF68: =IF(X68=0,"-",X68) -> - | GG68: =IF(Y68=0,"-",Y68) -> 0.96774 | GH68: =IF(Z68=0,"-",Z68) -> - | GI68: =IF(AA68=0,"-",AA68) -> -
A69: 51 | B69: =Historical_Data!B53 -> 1978-02-20 | C69: =Historical_Data!C53 -> 0 | D69: =Historical_Data!C418 -> 0 | E69: =Historical_Data!C783 -> 0 | F69: =Historical_Data!C1149 -> 0.77216 | G69: =Historical_Data!C1514 -> 0.0254 | H69: =Historical_Data!C1879 -> 0 | I69: =Historical_Data!C2244 -> 0 | J69: =Historical_Data!C2610 -> 0 | K69: =Historical_Data!C2975 -> 0 | L69: =Historical_Data!C3340 -> 0 | M69: =Historical_Data!C3705 -> 0 | N69: =Historical_Data!C4071 -> 0 | O69: =Historical_Data!C4436 -> 0 | P69: =Historical_Data!C4801 -> 0 | Q69: =Historical_Data!C5166 -> 0 | R69: =Historical_Data!C5532 -> 0 | S69: =Historical_Data!C5897 -> 0 | T69: =Historical_Data!C6262 -> 0 | U69: =Historical_Data!C6627 -> 0.23368 | V69: =Historical_Data!C6993 -> 0 | W69: =Historical_Data!C7358 -> 0.1016 | X69: =Historical_Data!C7723 -> 0 | Y69: =Historical_Data!C8088 -> 0 | Z69: =Historical_Data!C8454 -> 0 | AA69: =Historical_Data!C8819 -> 0.381 | AC69: 0 | AD69: 0 | AE69: 0 | AF69: 1 | AG69: 1 | AH69: 0 | AI69: 0 | AJ69: 0 | AK69: 0 | AL69: 0 | AM69: 0 | AN69: 0 | AO69: 0 | AP69: 0 | AQ69: 0 | AR69: 0 | AS69: 0 | AT69: 0 | AU69: 1 | AV69: 0 | AW69: 1 | AX69: 0 | AY69: 0 | AZ69: 0 | BA69: 1 | BB69: =IF(AC68=1,IF(AC69=1,1,0),0) -> 0 | BC69: 0 | BD69: 0 | BE69: 1 | BF69: 1 | BG69: 0 | BH69: 0 | BI69: 0 | BJ69: 0 | BK69: 0 | BL69: 0 | BM69: 0 | BN69: 0 | BO69: 0 | BP69: 0 | BQ69: 0 | BR69: 0 | BS69: 0 | BT69: 0 | BU69: 0 | BV69: 0 | BW69: 0 | BX69: 0 | BY69: 0 | BZ69: 0 | CA69: =IF(AC68=1,IF(AC69=0,1,0),0) -> 0 | CB69: 1 | CC69: 0 | CD69: 0 | CE69: 0 | CF69: 0 | CG69: 0 | CH69: 0 | CI69: 1 | CJ69: 0 | CK69: 1 | CL69: 0 | CM69: 0 | CN69: 1 | CO69: 0 | CP69: 0 | CQ69: 0 | CR69: 0 | CS69: 0 | CT69: 0 | CU69: 0 | CV69: 0 | CW69: 1 | CX69: 0 | CY69: =IF(BA68=1,IF(BA69=0,1,0),0) -> 0 | CZ69: =IF(AC68=0,IF(AC69=0,1,0),0) -> 1 | DA69: 0 | DB69: 1 | DC69: 0 | DD69: 0 | DE69: 1 | DF69: 1 | DG69: 1 | DH69: 0 | DI69: 1 | DJ69: 0 | DK69: 1 | DL69: 1 | DM69: 0 | DN69: 1 | DO69: 1 | DP69: 1 | DQ69: 1 | DR69: 0 | DS69: 1 | DT69: 0 | DU69: 1 | DV69: 0 | DW69: 1 | DX69: =IF(BA68=0,IF(BA69=0,1,0),0) -> 0 | DY69: =IF(AC68=0,IF(AC69=1,1,0),0) -> 0 | DZ69: =IF(AC68=0,IF(AC69=1,1,0),0) -> 0 | EA69: 0 | EB69: 0 | EC69: 0 | ED69: 0 | EE69: 0 | EF69: 0 | EG69: 0 | EH69: 0 | EI69: 0 | EJ69: 0 | EK69: 0 | EL69: 0 | EM69: 0 | EN69: 0 | EO69: 0 | EP69: 0 | EQ69: 0 | ER69: 1 | ES69: 0 | ET69: 1 | EU69: 0 | EV69: 0 | EW69: 0 | EX69: 1 | EZ69: 211 | FA69: 93 | FB69: 126 | FC69: 402 | FD69: 126 | FF69: 0.2813333333 | FG69: 0.4246575342 | FH69: 0.5753424658 | FI69: 0.7613636364 | FJ69: 0.2386363636 | FK69: - | FL69: - | FM69: - | FN69: 0.77216 | FO69: 0.0254 | FP69: - | FQ69: - | FR69: - | FS69: - | FT69: - | FU69: - | FV69: - | FW69: - | FX69: - | FY69: - | FZ69: - | GA69: - | GB69: - | GC69: 0.23368 | GD69: - | GE69: 0.1016 | GF69: - | GG69: - | GH69: - | GI69: 0.381
A70: 52 | B70: =Historical_Data!B54 -> 1978-02-21 | C70: =Historical_Data!C54 -> 0 | D70: =Historical_Data!C419 -> 0.9652 | E70: =Historical_Data!C784 -> 0 | F70: =Historical_Data!C1150 -> 0.11684 | G70: =Historical_Data!C1515 -> 0.1778 | H70: =Historical_Data!C1880 -> 0 | I70: =Historical_Data!C2245 -> 0 | J70: =Historical_Data!C2611 -> 0 | K70: =Historical_Data!C2976 -> 0.508 | L70: =Historical_Data!C3341 -> 0 | M70: =Historical_Data!C3706 -> 0 | N70: =Historical_Data!C4072 -> 2.794 | O70: =Historical_Data!C4437 -> 0 | P70: =Historical_Data!C4802 -> 0 | Q70: =Historical_Data!C5167 -> 0 | R70: =Historical_Data!C5533 -> 1.8796 | S70: =Historical_Data!C5898 -> 0.2032 | T70: =Historical_Data!C6263 -> 0.0762 | U70: =Historical_Data!C6628 -> 0.57912 | V70: =Historical_Data!C6994 -> 0 | W70: =Historical_Data!C7359 -> 0 | X70: =Historical_Data!C7724 -> 0 | Y70: =Historical_Data!C8089 -> 0 | Z70: =Historical_Data!C8455 -> 0 | AA70: =Historical_Data!C8820 -> 0 | AC70: 0 | AD70: 1 | AE70: 0 | AF70: 1 | AG70: 1 | AH70: 0 | AI70: 0 | AJ70: 0 | AK70: 1 | AL70: 0 | AM70: 0 | AN70: 1 | AO70: 0 | AP70: 0 | AQ70: 0 | AR70: 1 | AS70: 1 | AT70: 1 | AU70: 1 | AV70: 0 | AW70: 0 | AX70: 0 | AY70: 0 | AZ70: 0 | BA70: 0 | BB70: 0 | BC70: 0 | BD70: 0 | BE70: 1 | BF70: 1 | BG70: 0 | BH70: 0 | BI70: 0 | BJ70: 0 | BK70: 0 | BL70: 0 | BM70: 0 | BN70: 0 | BO70: 0 | BP70: 0 | BQ70: 0 | BR70: 0 | BS70: 0 | BT70: 1 | BU70: 0 | BV70: 0 | BW70: 0 | BX70: 0 | BY70: 0 | BZ70: 0 | CA70: 0 | CB70: 0 | CC70: 0 | CD70: 0 | CE70: 0 | CF70: 0 | CG70: 0 | CH70: 0 | CI70: 0 | CJ70: 0 | CK70: 0 | CL70: 0 | CM70: 0 | CN70: 0 | CO70: 0 | CP70: 0 | CQ70: 0 | CR70: 0 | CS70: 0 | CT70: 0 | CU70: 1 | CV70: 0 | CW70: 0 | CX70: 0 | CY70: 1 | CZ70: 1 | DA70: 0 | DB70: 1 | DC70: 0 | DD70: 0 | DE70: 1 | DF70: 1 | DG70: 1 | DH70: 0 | DI70: 1 | DJ70: 1 | DK70: 0 | DL70: 1 | DM70: 1 | DN70: 1 | DO70: 0 | DP70: 0 | DQ70: 0 | DR70: 0 | DS70: 1 | DT70: 0 | DU70: 1 | DV70: 1 | DW70: 1 | DX70: 0 | DY70: 0 | DZ70: 0 | EA70: 1 | EB70: 0 | EC70: 0 | ED70: 0 | EE70: 0 | EF70: 0 | EG70: 0 | EH70: 1 | EI70: 0 | EJ70: 0 | EK70: 1 | EL70: 0 | EM70: 0 | EN70: 0 | EO70: 1 | EP70: 1 | EQ70: 1 | ER70: 0 | ES70: 0 | ET70: 0 | EU70: 0 | EV70: 0 | EW70: 0 | EX70: 0 | EZ70: 217 | FA70: 95 | FB70: 127 | FC70: 399 | FD70: 130 | FF70: 0.2893333333 | FG70: 0.4279279279 | FH70: 0.5720720721 | FI70: 0.7542533081 | FJ70: 0.2457466919 | FK70: - | FL70: 0.9652 | FM70: - | FN70: 0.11684 | FO70: 0.1778 | FP70: - | FQ70: - | FR70: - | FS70: 0.508 | FT70: - | FU70: - | FV70: 2.794 | FW70: - | FX70: - | FY70: - | FZ70: 1.8796 | GA70: 0.2032 | GB70: 0.0762 | GC70: 0.57912 | GD70: - | GE70: - | GF70: - | GG70: - | GH70: - | GI70: -
A71: 53 | B71: =Historical_Data!B55 -> 1978-02-22 | C71: =Historical_Data!C55 -> 0 | D71: =Historical_Data!C420 -> 0 | E71: =Historical_Data!C785 -> 0.9652 | F71: =Historical_Data!C1151 -> 0.11176 | G71: =Historical_Data!C1516 -> 0 | H71: =Historical_Data!C1881 -> 0 | I71: =Historical_Data!C2246 -> 0 | J71: =Historical_Data!C2612 -> 0 | K71: =Historical_Data!C2977 -> 0 | L71: =Historical_Data!C3342 -> 0.39116 | M71: =Historical_Data!C3707 -> 0 | N71: =Historical_Data!C4073 -> 1.0668 | O71: =Historical_Data!C4438 -> 0.68326 | P71: =Historical_Data!C4803 -> 0 | Q71: =Historical_Data!C5168 -> 0 | R71: =Historical_Data!C5534 -> 0 | S71: =Historical_Data!C5899 -> 0 | T71: =Historical_Data!C6264 -> 0 | U71: =Historical_Data!C6629 -> 0.127 | V71: =Historical_Data!C6995 -> 0 | W71: =Historical_Data!C7360 -> 0 | X71: =Historical_Data!C7725 -> 0 | Y71: =Historical_Data!C8090 -> 0 | Z71: =Historical_Data!C8456 -> 0.5842 | AA71: =Historical_Data!C8821 -> 0 | AC71: 0 | AD71: 0 | AE71: 1 | AF71: 1 | AG71: 0 | AH71: 0 | AI71: 0 | AJ71: 0 | AK71: 0 | AL71: 1 | AM71: 0 | AN71: 1 | AO71: 1 | AP71: 0 | AQ71: 0 | AR71: 0 | AS71: 0 | AT71: 0 | AU71: 1 | AV71: 0 | AW71: 0 | AX71: 0 | AY71: 0 | AZ71: 1 | BA71: 0 | BB71: 0 | BC71: 0 | BD71: 0 | BE71: 1 | BF71: 0 | BG71: 0 | BH71: 0 | BI71: 0 | BJ71: 0 | BK71: 0 | BL71: 0 | BM71: 1 | BN71: 0 | BO71: 0 | BP71: 0 | BQ71: 0 | BR71: 0 | BS71: 0 | BT71: 1 | BU71: 0 | BV71: 0 | BW71: 0 | BX71: 0 | BY71: 0 | BZ71: 0 | CA71: 0 | CB71: 1 | CC71: 0 | CD71: 0 | CE71: 1 | CF71: 0 | CG71: 0 | CH71: 0 | CI71: 1 | CJ71: 0 | CK71: 0 | CL71: 0 | CM71: 0 | CN71: 0 | CO71: 0 | CP71: 1 | CQ71: 1 | CR71: 1 | CS71: 0 | CT71: 0 | CU71: 0 | CV71: 0 | CW71: 0 | CX71: 0 | CY71: 0 | CZ71: 1 | DA71: 0 | DB71: 0 | DC71: 0 | DD71: 0 | DE71: 1 | DF71: 1 | DG71: 1 | DH71: 0 | DI71: 0 | DJ71: 1 | DK71: 0 | DL71: 0 | DM71: 1 | DN71: 1 | DO71: 0 | DP71: 0 | DQ71: 0 | DR71: 0 | DS71: 1 | DT71: 1 | DU71: 1 | DV71: 1 | DW71: 0 | DX71: 1 | DY71: 0 | DZ71: 0 | EA71: 0 | EB71: 1 | EC71: 0 | ED71: 0 | EE71: 0 | EF71: 0 | EG71: 0 | EH71: 0 | EI71: 1 | EJ71: 0 | EK71: 0 | EL71: 1 | EM71: 0 | EN71: 0 | EO71: 0 | EP71: 0 | EQ71: 0 | ER71: 0 | ES71: 0 | ET71: 0 | EU71: 0 | EV71: 0 | EW71: 1 | EX71: 0 | EZ71: 217 | FA71: 97 | FB71: 127 | FC71: 398 | FD71: 126 | FF71: 0.2893333333 | FG71: 0.4330357143 | FH71: 0.5669642857 | FI71: 0.7595419847 | FJ71: 0.2404580153 | FK71: - | FL71: - | FM71: 0.9652 | FN71: 0.11176 | FO71: - | FP71: - | FQ71: - | FR71: - | FS71: - | FT71: 0.39116 | FU71: - | FV71: 1.0668 | FW71: 0.68326 | FX71: - | FY71: - | FZ71: - | GA71: - | GB71: - | GC71: 0.127 | GD71: - | GE71: - | GF71: - | GG71: - | GH71: 0.5842 | GI71: -
A72: 54 | B72: =Historical_Data!B56 -> 1978-02-23 | C72: =Historical_Data!C56 -> 0 | D72: =Historical_Data!C421 -> 0.56134 | E72: =Historical_Data!C786 -> 0 | F72: =Historical_Data!C1152 -> 1.38684 | G72: =Historical_Data!C1517 -> 0 | H72: =Historical_Data!C1882 -> 0.7874 | I72: =Historical_Data!C2247 -> 2.5654 | J72: =Historical_Data!C2613 -> 0 | K72: =Historical_Data!C2978 -> 0 | L72: =Historical_Data!C3343 -> 2.40284 | M72: =Historical_Data!C3708 -> 0 | N72: =Historical_Data!C4074 -> 0 | O72: =Historical_Data!C4439 -> 0.76454 | P72: =Historical_Data!C4804 -> 0 | Q72: =Historical_Data!C5169 -> 0 | R72: =Historical_Data!C5535 -> 0 | S72: =Historical_Data!C5900 -> 1.9304 | T72: =Historical_Data!C6265 -> 0.127 | U72: =Historical_Data!C6630 -> 0 | V72: =Historical_Data!C6996 -> 0 | W72: =Historical_Data!C7361 -> 2.9718 | X72: =Historical_Data!C7726 -> 0 | Y72: =Historical_Data!C8091 -> 0 | Z72: =Historical_Data!C8457 -> 0 | AA72: =Historical_Data!C8822 -> 0 | AC72: 0 | AD72: 1 | AE72: 0 | AF72: 1 | AG72: 0 | AH72: 1 | AI72: 1 | AJ72: 0 | AK72: 0 | AL72: 1 | AM72: 0 | AN72: 0 | AO72: 1 | AP72: 0 | AQ72: 0 | AR72: 0 | AS72: 1 | AT72: 1 | AU72: 0 | AV72: 0 | AW72: 1 | AX72: 0 | AY72: 0 | AZ72: 0 | BA72: 0 | BB72: 0 | BC72: 0 | BD72: 0 | BE72: 1 | BF72: 0 | BG72: 0 | BH72: 0 | BI72: 0 | BJ72: 0 | BK72: 1 | BL72: 0 | BM72: 0 | BN72: 1 | BO72: 0 | BP72: 0 | BQ72: 0 | BR72: 0 | BS72: 0 | BT72: 0 | BU72: 0 | BV72: 0 | BW72: 0 | BX72: 0 | BY72: 0 | BZ72: 0 | CA72: 0 | CB72: 0 | CC72: 1 | CD72: 0 | CE72: 0 | CF72: 0 | CG72: 0 | CH72: 0 | CI72: 0 | CJ72: 0 | CK72: 0 | CL72: 1 | CM72: 0 | CN72: 0 | CO72: 0 | CP72: 0 | CQ72: 0 | CR72: 0 | CS72: 1 | CT72: 0 | CU72: 0 | CV72: 0 | CW72: 0 | CX72: 1 | CY72: 0 | CZ72: 1 | DA72: 0 | DB72: 0 | DC72: 0 | DD72: 1 | DE72: 0 | DF72: 0 | DG72: 1 | DH72: 1 | DI72: 0 | DJ72: 1 | DK72: 0 | DL72: 0 | DM72: 1 | DN72: 1 | DO72: 1 | DP72: 0 | DQ72: 0 | DR72: 0 | DS72: 1 | DT72: 0 | DU72: 1 | DV72: 1 | DW72: 0 | DX72: 1 | DY72: 0 | DZ72: 0 | EA72: 1 | EB72: 0 | EC72: 0 | ED72: 0 | EE72: 1 | EF72: 1 | EG72: 0 | EH72: 0 | EI72: 0 | EJ72: 0 | EK72: 0 | EL72: 0 | EM72: 0 | EN72: 0 | EO72: 0 | EP72: 1 | EQ72: 1 | ER72: 0 | ES72: 0 | ET72: 1 | EU72: 0 | EV72: 0 | EW72: 0 | EX72: 0 | EZ72: 219 | FA72: 98 | FB72: 127 | FC72: 395 | FD72: 127 | FF72: 0.292 | FG72: 0.4355555556 | FH72: 0.5644444444 | FI72: 0.7567049808 | FJ72: 0.2432950192 | FK72: - | FL72: 0.56134 | FM72: - | FN72: 1.38684 | FO72: - | FP72: 0.7874 | FQ72: 2.5654 | FR72: - | FS72: - | FT72: 2.40284 | FU72: - | FV72: - | FW72: 0.76454 | FX72: - | FY72: - | FZ72: - | GA72: 1.9304 | GB72: 0.127 | GC72: - | GD72: - | GE72: 2.9718 | GF72: - | GG72: - | GH72: - | GI72: -
A73: 55 | B73: =Historical_Data!B57 -> 1978-02-24 | C73: =Historical_Data!C57 -> 0 | D73: =Historical_Data!C422 -> 4.9276 | E73: =Historical_Data!C787 -> 0 | F73: =Historical_Data!C1153 -> 0 | G73: =Historical_Data!C1518 -> 0 | H73: =Historical_Data!C1883 -> 0 | I73: =Historical_Data!C2248 -> 0.42926 | J73: =Historical_Data!C2614 -> 0 | K73: =Historical_Data!C2979 -> 0.254 | L73: =Historical_Data!C3344 -> 0 | M73: =Historical_Data!C3709 -> 0 | N73: =Historical_Data!C4075 -> 0 | O73: =Historical_Data!C4440 -> 0.2286 | P73: =Historical_Data!C4805 -> 0 | Q73: =Historical_Data!C5170 -> 0.0508 | R73: =Historical_Data!C5536 -> 0 | S73: =Historical_Data!C5901 -> 0.9398 | T73: =Historical_Data!C6266 -> 0.1524 | U73: =Historical_Data!C6631 -> 0.0762 | V73: =Historical_Data!C6997 -> 0 | W73: =Historical_Data!C7362 -> 1.13538 | X73: =Historical_Data!C7727 -> 0 | Y73: =Historical_Data!C8092 -> 0 | Z73: =Historical_Data!C8458 -> 0 | AA73: =Historical_Data!C8823 -> 0 | AC73: 0 | AD73: 1 | AE73: 0 | AF73: 0 | AG73: 0 | AH73: 0 | AI73: 1 | AJ73: 0 | AK73: 1 | AL73: 0 | AM73: 0 | AN73: 0 | AO73: 1 | AP73: 0 | AQ73: 1 | AR73: 0 | AS73: 1 | AT73: 1 | AU73: 1 | AV73: 0 | AW73: 1 | AX73: 0 | AY73: 0 | AZ73: 0 | BA73: 0 | BB73: 0 | BC73: 1 | BD73: 0 | BE73: 0 | BF73: 0 | BG73: 0 | BH73: 1 | BI73: 0 | BJ73: 0 | BK73: 0 | BL73: 0 | BM73: 0 | BN73: 1 | BO73: 0 | BP73: 0 | BQ73: 0 | BR73: 1 | BS73: 1 | BT73: 0 | BU73: 0 | BV73: 1 | BW73: 0 | BX73: 0 | BY73: 0 | BZ73: 0 | CA73: 0 | CB73: 0 | CC73: 0 | CD73: 1 | CE73: 0 | CF73: 1 | CG73: 0 | CH73: 0 | CI73: 0 | CJ73: 1 | CK73: 0 | CL73: 0 | CM73: 0 | CN73: 0 | CO73: 0 | CP73: 0 | CQ73: 0 | CR73: 0 | CS73: 0 | CT73: 0 | CU73: 0 | CV73: 0 | CW73: 0 | CX73: 0 | CY73: 0 | CZ73: 1 | DA73: 0 | DB73: 1 | DC73: 0 | DD73: 1 | DE73: 0 | DF73: 0 | DG73: 1 | DH73: 0 | DI73: 0 | DJ73: 1 | DK73: 1 | DL73: 0 | DM73: 1 | DN73: 0 | DO73: 1 | DP73: 0 | DQ73: 0 | DR73: 0 | DS73: 1 | DT73: 0 | DU73: 1 | DV73: 1 | DW73: 1 | DX73: 1 | DY73: 0 | DZ73: 0 | EA73: 0 | EB73: 0 | EC73: 0 | ED73: 0 | EE73: 0 | EF73: 0 | EG73: 0 | EH73: 1 | EI73: 0 | EJ73: 0 | EK73: 0 | EL73: 0 | EM73: 0 | EN73: 1 | EO73: 0 | EP73: 0 | EQ73: 0 | ER73: 1 | ES73: 0 | ET73: 0 | EU73: 0 | EV73: 0 | EW73: 0 | EX73: 0 | EZ73: 222 | FA73: 100 | FB73: 128 | FC73: 392 | FD73: 129 | FF73: 0.296 | FG73: 0.4385964912 | FH73: 0.5614035088 | FI73: 0.7523992322 | FJ73: 0.2476007678 | FK73: - | FL73: 4.9276 | FM73: - | FN73: - | FO73: - | FP73: - | FQ73: 0.42926 | FR73: - | FS73: 0.254 | FT73: - | FU73: - | FV73: - | FW73: 0.2286 | FX73: - | FY73: 0.0508 | FZ73: - | GA73: 0.9398 | GB73: 0.1524 | GC73: 0.0762 | GD73: - | GE73: 1.13538 | GF73: - | GG73: - | GH73: - | GI73: -
A74: 56 | B74: =Historical_Data!B58 -> 1978-02-25 | C74: =Historical_Data!C58 -> 0 | D74: =Historical_Data!C423 -> 2.032 | E74: =Historical_Data!C788 -> 0 | F74: =Historical_Data!C1154 -> 0 | G74: =Historical_Data!C1519 -> 0 | H74: =Historical_Data!C1884 -> 0 | I74: =Historical_Data!C2249 -> 0 | J74: =Historical_Data!C2615 -> 0 | K74: =Historical_Data!C2980 -> 0 | L74: =Historical_Data!C3345 -> 0 | M74: =Historical_Data!C3710 -> 0 | N74: =Historical_Data!C4076 -> 0 | O74: =Historical_Data!C4441 -> 0 | P74: =Historical_Data!C4806 -> 0 | Q74: =Historical_Data!C5171 -> 0.26416 | R74: =Historical_Data!C5537 -> 0 | S74: =Historical_Data!C5902 -> 0 | T74: =Historical_Data!C6267 -> 0 | U74: =Historical_Data!C6632 -> 0 | V74: =Historical_Data!C6998 -> 0 | W74: =Historical_Data!C7363 -> 0 | X74: =Historical_Data!C7728 -> 0 | Y74: =Historical_Data!C8093 -> 0.381 | Z74: =Historical_Data!C8459 -> 0.762 | AA74: =Historical_Data!C8824 -> 0 | AC74: 0 | AD74: 1 | AE74: 0 | AF74: 0 | AG74: 0 | AH74: 0 | AI74: 0 | AJ74: 0 | AK74: 0 | AL74: 0 | AM74: 0 | AN74: 0 | AO74: 0 | AP74: 0 | AQ74: 1 | AR74: 0 | AS74: 0 | AT74: 0 | AU74: 0 | AV74: 0 | AW74: 0 | AX74: 0 | AY74: 1 | AZ74: 1 | BA74: 0 | BB74: 0 | BC74: 1 | BD74: 0 | BE74: 0 | BF74: 0 | BG74: 0 | BH74: 0 | BI74: 0 | BJ74: 0 | BK74: 0 | BL74: 0 | BM74: 0 | BN74: 0 | BO74: 0 | BP74: 1 | BQ74: 0 | BR74: 0 | BS74: 0 | BT74: 0 | BU74: 0 | BV74: 0 | BW74: 0 | BX74: 0 | BY74: 0 | BZ74: 0 | CA74: 0 | CB74: 0 | CC74: 0 | CD74: 0 | CE74: 0 | CF74: 0 | CG74: 1 | CH74: 0 | CI74: 1 | CJ74: 0 | CK74: 0 | CL74: 0 | CM74: 1 | CN74: 0 | CO74: 0 | CP74: 0 | CQ74: 1 | CR74: 1 | CS74: 1 | CT74: 0 | CU74: 1 | CV74: 0 | CW74: 0 | CX74: 0 | CY74: 0 | CZ74: 1 | DA74: 0 | DB74: 1 | DC74: 1 | DD74: 1 | DE74: 1 | DF74: 0 | DG74: 1 | DH74: 0 | DI74: 1 | DJ74: 1 | DK74: 1 | DL74: 0 | DM74: 1 | DN74: 0 | DO74: 1 | DP74: 0 | DQ74: 0 | DR74: 0 | DS74: 1 | DT74: 0 | DU74: 1 | DV74: 0 | DW74: 0 | DX74: 1 | DY74: 0 | DZ74: 0 | EA74: 0 | EB74: 0 | EC74: 0 | ED74: 0 | EE74: 0 | EF74: 0 | EG74: 0 | EH74: 0 | EI74: 0 | EJ74: 0 | EK74: 0 | EL74: 0 | EM74: 0 | EN74: 0 | EO74: 0 | EP74: 0 | EQ74: 0 | ER74: 0 | ES74: 0 | ET74: 0 | EU74: 0 | EV74: 1 | EW74: 1 | EX74: 0 | EZ74: 227 | FA74: 101 | FB74: 129 | FC74: 387 | FD74: 131 | FF74: 0.3026666667 | FG74: 0.4391304348 | FH74: 0.5608695652 | FI74: 0.7471042471 | FJ74: 0.2528957529 | FK74: - | FL74: 2.032 | FM74: - | FN74: - | FO74: - | FP74: - | FQ74: - | FR74: - | FS74: - | FT74: - | FU74: - | FV74: - | FW74: - | FX74: - | FY74: 0.26416 | FZ74: - | GA74: - | GB74: - | GC74: - | GD74: - | GE74: - | GF74: - | GG74: 0.381 | GH74: 0.762 | GI74: -
A75: 57 | B75: =Historical_Data!B59 -> 1978-02-26 | C75: =Historical_Data!C59 -> 0 | D75: =Historical_Data!C424 -> 2.39268 | E75: =Historical_Data!C789 -> 0 | F75: =Historical_Data!C1155 -> 0 | G75: =Historical_Data!C1520 -> 0 | H75: =Historical_Data!C1885 -> 0 | I75: =Historical_Data!C2250 -> 0 | J75: =Historical_Data!C2616 -> 0 | K75: =Historical_Data!C2981 -> 0 | L75: =Historical_Data!C3346 -> 0 | M75: =Historical_Data!C3711 -> 0 | N75: =Historical_Data!C4077 -> 0.7112 | O75: =Historical_Data!C4442 -> 0 | P75: =Historical_Data!C4807 -> 0 | Q75: =Historical_Data!C5172 -> 1.25984 | R75: =Historical_Data!C5538 -> 0.2032 | S75: =Historical_Data!C5903 -> 0 | T75: =Historical_Data!C6268 -> 0.0762 | U75: =Historical_Data!C6633 -> 0 | V75: =Historical_Data!C6999 -> 0.21082 | W75: =Historical_Data!C7364 -> 0 | X75: =Historical_Data!C7729 -> 0 | Y75: =Historical_Data!C8094 -> 0 | Z75: =Historical_Data!C8460 -> 0 | AA75: =Historical_Data!C8825 -> 0.0762 | AC75: 0 | AD75: 1 | AE75: 0 | AF75: 0 | AG75: 0 | AH75: 0 | AI75: 0 | AJ75: 0 | AK75: 0 | AL75: 0 | AM75: 0 | AN75: 1 | AO75: 0 | AP75: 0 | AQ75: 1 | AR75: 1 | AS75: 0 | AT75: 1 | AU75: 0 | AV75: 1 | AW75: 0 | AX75: 0 | AY75: 0 | AZ75: 0 | BA75: 1 | BB75: 0 | BC75: 1 | BD75: 0 | BE75: 0 | BF75: 0 | BG75: 0 | BH75: 0 | BI75: 0 | BJ75: 0 | BK75: 0 | BL75: 0 | BM75: 0 | BN75: 0 | BO75: 0 | BP75: 1 | BQ75: 0 | BR75: 0 | BS75: 0 | BT75: 0 | BU75: 0 | BV75: 0 | BW75: 0 | BX75: 0 | BY75: 0 | BZ75: 0 | CA75: 0 | CB75: 0 | CC75: 0 | CD75: 0 | CE75: 0 | CF75: 0 | CG75: 0 | CH75: 0 | CI75: 0 | CJ75: 0 | CK75: 0 | CL75: 0 | CM75: 0 | CN75: 0 | CO75: 0 | CP75: 0 | CQ75: 0 | CR75: 0 | CS75: 0 | CT75: 0 | CU75: 0 | CV75: 0 | CW75: 1 | CX75: 1 | CY75: 0 | CZ75: 1 | DA75: 0 | DB75: 1 | DC75: 1 | DD75: 1 | DE75: 1 | DF75: 1 | DG75: 1 | DH75: 1 | DI75: 1 | DJ75: 1 | DK75: 0 | DL75: 1 | DM75: 1 | DN75: 0 | DO75: 0 | DP75: 1 | DQ75: 0 | DR75: 1 | DS75: 0 | DT75: 1 | DU75: 1 | DV75: 0 | DW75: 0 | DX75: 0 | DY75: 0 | DZ75: 0 | EA75: 0 | EB75: 0 | EC75: 0 | ED75: 0 | EE75: 0 | EF75: 0 | EG75: 0 | EH75: 0 | EI75: 0 | EJ75: 0 | EK75: 1 | EL75: 0 | EM75: 0 | EN75: 0 | EO75: 1 | EP75: 0 | EQ75: 1 | ER75: 0 | ES75: 1 | ET75: 0 | EU75: 0 | EV75: 0 | EW75: 0 | EX75: 1 | EZ75: 230 | FA75: 103 | FB75: 131 | FC75: 382 | FD75: 134 | FF75: 0.3066666667 | FG75: 0.4401709402 | FH75: 0.5598290598 | FI75: 0.7403100775 | FJ75: 0.2596899225 | FK75: - | FL75: 2.39268 | FM75: - | FN75: - | FO75: - | FP75: - | FQ75: - | FR75: - | FS75: - | FT75: - | FU75: - | FV75: 0.7112 | FW75: - | FX75: - | FY75: 1.25984 | FZ75: 0.2032 | GA75: - | GB75: 0.0762 | GC75: - | GD75: 0.21082 | GE75: - | GF75: - | GG75: - | GH75: - | GI75: 0.0762
A76: 58 | B76: =Historical_Data!B60 -> 1978-02-27 | C76: =Historical_Data!C60 -> 0 | D76: =Historical_Data!C425 -> 0 | E76: =Historical_Data!C790 -> 0 | F76: =Historical_Data!C1156 -> 0 | G76: =Historical_Data!C1521 -> 0 | H76: =Historical_Data!C1886 -> 0 | I76: =Historical_Data!C2251 -> 0.05334 | J76: =Historical_Data!C2617 -> 0 | K76: =Historical_Data!C2982 -> 0 | L76: =Historical_Data!C3347 -> 0 | M76: =Historical_Data!C3712 -> 0.1524 | N76: =Historical_Data!C4078 -> 0 | O76: =Historical_Data!C4443 -> 0.127 | P76: =Historical_Data!C4808 -> 0 | Q76: =Historical_Data!C5173 -> 0 | R76: =Historical_Data!C5539 -> 0 | S76: =Historical_Data!C5904 -> 0 | T76: =Historical_Data!C6269 -> 0.5207 | U76: =Historical_Data!C6634 -> 0.0508 | V76: =Historical_Data!C7000 -> 0.66548 | W76: =Historical_Data!C7365 -> 0 | X76: =Historical_Data!C7730 -> 0 | Y76: =Historical_Data!C8095 -> 0.59182 | Z76: =Historical_Data!C8461 -> 0 | AA76: =Historical_Data!C8826 -> 0 | AC76: 0 | AD76: 0 | AE76: 0 | AF76: 0 | AG76: 0 | AH76: 0 | AI76: 1 | AJ76: 0 | AK76: 0 | AL76: 0 | AM76: 1 | AN76: 0 | AO76: 1 | AP76: 0 | AQ76: 0 | AR76: 0 | AS76: 0 | AT76: 1 | AU76: 1 | AV76: 1 | AW76: 0 | AX76: 0 | AY76: 1 | AZ76: 0 | BA76: 0 | BB76: 0 | BC76: 0 | BD76: 0 | BE76: 0 | BF76: 0 | BG76: 0 | BH76: 0 | BI76: 0 | BJ76: 0 | BK76: 0 | BL76: 0 | BM76: 0 | BN76: 0 | BO76: 0 | BP76: 0 | BQ76: 0 | BR76: 0 | BS76: 1 | BT76: 0 | BU76: 1 | BV76: 0 | BW76: 0 | BX76: 0 | BY76: 0 | BZ76: 0 | CA76: 0 | CB76: 1 | CC76: 0 | CD76: 0 | CE76: 0 | CF76: 0 | CG76: 0 | CH76: 0 | CI76: 0 | CJ76: 0 | CK76: 0 | CL76: 1 | CM76: 0 | CN76: 0 | CO76: 1 | CP76: 1 | CQ76: 0 | CR76: 0 | CS76: 0 | CT76: 0 | CU76: 0 | CV76: 0 | CW76: 0 | CX76: 0 | CY76: 1 | CZ76: 1 | DA76: 0 | DB76: 1 | DC76: 1 | DD76: 1 | DE76: 1 | DF76: 0 | DG76: 1 | DH76: 1 | DI76: 1 | DJ76: 0 | DK76: 0 | DL76: 0 | DM76: 1 | DN76: 0 | DO76: 0 | DP76: 1 | DQ76: 0 | DR76: 0 | DS76: 0 | DT76: 1 | DU76: 1 | DV76: 0 | DW76: 1 | DX76: 0 | DY76: 0 | DZ76: 0 | EA76: 0 | EB76: 0 | EC76: 0 | ED76: 0 | EE76: 0 | EF76: 1 | EG76: 0 | EH76: 0 | EI76: 0 | EJ76: 1 | EK76: 0 | EL76: 1 | EM76: 0 | EN76: 0 | EO76: 0 | EP76: 0 | EQ76: 0 | ER76: 1 | ES76: 0 | ET76: 0 | EU76: 0 | EV76: 1 | EW76: 0 | EX76: 0 | EZ76: 230 | FA76: 103 | FB76: 134 | FC76: 381 | FD76: 132 | FF76: 0.3066666667 | FG76: 0.4345991561 | FH76: 0.5654008439 | FI76: 0.7426900585 | FJ76: 0.2573099415 | FK76: - | FL76: - | FM76: - | FN76: - | FO76: - | FP76: - | FQ76: 0.05334 | FR76: - | FS76: - | FT76: - | FU76: 0.1524 | FV76: - | FW76: 0.127 | FX76: - | FY76: - | FZ76: - | GA76: - | GB76: 0.5207 | GC76: 0.0508 | GD76: 0.66548 | GE76: - | GF76: - | GG76: 0.59182 | GH76: - | GI76: -
A77: 59 | B77: =Historical_Data!B61 -> 1978-02-28 | C77: =Historical_Data!C61 -> 0 | D77: =Historical_Data!C426 -> 0 | E77: =Historical_Data!C791 -> 0.0762 | F77: =Historical_Data!C1157 -> 0.1016 | G77: =Historical_Data!C1522 -> 0 | H77: =Historical_Data!C1887 -> 0 | I77: =Historical_Data!C2252 -> 0.9906 | J77: =Historical_Data!C2618 -> 0 | K77: =Historical_Data!C2983 -> 0.254 | L77: =Historical_Data!C3348 -> 0.55118 | M77: =Historical_Data!C3713 -> 0 | N77: =Historical_Data!C4079 -> 0 | O77: =Historical_Data!C4444 -> 0 | P77: =Historical_Data!C4809 -> 0 | Q77: =Historical_Data!C5174 -> 0 | R77: =Historical_Data!C5540 -> 0 | S77: =Historical_Data!C5905 -> 0 | T77: =Historical_Data!C6270 -> 1.4859 | U77: =Historical_Data!C6635 -> 0.0254 | V77: =Historical_Data!C7001 -> 0.09398 | W77: =Historical_Data!C7366 -> 0.127 | X77: =Historical_Data!C7731 -> 2.17932 | Y77: =Historical_Data!C8096 -> 0.19558 | Z77: =Historical_Data!C8462 -> 0 | AA77: =Historical_Data!C8827 -> 0 | AC77: 0 | AD77: 0 | AE77: 1 | AF77: 1 | AG77: 0 | AH77: 0 | AI77: 1 | AJ77: 0 | AK77: 1 | AL77: 1 | AM77: 0 | AN77: 0 | AO77: 0 | AP77: 0 | AQ77: 0 | AR77: 0 | AS77: 0 | AT77: 1 | AU77: 1 | AV77: 1 | AW77: 1 | AX77: 1 | AY77: 1 | AZ77: 0 | BA77: 0 | BB77: 0 | BC77: 0 | BD77: 0 | BE77: 0 | BF77: 0 | BG77: 0 | BH77: 1 | BI77: 0 | BJ77: 0 | BK77: 0 | BL77: 0 | BM77: 0 | BN77: 0 | BO77: 0 | BP77: 0 | BQ77: 0 | BR77: 0 | BS77: 1 | BT77: 1 | BU77: 1 | BV77: 0 | BW77: 0 | BX77: 1 | BY77: 0 | BZ77: 0 | CA77: 0 | CB77: 0 | CC77: 0 | CD77: 0 | CE77: 0 | CF77: 0 | CG77: 0 | CH77: 0 | CI77: 0 | CJ77: 0 | CK77: 1 | CL77: 0 | CM77: 1 | CN77: 0 | CO77: 0 | CP77: 0 | CQ77: 0 | CR77: 0 | CS77: 0 | CT77: 0 | CU77: 0 | CV77: 0 | CW77: 0 | CX77: 0 | CY77: 0 | CZ77: 1 | DA77: 1 | DB77: 0 | DC77: 0 | DD77: 1 | DE77: 1 | DF77: 0 | DG77: 1 | DH77: 0 | DI77: 0 | DJ77: 0 | DK77: 1 | DL77: 0 | DM77: 1 | DN77: 1 | DO77: 1 | DP77: 1 | DQ77: 0 | DR77: 0 | DS77: 0 | DT77: 0 | DU77: 0 | DV77: 0 | DW77: 1 | DX77: 1 | DY77: 0 | DZ77: 0 | EA77: 0 | EB77: 1 | EC77: 1 | ED77: 0 | EE77: 0 | EF77: 0 | EG77: 0 | EH77: 1 | EI77: 1 | EJ77: 0 | EK77: 0 | EL77: 0 | EM77: 0 | EN77: 0 | EO77: 0 | EP77: 0 | EQ77: 0 | ER77: 0 | ES77: 0 | ET77: 1 | EU77: 1 | EV77: 0 | EW77: 0 | EX77: 0 | EZ77: 227 | FA77: 102 | FB77: 133 | FC77: 380 | FD77: 130 | FF77: 0.3026666667 | FG77: 0.4340425532 | FH77: 0.5659574468 | FI77: 0.7450980392 | FJ77: 0.2549019608 | FK77: - | FL77: - | FM77: 0.0762 | FN77: 0.1016 | FO77: - | FP77: - | FQ77: 0.9906 | FR77: - | FS77: 0.254 | FT77: 0.55118 | FU77: - | FV77: - | FW77: - | FX77: - | FY77: - | FZ77: - | GA77: - | GB77: 1.4859 | GC77: 0.0254 | GD77: 0.09398 | GE77: 0.127 | GF77: 2.17932 | GG77: 0.19558 | GH77: - | GI77: -
A78: 60 | B78: =Historical_Data!B62 -> 1978-03-01 | C78: =Historical_Data!C62 -> 0 | D78: =Historical_Data!C427 -> 0.0254 | E78: =Historical_Data!C792 -> 0 | F78: =Historical_Data!C1158 -> 0 | G78: =Historical_Data!C1523 -> 0 | H78: =Historical_Data!C1888 -> 1.1684 | I78: =Historical_Data!C2253 -> 0.02286 | J78: =Historical_Data!C2619 -> 0 | K78: =Historical_Data!C2984 -> 0 | L78: =Historical_Data!C3349 -> 1.58242 | M78: =Historical_Data!C3714 -> 0 | N78: =Historical_Data!C4080 -> 0 | O78: =Historical_Data!C4445 -> 0 | P78: =Historical_Data!C4810 -> 0 | Q78: =Historical_Data!C5175 -> 0 | R78: =Historical_Data!C5541 -> 0 | S78: =Historical_Data!C5906 -> 0 | T78: =Historical_Data!C6271 -> 0 | U78: =Historical_Data!C6636 -> 0 | V78: =Historical_Data!C7002 -> 1.0414 | W78: =Historical_Data!C7367 -> 0 | X78: =Historical_Data!C7732 -> 0.08128 | Y78: =Historical_Data!C8097 -> 0 | Z78: =Historical_Data!C8463 -> 0 | AA78: =Historical_Data!C8828 -> 0 | AC78: 0 | AD78: 1 | AE78: 0 | AF78: 0 | AG78: 0 | AH78: 1 | AI78: 1 | AJ78: 0 | AK78: 0 | AL78: 1 | AM78: 0 | AN78: 0 | AO78: 0 | AP78: 0 | AQ78: 0 | AR78: 0 | AS78: 0 | AT78: 0 | AU78: 0 | AV78: 1 | AW78: 0 | AX78: 1 | AY78: 0 | AZ78: 0 | BA78: 0 | BB78: 0 | BC78: 0 | BD78: 0 | BE78: 0 | BF78: 0 | BG78: 0 | BH78: 1 | BI78: 0 | BJ78: 0 | BK78: 1 | BL78: 0 | BM78: 0 | BN78: 0 | BO78: 0 | BP78: 0 | BQ78: 0 | BR78: =IF(AS77=1,IF(AS78=1,1,0),0) -> 0 | BS78: =IF(AT77=1,IF(AT78=1,1,0),0) -> 0 | BT78: =IF(AU77=1,IF(AU78=1,1,0),0) -> 0 | BU78: =IF(AV77=1,IF(AV78=1,1,0),0) -> 1 | BV78: =IF(AW77=1,IF(AW78=1,1,0),0) -> 0 | BW78: =IF(AX77=1,IF(AX78=1,1,0),0) -> 1 | BX78: =IF(AY77=1,IF(AY78=1,1,0),0) -> 0 | BY78: =IF(AZ77=1,IF(AZ78=1,1,0),0) -> 0 | BZ78: =IF(BA77=1,IF(BA78=1,1,0),0) -> 0 | CA78: 0 | CB78: 0 | CC78: 1 | CD78: 1 | CE78: 0 | CF78: 0 | CG78: 0 | CH78: 0 | CI78: 1 | CJ78: 0 | CK78: 0 | CL78: 0 | CM78: 0 | CN78: 0 | CO78: 0 | CP78: 0 | CQ78: 0 | CR78: 1 | CS78: 1 | CT78: 0 | CU78: 1 | CV78: 0 | CW78: 1 | CX78: 0 | CY78: 0 | CZ78: 1 | DA78: 0 | DB78: 0 | DC78: 0 | DD78: 1 | DE78: 0 | DF78: 0 | DG78: 1 | DH78: 0 | DI78: 0 | DJ78: 1 | DK78: 1 | DL78: 1 | DM78: 1 | DN78: 1 | DO78: 1 | DP78: 1 | DQ78: 0 | DR78: 0 | DS78: 0 | DT78: 0 | DU78: 0 | DV78: 0 | DW78: 1 | DX78: 1 | DY78: 0 | DZ78: 0 | EA78: 1 | EB78: 0 | EC78: 0 | ED78: 0 | EE78: 1 | EF78: 0 | EG78: 0 | EH78: 0 | EI78: 0 | EJ78: 0 | EK78: 0 | EL78: 0 | EM78: 0 | EN78: 0 | EO78: 0 | EP78: 0 | EQ78: 0 | ER78: 0 | ES78: 0 | ET78: 0 | EU78: 0 | EV78: 0 | EW78: 0 | EX78: 0 | EZ78: 227 | FA78: 103 | FB78: 134 | FC78: 382 | FD78: 131 | FF78: 0.3026666667 | FG78: 0.4345991561 | FH78: 0.5654008439 | FI78: 0.7446393762 | FJ78: 0.2553606238 | FK78: - | FL78: 0.0254 | FM78: - | FN78: - | FO78: - | FP78: 1.1684 | FQ78: 0.02286 | FR78: - | FS78: - | FT78: 1.58242 | FU78: - | FV78: - | FW78: - | FX78: - | FY78: - | FZ78: - | GA78: - | GB78: - | GC78: - | GD78: 1.0414 | GE78: - | GF78: 0.08128 | GG78: - | GH78: - | GI78: -
A79: 61 | B79: =Historical_Data!B63 -> 1978-03-02 | C79: =Historical_Data!C63 -> 0 | D79: =Historical_Data!C428 -> 0 | E79: =Historical_Data!C793 -> 0.3048 | F79: =Historical_Data!C1159 -> 0 | G79: =Historical_Data!C1524 -> 0.04318 | H79: =Historical_Data!C1889 -> 0 | I79: =Historical_Data!C2254 -> 0 | J79: =Historical_Data!C2620 -> 0 | K79: =Historical_Data!C2985 -> 0 | L79: =Historical_Data!C3350 -> 0 | M79: =Historical_Data!C3715 -> 0 | N79: =Historical_Data!C4081 -> 0 | O79: =Historical_Data!C4446 -> 0 | P79: =Historical_Data!C4811 -> 0.762 | Q79: =Historical_Data!C5176 -> 0 | R79: =Historical_Data!C5542 -> 0 | S79: =Historical_Data!C5907 -> 1.9177 | T79: =Historical_Data!C6272 -> 0 | U79: =Historical_Data!C6637 -> 0 | V79: =Historical_Data!C7003 -> 0 | W79: =Historical_Data!C7368 -> 0.59436 | X79: =Historical_Data!C7733 -> 0 | Y79: =Historical_Data!C8098 -> 0 | Z79: =Historical_Data!C8464 -> 0 | AA79: =Historical_Data!C8829 -> 1.016 | AC79: 0 | AD79: 0 | AE79: 1 | AF79: 0 | AG79: 1 | AH79: 0 | AI79: 0 | AJ79: 0 | AK79: 0 | AL79: 0 | AM79: 0 | AN79: 0 | AO79: 0 | AP79: 1 | AQ79: 0 | AR79: 0 | AS79: 1 | AT79: 0 | AU79: 0 | AV79: 0 | AW79: 1 | AX79: 0 | AY79: 0 | AZ79: 0 | BA79: 1 | BB79: 0 | BC79: =IF(AD78=1,IF(AD79=1,1,0),0) -> 0 | BD79: =IF(AE78=1,IF(AE79=1,1,0),0) -> 0 | BE79: =IF(AF78=1,IF(AF79=1,1,0),0) -> 0 | BF79: =IF(AG78=1,IF(AG79=1,1,0),0) -> 0 | BG79: =IF(AH78=1,IF(AH79=1,1,0),0) -> 0 | BH79: =IF(AI78=1,IF(AI79=1,1,0),0) -> 0 | BI79: =IF(AJ78=1,IF(AJ79=1,1,0),0) -> 0 | BJ79: =IF(AK78=1,IF(AK79=1,1,0),0) -> 0 | BK79: =IF(AL78=1,IF(AL79=1,1,0),0) -> 0 | BL79: =IF(AM78=1,IF(AM79=1,1,0),0) -> 0 | BM79: =IF(AN78=1,IF(AN79=1,1,0),0) -> 0 | BN79: =IF(AO78=1,IF(AO79=1,1,0),0) -> 0 | BO79: =IF(AP78=1,IF(AP79=1,1,0),0) -> 0 | BP79: =IF(AQ78=1,IF(AQ79=1,1,0),0) -> 0 | BQ79: =IF(AR78=1,IF(AR79=1,1,0),0) -> 0 | BR79: 0 | BS79: 0 | BT79: 0 | BU79: 0 | BV79: 0 | BW79: 0 | BX79: 0 | BY79: 0 | BZ79: 0 | CA79: 0 | CB79: 1 | CC79: 0 | CD79: =IF(AF78=1,IF(AF79=0,1,0),0) -> 0 | CE79: =IF(AG78=1,IF(AG79=0,1,0),0) -> 0 | CF79: =IF(AH78=1,IF(AH79=0,1,0),0) -> 1 | CG79: =IF(AI78=1,IF(AI79=0,1,0),0) -> 1 | CH79: =IF(AJ78=1,IF(AJ79=0,1,0),0) -> 0 | CI79: =IF(AK78=1,IF(AK79=0,1,0),0) -> 0 | CJ79: =IF(AL78=1,IF(AL79=0,1,0),0) -> 1 | CK79: =IF(AM78=1,IF(AM79=0,1,0),0) -> 0 | CL79: =IF(AN78=1,IF(AN79=0,1,0),0) -> 0 | CM79: =IF(AO78=1,IF(AO79=0,1,0),0) -> 0 | CN79: =IF(AP78=1,IF(AP79=0,1,0),0) -> 0 | CO79: =IF(AQ78=1,IF(AQ79=0,1,0),0) -> 0 | CP79: =IF(AR78=1,IF(AR79=0,1,0),0) -> 0 | CQ79: =IF(AS78=1,IF(AS79=0,1,0),0) -> 0 | CR79: =IF(AT78=1,IF(AT79=0,1,0),0) -> 0 | CS79: =IF(AU78=1,IF(AU79=0,1,0),0) -> 0 | CT79: =IF(AV78=1,IF(AV79=0,1,0),0) -> 1 | CU79: =IF(AW78=1,IF(AW79=0,1,0),0) -> 0 | CV79: =IF(AX78=1,IF(AX79=0,1,0),0) -> 1 | CW79: =IF(AY78=1,IF(AY79=0,1,0),0) -> 0 | CX79: =IF(AZ78=1,IF(AZ79=0,1,0),0) -> 0 | CY79: 0 | CZ79: 1 | DA79: 0 | DB79: 0 | DC79: =IF(AF78=0,IF(AF79=0,1,0),0) -> 1 | DD79: =IF(AG78=0,IF(AG79=0,1,0),0) -> 0 | DE79: =IF(AH78=0,IF(AH79=0,1,0),0) -> 0 | DF79: =IF(AI78=0,IF(AI79=0,1,0),0) -> 0 | DG79: =IF(AJ78=0,IF(AJ79=0,1,0),0) -> 1 | DH79: =IF(AK78=0,IF(AK79=0,1,0),0) -> 1 | DI79: =IF(AL78=0,IF(AL79=0,1,0),0) -> 0 | DJ79: =IF(AM78=0,IF(AM79=0,1,0),0) -> 1 | DK79: =IF(AN78=0,IF(AN79=0,1,0),0) -> 1 | DL79: =IF(AO78=0,IF(AO79=0,1,0),0) -> 1 | DM79: =IF(AP78=0,IF(AP79=0,1,0),0) -> 0 | DN79: =IF(AQ78=0,IF(AQ79=0,1,0),0) -> 1 | DO79: =IF(AR78=0,IF(AR79=0,1,0),0) -> 1 | DP79: =IF(AS78=0,IF(AS79=0,1,0),0) -> 0 | DQ79: =IF(AT78=0,IF(AT79=0,1,0),0) -> 1 | DR79: =IF(AU78=0,IF(AU79=0,1,0),0) -> 1 | DS79: =IF(AV78=0,IF(AV79=0,1,0),0) -> 0 | DT79: =IF(AW78=0,IF(AW79=0,1,0),0) -> 0 | DU79: =IF(AX78=0,IF(AX79=0,1,0),0) -> 0 | DV79: =IF(AY78=0,IF(AY79=0,1,0),0) -> 1 | DW79: =IF(AZ78=0,IF(AZ79=0,1,0),0) -> 1 | DX79: 0 | DY79: 0 | DZ79: 0 | EA79: 0 | EB79: 1 | EC79: =IF(AF78=0,IF(AF79=1,1,0),0) -> 0 | ED79: =IF(AG78=0,IF(AG79=1,1,0),0) -> 1 | EE79: =IF(AH78=0,IF(AH79=1,1,0),0) -> 0 | EF79: =IF(AI78=0,IF(AI79=1,1,0),0) -> 0 | EG79: =IF(AJ78=0,IF(AJ79=1,1,0),0) -> 0 | EH79: =IF(AK78=0,IF(AK79=1,1,0),0) -> 0 | EI79: =IF(AL78=0,IF(AL79=1,1,0),0) -> 0 | EJ79: =IF(AM78=0,IF(AM79=1,1,0),0) -> 0 | EK79: =IF(AN78=0,IF(AN79=1,1,0),0) -> 0 | EL79: =IF(AO78=0,IF(AO79=1,1,0),0) -> 0 | EM79: =IF(AP78=0,IF(AP79=1,1,0),0) -> 1 | EN79: =IF(AQ78=0,IF(AQ79=1,1,0),0) -> 0 | EO79: =IF(AR78=0,IF(AR79=1,1,0),0) -> 0 | EP79: =IF(AS78=0,IF(AS79=1,1,0),0) -> 1 | EQ79: =IF(AT78=0,IF(AT79=1,1,0),0) -> 0 | ER79: =IF(AU78=0,IF(AU79=1,1,0),0) -> 0 | ES79: =IF(AV78=0,IF(AV79=1,1,0),0) -> 0 | ET79: =IF(AW78=0,IF(AW79=1,1,0),0) -> 1 | EU79: =IF(AX78=0,IF(AX79=1,1,0),0) -> 0 | EV79: =IF(AY78=0,IF(AY79=1,1,0),0) -> 0 | EW79: =IF(AZ78=0,IF(AZ79=1,1,0),0) -> 0 | EX79: 1 | EZ79: 225 | FA79: 102 | FB79: 132 | FC79: 385 | FD79: 129 | FF79: 0.3 | FG79: 0.4358974359 | FH79: 0.5641025641 | FI79: 0.7490272374 | FJ79: 0.2509727626 | FK79: - | FL79: - | FM79: 0.3048 | FN79: - | FO79: 0.04318 | FP79: - | FQ79: - | FR79: - | FS79: - | FT79: - | FU79: - | FV79: - | FW79: - | FX79: 0.762 | FY79: - | FZ79: - | GA79: 1.9177 | GB79: - | GC79: - | GD79: - | GE79: 0.59436 | GF79: - | GG79: - | GH79: - | GI79: 1.016
A80: 62 | B80: =Historical_Data!B64 -> 1978-03-03 | C80: =Historical_Data!C64 -> 1.016 | D80: =Historical_Data!C429 -> 0 | E80: =Historical_Data!C794 -> 0 | F80: =Historical_Data!C1160 -> 0 | G80: =Historical_Data!C1525 -> 0.05842 | H80: =Historical_Data!C1890 -> 0 | I80: =Historical_Data!C2255 -> 0 | J80: =Historical_Data!C2621 -> 0 | K80: =Historical_Data!C2986 -> 0 | L80: =Historical_Data!C3351 -> 0.0254 | M80: =Historical_Data!C3716 -> 0 | N80: =Historical_Data!C4082 -> 0 | O80: =Historical_Data!C4447 -> 0 | P80: =Historical_Data!C4812 -> 1.98374 | Q80: =Historical_Data!C5177 -> 0 | R80: =Historical_Data!C5543 -> 0.19558 | S80: =Historical_Data!C5908 -> 1.3081 | T80: =Historical_Data!C6273 -> 0 | U80: =Historical_Data!C6638 -> 0.3048 | V80: =Historical_Data!C7004 -> 2.794 | W80: =Historical_Data!C7369 -> 2.22504 | X80: =Historical_Data!C7734 -> 0.87376 | Y80: =Historical_Data!C8099 -> 0 | Z80: =Historical_Data!C8465 -> 0 | AA80: =Historical_Data!C8830 -> 1.778 | AC80: 1 | AD80: 0 | AE80: 0 | AF80: 0 | AG80: 1 | AH80: 0 | AI80: 0 | AJ80: 0 | AK80: 0 | AL80: 1 | AM80: 0 | AN80: 0 | AO80: 0 | AP80: 1 | AQ80: 0 | AR80: 1 | AS80: 1 | AT80: 0 | AU80: 1 | AV80: 1 | AW80: 1 | AX80: 1 | AY80: 0 | AZ80: 0 | BA80: 1 | BB80: 0 | BC80: 0 | BD80: 0 | BE80: 0 | BF80: 1 | BG80: 0 | BH80: 0 | BI80: 0 | BJ80: 0 | BK80: 0 | BL80: 0 | BM80: 0 | BN80: 0 | BO80: 1 | BP80: 0 | BQ80: 0 | BR80: 1 | BS80: 0 | BT80: 0 | BU80: 0 | BV80: 1 | BW80: 0 | BX80: 0 | BY80: 0 | BZ80: 1 | CA80: 0 | CB80: =IF(AD79=1,IF(AD80=0,1,0),0) -> 0 | CC80: =IF(AE79=1,IF(AE80=0,1,0),0) -> 1 | CD80: 0 | CE80: 0 | CF80: 0 | CG80: 0 | CH80: 0 | CI80: 0 | CJ80: 0 | CK80: 0 | CL80: 0 | CM80: 0 | CN80: 0 | CO80: 0 | CP80: 0 | CQ80: 0 | CR80: 0 | CS80: 0 | CT80: 0 | CU80: 0 | CV80: 0 | CW80: 0 | CX80: 0 | CY80: 0 | CZ80: 0 | DA80: =IF(AD79=0,IF(AD80=0,1,0),0) -> 1 | DB80: =IF(AE79=0,IF(AE80=0,1,0),0) -> 0 | DC80: 1 | DD80: 0 | DE80: 1 | DF80: 1 | DG80: 1 | DH80: 1 | DI80: 0 | DJ80: 1 | DK80: 1 | DL80: 1 | DM80: 0 | DN80: 1 | DO80: 0 | DP80: 0 | DQ80: 1 | DR80: 0 | DS80: 0 | DT80: 0 | DU80: 0 | DV80: 1 | DW80: 1 | DX80: 0 | DY80: 1 | DZ80: 1 | EA80: =IF(AD79=0,IF(AD80=1,1,0),0) -> 0 | EB80: =IF(AE79=0,IF(AE80=1,1,0),0) -> 0 | EC80: 0 | ED80: 0 | EE80: 0 | EF80: 0 | EG80: 0 | EH80: 0 | EI80: 1 | EJ80: 0 | EK80: 0 | EL80: 0 | EM80: 0 | EN80: 0 | EO80: 1 | EP80: 0 | EQ80: 0 | ER80: 1 | ES80: 1 | ET80: 0 | EU80: 1 | EV80: 0 | EW80: 0 | EX80: 0 | EZ80: 224 | FA80: 103 | FB80: 130 | FC80: 389 | FD80: 129 | FF80: 0.2986666667 | FG80: 0.4420600858 | FH80: 0.5579399142 | FI80: 0.750965251 | FJ80: 0.249034749 | FK80: 1.016 | FL80: - | FM80: - | FN80: - | FO80: 0.05842 | FP80: - | FQ80: - | FR80: - | FS80: - | FT80: 0.0254 | FU80: - | FV80: - | FW80: - | FX80: 1.98374 | FY80: - | FZ80: 0.19558 | GA80: 1.3081 | GB80: - | GC80: 0.3048 | GD80: 2.794 | GE80: 2.22504 | GF80: 0.87376 | GG80: - | GH80: - | GI80: 1.778
A81: 63 | B81: =Historical_Data!B65 -> 1978-03-04 | C81: =Historical_Data!C65 -> 0 | D81: =Historical_Data!C430 -> 0.0635 | E81: =Historical_Data!C795 -> 0 | F81: =Historical_Data!C1161 -> 0 | G81: =Historical_Data!C1526 -> 0 | H81: =Historical_Data!C1891 -> 0 | I81: =Historical_Data!C2256 -> 0 | J81: =Historical_Data!C2622 -> 0.127 | K81: =Historical_Data!C2987 -> 0.127 | L81: =Historical_Data!C3352 -> 0 | M81: =Historical_Data!C3717 -> 0.0254 | N81: =Historical_Data!C4083 -> 0 | O81: =Historical_Data!C4448 -> 0 | P81: =Historical_Data!C4813 -> 0.20066 | Q81: =Historical_Data!C5178 -> 0 | R81: =Historical_Data!C5544 -> 5.0546 | S81: =Historical_Data!C5909 -> 0 | T81: =Historical_Data!C6274 -> 0 | U81: =Historical_Data!C6639 -> 0 | V81: =Historical_Data!C7005 -> 0.2032 | W81: =Historical_Data!C7370 -> 0 | X81: =Historical_Data!C7735 -> 0.06604 | Y81: =Historical_Data!C8100 -> 0 | Z81: =Historical_Data!C8466 -> 0.95758 | AA81: =Historical_Data!C8831 -> 0 | AC81: 0 | AD81: 1 | AE81: 0 | AF81: 0 | AG81: 0 | AH81: 0 | AI81: 0 | AJ81: 1 | AK81: 1 | AL81: 0 | AM81: 1 | AN81: 0 | AO81: 0 | AP81: 1 | AQ81: 0 | AR81: 1 | AS81: 0 | AT81: 0 | AU81: 0 | AV81: 1 | AW81: 0 | AX81: 1 | AY81: 0 | AZ81: 1 | BA81: 0 | BB81: 0 | BC81: 0 | BD81: 0 | BE81: 0 | BF81: 0 | BG81: 0 | BH81: 0 | BI81: 0 | BJ81: 0 | BK81: 0 | BL81: 0 | BM81: 0 | BN81: 0 | BO81: 1 | BP81: 0 | BQ81: 1 | BR81: 0 | BS81: 0 | BT81: 0 | BU81: 1 | BV81: 0 | BW81: 1 | BX81: 0 | BY81: 0 | BZ81: 0 | CA81: 1 | CB81: 0 | CC81: 0 | CD81: 0 | CE81: 1 | CF81: 0 | CG81: 0 | CH81: 0 | CI81: 0 | CJ81: 1 | CK81: 0 | CL81: 0 | CM81: 0 | CN81: 0 | CO81: 0 | CP81: 0 | CQ81: 1 | CR81: 0 | CS81: 1 | CT81: 0 | CU81: 1 | CV81: 0 | CW81: 0 | CX81: 0 | CY81: 1 | CZ81: 0 | DA81: 0 | DB81: 1 | DC81: 1 | DD81: 0 | DE81: 1 | DF81: 1 | DG81: 0 | DH81: 0 | DI81: 0 | DJ81: 0 | DK81: 1 | DL81: 1 | DM81: 0 | DN81: 1 | DO81: 0 | DP81: 0 | DQ81: 1 | DR81: 0 | DS81: 0 | DT81: 0 | DU81: 0 | DV81: 1 | DW81: 0 | DX81: 0 | DY81: 0 | DZ81: 0 | EA81: 1 | EB81: 0 | EC81: 0 | ED81: 0 | EE81: 0 | EF81: 0 | EG81: 1 | EH81: 1 | EI81: 0 | EJ81: 1 | EK81: 0 | EL81: 0 | EM81: 0 | EN81: 0 | EO81: 0 | EP81: 0 | EQ81: 0 | ER81: 0 | ES81: 0 | ET81: 0 | EU81: 0 | EV81: 0 | EW81: 1 | EX81: 0 | EZ81: 223 | FA81: 100 | FB81: 131 | FC81: 386 | FD81: 129 | FF81: 0.2973333333 | FG81: 0.4329004329 | FH81: 0.5670995671 | FI81: 0.7495145631 | FJ81: 0.2504854369 | FK81: - | FL81: 0.0635 | FM81: - | FN81: - | FO81: - | FP81: - | FQ81: - | FR81: 0.127 | FS81: 0.127 | FT81: - | FU81: 0.0254 | FV81: - | FW81: - | FX81: 0.20066 | FY81: - | FZ81: 5.0546 | GA81: - | GB81: - | GC81: - | GD81: 0.2032 | GE81: - | GF81: 0.06604 | GG81: - | GH81: 0.95758 | GI81: -
A82: 64 | B82: =Historical_Data!B66 -> 1978-03-05 | C82: =Historical_Data!C66 -> 0 | D82: =Historical_Data!C431 -> 0.67818 | E82: =Historical_Data!C796 -> 0 | F82: =Historical_Data!C1162 -> 1.524 | G82: =Historical_Data!C1527 -> 0.2286 | H82: =Historical_Data!C1892 -> 0 | I82: =Historical_Data!C2257 -> 0 | J82: =Historical_Data!C2623 -> 0.4572 | K82: =Historical_Data!C2988 -> 0 | L82: =Historical_Data!C3353 -> 0 | M82: =Historical_Data!C3718 -> 1.8288 | N82: =Historical_Data!C4084 -> 0.3048 | O82: =Historical_Data!C4449 -> 0 | P82: =Historical_Data!C4814 -> 0 | Q82: =Historical_Data!C5179 -> 0 | R82: =Historical_Data!C5545 -> 0.89154 | S82: =Historical_Data!C5910 -> 0 | T82: =Historical_Data!C6275 -> 0 | U82: =Historical_Data!C6640 -> 0 | V82: =Historical_Data!C7006 -> 0.55372 | W82: =Historical_Data!C7371 -> 0 | X82: =Historical_Data!C7736 -> 0 | Y82: =Historical_Data!C8101 -> 0 | Z82: =Historical_Data!C8467 -> 1.65862 | AA82: =Historical_Data!C8832 -> 0 | AC82: 0 | AD82: 1 | AE82: 0 | AF82: 1 | AG82: 1 | AH82: 0 | AI82: 0 | AJ82: 1 | AK82: 0 | AL82: 0 | AM82: 1 | AN82: 1 | AO82: 0 | AP82: 0 | AQ82: 0 | AR82: 1 | AS82: 0 | AT82: 0 | AU82: 0 | AV82: 1 | AW82: 0 | AX82: 0 | AY82: 0 | AZ82: 1 | BA82: 0 | BB82: 0 | BC82: 1 | BD82: 0 | BE82: 0 | BF82: 0 | BG82: 0 | BH82: 0 | BI82: 1 | BJ82: 0 | BK82: 0 | BL82: 1 | BM82: 0 | BN82: 0 | BO82: 0 | BP82: 0 | BQ82: 1 | BR82: 0 | BS82: 0 | BT82: 0 | BU82: 1 | BV82: 0 | BW82: 0 | BX82: 0 | BY82: 1 | BZ82: 0 | CA82: 0 | CB82: 0 | CC82: 0 | CD82: 0 | CE82: 0 | CF82: 0 | CG82: 0 | CH82: 0 | CI82: 1 | CJ82: 0 | CK82: 0 | CL82: 0 | CM82: 0 | CN82: 1 | CO82: 0 | CP82: 0 | CQ82: 0 | CR82: 0 | CS82: 0 | CT82: 0 | CU82: 0 | CV82: 1 | CW82: 0 | CX82: 0 | CY82: 0 | CZ82: 1 | DA82: 0 | DB82: 1 | DC82: 0 | DD82: 0 | DE82: 1 | DF82: 1 | DG82: 0 | DH82: 0 | DI82: 1 | DJ82: 0 | DK82: 0 | DL82: 1 | DM82: 0 | DN82: 1 | DO82: 0 | DP82: 1 | DQ82: 1 | DR82: 1 | DS82: 0 | DT82: 1 | DU82: 0 | DV82: 1 | DW82: 0 | DX82: 1 | DY82: 0 | DZ82: 0 | EA82: 0 | EB82: 0 | EC82: 1 | ED82: 1 | EE82: 0 | EF82: 0 | EG82: 0 | EH82: 0 | EI82: 0 | EJ82: 0 | EK82: 1 | EL82: 0 | EM82: 0 | EN82: 0 | EO82: 0 | EP82: 0 | EQ82: 0 | ER82: 0 | ES82: 0 | ET82: 0 | EU82: 0 | EV82: 0 | EW82: 0 | EX82: 0 | EZ82: 227 | FA82: 102 | FB82: 131 | FC82: 387 | FD82: 132 | FF82: 0.3026666667 | FG82: 0.4377682403 | FH82: 0.5622317597 | FI82: 0.7456647399 | FJ82: 0.2543352601 | FK82: - | FL82: 0.67818 | FM82: - | FN82: 1.524 | FO82: 0.2286 | FP82: - | FQ82: - | FR82: 0.4572 | FS82: - | FT82: - | FU82: 1.8288 | FV82: 0.3048 | FW82: - | FX82: - | FY82: - | FZ82: 0.89154 | GA82: - | GB82: - | GC82: - | GD82: 0.55372 | GE82: - | GF82: - | GG82: - | GH82: 1.65862 | GI82: -
A83: 65 | B83: =Historical_Data!B67 -> 1978-03-06 | C83: =Historical_Data!C67 -> 0 | D83: =Historical_Data!C432 -> 1.59512 | E83: =Historical_Data!C797 -> 0.4318 | F83: =Historical_Data!C1163 -> 0 | G83: =Historical_Data!C1528 -> 0.2794 | H83: =Historical_Data!C1893 -> 0.254 | I83: =Historical_Data!C2258 -> 1.4732 | J83: =Historical_Data!C2624 -> 0 | K83: =Historical_Data!C2989 -> 0 | L83: =Historical_Data!C3354 -> 0 | M83: =Historical_Data!C3719 -> 0 | N83: =Historical_Data!C4085 -> 2.032 | O83: =Historical_Data!C4450 -> 0 | P83: =Historical_Data!C4815 -> 0.889 | Q83: =Historical_Data!C5180 -> 0 | R83: =Historical_Data!C5546 -> 0 | S83: =Historical_Data!C5911 -> 0 | T83: =Historical_Data!C6276 -> 0 | U83: =Historical_Data!C6641 -> 0.49784 | V83: =Historical_Data!C7007 -> 0.03048 | W83: =Historical_Data!C7372 -> 0 | X83: =Historical_Data!C7737 -> 1.5494 | Y83: =Historical_Data!C8102 -> 0 | Z83: =Historical_Data!C8468 -> 0.0762 | AA83: =Historical_Data!C8833 -> 0 | AC83: 0 | AD83: 1 | AE83: 1 | AF83: 0 | AG83: 1 | AH83: 1 | AI83: 1 | AJ83: 0 | AK83: 0 | AL83: 0 | AM83: 0 | AN83: 1 | AO83: 0 | AP83: 1 | AQ83: 0 | AR83: 0 | AS83: 0 | AT83: 0 | AU83: 1 | AV83: 1 | AW83: 0 | AX83: 1 | AY83: 0 | AZ83: 1 | BA83: 0 | BB83: 0 | BC83: 1 | BD83: 0 | BE83: 0 | BF83: 1 | BG83: 0 | BH83: 0 | BI83: 0 | BJ83: 0 | BK83: 0 | BL83: 0 | BM83: 1 | BN83: 0 | BO83: 0 | BP83: 0 | BQ83: 0 | BR83: 0 | BS83: 0 | BT83: 0 | BU83: 1 | BV83: 0 | BW83: 0 | BX83: 0 | BY83: 1 | BZ83: 0 | CA83: 0 | CB83: 0 | CC83: 0 | CD83: 1 | CE83: 0 | CF83: 0 | CG83: 0 | CH83: 1 | CI83: 0 | CJ83: 0 | CK83: 1 | CL83: 0 | CM83: 0 | CN83: 0 | CO83: 0 | CP83: 1 | CQ83: 0 | CR83: 0 | CS83: 0 | CT83: 0 | CU83: 0 | CV83: 0 | CW83: 0 | CX83: 0 | CY83: 0 | CZ83: 1 | DA83: 0 | DB83: 0 | DC83: 0 | DD83: 0 | DE83: 0 | DF83: 0 | DG83: 0 | DH83: 1 | DI83: 1 | DJ83: 0 | DK83: 0 | DL83: 1 | DM83: 0 | DN83: 1 | DO83: 0 | DP83: 1 | DQ83: 1 | DR83: 0 | DS83: 0 | DT83: 1 | DU83: 0 | DV83: 1 | DW83: 0 | DX83: 1 | DY83: 0 | DZ83: 0 | EA83: 0 | EB83: 1 | EC83: 0 | ED83: 0 | EE83: 1 | EF83: 1 | EG83: 0 | EH83: 0 | EI83: 0 | EJ83: 0 | EK83: 0 | EL83: 0 | EM83: 1 | EN83: 0 | EO83: 0 | EP83: 0 | EQ83: 0 | ER83: 1 | ES83: 0 | ET83: 0 | EU83: 1 | EV83: 0 | EW83: 0 | EX83: 0 | EZ83: 225 | FA83: 98 | FB83: 134 | FC83: 384 | FD83: =SUM(DY68:EX96) -> 132 | FF83: 0.3 | FG83: 0.4224137931 | FH83: 0.5775862069 | FI83: 0.7441860465 | FJ83: 0.2558139535 | FK83: - | FL83: 1.59512 | FM83: 0.4318 | FN83: - | FO83: 0.2794 | FP83: 0.254 | FQ83: 1.4732 | FR83: - | FS83: - | FT83: - | FU83: - | FV83: 2.032 | FW83: - | FX83: 0.889 | FY83: - | FZ83: - | GA83: - | GB83: - | GC83: 0.49784 | GD83: 0.03048 | GE83: - | GF83: 1.5494 | GG83: - | GH83: 0.0762 | GI83: -
A84: 66 | B84: =Historical_Data!B68 -> 1978-03-07 | C84: =Historical_Data!C68 -> 0 | D84: =Historical_Data!C433 -> 0 | E84: =Historical_Data!C798 -> 0 | F84: =Historical_Data!C1164 -> 0 | G84: =Historical_Data!C1529 -> 2.5654 | H84: =Historical_Data!C1894 -> 0.508 | I84: =Historical_Data!C2259 -> 0 | J84: =Historical_Data!C2625 -> 0 | K84: =Historical_Data!C2990 -> 0 | L84: =Historical_Data!C3355 -> 0 | M84: =Historical_Data!C3720 -> 0 | N84: =Historical_Data!C4086 -> 0.254 | O84: =Historical_Data!C4451 -> 0 | P84: =Historical_Data!C4816 -> 0 | Q84: =Historical_Data!C5181 -> 0.09652 | R84: =Historical_Data!C5547 -> 0 | S84: =Historical_Data!C5912 -> 0 | T84: =Historical_Data!C6277 -> 0 | U84: =Historical_Data!C6642 -> 0.74676 | V84: =Historical_Data!C7008 -> 0 | W84: =Historical_Data!C7373 -> 0.16002 | X84: =Historical_Data!C7738 -> 0 | Y84: =Historical_Data!C8103 -> 0 | Z84: =Historical_Data!C8469 -> 0.3048 | AA84: =Historical_Data!C8834 -> 0 | AC84: 0 | AD84: 0 | AE84: 0 | AF84: 0 | AG84: 1 | AH84: 1 | AI84: 0 | AJ84: 0 | AK84: 0 | AL84: 0 | AM84: 0 | AN84: 1 | AO84: 0 | AP84: 0 | AQ84: 1 | AR84: 0 | AS84: 0 | AT84: 0 | AU84: 1 | AV84: 0 | AW84: 1 | AX84: 0 | AY84: 0 | AZ84: 1 | BA84: 0 | BB84: 0 | BC84: 0 | BD84: 0 | BE84: 0 | BF84: 1 | BG84: 1 | BH84: 0 | BI84: 0 | BJ84: 0 | BK84: 0 | BL84: 0 | BM84: 1 | BN84: 0 | BO84: 0 | BP84: 0 | BQ84: 0 | BR84: 0 | BS84: 0 | BT84: 1 | BU84: 0 | BV84: 0 | BW84: 0 | BX84: 0 | BY84: 1 | BZ84: 0 | CA84: 0 | CB84: 1 | CC84: 1 | CD84: 0 | CE84: 0 | CF84: 0 | CG84: 1 | CH84: 0 | CI84: 0 | CJ84: 0 | CK84: 0 | CL84: 0 | CM84: 0 | CN84: 1 | CO84: 0 | CP84: 0 | CQ84: 0 | CR84: 0 | CS84: 0 | CT84: 1 | CU84: 0 | CV84: 1 | CW84: 0 | CX84: 0 | CY84: 0 | CZ84: 1 | DA84: 0 | DB84: 0 | DC84: 1 | DD84: 0 | DE84: 0 | DF84: 0 | DG84: 1 | DH84: 1 | DI84: 1 | DJ84: 1 | DK84: 0 | DL84: 1 | DM84: 0 | DN84: 0 | DO84: 1 | DP84: 1 | DQ84: 1 | DR84: 0 | DS84: 0 | DT84: 0 | DU84: 0 | DV84: 1 | DW84: 0 | DX84: 1 | DY84: 0 | DZ84: 0 | EA84: 0 | EB84: 0 | EC84: 0 | ED84: 0 | EE84: 0 | EF84: 0 | EG84: 0 | EH84: 0 | EI84: 0 | EJ84: 0 | EK84: 0 | EL84: 0 | EM84: 0 | EN84: 1 | EO84: 0 | EP84: 0 | EQ84: 0 | ER84: 0 | ES84: 0 | ET84: 1 | EU84: 0 | EV84: 0 | EW84: 0 | EX84: 0 | EZ84: =SUM(AC69:BA97) -> 225 | FA84: =SUM(BB69:BZ98) -> 98 | FB84: =SUM(CA69:CY98) -> 134 | FC84: =SUM(CZ69:DX98) -> 381 | FD84: 134 | FF84: =EZ84/(30*25) -> 0.3 | FG84: =FA84/(FA84+FB84) -> 0.4224137931 | FH84: =1-FG84 -> 0.5775862069 | FI84: =FC84/(FC84+FD84) -> 0.7398058252 | FJ84: =1-FI84 -> 0.2601941748 | FK84: - | FL84: - | FM84: - | FN84: - | FO84: 2.5654 | FP84: 0.508 | FQ84: - | FR84: - | FS84: - | FT84: - | FU84: - | FV84: 0.254 | FW84: - | FX84: - | FY84: 0.09652 | FZ84: - | GA84: - | GB84: - | GC84: 0.74676 | GD84: - | GE84: 0.16002 | GF84: - | GG84: - | GH84: 0.3048 | GI84: -
A85: 67 | B85: =Historical_Data!B69 -> 1978-03-08 | C85: =Historical_Data!C69 -> 0.381 | D85: =Historical_Data!C434 -> 0 | E85: =Historical_Data!C799 -> 0 | F85: =Historical_Data!C1165 -> 0 | G85: =Historical_Data!C1530 -> 0 | H85: =Historical_Data!C1895 -> 1.3462 | I85: =Historical_Data!C2260 -> 0 | J85: =Historical_Data!C2626 -> 0.5334 | K85: =Historical_Data!C2991 -> 0 | L85: =Historical_Data!C3356 -> 0 | M85: =Historical_Data!C3721 -> 0 | N85: =Historical_Data!C4087 -> 0 | O85: =Historical_Data!C4452 -> 0 | P85: =Historical_Data!C4817 -> 0 | Q85: =Historical_Data!C5182 -> 2.08788 | R85: =Historical_Data!C5548 -> 0 | S85: =Historical_Data!C5913 -> 0.2286 | T85: =Historical_Data!C6278 -> 4.9022 | U85: =Historical_Data!C6643 -> 1.651 | V85: =Historical_Data!C7009 -> 0 | W85: =Historical_Data!C7374 -> 1.9812 | X85: =Historical_Data!C7739 -> 0 | Y85: =Historical_Data!C8104 -> 0 | Z85: =Historical_Data!C8470 -> 0 | AA85: =Historical_Data!C8835 -> 0 | AC85: 1 | AD85: 0 | AE85: 0 | AF85: 0 | AG85: 0 | AH85: 1 | AI85: 0 | AJ85: 1 | AK85: 0 | AL85: 0 | AM85: 0 | AN85: 0 | AO85: 0 | AP85: 0 | AQ85: 1 | AR85: 0 | AS85: 1 | AT85: 1 | AU85: 1 | AV85: 0 | AW85: 1 | AX85: 0 | AY85: 0 | AZ85: 0 | BA85: 0 | BB85: 0 | BC85: 0 | BD85: 0 | BE85: 0 | BF85: 0 | BG85: 1 | BH85: 0 | BI85: 0 | BJ85: 0 | BK85: 0 | BL85: 0 | BM85: 0 | BN85: 0 | BO85: 0 | BP85: 1 | BQ85: 0 | BR85: 0 | BS85: 0 | BT85: 1 | BU85: 0 | BV85: 1 | BW85: 0 | BX85: 0 | BY85: 0 | BZ85: 0 | CA85: 0 | CB85: 0 | CC85: 0 | CD85: 0 | CE85: 1 | CF85: 0 | CG85: 0 | CH85: 0 | CI85: 0 | CJ85: 0 | CK85: 0 | CL85: 1 | CM85: 0 | CN85: 0 | CO85: 0 | CP85: 0 | CQ85: 0 | CR85: 0 | CS85: 0 | CT85: 0 | CU85: 0 | CV85: 0 | CW85: 0 | CX85: 1 | CY85: 0 | CZ85: 0 | DA85: 1 | DB85: 1 | DC85: 1 | DD85: 0 | DE85: 0 | DF85: 1 | DG85: 0 | DH85: 1 | DI85: 1 | DJ85: 1 | DK85: 0 | DL85: 1 | DM85: 1 | DN85: 0 | DO85: 1 | DP85: 0 | DQ85: 0 | DR85: 0 | DS85: 1 | DT85: 0 | DU85: 1 | DV85: 1 | DW85: 0 | DX85: 1 | DY85: 1 | DZ85: 1 | EA85: 0 | EB85: 0 | EC85: 0 | ED85: 0 | EE85: 0 | EF85: 0 | EG85: 1 | EH85: 0 | EI85: 0 | EJ85: 0 | EK85: 0 | EL85: 0 | EM85: 0 | EN85: 0 | EO85: 0 | EP85: 1 | EQ85: 1 | ER85: 0 | ES85: 0 | ET85: 0 | EU85: 0 | EV85: 0 | EW85: 0 | EX85: 0 | EZ85: 230 | FA85: 102 | FB85: 133 | FC85: 375 | FD85: 139 | FF85: 0.3066666667 | FG85: 0.4340425532 | FH85: 0.5659574468 | FI85: 0.7295719844 | FJ85: 0.2704280156 | FK85: 0.381 | FL85: - | FM85: - | FN85: - | FO85: - | FP85: 1.3462 | FQ85: - | FR85: 0.5334 | FS85: - | FT85: - | FU85: - | FV85: - | FW85: - | FX85: - | FY85: 2.08788 | FZ85: - | GA85: 0.2286 | GB85: 4.9022 | GC85: 1.651 | GD85: - | GE85: 1.9812 | GF85: - | GG85: - | GH85: - | GI85: -
A86: 68 | B86: =Historical_Data!B70 -> 1978-03-09 | C86: =Historical_Data!C70 -> 0 | D86: =Historical_Data!C435 -> 0 | E86: =Historical_Data!C800 -> 0.635 | F86: =Historical_Data!C1166 -> 0 | G86: =Historical_Data!C1531 -> 0 | H86: =Historical_Data!C1896 -> 0 | I86: =Historical_Data!C2261 -> 2.15646 | J86: =Historical_Data!C2627 -> 0 | K86: =Historical_Data!C2992 -> 0 | L86: =Historical_Data!C3357 -> 0 | M86: =Historical_Data!C3722 -> 0 | N86: =Historical_Data!C4088 -> 0 | O86: =Historical_Data!C4453 -> 0.1778 | P86: =Historical_Data!C4818 -> 0 | Q86: =Historical_Data!C5183 -> 0 | R86: =Historical_Data!C5549 -> 0 | S86: =Historical_Data!C5914 -> 1.27 | T86: =Historical_Data!C6279 -> 0 | U86: =Historical_Data!C6644 -> 0.6096 | V86: =Historical_Data!C7010 -> 0.1651 | W86: =Historical_Data!C7375 -> 2.32918 | X86: =Historical_Data!C7740 -> 0 | Y86: =Historical_Data!C8105 -> 0 | Z86: =Historical_Data!C8471 -> 0.2794 | AA86: =Historical_Data!C8836 -> 0.3302 | AC86: 0 | AD86: 0 | AE86: 1 | AF86: 0 | AG86: 0 | AH86: 0 | AI86: 1 | AJ86: 0 | AK86: 0 | AL86: 0 | AM86: 0 | AN86: 0 | AO86: 1 | AP86: 0 | AQ86: 0 | AR86: 0 | AS86: 1 | AT86: 0 | AU86: 1 | AV86: 1 | AW86: 1 | AX86: 0 | AY86: 0 | AZ86: 1 | BA86: 1 | BB86: 0 | BC86: 0 | BD86: 0 | BE86: 0 | BF86: 0 | BG86: 0 | BH86: 0 | BI86: 0 | BJ86: 0 | BK86: 0 | BL86: 0 | BM86: 0 | BN86: 0 | BO86: 0 | BP86: 0 | BQ86: 0 | BR86: 1 | BS86: 0 | BT86: 1 | BU86: 0 | BV86: 1 | BW86: 0 | BX86: 0 | BY86: 0 | BZ86: 0 | CA86: 1 | CB86: 0 | CC86: 0 | CD86: 0 | CE86: 0 | CF86: 1 | CG86: 0 | CH86: 1 | CI86: 0 | CJ86: 0 | CK86: 0 | CL86: 0 | CM86: 0 | CN86: 0 | CO86: 1 | CP86: 0 | CQ86: 0 | CR86: 1 | CS86: 0 | CT86: 0 | CU86: 0 | CV86: 0 | CW86: 0 | CX86: 0 | CY86: 0 | CZ86: 0 | DA86: 1 | DB86: 0 | DC86: 1 | DD86: 1 | DE86: 0 | DF86: 0 | DG86: 0 | DH86: 1 | DI86: 1 | DJ86: 1 | DK86: 1 | DL86: 0 | DM86: 1 | DN86: 0 | DO86: 1 | DP86: 0 | DQ86: 0 | DR86: 0 | DS86: 0 | DT86: 0 | DU86: 1 | DV86: 1 | DW86: 0 | DX86: 0 | DY86: 0 | DZ86: 0 | EA86: 0 | EB86: 1 | EC86: 0 | ED86: 0 | EE86: 0 | EF86: 1 | EG86: 0 | EH86: 0 | EI86: 0 | EJ86: 0 | EK86: 0 | EL86: 1 | EM86: 0 | EN86: 0 | EO86: 0 | EP86: 0 | EQ86: 0 | ER86: 0 | ES86: 1 | ET86: 0 | EU86: 0 | EV86: 0 | EW86: 1 | EX86: 1 | EZ86: 233 | FA86: 104 | FB86: 138 | FC86: 372 | FD86: 139 | FF86: 0.3106666667 | FG86: 0.4297520661 | FH86: 0.5702479339 | FI86: 0.7279843444 | FJ86: 0.2720156556 | FK86: - | FL86: - | FM86: 0.635 | FN86: - | FO86: - | FP86: - | FQ86: 2.15646 | FR86: - | FS86: - | FT86: - | FU86: - | FV86: - | FW86: 0.1778 | FX86: - | FY86: - | FZ86: - | GA86: 1.27 | GB86: - | GC86: 0.6096 | GD86: 0.1651 | GE86: 2.32918 | GF86: - | GG86: - | GH86: 0.2794 | GI86: 0.3302
A87: 69 | B87: =Historical_Data!B71 -> 1978-03-10 | C87: =Historical_Data!C71 -> 0 | D87: =Historical_Data!C436 -> 0.0762 | E87: =Historical_Data!C801 -> 0 | F87: =Historical_Data!C1167 -> 0 | G87: =Historical_Data!C1532 -> 0 | H87: =Historical_Data!C1897 -> 0.4318 | I87: =Historical_Data!C2262 -> 0.02794 | J87: =Historical_Data!C2628 -> 0 | K87: =Historical_Data!C2993 -> 0 | L87: =Historical_Data!C3358 -> 0 | M87: =Historical_Data!C3723 -> 0 | N87: =Historical_Data!C4089 -> 0 | O87: =Historical_Data!C4454 -> 0 | P87: =Historical_Data!C4819 -> 0 | Q87: =Historical_Data!C5184 -> 0 | R87: =Historical_Data!C5550 -> 0.1524 | S87: =Historical_Data!C5915 -> 3.429 | T87: =Historical_Data!C6280 -> 0 | U87: =Historical_Data!C6645 -> 0 | V87: =Historical_Data!C7011 -> 1.6129 | W87: =Historical_Data!C7376 -> 0 | X87: =Historical_Data!C7741 -> 0.1016 | Y87: =Historical_Data!C8106 -> 0 | Z87: =Historical_Data!C8472 -> 0.0508 | AA87: =Historical_Data!C8837 -> 0 | AC87: 0 | AD87: 1 | AE87: 0 | AF87: 0 | AG87: 0 | AH87: 1 | AI87: 1 | AJ87: 0 | AK87: 0 | AL87: 0 | AM87: 0 | AN87: 0 | AO87: 0 | AP87: 0 | AQ87: 0 | AR87: 1 | AS87: 1 | AT87: 0 | AU87: 0 | AV87: 1 | AW87: 0 | AX87: 1 | AY87: 0 | AZ87: 1 | BA87: 0 | BB87: 0 | BC87: 0 | BD87: 0 | BE87: 0 | BF87: 0 | BG87: 0 | BH87: 1 | BI87: 0 | BJ87: 0 | BK87: 0 | BL87: 0 | BM87: 0 | BN87: 0 | BO87: 0 | BP87: 0 | BQ87: 0 | BR87: 1 | BS87: 0 | BT87: 0 | BU87: 1 | BV87: 0 | BW87: 0 | BX87: 0 | BY87: 1 | BZ87: 0 | CA87: 0 | CB87: 0 | CC87: 1 | CD87: 0 | CE87: 0 | CF87: 0 | CG87: 0 | CH87: 0 | CI87: 0 | CJ87: 0 | CK87: 0 | CL87: 0 | CM87: 1 | CN87: 0 | CO87: 0 | CP87: 0 | CQ87: 0 | CR87: 0 | CS87: 1 | CT87: 0 | CU87: 1 | CV87: 0 | CW87: 0 | CX87: 0 | CY87: 1 | CZ87: 1 | DA87: 0 | DB87: 0 | DC87: 1 | DD87: 1 | DE87: 0 | DF87: 0 | DG87: 1 | DH87: 1 | DI87: 1 | DJ87: 1 | DK87: 1 | DL87: 0 | DM87: 1 | DN87: 1 | DO87: 0 | DP87: 0 | DQ87: 1 | DR87: 0 | DS87: 0 | DT87: 0 | DU87: 0 | DV87: 1 | DW87: 0 | DX87: 0 | DY87: 0 | DZ87: 0 | EA87: 1 | EB87: 0 | EC87: 0 | ED87: 0 | EE87: 1 | EF87: 0 | EG87: 0 | EH87: 0 | EI87: 0 | EJ87: 0 | EK87: 0 | EL87: 0 | EM87: 0 | EN87: 0 | EO87: 1 | EP87: 0 | EQ87: 0 | ER87: 0 | ES87: 0 | ET87: 0 | EU87: 1 | EV87: 0 | EW87: 0 | EX87: 0 | EZ87: 233 | FA87: 105 | FB87: 135 | FC87: 375 | FD87: 137 | FF87: 0.3106666667 | FG87: 0.4375 | FH87: 0.5625 | FI87: 0.732421875 | FJ87: 0.267578125 | FK87: - | FL87: 0.0762 | FM87: - | FN87: - | FO87: - | FP87: 0.4318 | FQ87: 0.02794 | FR87: - | FS87: - | FT87: - | FU87: - | FV87: - | FW87: - | FX87: - | FY87: - | FZ87: 0.1524 | GA87: 3.429 | GB87: - | GC87: - | GD87: 1.6129 | GE87: - | GF87: 0.1016 | GG87: - | GH87: 0.0508 | GI87: -
A88: 70 | B88: =Historical_Data!B72 -> 1978-03-11 | C88: =Historical_Data!C72 -> 0 | D88: =Historical_Data!C437 -> 1.0922 | E88: =Historical_Data!C802 -> 0.75184 | F88: =Historical_Data!C1168 -> 0.3048 | G88: =Historical_Data!C1533 -> 0 | H88: =Historical_Data!C1898 -> 0.27178 | I88: =Historical_Data!C2263 -> 0 | J88: =Historical_Data!C2629 -> 0 | K88: =Historical_Data!C2994 -> 0.2794 | L88: =Historical_Data!C3359 -> 0 | M88: =Historical_Data!C3724 -> 0 | N88: =Historical_Data!C4090 -> 0 | O88: =Historical_Data!C4455 -> 0 | P88: =Historical_Data!C4820 -> 0 | Q88: =Historical_Data!C5185 -> 2.1463 | R88: =Historical_Data!C5551 -> 0 | S88: =Historical_Data!C5916 -> 0 | T88: =Historical_Data!C6281 -> 0 | U88: =Historical_Data!C6646 -> 0 | V88: =Historical_Data!C7012 -> 0 | W88: =Historical_Data!C7377 -> 0 | X88: =Historical_Data!C7742 -> 0 | Y88: =Historical_Data!C8107 -> 0.97282 | Z88: =Historical_Data!C8473 -> 0 | AA88: =Historical_Data!C8838 -> 0 | AC88: 0 | AD88: 1 | AE88: 1 | AF88: 1 | AG88: 0 | AH88: 1 | AI88: 0 | AJ88: 0 | AK88: 1 | AL88: 0 | AM88: 0 | AN88: 0 | AO88: 0 | AP88: 0 | AQ88: 1 | AR88: 0 | AS88: 0 | AT88: 0 | AU88: 0 | AV88: 0 | AW88: 0 | AX88: 0 | AY88: 1 | AZ88: 0 | BA88: 0 | BB88: 0 | BC88: 1 | BD88: 0 | BE88: 0 | BF88: 0 | BG88: 1 | BH88: 0 | BI88: 0 | BJ88: 0 | BK88: 0 | BL88: 0 | BM88: 0 | BN88: 0 | BO88: 0 | BP88: 0 | BQ88: 0 | BR88: 0 | BS88: 0 | BT88: 0 | BU88: 0 | BV88: 0 | BW88: 0 | BX88: 0 | BY88: 0 | BZ88: 0 | CA88: 0 | CB88: 0 | CC88: 0 | CD88: 0 | CE88: 0 | CF88: 0 | CG88: 1 | CH88: 0 | CI88: 0 | CJ88: 0 | CK88: 0 | CL88: 0 | CM88: 0 | CN88: 0 | CO88: 0 | CP88: 1 | CQ88: 1 | CR88: 0 | CS88: 0 | CT88: 1 | CU88: 0 | CV88: 1 | CW88: 0 | CX88: 1 | CY88: 0 | CZ88: 1 | DA88: 0 | DB88: 0 | DC88: 0 | DD88: 1 | DE88: 0 | DF88: 0 | DG88: 1 | DH88: 0 | DI88: 1 | DJ88: 1 | DK88: 1 | DL88: 1 | DM88: 1 | DN88: 0 | DO88: 0 | DP88: 0 | DQ88: 1 | DR88: 1 | DS88: 0 | DT88: 1 | DU88: 0 | DV88: 0 | DW88: 0 | DX88: 1 | DY88: 0 | DZ88: 0 | EA88: 0 | EB88: 1 | EC88: 1 | ED88: 0 | EE88: 0 | EF88: 0 | EG88: 0 | EH88: 1 | EI88: 0 | EJ88: 0 | EK88: 0 | EL88: 0 | EM88: 0 | EN88: 1 | EO88: 0 | EP88: 0 | EQ88: 0 | ER88: 0 | ES88: 0 | ET88: 0 | EU88: 0 | EV88: 1 | EW88: 0 | EX88: 0 | EZ88: 231 | FA88: 104 | FB88: 136 | FC88: 376 | FD88: 134 | FF88: 0.308 | FG88: 0.4333333333 | FH88: 0.5666666667 | FI88: 0.737254902 | FJ88: 0.262745098 | FK88: - | FL88: 1.0922 | FM88: 0.75184 | FN88: 0.3048 | FO88: - | FP88: 0.27178 | FQ88: - | FR88: - | FS88: 0.2794 | FT88: - | FU88: - | FV88: - | FW88: - | FX88: - | FY88: 2.1463 | FZ88: - | GA88: - | GB88: - | GC88: - | GD88: - | GE88: - | GF88: - | GG88: 0.97282 | GH88: - | GI88: -
A89: 71 | B89: =Historical_Data!B73 -> 1978-03-12 | C89: =Historical_Data!C73 -> 0 | D89: =Historical_Data!C438 -> 0 | E89: =Historical_Data!C803 -> 0.06096 | F89: =Historical_Data!C1169 -> 0 | G89: =Historical_Data!C1534 -> 0.1524 | H89: =Historical_Data!C1899 -> 0.56642 | I89: =Historical_Data!C2264 -> 0 | J89: =Historical_Data!C2630 -> 0.381 | K89: =Historical_Data!C2995 -> 0 | L89: =Historical_Data!C3360 -> 0 | M89: =Historical_Data!C3725 -> 0 | N89: =Historical_Data!C4091 -> 0 | O89: =Historical_Data!C4456 -> 0 | P89: =Historical_Data!C4821 -> 0 | Q89: =Historical_Data!C5186 -> 0.6731 | R89: =Historical_Data!C5552 -> 0 | S89: =Historical_Data!C5917 -> 0 | T89: =Historical_Data!C6282 -> 0 | U89: =Historical_Data!C6647 -> 0 | V89: =Historical_Data!C7013 -> 0 | W89: =Historical_Data!C7378 -> 0 | X89: =Historical_Data!C7743 -> 0 | Y89: =Historical_Data!C8108 -> 1.94818 | Z89: =Historical_Data!C8474 -> 0.2794 | AA89: =Historical_Data!C8839 -> 0 | AC89: 0 | AD89: 0 | AE89: 1 | AF89: 0 | AG89: 1 | AH89: 1 | AI89: 0 | AJ89: 1 | AK89: 0 | AL89: 0 | AM89: 0 | AN89: 0 | AO89: 0 | AP89: 0 | AQ89: 1 | AR89: 0 | AS89: 0 | AT89: 0 | AU89: 0 | AV89: 0 | AW89: 0 | AX89: 0 | AY89: 1 | AZ89: 1 | BA89: 0 | BB89: 0 | BC89: 0 | BD89: 1 | BE89: 0 | BF89: 0 | BG89: 1 | BH89: 0 | BI89: 0 | BJ89: 0 | BK89: 0 | BL89: 0 | BM89: 0 | BN89: 0 | BO89: 0 | BP89: 1 | BQ89: 0 | BR89: 0 | BS89: 0 | BT89: 0 | BU89: 0 | BV89: 0 | BW89: 0 | BX89: 1 | BY89: 0 | BZ89: 0 | CA89: 0 | CB89: 1 | CC89: 0 | CD89: 1 | CE89: 0 | CF89: 0 | CG89: 0 | CH89: 0 | CI89: 1 | CJ89: 0 | CK89: 0 | CL89: 0 | CM89: 0 | CN89: 0 | CO89: 0 | CP89: 0 | CQ89: 0 | CR89: 0 | CS89: 0 | CT89: 0 | CU89: 0 | CV89: 0 | CW89: 0 | CX89: 0 | CY89: 0 | CZ89: 1 | DA89: 0 | DB89: 0 | DC89: 0 | DD89: 0 | DE89: 0 | DF89: 1 | DG89: 0 | DH89: 0 | DI89: 1 | DJ89: 1 | DK89: 1 | DL89: 1 | DM89: 1 | DN89: 0 | DO89: 1 | DP89: 1 | DQ89: 1 | DR89: 1 | DS89: 1 | DT89: 1 | DU89: 1 | DV89: 0 | DW89: 0 | DX89: 1 | DY89: 0 | DZ89: 0 | EA89: 0 | EB89: 0 | EC89: 0 | ED89: 1 | EE89: 0 | EF89: 0 | EG89: 1 | EH89: 0 | EI89: 0 | EJ89: 0 | EK89: 0 | EL89: 0 | EM89: 0 | EN89: 0 | EO89: 0 | EP89: 0 | EQ89: 0 | ER89: 0 | ES89: 0 | ET89: 0 | EU89: 0 | EV89: 0 | EW89: 1 | EX89: 0 | EZ89: 229 | FA89: 101 | FB89: 137 | FC89: 378 | FD89: 137 | FF89: 0.3053333333 | FG89: 0.4243697479 | FH89: 0.5756302521 | FI89: 0.7339805825 | FJ89: 0.2660194175 | FK89: - | FL89: - | FM89: 0.06096 | FN89: - | FO89: 0.1524 | FP89: 0.56642 | FQ89: - | FR89: 0.381 | FS89: - | FT89: - | FU89: - | FV89: - | FW89: - | FX89: - | FY89: 0.6731 | FZ89: - | GA89: - | GB89: - | GC89: - | GD89: - | GE89: - | GF89: - | GG89: 1.94818 | GH89: 0.2794 | GI89: -
A90: 72 | B90: =Historical_Data!B74 -> 1978-03-13 | C90: =Historical_Data!C74 -> 0 | D90: =Historical_Data!C439 -> 0 | E90: =Historical_Data!C804 -> 0 | F90: =Historical_Data!C1170 -> 0 | G90: =Historical_Data!C1535 -> 0 | H90: =Historical_Data!C1900 -> 0 | I90: =Historical_Data!C2265 -> 0 | J90: =Historical_Data!C2631 -> 0 | K90: =Historical_Data!C2996 -> 1.3589 | L90: =Historical_Data!C3361 -> 0 | M90: =Historical_Data!C3726 -> 0 | N90: =Historical_Data!C4092 -> 0 | O90: =Historical_Data!C4457 -> 0 | P90: =Historical_Data!C4822 -> 0.0762 | Q90: =Historical_Data!C5187 -> 0 | R90: =Historical_Data!C5553 -> 3.4544 | S90: =Historical_Data!C5918 -> 0 | T90: =Historical_Data!C6283 -> 0 | U90: =Historical_Data!C6648 -> 0 | V90: =Historical_Data!C7014 -> 0 | W90: =Historical_Data!C7379 -> 0 | X90: =Historical_Data!C7744 -> 0 | Y90: =Historical_Data!C8109 -> 0.1778 | Z90: =Historical_Data!C8475 -> 0.9652 | AA90: =Historical_Data!C8840 -> 0 | AC90: 0 | AD90: 0 | AE90: 0 | AF90: 0 | AG90: 0 | AH90: 0 | AI90: 0 | AJ90: 0 | AK90: 1 | AL90: 0 | AM90: 0 | AN90: 0 | AO90: 0 | AP90: 1 | AQ90: 0 | AR90: 1 | AS90: 0 | AT90: 0 | AU90: 0 | AV90: 0 | AW90: 0 | AX90: 0 | AY90: 1 | AZ90: 1 | BA90: 0 | BB90: 0 | BC90: 0 | BD90: 0 | BE90: 0 | BF90: 0 | BG90: 0 | BH90: 0 | BI90: 0 | BJ90: 0 | BK90: 0 | BL90: 0 | BM90: 0 | BN90: 0 | BO90: 0 | BP90: 0 | BQ90: 0 | BR90: 0 | BS90: 0 | BT90: 0 | BU90: 0 | BV90: 0 | BW90: 0 | BX90: 1 | BY90: 1 | BZ90: 0 | CA90: 0 | CB90: 0 | CC90: 1 | CD90: 0 | CE90: 1 | CF90: 1 | CG90: 0 | CH90: 1 | CI90: 0 | CJ90: 0 | CK90: 0 | CL90: 0 | CM90: 0 | CN90: 0 | CO90: 1 | CP90: 0 | CQ90: 0 | CR90: 0 | CS90: 0 | CT90: 0 | CU90: 0 | CV90: 0 | CW90: 0 | CX90: 0 | CY90: 0 | CZ90: 1 | DA90: 1 | DB90: 0 | DC90: 1 | DD90: 0 | DE90: 0 | DF90: 1 | DG90: 0 | DH90: 0 | DI90: 1 | DJ90: 1 | DK90: 1 | DL90: 1 | DM90: 0 | DN90: 0 | DO90: 0 | DP90: 1 | DQ90: 1 | DR90: 1 | DS90: 1 | DT90: 1 | DU90: 1 | DV90: 0 | DW90: 0 | DX90: 1 | DY90: 0 | DZ90: 0 | EA90: 0 | EB90: 0 | EC90: 0 | ED90: 0 | EE90: 0 | EF90: 0 | EG90: 0 | EH90: 1 | EI90: 0 | EJ90: 0 | EK90: 0 | EL90: 0 | EM90: 1 | EN90: 0 | EO90: 1 | EP90: 0 | EQ90: 0 | ER90: 0 | ES90: 0 | ET90: 0 | EU90: 0 | EV90: 0 | EW90: 0 | EX90: 0 | EZ90: 231 | FA90: 100 | FB90: 135 | FC90: 375 | FD90: 138 | FF90: 0.308 | FG90: 0.4255319149 | FH90: 0.5744680851 | FI90: 0.730994152 | FJ90: 0.269005848 | FK90: - | FL90: - | FM90: - | FN90: - | FO90: - | FP90: - | FQ90: - | FR90: - | FS90: 1.3589 | FT90: - | FU90: - | FV90: - | FW90: - | FX90: 0.0762 | FY90: - | FZ90: 3.4544 | GA90: - | GB90: - | GC90: - | GD90: - | GE90: - | GF90: - | GG90: 0.1778 | GH90: 0.9652 | GI90: -
A91: 73 | B91: =Historical_Data!B75 -> 1978-03-14 | C91: =Historical_Data!C75 -> 1.3462 | D91: =Historical_Data!C440 -> 0.2286 | E91: =Historical_Data!C805 -> 2.3368 | F91: =Historical_Data!C1171 -> 0 | G91: =Historical_Data!C1536 -> 0 | H91: =Historical_Data!C1901 -> 0 | I91: =Historical_Data!C2266 -> 3.4036 | J91: =Historical_Data!C2632 -> 0 | K91: =Historical_Data!C2997 -> 1.0541 | L91: =Historical_Data!C3362 -> 0 | M91: =Historical_Data!C3727 -> 0.2032 | N91: =Historical_Data!C4093 -> 0 | O91: =Historical_Data!C4458 -> 0 | P91: =Historical_Data!C4823 -> 0.9906 | Q91: =Historical_Data!C5188 -> 0 | R91: =Historical_Data!C5554 -> 0 | S91: =Historical_Data!C5919 -> 0 | T91: =Historical_Data!C6284 -> 0 | U91: =Historical_Data!C6649 -> 0 | V91: =Historical_Data!C7015 -> 2.7432 | W91: =Historical_Data!C7380 -> 0 | X91: =Historical_Data!C7745 -> 2.667 | Y91: =Historical_Data!C8110 -> 0 | Z91: =Historical_Data!C8476 -> 0 | AA91: =Historical_Data!C8841 -> 1.3208 | AC91: 1 | AD91: 1 | AE91: 1 | AF91: 0 | AG91: 0 | AH91: 0 | AI91: 1 | AJ91: 0 | AK91: 1 | AL91: 0 | AM91: 1 | AN91: 0 | AO91: 0 | AP91: 1 | AQ91: 0 | AR91: 0 | AS91: 0 | AT91: 0 | AU91: 0 | AV91: 1 | AW91: 0 | AX91: 1 | AY91: 0 | AZ91: 0 | BA91: 1 | BB91: 0 | BC91: 0 | BD91: 0 | BE91: 0 | BF91: 0 | BG91: 0 | BH91: 0 | BI91: 0 | BJ91: 1 | BK91: 0 | BL91: 0 | BM91: 0 | BN91: 0 | BO91: 1 | BP91: 0 | BQ91: 0 | BR91: 0 | BS91: 0 | BT91: 0 | BU91: 0 | BV91: 0 | BW91: 0 | BX91: 0 | BY91: 0 | BZ91: 0 | CA91: 0 | CB91: 0 | CC91: 0 | CD91: 0 | CE91: 0 | CF91: 0 | CG91: 0 | CH91: 0 | CI91: 0 | CJ91: 0 | CK91: 0 | CL91: 0 | CM91: 0 | CN91: 0 | CO91: 0 | CP91: 1 | CQ91: 0 | CR91: 0 | CS91: 0 | CT91: 0 | CU91: 0 | CV91: 0 | CW91: 1 | CX91: 1 | CY91: 0 | CZ91: 0 | DA91: 0 | DB91: 0 | DC91: 1 | DD91: 1 | DE91: 1 | DF91: 0 | DG91: 1 | DH91: 0 | DI91: 1 | DJ91: 0 | DK91: 1 | DL91: 1 | DM91: 0 | DN91: 1 | DO91: 0 | DP91: 1 | DQ91: 1 | DR91: 1 | DS91: 0 | DT91: 1 | DU91: 0 | DV91: 0 | DW91: 0 | DX91: 0 | DY91: 1 | DZ91: 1 | EA91: 1 | EB91: 1 | EC91: 0 | ED91: 0 | EE91: 0 | EF91: 1 | EG91: 0 | EH91: 0 | EI91: 0 | EJ91: 1 | EK91: 0 | EL91: 0 | EM91: 0 | EN91: 0 | EO91: 0 | EP91: 0 | EQ91: 0 | ER91: 0 | ES91: 1 | ET91: 0 | EU91: 1 | EV91: 0 | EW91: 0 | EX91: 1 | EZ91: 233 | FA91: 104 | FB91: 136 | FC91: 373 | FD91: 141 | FF91: 0.3106666667 | FG91: 0.4333333333 | FH91: 0.5666666667 | FI91: 0.7256809339 | FJ91: 0.2743190661 | FK91: 1.3462 | FL91: 0.2286 | FM91: 2.3368 | FN91: - | FO91: - | FP91: - | FQ91: 3.4036 | FR91: - | FS91: 1.0541 | FT91: - | FU91: 0.2032 | FV91: - | FW91: - | FX91: 0.9906 | FY91: - | FZ91: - | GA91: - | GB91: - | GC91: - | GD91: 2.7432 | GE91: - | GF91: 2.667 | GG91: - | GH91: - | GI91: 1.3208
A92: 74 | B92: =Historical_Data!B76 -> 1978-03-15 | C92: =Historical_Data!C76 -> 0 | D92: =Historical_Data!C441 -> 0 | E92: =Historical_Data!C806 -> 0.5842 | F92: =Historical_Data!C1172 -> 0 | G92: =Historical_Data!C1537 -> 0 | H92: =Historical_Data!C1902 -> 0 | I92: =Historical_Data!C2267 -> 0 | J92: =Historical_Data!C2633 -> 0 | K92: =Historical_Data!C2998 -> 0.56642 | L92: =Historical_Data!C3363 -> 0.127 | M92: =Historical_Data!C3728 -> 0 | N92: =Historical_Data!C4094 -> 0 | O92: =Historical_Data!C4459 -> 0 | P92: =Historical_Data!C4824 -> 0.0508 | Q92: =Historical_Data!C5189 -> 0 | R92: =Historical_Data!C5555 -> 0 | S92: =Historical_Data!C5920 -> 0.254 | T92: =Historical_Data!C6285 -> 0 | U92: =Historical_Data!C6650 -> 0 | V92: =Historical_Data!C7016 -> 0 | W92: =Historical_Data!C7381 -> 0 | X92: =Historical_Data!C7746 -> 0.39624 | Y92: =Historical_Data!C8111 -> 0 | Z92: =Historical_Data!C8477 -> 0.254 | AA92: =Historical_Data!C8842 -> 0 | AC92: 0 | AD92: 0 | AE92: 1 | AF92: 0 | AG92: 0 | AH92: 0 | AI92: 0 | AJ92: 0 | AK92: 1 | AL92: 1 | AM92: 0 | AN92: 0 | AO92: 0 | AP92: 1 | AQ92: 0 | AR92: 0 | AS92: 1 | AT92: 0 | AU92: 0 | AV92: 0 | AW92: 0 | AX92: 1 | AY92: 0 | AZ92: 1 | BA92: 0 | BB92: 0 | BC92: 0 | BD92: 1 | BE92: 0 | BF92: 0 | BG92: 0 | BH92: 0 | BI92: 0 | BJ92: 1 | BK92: 0 | BL92: 0 | BM92: 0 | BN92: 0 | BO92: 1 | BP92: 0 | BQ92: 0 | BR92: 0 | BS92: 0 | BT92: 0 | BU92: 0 | BV92: 0 | BW92: 1 | BX92: 0 | BY92: 0 | BZ92: 0 | CA92: 1 | CB92: 1 | CC92: 0 | CD92: 0 | CE92: 0 | CF92: 0 | CG92: 1 | CH92: 0 | CI92: 0 | CJ92: 0 | CK92: 1 | CL92: 0 | CM92: 0 | CN92: 0 | CO92: 0 | CP92: 0 | CQ92: 0 | CR92: 0 | CS92: 0 | CT92: 1 | CU92: 0 | CV92: 0 | CW92: 0 | CX92: 0 | CY92: 1 | CZ92: 0 | DA92: 0 | DB92: 0 | DC92: 1 | DD92: 1 | DE92: 1 | DF92: 0 | DG92: 1 | DH92: 0 | DI92: 0 | DJ92: 0 | DK92: 1 | DL92: 1 | DM92: 0 | DN92: 1 | DO92: 1 | DP92: 0 | DQ92: 1 | DR92: 1 | DS92: 0 | DT92: 1 | DU92: 0 | DV92: 1 | DW92: 0 | DX92: 0 | DY92: 0 | DZ92: 0 | EA92: 0 | EB92: 0 | EC92: 0 | ED92: 0 | EE92: 0 | EF92: 0 | EG92: 0 | EH92: 0 | EI92: 1 | EJ92: 0 | EK92: 0 | EL92: 0 | EM92: 0 | EN92: 0 | EO92: 0 | EP92: 1 | EQ92: 0 | ER92: 0 | ES92: 0 | ET92: 0 | EU92: 0 | EV92: 0 | EW92: 1 | EX92: 0 | EZ92: 234 | FA92: 107 | FB92: 134 | FC92: 369 | FD92: 138 | FF92: 0.312 | FG92: 0.4439834025 | FH92: 0.5560165975 | FI92: 0.7278106509 | FJ92: 0.2721893491 | FK92: - | FL92: - | FM92: 0.5842 | FN92: - | FO92: - | FP92: - | FQ92: - | FR92: - | FS92: 0.56642 | FT92: 0.127 | FU92: - | FV92: - | FW92: - | FX92: 0.0508 | FY92: - | FZ92: - | GA92: 0.254 | GB92: - | GC92: - | GD92: - | GE92: - | GF92: 0.39624 | GG92: - | GH92: 0.254 | GI92: -
A93: 75 | B93: =Historical_Data!B77 -> 1978-03-16 | C93: =Historical_Data!C77 -> 1.48336 | D93: =Historical_Data!C442 -> 0 | E93: =Historical_Data!C807 -> 0 | F93: =Historical_Data!C1173 -> 0.4064 | G93: =Historical_Data!C1538 -> 0.66294 | H93: =Historical_Data!C1903 -> 0 | I93: =Historical_Data!C2268 -> 0 | J93: =Historical_Data!C2634 -> 0 | K93: =Historical_Data!C2999 -> 0.22098 | L93: =Historical_Data!C3364 -> 0 | M93: =Historical_Data!C3729 -> 0 | N93: =Historical_Data!C4095 -> 0 | O93: =Historical_Data!C4460 -> 0 | P93: =Historical_Data!C4825 -> 0 | Q93: =Historical_Data!C5190 -> 0 | R93: =Historical_Data!C5556 -> 0 | S93: =Historical_Data!C5921 -> 0 | T93: =Historical_Data!C6286 -> 0 | U93: =Historical_Data!C6651 -> 1.1938 | V93: =Historical_Data!C7017 -> 0 | W93: =Historical_Data!C7382 -> 0 | X93: =Historical_Data!C7747 -> 0.0254 | Y93: =Historical_Data!C8112 -> 0 | Z93: =Historical_Data!C8478 -> 0.9652 | AA93: =Historical_Data!C8843 -> 1.1176 | AC93: 1 | AD93: 0 | AE93: 0 | AF93: 1 | AG93: 1 | AH93: 0 | AI93: 0 | AJ93: 0 | AK93: 1 | AL93: 0 | AM93: 0 | AN93: 0 | AO93: 0 | AP93: 0 | AQ93: 0 | AR93: 0 | AS93: 0 | AT93: 0 | AU93: 1 | AV93: 0 | AW93: 0 | AX93: 1 | AY93: 0 | AZ93: 1 | BA93: 1 | BB93: 0 | BC93: 0 | BD93: 0 | BE93: 0 | BF93: 0 | BG93: 0 | BH93: 0 | BI93: 0 | BJ93: 1 | BK93: 0 | BL93: 0 | BM93: 0 | BN93: 0 | BO93: 0 | BP93: 0 | BQ93: 0 | BR93: 0 | BS93: 0 | BT93: 0 | BU93: 0 | BV93: 0 | BW93: 1 | BX93: 0 | BY93: 1 | BZ93: 0 | CA93: 0 | CB93: 0 | CC93: 1 | CD93: 0 | CE93: 0 | CF93: 0 | CG93: 0 | CH93: 0 | CI93: 0 | CJ93: 1 | CK93: 0 | CL93: 0 | CM93: 0 | CN93: 1 | CO93: 0 | CP93: 0 | CQ93: 1 | CR93: 0 | CS93: 0 | CT93: 0 | CU93: 0 | CV93: 0 | CW93: 0 | CX93: 0 | CY93: 0 | CZ93: 0 | DA93: 1 | DB93: 0 | DC93: 0 | DD93: 0 | DE93: 1 | DF93: 1 | DG93: 1 | DH93: 0 | DI93: 0 | DJ93: 1 | DK93: 1 | DL93: 1 | DM93: 0 | DN93: 1 | DO93: 1 | DP93: 0 | DQ93: 1 | DR93: 0 | DS93: 1 | DT93: 1 | DU93: 0 | DV93: 1 | DW93: 0 | DX93: 0 | DY93: 1 | DZ93: 1 | EA93: 0 | EB93: 0 | EC93: 1 | ED93: 1 | EE93: 0 | EF93: 0 | EG93: 0 | EH93: 0 | EI93: 0 | EJ93: 0 | EK93: 0 | EL93: 0 | EM93: 0 | EN93: 0 | EO93: 0 | EP93: 0 | EQ93: 0 | ER93: 1 | ES93: 0 | ET93: 0 | EU93: 0 | EV93: 0 | EW93: 0 | EX93: 1 | EZ93: 236 | FA93: 111 | FB93: 136 | FC93: 366 | FD93: 140 | FF93: 0.3146666667 | FG93: 0.4493927126 | FH93: 0.5506072874 | FI93: 0.7233201581 | FJ93: 0.2766798419 | FK93: 1.48336 | FL93: - | FM93: - | FN93: 0.4064 | FO93: 0.66294 | FP93: - | FQ93: - | FR93: - | FS93: 0.22098 | FT93: - | FU93: - | FV93: - | FW93: - | FX93: - | FY93: - | FZ93: - | GA93: - | GB93: - | GC93: 1.1938 | GD93: - | GE93: - | GF93: 0.0254 | GG93: - | GH93: 0.9652 | GI93: 1.1176
A94: 76 | B94: =Historical_Data!B78 -> 1978-03-17 | C94: =Historical_Data!C78 -> 0.11684 | D94: =Historical_Data!C443 -> 0 | E94: =Historical_Data!C808 -> 0 | F94: =Historical_Data!C1174 -> 0 | G94: =Historical_Data!C1539 -> 0.02286 | H94: =Historical_Data!C1904 -> 0 | I94: =Historical_Data!C2269 -> 0 | J94: =Historical_Data!C2635 -> 0 | K94: =Historical_Data!C3000 -> 0 | L94: =Historical_Data!C3365 -> 0 | M94: =Historical_Data!C3730 -> 0 | N94: =Historical_Data!C4096 -> 0 | O94: =Historical_Data!C4461 -> 3.0734 | P94: =Historical_Data!C4826 -> 0 | Q94: =Historical_Data!C5191 -> 0 | R94: =Historical_Data!C5557 -> 3.6068 | S94: =Historical_Data!C5922 -> 0 | T94: =Historical_Data!C6287 -> 0 | U94: =Historical_Data!C6652 -> 0.127 | V94: =Historical_Data!C7018 -> 0 | W94: =Historical_Data!C7383 -> 0 | X94: =Historical_Data!C7748 -> 0 | Y94: =Historical_Data!C8113 -> 1.97866 | Z94: =Historical_Data!C8479 -> 0.2032 | AA94: =Historical_Data!C8844 -> 0 | AC94: 1 | AD94: 0 | AE94: 0 | AF94: 0 | AG94: 1 | AH94: 0 | AI94: 0 | AJ94: 0 | AK94: 0 | AL94: 0 | AM94: 0 | AN94: 0 | AO94: 1 | AP94: 0 | AQ94: 0 | AR94: 1 | AS94: 0 | AT94: 0 | AU94: 1 | AV94: 0 | AW94: 0 | AX94: 0 | AY94: 1 | AZ94: 1 | BA94: 0 | BB94: 1 | BC94: 0 | BD94: 0 | BE94: 0 | BF94: 1 | BG94: 0 | BH94: 0 | BI94: 0 | BJ94: 0 | BK94: 0 | BL94: 0 | BM94: 0 | BN94: 0 | BO94: 0 | BP94: 0 | BQ94: 0 | BR94: 0 | BS94: 0 | BT94: 1 | BU94: 0 | BV94: 0 | BW94: 0 | BX94: 0 | BY94: 1 | BZ94: 0 | CA94: 0 | CB94: 0 | CC94: 0 | CD94: 1 | CE94: 0 | CF94: 0 | CG94: 0 | CH94: 0 | CI94: 1 | CJ94: 0 | CK94: 0 | CL94: 0 | CM94: 0 | CN94: 0 | CO94: 0 | CP94: 0 | CQ94: 0 | CR94: 0 | CS94: 0 | CT94: 0 | CU94: 0 | CV94: 1 | CW94: 0 | CX94: 0 | CY94: 1 | CZ94: 0 | DA94: 1 | DB94: 1 | DC94: 0 | DD94: 0 | DE94: 1 | DF94: 1 | DG94: 1 | DH94: 0 | DI94: 1 | DJ94: 1 | DK94: 1 | DL94: 0 | DM94: 1 | DN94: 1 | DO94: 0 | DP94: 1 | DQ94: 1 | DR94: 0 | DS94: 1 | DT94: 1 | DU94: 0 | DV94: 0 | DW94: 0 | DX94: 0 | DY94: 0 | DZ94: 0 | EA94: 0 | EB94: 0 | EC94: 0 | ED94: 0 | EE94: 0 | EF94: 0 | EG94: 0 | EH94: 0 | EI94: 0 | EJ94: 0 | EK94: 0 | EL94: 1 | EM94: 0 | EN94: 0 | EO94: 1 | EP94: 0 | EQ94: 0 | ER94: 0 | ES94: 0 | ET94: 0 | EU94: 0 | EV94: 1 | EW94: 0 | EX94: 0 | EZ94: 242 | FA94: 114 | FB94: 134 | FC94: 361 | FD94: 141 | FF94: 0.3226666667 | FG94: 0.4596774194 | FH94: 0.5403225806 | FI94: 0.719123506 | FJ94: 0.280876494 | FK94: 0.11684 | FL94: - | FM94: - | FN94: - | FO94: 0.02286 | FP94: - | FQ94: - | FR94: - | FS94: - | FT94: - | FU94: - | FV94: - | FW94: 3.0734 | FX94: - | FY94: - | FZ94: 3.6068 | GA94: - | GB94: - | GC94: 0.127 | GD94: - | GE94: - | GF94: - | GG94: 1.97866 | GH94: 0.2032 | GI94: -
A95: 77 | B95: =Historical_Data!B79 -> 1978-03-18 | C95: =Historical_Data!C79 -> 0 | D95: =Historical_Data!C444 -> 0 | E95: =Historical_Data!C809 -> 0.381 | F95: =Historical_Data!C1175 -> 0 | G95: =Historical_Data!C1540 -> 0 | H95: =Historical_Data!C1905 -> 2.6416 | I95: =Historical_Data!C2270 -> 0 | J95: =Historical_Data!C2636 -> 0 | K95: =Historical_Data!C3001 -> 0 | L95: =Historical_Data!C3366 -> 0 | M95: =Historical_Data!C3731 -> 0 | N95: =Historical_Data!C4097 -> 1.2192 | O95: =Historical_Data!C4462 -> 0.50292 | P95: =Historical_Data!C4827 -> 1.9812 | Q95: =Historical_Data!C5192 -> 0 | R95: =Historical_Data!C5558 -> 0 | S95: =Historical_Data!C5923 -> 0.1778 | T95: =Historical_Data!C6288 -> 0 | U95: =Historical_Data!C6653 -> 0 | V95: =Historical_Data!C7019 -> 0.3302 | W95: =Historical_Data!C7384 -> 0.9144 | X95: =Historical_Data!C7749 -> 0 | Y95: =Historical_Data!C8114 -> 0.89154 | Z95: =Historical_Data!C8480 -> 0 | AA95: =Historical_Data!C8845 -> 0.381 | AC95: 0 | AD95: 0 | AE95: 1 | AF95: 0 | AG95: 0 | AH95: 1 | AI95: 0 | AJ95: 0 | AK95: 0 | AL95: 0 | AM95: 0 | AN95: 1 | AO95: 1 | AP95: 1 | AQ95: 0 | AR95: 0 | AS95: 1 | AT95: 0 | AU95: 0 | AV95: 1 | AW95: 1 | AX95: 0 | AY95: 1 | AZ95: 0 | BA95: 1 | BB95: 0 | BC95: 0 | BD95: 0 | BE95: 0 | BF95: 0 | BG95: 0 | BH95: 0 | BI95: 0 | BJ95: 0 | BK95: 0 | BL95: 0 | BM95: 0 | BN95: 1 | BO95: 0 | BP95: 0 | BQ95: 0 | BR95: 0 | BS95: 0 | BT95: 0 | BU95: 0 | BV95: 0 | BW95: 0 | BX95: 1 | BY95: 0 | BZ95: 0 | CA95: 1 | CB95: 0 | CC95: 0 | CD95: 0 | CE95: 1 | CF95: 0 | CG95: 0 | CH95: 0 | CI95: 0 | CJ95: 0 | CK95: 0 | CL95: 0 | CM95: 0 | CN95: 0 | CO95: 0 | CP95: 1 | CQ95: 0 | CR95: 0 | CS95: 1 | CT95: 0 | CU95: 0 | CV95: 0 | CW95: 0 | CX95: 1 | CY95: 0 | CZ95: 0 | DA95: 1 | DB95: 0 | DC95: 1 | DD95: 0 | DE95: 0 | DF95: 1 | DG95: 1 | DH95: 1 | DI95: 1 | DJ95: 1 | DK95: 0 | DL95: 0 | DM95: 0 | DN95: 1 | DO95: 0 | DP95: 0 | DQ95: 1 | DR95: 0 | DS95: 0 | DT95: 0 | DU95: 1 | DV95: 0 | DW95: 0 | DX95: 0 | DY95: 0 | DZ95: 0 | EA95: 0 | EB95: 1 | EC95: 0 | ED95: 0 | EE95: 1 | EF95: 0 | EG95: 0 | EH95: 0 | EI95: 0 | EJ95: 0 | EK95: 1 | EL95: 0 | EM95: 1 | EN95: 0 | EO95: 0 | EP95: 1 | EQ95: 0 | ER95: 0 | ES95: 1 | ET95: 1 | EU95: 0 | EV95: 0 | EW95: 0 | EX95: 1 | EZ95: 249 | FA95: 121 | FB95: 134 | FC95: 356 | FD95: 141 | FF95: 0.332 | FG95: 0.4745098039 | FH95: 0.5254901961 | FI95: 0.7162977867 | FJ95: 0.2837022133 | FK95: - | FL95: - | FM95: 0.381 | FN95: - | FO95: - | FP95: 2.6416 | FQ95: - | FR95: - | FS95: - | FT95: - | FU95: - | FV95: 1.2192 | FW95: 0.50292 | FX95: 1.9812 | FY95: - | FZ95: - | GA95: 0.1778 | GB95: - | GC95: - | GD95: 0.3302 | GE95: 0.9144 | GF95: - | GG95: 0.89154 | GH95: - | GI95: 0.381
A96: 78 | B96: =Historical_Data!B80 -> 1978-03-19 | C96: =Historical_Data!C80 -> 0 | D96: =Historical_Data!C445 -> 0 | E96: =Historical_Data!C810 -> 0.2794 | F96: =Historical_Data!C1176 -> 0 | G96: =Historical_Data!C1541 -> 0 | H96: =Historical_Data!C1906 -> 1.02616 | I96: =Historical_Data!C2271 -> 0 | J96: =Historical_Data!C2637 -> 0 | K96: =Historical_Data!C3002 -> 0 | L96: =Historical_Data!C3367 -> 0 | M96: =Historical_Data!C3732 -> 0.0508 | N96: =Historical_Data!C4098 -> 0 | O96: =Historical_Data!C4463 -> 0 | P96: =Historical_Data!C4828 -> 0 | Q96: =Historical_Data!C5193 -> 0.72644 | R96: =Historical_Data!C5559 -> 0 | S96: =Historical_Data!C5924 -> 0 | T96: =Historical_Data!C6289 -> 0 | U96: =Historical_Data!C6654 -> 0 | V96: =Historical_Data!C7020 -> 0.508 | W96: =Historical_Data!C7385 -> 0 | X96: =Historical_Data!C7750 -> 0 | Y96: =Historical_Data!C8115 -> 0 | Z96: =Historical_Data!C8481 -> 0 | AA96: =Historical_Data!C8846 -> 0 | AC96: 0 | AD96: 0 | AE96: 1 | AF96: 0 | AG96: 0 | AH96: 1 | AI96: 0 | AJ96: 0 | AK96: 0 | AL96: 0 | AM96: 1 | AN96: 0 | AO96: 0 | AP96: 0 | AQ96: 1 | AR96: 0 | AS96: 0 | AT96: 0 | AU96: 0 | AV96: 1 | AW96: 0 | AX96: 0 | AY96: 0 | AZ96: 0 | BA96: 0 | BB96: 0 | BC96: 0 | BD96: 1 | BE96: 0 | BF96: 0 | BG96: 1 | BH96: 0 | BI96: 0 | BJ96: 0 | BK96: 0 | BL96: 0 | BM96: 0 | BN96: 0 | BO96: 0 | BP96: 0 | BQ96: 0 | BR96: 0 | BS96: 0 | BT96: 0 | BU96: 1 | BV96: 0 | BW96: 0 | BX96: 0 | BY96: 0 | BZ96: 0 | CA96: 0 | CB96: 0 | CC96: 0 | CD96: 0 | CE96: 0 | CF96: 0 | CG96: 0 | CH96: 0 | CI96: 0 | CJ96: 0 | CK96: 0 | CL96: 1 | CM96: 1 | CN96: 1 | CO96: 0 | CP96: 0 | CQ96: 1 | CR96: 0 | CS96: 0 | CT96: 0 | CU96: 1 | CV96: 0 | CW96: 1 | CX96: 0 | CY96: 1 | CZ96: 1 | DA96: 1 | DB96: 0 | DC96: 1 | DD96: 1 | DE96: 0 | DF96: 1 | DG96: 1 | DH96: 1 | DI96: 1 | DJ96: 0 | DK96: 0 | DL96: 0 | DM96: 0 | DN96: 0 | DO96: 1 | DP96: 0 | DQ96: 1 | DR96: 1 | DS96: 0 | DT96: 0 | DU96: 1 | DV96: 0 | DW96: 1 | DX96: 0 | DY96: 0 | DZ96: 0 | EA96: 0 | EB96: 0 | EC96: 0 | ED96: 0 | EE96: 0 | EF96: 0 | EG96: 0 | EH96: 0 | EI96: 0 | EJ96: 1 | EK96: 0 | EL96: 0 | EM96: 0 | EN96: 1 | EO96: 0 | EP96: 0 | EQ96: 0 | ER96: 0 | ES96: 0 | ET96: 0 | EU96: 0 | EV96: 0 | EW96: 0 | EX96: 0 | EZ96: 249 | FA96: 120 | FB96: 140 | FC96: 352 | FD96: 138 | FF96: 0.332 | FG96: 0.4615384615 | FH96: 0.5384615385 | FI96: 0.7183673469 | FJ96: 0.2816326531 | FK96: - | FL96: - | FM96: 0.2794 | FN96: - | FO96: - | FP96: 1.02616 | FQ96: - | FR96: - | FS96: - | FT96: - | FU96: 0.0508 | FV96: - | FW96: - | FX96: - | FY96: 0.72644 | FZ96: - | GA96: - | GB96: - | GC96: - | GD96: 0.508 | GE96: - | GF96: - | GG96: - | GH96: - | GI96: -
A97: 79 | B97: =Historical_Data!B81 -> 1978-03-20 | C97: =Historical_Data!C81 -> 0 | D97: =Historical_Data!C446 -> 0 | E97: =Historical_Data!C811 -> 0 | F97: =Historical_Data!C1177 -> 0 | G97: =Historical_Data!C1542 -> 0 | H97: =Historical_Data!C1907 -> 0 | I97: =Historical_Data!C2272 -> 0 | J97: =Historical_Data!C2638 -> 0 | K97: =Historical_Data!C3003 -> 0 | L97: =Historical_Data!C3368 -> 0.0508 | M97: =Historical_Data!C3733 -> 0 | N97: =Historical_Data!C4099 -> 0.74676 | O97: =Historical_Data!C4464 -> 0.3048 | P97: =Historical_Data!C4829 -> 0 | Q97: =Historical_Data!C5194 -> 1.28016 | R97: =Historical_Data!C5560 -> 0 | S97: =Historical_Data!C5925 -> 0 | T97: =Historical_Data!C6290 -> 0 | U97: =Historical_Data!C6655 -> 3.0988 | V97: =Historical_Data!C7021 -> 0 | W97: =Historical_Data!C7386 -> 0.51562 | X97: =Historical_Data!C7751 -> 0 | Y97: =Historical_Data!C8116 -> 0 | Z97: =Historical_Data!C8482 -> 0 | AA97: =Historical_Data!C8847 -> 2.5908 | AC97: 0 | AD97: 0 | AE97: 0 | AF97: 0 | AG97: 0 | AH97: 0 | AI97: 0 | AJ97: 0 | AK97: 0 | AL97: 1 | AM97: 0 | AN97: 1 | AO97: 1 | AP97: 0 | AQ97: 1 | AR97: 0 | AS97: 0 | AT97: 0 | AU97: 1 | AV97: 0 | AW97: 1 | AX97: 0 | AY97: 0 | AZ97: 0 | BA97: 1 | BB97: 0 | BC97: 0 | BD97: 0 | BE97: 0 | BF97: 0 | BG97: 0 | BH97: 0 | BI97: 0 | BJ97: 0 | BK97: 0 | BL97: 0 | BM97: 0 | BN97: 0 | BO97: 0 | BP97: 1 | BQ97: 0 | BR97: 0 | BS97: 0 | BT97: 0 | BU97: 0 | BV97: 0 | BW97: 0 | BX97: 0 | BY97: 0 | BZ97: 0 | CA97: 0 | CB97: 0 | CC97: 1 | CD97: 0 | CE97: 0 | CF97: 1 | CG97: 0 | CH97: 0 | CI97: 0 | CJ97: 0 | CK97: 1 | CL97: 0 | CM97: 0 | CN97: 0 | CO97: 0 | CP97: 0 | CQ97: 0 | CR97: 0 | CS97: 0 | CT97: 1 | CU97: 0 | CV97: 0 | CW97: 0 | CX97: 0 | CY97: 0 | CZ97: 1 | DA97: 1 | DB97: 0 | DC97: 1 | DD97: 1 | DE97: 0 | DF97: 1 | DG97: 1 | DH97: 1 | DI97: 0 | DJ97: 0 | DK97: 0 | DL97: 0 | DM97: 1 | DN97: 0 | DO97: 1 | DP97: 1 | DQ97: 1 | DR97: 0 | DS97: 0 | DT97: 0 | DU97: 1 | DV97: 1 | DW97: 1 | DX97: 0 | DY97: 0 | DZ97: 0 | EA97: 0 | EB97: 0 | EC97: 0 | ED97: 0 | EE97: 0 | EF97: 0 | EG97: 0 | EH97: 0 | EI97: 1 | EJ97: 0 | EK97: 1 | EL97: 1 | EM97: 0 | EN97: 0 | EO97: 0 | EP97: 0 | EQ97: 0 | ER97: 1 | ES97: 0 | ET97: 1 | EU97: 0 | EV97: 0 | EW97: 0 | EX97: 1 | EZ97: 249 | FA97: 119 | FB97: 139 | FC97: 354 | FD97: 138 | FF97: 0.332 | FG97: 0.4612403101 | FH97: 0.5387596899 | FI97: 0.7195121951 | FJ97: 0.2804878049 | FK97: - | FL97: - | FM97: - | FN97: - | FO97: - | FP97: - | FQ97: - | FR97: - | FS97: - | FT97: 0.0508 | FU97: - | FV97: 0.74676 | FW97: 0.3048 | FX97: - | FY97: 1.28016 | FZ97: - | GA97: - | GB97: - | GC97: 3.0988 | GD97: - | GE97: 0.51562 | GF97: - | GG97: - | GH97: - | GI97: 2.5908
A98: 80 | B98: =Historical_Data!B82 -> 1978-03-21 | C98: =Historical_Data!C82 -> 0.508 | D98: =Historical_Data!C447 -> 0 | E98: =Historical_Data!C812 -> 0 | F98: =Historical_Data!C1178 -> 0 | G98: =Historical_Data!C1543 -> 0 | H98: =Historical_Data!C1908 -> 5.1562 | I98: =Historical_Data!C2273 -> 0 | J98: =Historical_Data!C2639 -> 0 | K98: =Historical_Data!C3004 -> 0 | L98: =Historical_Data!C3369 -> 0 | M98: =Historical_Data!C3734 -> 0 | N98: =Historical_Data!C4100 -> 0.49784 | O98: =Historical_Data!C4465 -> 0.0508 | P98: =Historical_Data!C4830 -> 0 | Q98: =Historical_Data!C5195 -> 0 | R98: =Historical_Data!C5561 -> 0.3048 | S98: =Historical_Data!C5926 -> 2.8448 | T98: =Historical_Data!C6291 -> 1.2446 | U98: =Historical_Data!C6656 -> 0 | V98: =Historical_Data!C7022 -> 0 | W98: =Historical_Data!C7387 -> 2.5908 | X98: =Historical_Data!C7752 -> 4.8514 | Y98: =Historical_Data!C8117 -> 0 | Z98: =Historical_Data!C8483 -> 2.0828 | AA98: =Historical_Data!C8848 -> 0 | AC98: 1 | AD98: 0 | AE98: 0 | AF98: 0 | AG98: 0 | AH98: 1 | AI98: 0 | AJ98: 0 | AK98: 0 | AL98: 0 | AM98: 0 | AN98: 1 | AO98: 1 | AP98: 0 | AQ98: 0 | AR98: 1 | AS98: 1 | AT98: 1 | AU98: 0 | AV98: 0 | AW98: 1 | AX98: 1 | AY98: 0 | AZ98: 1 | BA98: 0 | BB98: 0 | BC98: 0 | BD98: 0 | BE98: 0 | BF98: 0 | BG98: 0 | BH98: 0 | BI98: 0 | BJ98: 0 | BK98: 0 | BL98: 0 | BM98: 1 | BN98: 1 | BO98: 0 | BP98: 0 | BQ98: 0 | BR98: 0 | BS98: 0 | BT98: 0 | BU98: 0 | BV98: 1 | BW98: 0 | BX98: 0 | BY98: 0 | BZ98: 0 | CA98: 0 | CB98: 0 | CC98: 0 | CD98: 0 | CE98: 0 | CF98: 0 | CG98: 0 | CH98: 0 | CI98: 0 | CJ98: 1 | CK98: 0 | CL98: 0 | CM98: 0 | CN98: 0 | CO98: 1 | CP98: 0 | CQ98: 0 | CR98: 0 | CS98: 1 | CT98: 0 | CU98: 0 | CV98: 0 | CW98: 0 | CX98: 0 | CY98: 1 | CZ98: 0 | DA98: 1 | DB98: 1 | DC98: 1 | DD98: 1 | DE98: 0 | DF98: 1 | DG98: 1 | DH98: 1 | DI98: 0 | DJ98: 1 | DK98: 0 | DL98: 0 | DM98: 1 | DN98: 0 | DO98: 0 | DP98: 0 | DQ98: 0 | DR98: 0 | DS98: 1 | DT98: 0 | DU98: 0 | DV98: 1 | DW98: 0 | DX98: 0 | DY98: 1 | DZ98: 1 | EA98: 0 | EB98: 0 | EC98: 0 | ED98: 0 | EE98: 1 | EF98: 0 | EG98: 0 | EH98: 0 | EI98: 0 | EJ98: 0 | EK98: 0 | EL98: 0 | EM98: 0 | EN98: 0 | EO98: 1 | EP98: 1 | EQ98: 1 | ER98: 0 | ES98: 0 | ET98: 0 | EU98: 1 | EV98: 0 | EW98: 1 | EX98: 0 | EZ98: 248 | FA98: 118 | FB98: 139 | FC98: 354 | FD98: 141 | FF98: 0.3306666667 | FG98: 0.4591439689 | FH98: 0.5408560311 | FI98: 0.7151515152 | FJ98: 0.2848484848 | FK98: 0.508 | FL98: - | FM98: - | FN98: - | FO98: - | FP98: 5.1562 | FQ98: - | FR98: - | FS98: - | FT98: - | FU98: - | FV98: 0.49784 | FW98: 0.0508 | FX98: - | FY98: - | FZ98: 0.3048 | GA98: 2.8448 | GB98: 1.2446 | GC98: - | GD98: - | GE98: 2.5908 | GF98: 4.8514 | GG98: - | GH98: 2.0828 | GI98: -
A99: 81 | B99: =Historical_Data!B83 -> 1978-03-22 | C99: =Historical_Data!C83 -> 0 | D99: =Historical_Data!C448 -> 0 | E99: =Historical_Data!C813 -> 2.2098 | F99: =Historical_Data!C1179 -> 0 | G99: =Historical_Data!C1544 -> 0 | H99: =Historical_Data!C1909 -> 0 | I99: =Historical_Data!C2274 -> 2.1844 | J99: =Historical_Data!C2640 -> 0.16256 | K99: =Historical_Data!C3005 -> 0 | L99: =Historical_Data!C3370 -> 0.0762 | M99: =Historical_Data!C3735 -> 0 | N99: =Historical_Data!C4101 -> 0 | O99: =Historical_Data!C4466 -> 0 | P99: =Historical_Data!C4831 -> 0.127 | Q99: =Historical_Data!C5196 -> 0 | R99: =Historical_Data!C5562 -> 0.0508 | S99: =Historical_Data!C5927 -> 0.0508 | T99: =Historical_Data!C6292 -> 0.2286 | U99: =Historical_Data!C6657 -> 0 | V99: =Historical_Data!C7023 -> 0 | W99: =Historical_Data!C7388 -> 0.0508 | X99: =Historical_Data!C7753 -> 1.0033 | Y99: =Historical_Data!C8118 -> 9.5758 | Z99: =Historical_Data!C8484 -> 1.0414 | AA99: =Historical_Data!C8849 -> 0 | AC99: 0 | AD99: 0 | AE99: 1 | AF99: 0 | AG99: 0 | AH99: 0 | AI99: 1 | AJ99: 1 | AK99: 0 | AL99: 1 | AM99: 0 | AN99: 0 | AO99: 0 | AP99: 1 | AQ99: 0 | AR99: 1 | AS99: 1 | AT99: 1 | AU99: 0 | AV99: 0 | AW99: 1 | AX99: 1 | AY99: 1 | AZ99: 1 | BA99: 0 | BB99: 0 | BC99: 0 | BD99: 0 | BE99: 0 | BF99: 0 | BG99: 0 | BH99: 0 | BI99: 0 | BJ99: 0 | BK99: 0 | BL99: 0 | BM99: 0 | BN99: 0 | BO99: 0 | BP99: 0 | BQ99: 1 | BR99: 1 | BS99: 1 | BT99: 0 | BU99: 0 | BV99: 1 | BW99: 1 | BX99: 0 | BY99: 1 | BZ99: 0 | CA99: 1 | CB99: 0 | CC99: 0 | CD99: 0 | CE99: 0 | CF99: 1 | CG99: 0 | CH99: 0 | CI99: 0 | CJ99: 0 | CK99: 0 | CL99: 1 | CM99: 1 | CN99: 0 | CO99: 0 | CP99: 0 | CQ99: 0 | CR99: 0 | CS99: 0 | CT99: 0 | CU99: 0 | CV99: 0 | CW99: 0 | CX99: 0 | CY99: 0 | CZ99: 0 | DA99: 1 | DB99: 0 | DC99: 1 | DD99: 1 | DE99: 0 | DF99: 0 | DG99: 0 | DH99: 1 | DI99: 0 | DJ99: 1 | DK99: 0 | DL99: 0 | DM99: 0 | DN99: 1 | DO99: 0 | DP99: 0 | DQ99: 0 | DR99: 1 | DS99: 1 | DT99: 0 | DU99: 0 | DV99: 0 | DW99: 0 | DX99: 1 | DY99: 0 | DZ99: 0 | EA99: 0 | EB99: 1 | EC99: 0 | ED99: 0 | EE99: 0 | EF99: 1 | EG99: 1 | EH99: 0 | EI99: 1 | EJ99: 0 | EK99: 0 | EL99: 0 | EM99: 1 | EN99: 0 | EO99: 0 | EP99: 0 | EQ99: 0 | ER99: 0 | ES99: 0 | ET99: 0 | EU99: 0 | EV99: 1 | EW99: 0 | EX99: 0 | EZ99: 246 | FA99: 117 | FB99: 140 | FC99: 354 | FD99: 139 | FF99: 0.328 | FG99: 0.4552529183 | FH99: 0.5447470817 | FI99: 0.7180527383 | FJ99: 0.2819472617 | FK99: - | FL99: - | FM99: 2.2098 | FN99: - | FO99: - | FP99: - | FQ99: 2.1844 | FR99: 0.16256 | FS99: - | FT99: 0.0762 | FU99: - | FV99: - | FW99: - | FX99: 0.127 | FY99: - | FZ99: 0.0508 | GA99: 0.0508 | GB99: 0.2286 | GC99: - | GD99: - | GE99: 0.0508 | GF99: 1.0033 | GG99: 9.5758 | GH99: 1.0414 | GI99: -
A100: 82 | B100: =Historical_Data!B84 -> 1978-03-23 | C100: =Historical_Data!C84 -> 0 | D100: =Historical_Data!C449 -> 0 | E100: =Historical_Data!C814 -> 0 | F100: =Historical_Data!C1180 -> 0 | G100: =Historical_Data!C1545 -> 0 | H100: =Historical_Data!C1910 -> 0 | I100: =Historical_Data!C2275 -> 0.0254 | J100: =Historical_Data!C2641 -> 1.43764 | K100: =Historical_Data!C3006 -> 0 | L100: =Historical_Data!C3371 -> 0 | M100: =Historical_Data!C3736 -> 0 | N100: =Historical_Data!C4102 -> 0.0254 | O100: =Historical_Data!C4467 -> 0 | P100: =Historical_Data!C4832 -> 2.4892 | Q100: =Historical_Data!C5197 -> 0.4826 | R100: =Historical_Data!C5563 -> 1.35636 | S100: =Historical_Data!C5928 -> 0 | T100: =Historical_Data!C6293 -> 0 | U100: =Historical_Data!C6658 -> 0 | V100: =Historical_Data!C7024 -> 0 | W100: =Historical_Data!C7389 -> 0 | X100: =Historical_Data!C7754 -> 0 | Y100: =Historical_Data!C8119 -> 2.48158 | Z100: =Historical_Data!C8485 -> 0 | AA100: =Historical_Data!C8850 -> 0 | AC100: 0 | AD100: 0 | AE100: 0 | AF100: 0 | AG100: 0 | AH100: 0 | AI100: 1 | AJ100: 1 | AK100: 0 | AL100: 0 | AM100: 0 | AN100: 1 | AO100: 0 | AP100: 1 | AQ100: 1 | AR100: 1 | AS100: 0 | AT100: 0 | AU100: 0 | AV100: 0 | AW100: 0 | AX100: 0 | AY100: 1 | AZ100: 0 | BA100: 0 | BB100: 0 | BC100: 0 | BD100: 0 | BE100: 0 | BF100: 0 | BG100: 0 | BH100: 1 | BI100: 1 | BJ100: 0 | BK100: 0 | BL100: 0 | BM100: 0 | BN100: 0 | BO100: 1 | BP100: 0 | BQ100: 1 | BR100: 0 | BS100: 0 | BT100: 0 | BU100: 0 | BV100: 0 | BW100: 0 | BX100: 1 | BY100: 0 | BZ100: 0 | CA100: 0 | CB100: 0 | CC100: 1 | CD100: 0 | CE100: 0 | CF100: 0 | CG100: 0 | CH100: 0 | CI100: 0 | CJ100: 1 | CK100: 0 | CL100: 0 | CM100: 0 | CN100: 0 | CO100: 0 | CP100: 0 | CQ100: 1 | CR100: 1 | CS100: 0 | CT100: 0 | CU100: 1 | CV100: 1 | CW100: 0 | CX100: 1 | CY100: 0 | CZ100: 1 | DA100: 1 | DB100: 0 | DC100: 1 | DD100: 1 | DE100: 1 | DF100: 0 | DG100: 0 | DH100: 1 | DI100: 0 | DJ100: 1 | DK100: 0 | DL100: 1 | DM100: 0 | DN100: 0 | DO100: 0 | DP100: 0 | DQ100: 0 | DR100: 1 | DS100: 1 | DT100: 0 | DU100: 0 | DV100: 0 | DW100: 0 | DX100: 1 | DY100: 0 | DZ100: 0 | EA100: 0 | EB100: 0 | EC100: 0 | ED100: 0 | EE100: 0 | EF100: 0 | EG100: 0 | EH100: 0 | EI100: 0 | EJ100: 0 | EK100: 1 | EL100: 0 | EM100: 0 | EN100: 1 | EO100: 0 | EP100: 0 | EQ100: 0 | ER100: 0 | ES100: 0 | ET100: 0 | EU100: 0 | EV100: 0 | EW100: 0 | EX100: 0 | EZ100: 249 | FA100: 117 | FB100: 139 | FC100: 353 | FD100: 143 | FF100: 0.332 | FG100: 0.45703125 | FH100: 0.54296875 | FI100: 0.7116935484 | FJ100: 0.2883064516 | FK100: - | FL100: - | FM100: - | FN100: - | FO100: - | FP100: - | FQ100: 0.0254 | FR100: 1.43764 | FS100: - | FT100: - | FU100: - | FV100: 0.0254 | FW100: - | FX100: 2.4892 | FY100: 0.4826 | FZ100: 1.35636 | GA100: - | GB100: - | GC100: - | GD100: - | GE100: - | GF100: - | GG100: 2.48158 | GH100: - | GI100: -
A101: 83 | B101: =Historical_Data!B85 -> 1978-03-24 | C101: =Historical_Data!C85 -> 0 | D101: =Historical_Data!C450 -> 1.016 | E101: =Historical_Data!C815 -> 0 | F101: =Historical_Data!C1181 -> 0 | G101: =Historical_Data!C1546 -> 0 | H101: =Historical_Data!C1911 -> 0 | I101: =Historical_Data!C2276 -> 0 | J101: =Historical_Data!C2642 -> 0.2286 | K101: =Historical_Data!C3007 -> 0 | L101: =Historical_Data!C3372 -> 0 | M101: =Historical_Data!C3737 -> 0 | N101: =Historical_Data!C4103 -> 3.5306 | O101: =Historical_Data!C4468 -> 0.3302 | P101: =Historical_Data!C4833 -> 0.0254 | Q101: =Historical_Data!C5198 -> 0 | R101: =Historical_Data!C5564 -> 1.86944 | S101: =Historical_Data!C5929 -> 0 | T101: =Historical_Data!C6294 -> 0 | U101: =Historical_Data!C6659 -> 0 | V101: =Historical_Data!C7025 -> 0 | W101: =Historical_Data!C7390 -> 0 | X101: =Historical_Data!C7755 -> 0.0762 | Y101: =Historical_Data!C8120 -> 0 | Z101: =Historical_Data!C8486 -> 0 | AA101: =Historical_Data!C8851 -> 0 | AC101: 0 | AD101: 1 | AE101: 0 | AF101: 0 | AG101: 0 | AH101: 0 | AI101: 0 | AJ101: 1 | AK101: 0 | AL101: 0 | AM101: 0 | AN101: 1 | AO101: 1 | AP101: 1 | AQ101: 0 | AR101: 1 | AS101: 0 | AT101: 0 | AU101: 0 | AV101: 0 | AW101: 0 | AX101: 1 | AY101: 0 | AZ101: 0 | BA101: 0 | BB101: 0 | BC101: 0 | BD101: 0 | BE101: 0 | BF101: 0 | BG101: 0 | BH101: 0 | BI101: 1 | BJ101: 0 | BK101: 0 | BL101: 0 | BM101: 1 | BN101: 0 | BO101: 1 | BP101: 0 | BQ101: 1 | BR101: 0 | BS101: 0 | BT101: 0 | BU101: 0 | BV101: 0 | BW101: 0 | BX101: 0 | BY101: 0 | BZ101: 0 | CA101: 0 | CB101: 0 | CC101: 0 | CD101: 0 | CE101: 0 | CF101: 0 | CG101: 1 | CH101: 0 | CI101: 0 | CJ101: 0 | CK101: 0 | CL101: 0 | CM101: 0 | CN101: 0 | CO101: 1 | CP101: 0 | CQ101: 0 | CR101: 0 | CS101: 0 | CT101: 0 | CU101: 0 | CV101: 0 | CW101: 1 | CX101: 0 | CY101: 0 | CZ101: 1 | DA101: 0 | DB101: 1 | DC101: 1 | DD101: 1 | DE101: 1 | DF101: 0 | DG101: 0 | DH101: 1 | DI101: 1 | DJ101: 1 | DK101: 0 | DL101: 0 | DM101: 0 | DN101: 0 | DO101: 0 | DP101: 1 | DQ101: 1 | DR101: 1 | DS101: 1 | DT101: 1 | DU101: 0 | DV101: 0 | DW101: 1 | DX101: 1 | DY101: 0 | DZ101: 0 | EA101: 1 | EB101: 0 | EC101: 0 | ED101: 0 | EE101: 0 | EF101: 0 | EG101: 0 | EH101: 0 | EI101: 0 | EJ101: 0 | EK101: 0 | EL101: 1 | EM101: 0 | EN101: 0 | EO101: 0 | EP101: 0 | EQ101: 0 | ER101: 0 | ES101: 0 | ET101: 0 | EU101: 1 | EV101: 0 | EW101: 0 | EX101: 0 | EZ101: 250 | FA101: 117 | FB101: 141 | FC101: 351 | FD101: 143 | FF101: 0.3333333333 | FG101: 0.4534883721 | FH101: 0.5465116279 | FI101: 0.7105263158 | FJ101: 0.2894736842 | FK101: - | FL101: 1.016 | FM101: - | FN101: - | FO101: - | FP101: - | FQ101: - | FR101: 0.2286 | FS101: - | FT101: - | FU101: - | FV101: 3.5306 | FW101: 0.3302 | FX101: 0.0254 | FY101: - | FZ101: 1.86944 | GA101: - | GB101: - | GC101: - | GD101: - | GE101: - | GF101: 0.0762 | GG101: - | GH101: - | GI101: -
A102: 84 | B102: =Historical_Data!B86 -> 1978-03-25 | C102: =Historical_Data!C86 -> 0.22606 | D102: =Historical_Data!C451 -> 0.3556 | E102: =Historical_Data!C816 -> 1.4224 | F102: =Historical_Data!C1182 -> 0 | G102: =Historical_Data!C1547 -> 0.02286 | H102: =Historical_Data!C1912 -> 0 | I102: =Historical_Data!C2277 -> 0 | J102: =Historical_Data!C2643 -> 0 | K102: =Historical_Data!C3008 -> 0 | L102: =Historical_Data!C3373 -> 0.0508 | M102: =Historical_Data!C3738 -> 0 | N102: =Historical_Data!C4104 -> 0 | O102: =Historical_Data!C4469 -> 0.1016 | P102: =Historical_Data!C4834 -> 0 | Q102: =Historical_Data!C5199 -> 0 | R102: =Historical_Data!C5565 -> 0 | S102: =Historical_Data!C5930 -> 0.3556 | T102: =Historical_Data!C6295 -> 0 | U102: =Historical_Data!C6660 -> 0 | V102: =Historical_Data!C7026 -> 0 | W102: =Historical_Data!C7391 -> 0 | X102: =Historical_Data!C7756 -> 0 | Y102: =Historical_Data!C8121 -> 0 | Z102: =Historical_Data!C8487 -> 0 | AA102: =Historical_Data!C8852 -> 0 | AC102: 1 | AD102: 1 | AE102: 1 | AF102: 0 | AG102: 1 | AH102: 0 | AI102: 0 | AJ102: 0 | AK102: 0 | AL102: 1 | AM102: 0 | AN102: 0 | AO102: 1 | AP102: 0 | AQ102: 0 | AR102: 0 | AS102: 1 | AT102: 0 | AU102: 0 | AV102: 0 | AW102: 0 | AX102: 0 | AY102: 0 | AZ102: 0 | BA102: 0 | BB102: 0 | BC102: 1 | BD102: 0 | BE102: 0 | BF102: 0 | BG102: 0 | BH102: 0 | BI102: 0 | BJ102: 0 | BK102: 0 | BL102: 0 | BM102: 0 | BN102: 1 | BO102: 0 | BP102: 0 | BQ102: 0 | BR102: 0 | BS102: 0 | BT102: 0 | BU102: 0 | BV102: 0 | BW102: 0 | BX102: 0 | BY102: 0 | BZ102: 0 | CA102: 0 | CB102: 0 | CC102: 0 | CD102: 0 | CE102: 0 | CF102: 0 | CG102: 0 | CH102: 1 | CI102: 0 | CJ102: 0 | CK102: 0 | CL102: 1 | CM102: 0 | CN102: 1 | CO102: 0 | CP102: 1 | CQ102: 0 | CR102: 0 | CS102: 0 | CT102: 0 | CU102: 0 | CV102: 1 | CW102: 0 | CX102: 0 | CY102: 0 | CZ102: 0 | DA102: 0 | DB102: 0 | DC102: 1 | DD102: 0 | DE102: 1 | DF102: 1 | DG102: 0 | DH102: 1 | DI102: 0 | DJ102: 1 | DK102: 0 | DL102: 0 | DM102: 0 | DN102: 1 | DO102: 0 | DP102: 0 | DQ102: 1 | DR102: 1 | DS102: 1 | DT102: 1 | DU102: 0 | DV102: 1 | DW102: 1 | DX102: 1 | DY102: 1 | DZ102: 1 | EA102: 0 | EB102: 1 | EC102: 0 | ED102: 1 | EE102: 0 | EF102: 0 | EG102: 0 | EH102: 0 | EI102: 1 | EJ102: 0 | EK102: 0 | EL102: 0 | EM102: 0 | EN102: 0 | EO102: 0 | EP102: 1 | EQ102: 0 | ER102: 0 | ES102: 0 | ET102: 0 | EU102: 0 | EV102: 0 | EW102: 0 | EX102: 0 | EZ102: 249 | FA102: 119 | FB102: 139 | FC102: 355 | FD102: 141 | FF102: 0.332 | FG102: 0.4612403101 | FH102: 0.5387596899 | FI102: 0.7157258065 | FJ102: 0.2842741935 | FK102: 0.22606 | FL102: 0.3556 | FM102: 1.4224 | FN102: - | FO102: 0.02286 | FP102: - | FQ102: - | FR102: - | FS102: - | FT102: 0.0508 | FU102: - | FV102: - | FW102: 0.1016 | FX102: - | FY102: - | FZ102: - | GA102: 0.3556 | GB102: - | GC102: - | GD102: - | GE102: - | GF102: - | GG102: - | GH102: - | GI102: -
A103: 85 | B103: =Historical_Data!B87 -> 1978-03-26 | C103: =Historical_Data!C87 -> 5.7658 | D103: =Historical_Data!C452 -> 0 | E103: =Historical_Data!C817 -> 0.1778 | F103: =Historical_Data!C1183 -> 0 | G103: =Historical_Data!C1548 -> 0.33274 | H103: =Historical_Data!C1913 -> 0 | I103: =Historical_Data!C2278 -> 1.3208 | J103: =Historical_Data!C2644 -> 0 | K103: =Historical_Data!C3009 -> 0 | L103: =Historical_Data!C3374 -> 0 | M103: =Historical_Data!C3739 -> 0 | N103: =Historical_Data!C4105 -> 0 | O103: =Historical_Data!C4470 -> 0 | P103: =Historical_Data!C4835 -> 0 | Q103: =Historical_Data!C5200 -> 0 | R103: =Historical_Data!C5566 -> 0 | S103: =Historical_Data!C5931 -> 0 | T103: =Historical_Data!C6296 -> 0 | U103: =Historical_Data!C6661 -> 0 | V103: =Historical_Data!C7027 -> 1.524 | W103: =Historical_Data!C7392 -> 0 | X103: =Historical_Data!C7757 -> 0 | Y103: =Historical_Data!C8122 -> 0 | Z103: =Historical_Data!C8488 -> 0 | AA103: =Historical_Data!C8853 -> 1.8796 | AC103: 1 | AD103: 0 | AE103: 1 | AF103: 0 | AG103: 1 | AH103: 0 | AI103: 1 | AJ103: 0 | AK103: 0 | AL103: 0 | AM103: 0 | AN103: 0 | AO103: 0 | AP103: 0 | AQ103: 0 | AR103: 0 | AS103: 0 | AT103: 0 | AU103: 0 | AV103: 1 | AW103: 0 | AX103: 0 | AY103: 0 | AZ103: 0 | BA103: 1 | BB103: 1 | BC103: 0 | BD103: 1 | BE103: 0 | BF103: 1 | BG103: 0 | BH103: 0 | BI103: 0 | BJ103: 0 | BK103: 0 | BL103: 0 | BM103: 0 | BN103: 0 | BO103: 0 | BP103: 0 | BQ103: 0 | BR103: 0 | BS103: 0 | BT103: 0 | BU103: 0 | BV103: 0 | BW103: 0 | BX103: 0 | BY103: 0 | BZ103: 0 | CA103: 0 | CB103: 1 | CC103: 0 | CD103: 0 | CE103: 0 | CF103: 0 | CG103: 0 | CH103: 0 | CI103: 0 | CJ103: 1 | CK103: 0 | CL103: 0 | CM103: 1 | CN103: 0 | CO103: 0 | CP103: 0 | CQ103: 1 | CR103: 0 | CS103: 0 | CT103: 0 | CU103: 0 | CV103: 0 | CW103: 0 | CX103: 0 | CY103: 0 | CZ103: 0 | DA103: 0 | DB103: 0 | DC103: 1 | DD103: 0 | DE103: 1 | DF103: 0 | DG103: 1 | DH103: 1 | DI103: 0 | DJ103: 1 | DK103: 1 | DL103: 0 | DM103: 1 | DN103: 1 | DO103: 1 | DP103: 0 | DQ103: 1 | DR103: 1 | DS103: 0 | DT103: 1 | DU103: 1 | DV103: 1 | DW103: 1 | DX103: 0 | DY103: 0 | DZ103: 0 | EA103: 0 | EB103: 0 | EC103: 0 | ED103: 0 | EE103: 0 | EF103: 1 | EG103: 0 | EH103: 0 | EI103: 0 | EJ103: 0 | EK103: 0 | EL103: 0 | EM103: 0 | EN103: 0 | EO103: 0 | EP103: 0 | EQ103: 0 | ER103: 0 | ES103: 1 | ET103: 0 | EU103: 0 | EV103: 0 | EW103: 0 | EX103: 1 | EZ103: 248 | FA103: 121 | FB103: 135 | FC103: 353 | FD103: 139 | FF103: 0.3306666667 | FG103: 0.47265625 | FH103: 0.52734375 | FI103: 0.7174796748 | FJ103: 0.2825203252 | FK103: 5.7658 | FL103: - | FM103: 0.1778 | FN103: - | FO103: 0.33274 | FP103: - | FQ103: 1.3208 | FR103: - | FS103: - | FT103: - | FU103: - | FV103: - | FW103: - | FX103: - | FY103: - | FZ103: - | GA103: - | GB103: - | GC103: - | GD103: 1.524 | GE103: - | GF103: - | GG103: - | GH103: - | GI103: 1.8796
A104: 86 | B104: =Historical_Data!B88 -> 1978-03-27 | C104: =Historical_Data!C88 -> 1.31572 | D104: =Historical_Data!C453 -> 0 | E104: =Historical_Data!C818 -> 0 | F104: =Historical_Data!C1184 -> 0 | G104: =Historical_Data!C1549 -> 0 | H104: =Historical_Data!C1914 -> 3.6576 | I104: =Historical_Data!C2279 -> 0 | J104: =Historical_Data!C2645 -> 0 | K104: =Historical_Data!C3010 -> 0 | L104: =Historical_Data!C3375 -> 0 | M104: =Historical_Data!C3740 -> 2.794 | N104: =Historical_Data!C4106 -> 0 | O104: =Historical_Data!C4471 -> 0 | P104: =Historical_Data!C4836 -> 0.8128 | Q104: =Historical_Data!C5201 -> 3.1496 | R104: =Historical_Data!C5567 -> 0.21336 | S104: =Historical_Data!C5932 -> 2.3114 | T104: =Historical_Data!C6297 -> 0 | U104: =Historical_Data!C6662 -> 0 | V104: =Historical_Data!C7028 -> 0 | W104: =Historical_Data!C7393 -> 0 | X104: =Historical_Data!C7758 -> 0.18542 | Y104: =Historical_Data!C8123 -> 0 | Z104: =Historical_Data!C8489 -> 0.0762 | AA104: =Historical_Data!C8854 -> 0 | AC104: 1 | AD104: 0 | AE104: 0 | AF104: 0 | AG104: 0 | AH104: 1 | AI104: 0 | AJ104: 0 | AK104: 0 | AL104: 0 | AM104: 1 | AN104: 0 | AO104: 0 | AP104: 1 | AQ104: 1 | AR104: 1 | AS104: 1 | AT104: 0 | AU104: 0 | AV104: 0 | AW104: 0 | AX104: 1 | AY104: 0 | AZ104: 1 | BA104: 0 | BB104: 1 | BC104: 0 | BD104: 0 | BE104: 0 | BF104: 0 | BG104: 0 | BH104: 0 | BI104: 0 | BJ104: 0 | BK104: 0 | BL104: 0 | BM104: 0 | BN104: 0 | BO104: 0 | BP104: 0 | BQ104: 0 | BR104: 0 | BS104: 0 | BT104: 0 | BU104: 0 | BV104: 0 | BW104: 0 | BX104: 0 | BY104: 0 | BZ104: 0 | CA104: 0 | CB104: 0 | CC104: 1 | CD104: 0 | CE104: 1 | CF104: 0 | CG104: 1 | CH104: 0 | CI104: 0 | CJ104: 0 | CK104: 0 | CL104: 0 | CM104: 0 | CN104: 0 | CO104: 0 | CP104: 0 | CQ104: 0 | CR104: 0 | CS104: 0 | CT104: 1 | CU104: 0 | CV104: 0 | CW104: 0 | CX104: 0 | CY104: 1 | CZ104: 0 | DA104: 1 | DB104: 0 | DC104: 1 | DD104: 0 | DE104: 0 | DF104: 0 | DG104: 1 | DH104: 1 | DI104: 1 | DJ104: 0 | DK104: 1 | DL104: 1 | DM104: 0 | DN104: 0 | DO104: 0 | DP104: 0 | DQ104: 1 | DR104: 1 | DS104: 0 | DT104: 1 | DU104: 0 | DV104: 1 | DW104: 0 | DX104: 0 | DY104: 0 | DZ104: 0 | EA104: 0 | EB104: 0 | EC104: 0 | ED104: 0 | EE104: 1 | EF104: 0 | EG104: 0 | EH104: 0 | EI104: 0 | EJ104: 1 | EK104: 0 | EL104: 0 | EM104: 1 | EN104: 1 | EO104: 1 | EP104: 1 | EQ104: 0 | ER104: 0 | ES104: 0 | ET104: 0 | EU104: 1 | EV104: 0 | EW104: 1 | EX104: 0 | EZ104: 255 | FA104: 125 | FB104: 137 | FC104: 349 | FD104: 142 | FF104: 0.34 | FG104: 0.4770992366 | FH104: 0.5229007634 | FI104: 0.7107942974 | FJ104: 0.2892057026 | FK104: 1.31572 | FL104: - | FM104: - | FN104: - | FO104: - | FP104: 3.6576 | FQ104: - | FR104: - | FS104: - | FT104: - | FU104: 2.794 | FV104: - | FW104: - | FX104: 0.8128 | FY104: 3.1496 | FZ104: 0.21336 | GA104: 2.3114 | GB104: - | GC104: - | GD104: - | GE104: - | GF104: 0.18542 | GG104: - | GH104: 0.0762 | GI104: -
A105: 87 | B105: =Historical_Data!B89 -> 1978-03-28 | C105: =Historical_Data!C89 -> 0 | D105: =Historical_Data!C454 -> 0 | E105: =Historical_Data!C819 -> 0 | F105: =Historical_Data!C1185 -> 0 | G105: =Historical_Data!C1550 -> 0 | H105: =Historical_Data!C1915 -> 0.08382 | I105: =Historical_Data!C2280 -> 0.254 | J105: =Historical_Data!C2646 -> 0 | K105: =Historical_Data!C3011 -> 0 | L105: =Historical_Data!C3376 -> 0 | M105: =Historical_Data!C3741 -> 0 | N105: =Historical_Data!C4107 -> 0 | O105: =Historical_Data!C4472 -> 0 | P105: =Historical_Data!C4837 -> 0 | Q105: =Historical_Data!C5202 -> 0.89154 | R105: =Historical_Data!C5568 -> 0.09144 | S105: =Historical_Data!C5933 -> 2.4765 | T105: =Historical_Data!C6298 -> 0 | U105: =Historical_Data!C6663 -> 0 | V105: =Historical_Data!C7029 -> 0 | W105: =Historical_Data!C7394 -> 0 | X105: =Historical_Data!C7759 -> 0.09398 | Y105: =Historical_Data!C8124 -> 2.5908 | Z105: =Historical_Data!C8490 -> 0.2794 | AA105: =Historical_Data!C8855 -> 0 | AC105: 0 | AD105: 0 | AE105: 0 | AF105: 0 | AG105: 0 | AH105: 1 | AI105: 1 | AJ105: 0 | AK105: 0 | AL105: 0 | AM105: 0 | AN105: 0 | AO105: 0 | AP105: 0 | AQ105: 1 | AR105: 1 | AS105: 1 | AT105: 0 | AU105: 0 | AV105: 0 | AW105: 0 | AX105: 1 | AY105: 1 | AZ105: 1 | BA105: 0 | BB105: 0 | BC105: 0 | BD105: 0 | BE105: 0 | BF105: 0 | BG105: 1 | BH105: 0 | BI105: 0 | BJ105: 0 | BK105: 0 | BL105: 0 | BM105: 0 | BN105: 0 | BO105: 0 | BP105: 1 | BQ105: 1 | BR105: 1 | BS105: 0 | BT105: 0 | BU105: 0 | BV105: 0 | BW105: 1 | BX105: 0 | BY105: 1 | BZ105: 0 | CA105: 1 | CB105: 0 | CC105: 0 | CD105: 0 | CE105: 0 | CF105: 0 | CG105: 0 | CH105: 0 | CI105: 0 | CJ105: 0 | CK105: 1 | CL105: 0 | CM105: 0 | CN105: 1 | CO105: 0 | CP105: 0 | CQ105: 0 | CR105: 0 | CS105: 0 | CT105: 0 | CU105: 0 | CV105: 0 | CW105: 0 | CX105: 0 | CY105: 0 | CZ105: 0 | DA105: 1 | DB105: 1 | DC105: 1 | DD105: 1 | DE105: 0 | DF105: 0 | DG105: 1 | DH105: 1 | DI105: 1 | DJ105: 0 | DK105: 1 | DL105: 1 | DM105: 0 | DN105: 0 | DO105: 0 | DP105: 0 | DQ105: 1 | DR105: 1 | DS105: 1 | DT105: 1 | DU105: 0 | DV105: 0 | DW105: 0 | DX105: 1 | DY105: 0 | DZ105: 0 | EA105: 0 | EB105: 0 | EC105: 0 | ED105: 0 | EE105: 0 | EF105: 1 | EG105: 0 | EH105: 0 | EI105: 0 | EJ105: 0 | EK105: 0 | EL105: 0 | EM105: 0 | EN105: 0 | EO105: 0 | EP105: 0 | EQ105: 0 | ER105: 0 | ES105: 0 | ET105: 0 | EU105: 0 | EV105: 1 | EW105: 0 | EX105: 0 | EZ105: 257 | FA105: 123 | FB105: 141 | FC105: 346 | FD105: 142 | FF105: 0.3426666667 | FG105: 0.4659090909 | FH105: 0.5340909091 | FI105: 0.7090163934 | FJ105: 0.2909836066 | FK105: - | FL105: - | FM105: - | FN105: - | FO105: - | FP105: 0.08382 | FQ105: 0.254 | FR105: - | FS105: - | FT105: - | FU105: - | FV105: - | FW105: - | FX105: - | FY105: 0.89154 | FZ105: 0.09144 | GA105: 2.4765 | GB105: - | GC105: - | GD105: - | GE105: - | GF105: 0.09398 | GG105: 2.5908 | GH105: 0.2794 | GI105: -
A106: 88 | B106: =Historical_Data!B90 -> 1978-03-29 | C106: =Historical_Data!C90 -> 0 | D106: =Historical_Data!C455 -> 0.1016 | E106: =Historical_Data!C820 -> 0.93218 | F106: =Historical_Data!C1186 -> 0 | G106: =Historical_Data!C1551 -> 0 | H106: =Historical_Data!C1916 -> 0 | I106: =Historical_Data!C2281 -> 3.0734 | J106: =Historical_Data!C2647 -> 0.127 | K106: =Historical_Data!C3012 -> 0 | L106: =Historical_Data!C3377 -> 0 | M106: =Historical_Data!C3742 -> 0 | N106: =Historical_Data!C4108 -> 0.22352 | O106: =Historical_Data!C4473 -> 0.07874 | P106: =Historical_Data!C4838 -> 0.90424 | Q106: =Historical_Data!C5203 -> 0 | R106: =Historical_Data!C5569 -> 1.2954 | S106: =Historical_Data!C5934 -> 1.5875 | T106: =Historical_Data!C6299 -> 0 | U106: =Historical_Data!C6664 -> 2.53238 | V106: =Historical_Data!C7030 -> 0.3302 | W106: =Historical_Data!C7395 -> 0 | X106: =Historical_Data!C7760 -> 0 | Y106: =Historical_Data!C8125 -> 0.66294 | Z106: =Historical_Data!C8491 -> 0.6223 | AA106: =Historical_Data!C8856 -> 0 | AC106: 0 | AD106: 1 | AE106: 1 | AF106: 0 | AG106: 0 | AH106: 0 | AI106: 1 | AJ106: 1 | AK106: 0 | AL106: 0 | AM106: 0 | AN106: 1 | AO106: 1 | AP106: 1 | AQ106: 0 | AR106: 1 | AS106: 1 | AT106: 0 | AU106: 1 | AV106: 1 | AW106: 0 | AX106: 0 | AY106: 1 | AZ106: 1 | BA106: 0 | BB106: 0 | BC106: 0 | BD106: 0 | BE106: 0 | BF106: 0 | BG106: 0 | BH106: 1 | BI106: 0 | BJ106: 0 | BK106: 0 | BL106: 0 | BM106: 0 | BN106: 0 | BO106: 0 | BP106: 0 | BQ106: 1 | BR106: 1 | BS106: 0 | BT106: 0 | BU106: 0 | BV106: 0 | BW106: 0 | BX106: 1 | BY106: 1 | BZ106: 0 | CA106: 0 | CB106: 0 | CC106: 0 | CD106: 0 | CE106: 0 | CF106: 1 | CG106: 0 | CH106: 0 | CI106: 0 | CJ106: 0 | CK106: 0 | CL106: 0 | CM106: 0 | CN106: 0 | CO106: 1 | CP106: 0 | CQ106: 0 | CR106: 0 | CS106: 0 | CT106: 0 | CU106: 0 | CV106: 1 | CW106: 0 | CX106: 0 | CY106: 0 | CZ106: 1 | DA106: 0 | DB106: 0 | DC106: 1 | DD106: 1 | DE106: 0 | DF106: 0 | DG106: 0 | DH106: 1 | DI106: 1 | DJ106: 1 | DK106: 0 | DL106: 0 | DM106: 0 | DN106: 0 | DO106: 0 | DP106: 0 | DQ106: 1 | DR106: 0 | DS106: 0 | DT106: 1 | DU106: 0 | DV106: 0 | DW106: 0 | DX106: 1 | DY106: 0 | DZ106: 0 | EA106: 1 | EB106: 1 | EC106: 0 | ED106: 0 | EE106: 0 | EF106: 0 | EG106: 1 | EH106: 0 | EI106: 0 | EJ106: 0 | EK106: 1 | EL106: 1 | EM106: 1 | EN106: 0 | EO106: 0 | EP106: 0 | EQ106: 0 | ER106: 1 | ES106: 1 | ET106: 0 | EU106: 0 | EV106: 0 | EW106: 0 | EX106: 0 | EZ106: 258 | FA106: 124 | FB106: 139 | FC106: 343 | FD106: 144 | FF106: 0.344 | FG106: 0.4714828897 | FH106: 0.5285171103 | FI106: 0.704312115 | FJ106: 0.295687885 | FK106: - | FL106: 0.1016 | FM106: 0.93218 | FN106: - | FO106: - | FP106: - | FQ106: 3.0734 | FR106: 0.127 | FS106: - | FT106: - | FU106: - | FV106: 0.22352 | FW106: 0.07874 | FX106: 0.90424 | FY106: - | FZ106: 1.2954 | GA106: 1.5875 | GB106: - | GC106: 2.53238 | GD106: 0.3302 | GE106: - | GF106: - | GG106: 0.66294 | GH106: 0.6223 | GI106: -
